Workbook

Sheet User
E2: Selected cells are LOCKED because they should not require editting. If cells require editting, unprotect workbook.
D5: USER DATA ENTRY CELLS ARE SHADED IN BLUE. DO NOT MODIFY GREYED CELLS. If calculation breaks, check that Cell B171 in AADFCalculation sheet references End Date
D6: 1. AADF Monitoring Spreadsheet uses Windows PowerShell 5.1 to download data from Idaho Power. You must have Powershell version 5.0 or greater.
D7: If necessary, download the Windows Management Framework 5.1 here https://www.microsoft.com/en-us/download/details.aspx?id=54616
D8: Read the release notes to ensure system compatibility
D9: 2. A dedicated folder on the local machine or network is required to save downloaded files. Create this folder if necessary prior to running program. Folder address must not contain spaces. Current IDWR folder location is N:\Hydrology\SnakeNrMurphy\IPCoDataDownloads
D10: 3. If running for the first time, go to worksheet "IPCoData.ps1" and copy text to a text editor (notepad, notepad ++). Save the script in the folder created in step 2. Save the file as IPCoData.ps1
D11: 4. Enter the folder address created in step 2 in "User" worksheet cell E17
D12: 3. Enter an end date in "User" worskheet cell E18. The default value is today's date.
D13: 4. Enter the period of record for data retrieval in worksheet "User" cell E19. This is the number of days requested previous to the end day. Default is 8 days (1 week). The program can access any period of record,
D14: however calculation and plots are limited to the recent 7 day history from the end date. Add one day to the desired period of record length because of IPCo database set up. See comment
D15: 5. Enter "Yes" or "No" in cells G19:G26 for each day in the most recent 7 day history. Enter "Yes" if Milner flow is IPCo storage water.
D16: Enter "No" if Milner flow is not IPCo storage or if Milner is 0 flow
D17: 6. Click User Command Buttons. When retrieving new data, the buttons should be pressed in the following order: Acquire Data, Import Data, Hour Timestep Filter,
D18: Interpolate Missing Values
D19: 7. AT THE NEW MONITORING YEAR: Manually repopulate date column in sheets "AnnualAADFMonitoring" (column C) and "SnakeatMilnerLagged" (column B) to correct year. Delete data from "AnnualAADFMonitoring" columns D, E, F, G, Z, AD and "SnakeatMilnerLagged" columns C, D, E
G23: Is Milner Flow IPCo Storage? (YES/NO) | H23: AADF Calculation Date Range | K23: =IF(OR(LOOKUP(2,1/(SnakeRiveratMilner!$A:$A<>""),SnakeRiveratMilner!$A:$A)<>E26,LOOKUP(2,1/(LwrSalmonFallsDam!$A:$A<>""),LwrSalmonFallsDam!$A:$A)<>E26,LOOKUP(2,1/(BlissDam!$A:$A<>""),BlissDam!$A:$A)<>E26,LOOKUP(2,1/(CJStrikeBoatDock!$A:$A<>""),CJStrikeBoatDock!$A:$A)<>E26,LOOKUP(2,1/(SnakeRiveratLoveridge!$A:$A<>""),SnakeRiveratLoveridge!$A:$A)<>E26,LOOKUP(2,1/(CottonwoodPark!$A:$A<>""),CottonwoodPark!$A:$A)<>E26,LOOKUP(2,1/(SwanFallsDam!$A:$A<>""),SwanFallsDam!$A:$A)<>E26),"WARNING: DATA IS NOT UPDATED","IPCo DATA IS UPDATED") -> WARNING: DATA IS NOT UPDATED
D25: Folder Location: | E25: N:\Hydrology\SnakeNrMurphy\IPCoDataDownloads | G25: NO | H25: =H26-1 -> 2020-10-18
D26: End Date: | E26: 2020-10-26 | G26: NO | H26: =H27-1 -> 2020-10-19
D27: Period of Record (days): | E27: 8 | G27: NO | H27: 2020-10-20 | L27: Date | M27: Reservoir Adjustment (CFS) | N27: Adjusted Daily Average Flow (CFS) | O27: 3 Day Average AADF (CFS)
D28: Start Date: | E28: =E26-E27 -> 2020-10-18 | G28: NO | H28: 2020-10-21
E29: DATA RETRIEVAL LIMITED TO 12/27 OF PREVIOUS YEAR | G29: NO | H29: 2020-10-22
G30: NO | H30: 2020-10-23 | L30: =H28 -> 2020-10-21 | M30: =#REF! ->  | N30: =#REF! ->  | O30: -
G31: NO | H31: =H32-1 -> 2020-10-24
G32: NO | H32: =E26-1 -> 2020-10-25 | L32: =H29 -> 2020-10-22 | M32: =#REF! ->  | N32: =#REF! ->  | O32: -
L35: =H30 -> 2020-10-23 | M35: =#REF! ->  | N35: =#REF! ->  | O35: =#REF! -> 
L37: =H31 -> 2020-10-24 | M37: =#REF! ->  | N37: =#REF! ->  | O37: =#REF! -> 
L39: =H32 -> 2020-10-25 | M39: =#REF! ->  | N39: =#REF! ->  | O39: =#REF! -> 

Sheet AnnualAADFMonitoring
C1: Enter Current Year: | D1: Reservoir Stage (ft) | H1: Reservoir Stage - Lagged to Murphy Time (ft) | P1: Reservoir Adjustment (cfs) | Y1: Daily AADF Calculation | AH1: Annual AADF Plot | AV1: Difference between 15 min Reservoir Adjustments | AW1: Difference Btwn ReserAdj Diff and Cj Strike ReservAdj Difference | AY1: Current AADF Results Table
C2: =YEAR(C7415) -> 2019 | D2: Lwr Salmon Falls | E2: Bliss Dam | F2: CJ Strike Weighted | G2: Swan Falls | H2: Lwr Salmon Falls | J2: Bliss Dam | L2: CJ Strike Weighted | N2: Swan Falls | P2: Lwr Salmon Falls | R2: Bliss Dam | T2: CJ Strike Weighted | V2: Swan Falls | Y2: Date | Z2: IPCo Storage at Milner? | AA2: Milner Lag (days) | AB2: Milner Flow (CFS) | AC2: ResAdj_15min | AD2: Snake River at Murphy Flow (CFS) | AE2: AADF_15min_BoatDock | AF2: 3 Day Average AADF | AH2: Minimum Streamflow | AJ2: Boat Dock Data 15 minute Input AADF Calculation Results | AO2: Reservoir Adj Difference Between CJ Strike | AP2: Headwater Dam Data 15 minute Input AADF Calculation Results | AY2: Date | AZ2: IPCo Storage at Milner? | BA2: Milner Lag (days) | BB2: Milner Flow (CFS) | BC2: ResAdj_Hourly | BD2: Snake River at Murphy Flow (CFS) | BE2: AADF_15min_HWDam | BF2: 3 Day Average AADF
H3: =-34*4 -> -136 | I3: hr | J3: =-32*4 -> -128 | K3: hr | L3: =-11*4 -> -44 | M3: hr | N3: =-3*4 -> -12 | O3: hr | P3: 748 | Q3: Acres | R3: 255 | S3: Acres | T3: 7500 | U3: Acres | V3: 870 | W3: Acres | AH3: CFS | AJ3: CJ Strike Value | AK3: CJ Strike CFS Difference | AL3: Lwr Salmon | AM3: Bliss | AN3: Swan Falls | AP3: CJ Strike Value | AQ3: CJ Strike CFS Difference | AR3: Lwr Salmon | AS3: Bliss | AT3: Swan Falls
A4: 0 | B4: =ROUND(C4,2) -> 2018-12-27 | C4: 2018-12-27 | D4: =IF(VLOOKUP(C4,LwrSalmonFallsDam!$A$3:$B$35999,1,TRUE)=C4,VLOOKUP(C4,LwrSalmonFallsDam!$A$3:$B$35999,2,TRUE),NA()) -> 2797.692 | E4: =IF(VLOOKUP(C4,BlissDam!$A$3:$B$35999,1,TRUE)=C4,VLOOKUP(C4,BlissDam!$A$3:$B$35999,2,TRUE),NA()) -> 2653.85 | F4: =IF(VLOOKUP(C4,CJStageCalc!$A$3:$E$35999,1,TRUE)=C4,VLOOKUP(C4,CJStageCalc!$A$3:$E$35999,5,TRUE),NA()) -> 2454.88981 | G4: =IF(VLOOKUP(C4,SwanFallsDam!$A$3:$B$35999,1,TRUE)=C4,VLOOKUP(C4,SwanFallsDam!$A$3:$B$35999,2,TRUE),NA()) -> 2313.202 | H4: =IF(ISNUMBER(OFFSET(D4,$H$3,0)),OFFSET(D4,$H$3,0),"") ->  | J4: =IF(ISNUMBER(OFFSET(E4,$J$3,0)),OFFSET(E4,$J$3,0),"") ->  | L4: =IF(ISNUMBER(OFFSET(F4,$L$3,0)),OFFSET(F4,$L$3,0),"") ->  | N4: =IF(ISNUMBER(OFFSET(G4,$N$3,0)),OFFSET(G4,$N$3,0),"") ->  | X4: 2018-12-27 | Y4: =Y5-1 -> 2018-12-27 | AV4: =BC4-AC4 -> 0 | AW4: =AV4-AO4 -> 0 | AY4: 2018-12-27
A5: 1 | B5: =ROUND(OFFSET(C5,0,0),5) -> 2018-12-27T00:15:00.288 | C5: 2018-12-27T00:15:00 | D5: =IF(VLOOKUP(C5,LwrSalmonFallsDam!$A$3:$B$35999,1,TRUE)=C5,VLOOKUP(C5,LwrSalmonFallsDam!$A$3:$B$35999,2,TRUE),NA()) -> 2797.736 | E5: =IF(VLOOKUP(C5,BlissDam!$A$3:$B$35999,1,TRUE)=C5,VLOOKUP(C5,BlissDam!$A$3:$B$35999,2,TRUE),NA()) -> 2653.86 | F5: =IF(VLOOKUP(C5,CJStageCalc!$A$3:$E$35999,1,TRUE)=C5,VLOOKUP(C5,CJStageCalc!$A$3:$E$35999,5,TRUE),NA()) -> 2454.88338 | G5: =IF(VLOOKUP(C5,SwanFallsDam!$A$3:$B$35999,1,TRUE)=C5,VLOOKUP(C5,SwanFallsDam!$A$3:$B$35999,2,TRUE),NA()) -> 2313.176 | P5: =IF(ISNUMBER(H4),(H5-H4)*$P$3*12.1*4,"") ->  | R5: =IF(ISNUMBER(J4),(J5-J4)*$R$3*12.1*4,"") ->  | T5: =IF(ISNUMBER(L4),(L5-L4)*$T$3*12.1*4,"") ->  | X5: 2018-12-28 | Y5: =Y6-1 -> 2018-12-28 | AD5: 7450 | AV5: 0 | AW5: 0 | AY5: 2018-12-28 | BD5: 7450
A6: 2 | B6: =ROUND(OFFSET(C6,0,0),5) -> 2018-12-27T00:29:59.712 | C6: 2018-12-27T00:30:00 | D6: =IF(VLOOKUP(C6,LwrSalmonFallsDam!$A$3:$B$35999,1,TRUE)=C6,VLOOKUP(C6,LwrSalmonFallsDam!$A$3:$B$35999,2,TRUE),NA()) -> 2797.713 | E6: =IF(VLOOKUP(C6,BlissDam!$A$3:$B$35999,1,TRUE)=C6,VLOOKUP(C6,BlissDam!$A$3:$B$35999,2,TRUE),NA()) -> 2653.868 | F6: =IF(VLOOKUP(C6,CJStageCalc!$A$3:$E$35999,1,TRUE)=C6,VLOOKUP(C6,CJStageCalc!$A$3:$E$35999,5,TRUE),NA()) -> 2454.87966 | G6: =IF(VLOOKUP(C6,SwanFallsDam!$A$3:$B$35999,1,TRUE)=C6,VLOOKUP(C6,SwanFallsDam!$A$3:$B$35999,2,TRUE),NA()) -> 2313.148 | P6: =IF(ISNUMBER(H5),(H6-H5)*$P$3*12.1*4,"") ->  | T6: =IF(ISNUMBER(L5),(L6-L5)*$T$3*12.1*4,"") ->  | X6: 2018-12-29 | Y6: =Y7-1 -> 2018-12-29 | AC6: =IF(Y6<User!$E$26,((INDEX($H$6:$O$35750,MATCH(Y6+1,$B$6:$B$35750,0),1)*748+INDEX($H$6:$O$35750,MATCH(Y6+1,$B$6:$B$35750,0),3)*255+INDEX($H$6:$O$35750,MATCH(Y6+1,$B$6:$B$35750,0),5)*7500+INDEX($H$6:$O$35750,MATCH(Y6+1,$B$6:$B$35750,0),7)*870) - (INDEX($H$6:$O$35750,MATCH(Y6,$B$6:$B$35750,0),1)*748+INDEX($H$6:$O$35750,MATCH(Y6,$B$6:$B$35750,0),3)*255+INDEX($H$6:$O$35750,MATCH(Y6,$B$6:$B$35750,0),5)*7500+INDEX($H$6:$O$35750,MATCH(Y6,$B$6:$B$35750,0),7)*870)) /1.9835,"") -> 137.447996 | AD6: 7340 | AI6: =Y6 -> 2018-12-29 | AJ6: =IF(Y6<User!$E$26,((INDEX($H$6:$O$35750,MATCH(Y6,$B$6:$B$35750,0),5)))) -> 2454.7872 | AK6: =(INDEX($H$6:$O$35750,MATCH(Y6+1,$B$6:$B$35750,0),5)*$T$3-(INDEX($H$6:$O$35750,MATCH(Y6,$B$6:$B$35750,0),5))*$T$3)/1.9835 -> 143.9758508 | AL6: =IF(Y6<User!$E$26,((INDEX($H$6:$O$35750,MATCH(Y6,$B$6:$B$35750,0),1)))) -> 2797.776 | AM6: =IF(Y6<User!$E$26,((INDEX($H$6:$O$35750,MATCH(Y6,$B$6:$B$35750,0),3)))) -> 2653.821 | AN6: =IF(Y6<User!$E$26,((INDEX($H$6:$O$35750,MATCH(Y6,$B$6:$B$35750,0),7)))) -> 2313.346 | AO6: =AQ6-AK6 -> 8.04078649 | AP6: 2454.800913 | AQ6: 152.0166372 | AR6: 2797.776 | AS6: 2653.821 | AT6: 2313.346 | AV6: =BC6-AC6 -> 8.040786488 | AW6: -1.878163403e-09 | AY6: 2018-12-29 | BC6: 145.4887824 | BD6: 7340
A7: 3 | B7: 2018-12-27T00:45:00 | C7: 2018-12-27T00:45:00 | D7: =IF(VLOOKUP(C7,LwrSalmonFallsDam!$A$3:$B$35999,1,TRUE)=C7,VLOOKUP(C7,LwrSalmonFallsDam!$A$3:$B$35999,2,TRUE),NA()) -> 2797.666 | E7: =IF(VLOOKUP(C7,BlissDam!$A$3:$B$35999,1,TRUE)=C7,VLOOKUP(C7,BlissDam!$A$3:$B$35999,2,TRUE),NA()) -> 2653.875 | F7: =IF(VLOOKUP(C7,CJStageCalc!$A$3:$E$35999,1,TRUE)=C7,VLOOKUP(C7,CJStageCalc!$A$3:$E$35999,5,TRUE),NA()) -> 2454.87992 | G7: =IF(VLOOKUP(C7,SwanFallsDam!$A$3:$B$35999,1,TRUE)=C7,VLOOKUP(C7,SwanFallsDam!$A$3:$B$35999,2,TRUE),NA()) -> 2313.126 | X7: 2018-12-30 | Y7: =Y8-1 -> 2018-12-30 | Z7: NO | AA7: =IF(ISNUMBER(AB7),INDEX(SnakeatMilnerLagged!$D$2:$D$370,MATCH(AnnualAADFMonitoring!Y7,SnakeatMilnerLagged!$B$2:$B$370))*-1,"") -> 2 | AB7: =IF(ISNUMBER(MATCH(AnnualAADFMonitoring!Y7,SnakeatMilnerLagged!$B$2:$B$370)),INDEX(SnakeatMilnerLagged!$E$2:$E$370,MATCH(AnnualAADFMonitoring!Y7,SnakeatMilnerLagged!$B$2:$B$370)),"") -> 1014 | AC7: =IF(Y7<User!$E$26,((INDEX($H$6:$O$35750,MATCH(Y7+1,$B$6:$B$35750,0),1)*748+INDEX($H$6:$O$35750,MATCH(Y7+1,$B$6:$B$35750,0),3)*255+INDEX($H$6:$O$35750,MATCH(Y7+1,$B$6:$B$35750,0),5)*7500+INDEX($H$6:$O$35750,MATCH(Y7+1,$B$6:$B$35750,0),7)*870) - (INDEX($H$6:$O$35750,MATCH(Y7,$B$6:$B$35750,0),1)*748+INDEX($H$6:$O$35750,MATCH(Y7,$B$6:$B$35750,0),3)*255+INDEX($H$6:$O$35750,MATCH(Y7,$B$6:$B$35750,0),5)*7500+INDEX($H$6:$O$35750,MATCH(Y7,$B$6:$B$35750,0),7)*870)) /1.9835,"") -> 49.09710108 | AD7: 7500 | AE7: =IF(ISNUMBER(AD7),IF(Z7="YES",AD7-AB7+AC7,AD7+AC7),NA()) -> 7549.097101 | AI7: 2018-12-30 | AJ7: =IF(Y7<User!$E$26,((INDEX($H$6:$O$35750,MATCH(Y7,$B$6:$B$35750,0),5)))) -> 2454.825277 | AK7: =(INDEX($H$6:$O$35750,MATCH(Y7+1,$B$6:$B$35750,0),5)*$T$3-(INDEX($H$6:$O$35750,MATCH(Y7,$B$6:$B$35750,0),5))*$T$3)/1.9835 -> 60.02072095 | AL7: =IF(Y7<User!$E$26,((INDEX($H$6:$O$35750,MATCH(Y7,$B$6:$B$35750,0),1)))) -> 2797.695 | AM7: =IF(Y7<User!$E$26,((INDEX($H$6:$O$35750,MATCH(Y7,$B$6:$B$35750,0),3)))) -> 2653.769 | AN7: =IF(Y7<User!$E$26,((INDEX($H$6:$O$35750,MATCH(Y7,$B$6:$B$35750,0),7)))) -> 2313.416 | AO7: -23.57000252 | AP7: 2454.841117 | AQ7: 36.45071843 | AR7: 2797.695 | AS7: 2653.769 | AT7: 2313.416 | AV7: -23.57000252 | AW7: 1.878138534e-09 | AY7: 2018-12-30 | AZ7: NO | BA7: 2 | BB7: 1014 | BC7: 25.52709857 | BD7: 7500 | BE7: 7525.527099
A8: 4 | B8: 2018-12-27T01:00:00.288 | C8: 2018-12-27T01:00:00 | D8: =IF(VLOOKUP(C8,LwrSalmonFallsDam!$A$3:$B$35999,1,TRUE)=C8,VLOOKUP(C8,LwrSalmonFallsDam!$A$3:$B$35999,2,TRUE),NA()) -> 2797.712 | E8: =IF(VLOOKUP(C8,BlissDam!$A$3:$B$35999,1,TRUE)=C8,VLOOKUP(C8,BlissDam!$A$3:$B$35999,2,TRUE),NA()) -> 2653.876 | F8: =IF(VLOOKUP(C8,CJStageCalc!$A$3:$E$35999,1,TRUE)=C8,VLOOKUP(C8,CJStageCalc!$A$3:$E$35999,5,TRUE),NA()) -> 2454.87771 | G8: =IF(VLOOKUP(C8,SwanFallsDam!$A$3:$B$35999,1,TRUE)=C8,VLOOKUP(C8,SwanFallsDam!$A$3:$B$35999,2,TRUE),NA()) -> 2313.115 | X8: 2018-12-31 | Y8: =Y9-1 -> 2018-12-31 | Z8: NO | AA8: =IF(ISNUMBER(AB8),INDEX(SnakeatMilnerLagged!$D$2:$D$370,MATCH(AnnualAADFMonitoring!Y8,SnakeatMilnerLagged!$B$2:$B$370))*-1,"") -> 2 | AB8: =IF(ISNUMBER(MATCH(AnnualAADFMonitoring!Y8,SnakeatMilnerLagged!$B$2:$B$370)),INDEX(SnakeatMilnerLagged!$E$2:$E$370,MATCH(AnnualAADFMonitoring!Y8,SnakeatMilnerLagged!$B$2:$B$370)),"") -> 1050 | AC8: =IF(Y8<User!$E$26,((INDEX($H$6:$O$35750,MATCH(Y8+1,$B$6:$B$35750,0),1)*748+INDEX($H$6:$O$35750,MATCH(Y8+1,$B$6:$B$35750,0),3)*255+INDEX($H$6:$O$35750,MATCH(Y8+1,$B$6:$B$35750,0),5)*7500+INDEX($H$6:$O$35750,MATCH(Y8+1,$B$6:$B$35750,0),7)*870) - (INDEX($H$6:$O$35750,MATCH(Y8,$B$6:$B$35750,0),1)*748+INDEX($H$6:$O$35750,MATCH(Y8,$B$6:$B$35750,0),3)*255+INDEX($H$6:$O$35750,MATCH(Y8,$B$6:$B$35750,0),5)*7500+INDEX($H$6:$O$35750,MATCH(Y8,$B$6:$B$35750,0),7)*870)) /1.9835,"") -> -71.43997983 | AD8: 7520 | AE8: 7448.56002 | AI8: 2018-12-31 | AJ8: =IF(Y8<User!$E$26,((INDEX($H$6:$O$35750,MATCH(Y8,$B$6:$B$35750,0),5)))) -> 2454.84115 | AK8: -133.0361482 | AL8: =IF(Y8<User!$E$26,((INDEX($H$6:$O$35750,MATCH(Y8,$B$6:$B$35750,0),1)))) -> 2797.721 | AM8: =IF(Y8<User!$E$26,((INDEX($H$6:$O$35750,MATCH(Y8,$B$6:$B$35750,0),3)))) -> 2653.908 | AN8: =IF(Y8<User!$E$26,((INDEX($H$6:$O$35750,MATCH(Y8,$B$6:$B$35750,0),7)))) -> 2313.328 | AO8: 12.20176456 | AP8: 2454.850757 | AQ8: -120.8343837 | AR8: 2797.721 | AS8: 2653.908 | AT8: 2313.328 | AV8: 12.20176456 | AW8: 0 | AY8: 2018-12-31 | AZ8: NO | BA8: 2 | BB8: 1050 | BC8: -59.23821528 | BD8: 7520 | BE8: 7460.761785
A9: 5 | B9: 2018-12-27T01:14:59.712 | C9: 2018-12-27T01:15:00 | D9: =IF(VLOOKUP(C9,LwrSalmonFallsDam!$A$3:$B$35999,1,TRUE)=C9,VLOOKUP(C9,LwrSalmonFallsDam!$A$3:$B$35999,2,TRUE),NA()) -> 2797.736 | E9: =IF(VLOOKUP(C9,BlissDam!$A$3:$B$35999,1,TRUE)=C9,VLOOKUP(C9,BlissDam!$A$3:$B$35999,2,TRUE),NA()) -> 2653.876 | F9: =IF(VLOOKUP(C9,CJStageCalc!$A$3:$E$35999,1,TRUE)=C9,VLOOKUP(C9,CJStageCalc!$A$3:$E$35999,5,TRUE),NA()) -> 2454.886077 | G9: =IF(VLOOKUP(C9,SwanFallsDam!$A$3:$B$35999,1,TRUE)=C9,VLOOKUP(C9,SwanFallsDam!$A$3:$B$35999,2,TRUE),NA()) -> 2313.113 | X9: 2019-01-01 | Y9: =DATE($C$2,1,1) -> 2019-01-01 | Z9: NO | AA9: =IF(ISNUMBER(AB9),INDEX(SnakeatMilnerLagged!$D$2:$D$370,MATCH(AnnualAADFMonitoring!Y9,SnakeatMilnerLagged!$B$2:$B$370))*-1,"") -> 3 | AB9: =IF(ISNUMBER(MATCH(AnnualAADFMonitoring!Y9,SnakeatMilnerLagged!$B$2:$B$370)),INDEX(SnakeatMilnerLagged!$E$2:$E$370,MATCH(AnnualAADFMonitoring!Y9,SnakeatMilnerLagged!$B$2:$B$370)),"") -> 1050 | AC9: =IF(Y9<User!$E$26,((INDEX($H$6:$O$35750,MATCH(Y9+1,$B$6:$B$35750,0),1)*748+INDEX($H$6:$O$35750,MATCH(Y9+1,$B$6:$B$35750,0),3)*255+INDEX($H$6:$O$35750,MATCH(Y9+1,$B$6:$B$35750,0),5)*7500+INDEX($H$6:$O$35750,MATCH(Y9+1,$B$6:$B$35750,0),7)*870) - (INDEX($H$6:$O$35750,MATCH(Y9,$B$6:$B$35750,0),1)*748+INDEX($H$6:$O$35750,MATCH(Y9,$B$6:$B$35750,0),3)*255+INDEX($H$6:$O$35750,MATCH(Y9,$B$6:$B$35750,0),5)*7500+INDEX($H$6:$O$35750,MATCH(Y9,$B$6:$B$35750,0),7)*870)) /1.9835,"") -> -203.4458785 | AD9: 7810 | AE9: 7606.554122 | AF9: =IF(ISNUMBER(AE9),AVERAGE(AE7:AE9),NA()) -> 7534.737081 | AH9: 5600 | AI9: 2019-01-01 | AJ9: =IF(Y9<User!$E$26,((INDEX($H$6:$O$35750,MATCH(Y9,$B$6:$B$35750,0),5)))) -> 2454.805967 | AK9: 23.39354677 | AL9: =IF(Y9<User!$E$26,((INDEX($H$6:$O$35750,MATCH(Y9,$B$6:$B$35750,0),1)))) -> 2797.623 | AM9: =IF(Y9<User!$E$26,((INDEX($H$6:$O$35750,MATCH(Y9,$B$6:$B$35750,0),3)))) -> 2653.866 | AN9: =IF(Y9<User!$E$26,((INDEX($H$6:$O$35750,MATCH(Y9,$B$6:$B$35750,0),7)))) -> 2313.565 | AO9: 3.881472145 | AP9: 2454.8188 | AQ9: 27.27501891 | AR9: 2797.623 | AS9: 2653.866 | AT9: 2313.565 | AV9: 3.881472145 | AW9: -1.776356839e-14 | AY9: 2019-01-01 | AZ9: NO | BA9: 3 | BB9: 1050 | BC9: -199.5644063 | BD9: 7810 | BE9: 7610.435594 | BF9: 7532.241492
A10: 6 | B10: 2018-12-27T01:30:00 | C10: 2018-12-27T01:30:00 | D10: =IF(VLOOKUP(C10,LwrSalmonFallsDam!$A$3:$B$35999,1,TRUE)=C10,VLOOKUP(C10,LwrSalmonFallsDam!$A$3:$B$35999,2,TRUE),NA()) -> 2797.725 | E10: =IF(VLOOKUP(C10,BlissDam!$A$3:$B$35999,1,TRUE)=C10,VLOOKUP(C10,BlissDam!$A$3:$B$35999,2,TRUE),NA()) -> 2653.868 | F10: =IF(VLOOKUP(C10,CJStageCalc!$A$3:$E$35999,1,TRUE)=C10,VLOOKUP(C10,CJStageCalc!$A$3:$E$35999,5,TRUE),NA()) -> 2454.89315 | G10: =IF(VLOOKUP(C10,SwanFallsDam!$A$3:$B$35999,1,TRUE)=C10,VLOOKUP(C10,SwanFallsDam!$A$3:$B$35999,2,TRUE),NA()) -> 2313.108 | V10: =IF(ISNUMBER(N9),(N10-N9)*$V$3*12.1*4,"") ->  | X10: 2019-01-02 | Y10: =Y9+1 -> 2019-01-02 | Z10: NO | AA10: =IF(ISNUMBER(AB10),INDEX(SnakeatMilnerLagged!$D$2:$D$370,MATCH(AnnualAADFMonitoring!Y10,SnakeatMilnerLagged!$B$2:$B$370))*-1,"") -> 3 | AB10: =IF(ISNUMBER(MATCH(AnnualAADFMonitoring!Y10,SnakeatMilnerLagged!$B$2:$B$370)),INDEX(SnakeatMilnerLagged!$E$2:$E$370,MATCH(AnnualAADFMonitoring!Y10,SnakeatMilnerLagged!$B$2:$B$370)),"") -> 1050 | AC10: =IF(Y10<User!$E$26,((INDEX($H$6:$O$35750,MATCH(Y10+1,$B$6:$B$35750,0),1)*748+INDEX($H$6:$O$35750,MATCH(Y10+1,$B$6:$B$35750,0),3)*255+INDEX($H$6:$O$35750,MATCH(Y10+1,$B$6:$B$35750,0),5)*7500+INDEX($H$6:$O$35750,MATCH(Y10+1,$B$6:$B$35750,0),7)*870) - (INDEX($H$6:$O$35750,MATCH(Y10,$B$6:$B$35750,0),1)*748+INDEX($H$6:$O$35750,MATCH(Y10,$B$6:$B$35750,0),3)*255+INDEX($H$6:$O$35750,MATCH(Y10,$B$6:$B$35750,0),5)*7500+INDEX($H$6:$O$35750,MATCH(Y10,$B$6:$B$35750,0),7)*870)) /1.9835,"") -> 320.0574741 | AD10: 7340 | AE10: 7660.057474 | AF10: 7571.723872 | AH10: 5600 | AI10: 2019-01-02 | AJ10: =IF(Y10<User!$E$26,((INDEX($H$6:$O$35750,MATCH(Y10,$B$6:$B$35750,0),5)))) -> 2454.812153 | AK10: 93.18124526 | AL10: =IF(Y10<User!$E$26,((INDEX($H$6:$O$35750,MATCH(Y10,$B$6:$B$35750,0),1)))) -> 2797.546 | AM10: =IF(Y10<User!$E$26,((INDEX($H$6:$O$35750,MATCH(Y10,$B$6:$B$35750,0),3)))) -> 2653.774 | AN10: =IF(Y10<User!$E$26,((INDEX($H$6:$O$35750,MATCH(Y10,$B$6:$B$35750,0),7)))) -> 2313.141 | AO10: 10.81421729 | AP10: 2454.826013 | AQ10: 103.9954626 | AR10: 2797.546 | AS10: 2653.774 | AT10: 2313.141 | AV10: 10.81421729 | AW10: 0 | AY10: 2019-01-02 | AZ10: NO | BA10: 3 | BB10: 1050 | BC10: 330.8716914 | BD10: 7340 | BE10: 7670.871691 | BF10: 7580.68969
A11: 7 | B11: 2018-12-27T01:45:00.288 | C11: 2018-12-27T01:45:00 | D11: =IF(VLOOKUP(C11,LwrSalmonFallsDam!$A$3:$B$35999,1,TRUE)=C11,VLOOKUP(C11,LwrSalmonFallsDam!$A$3:$B$35999,2,TRUE),NA()) -> 2797.732 | E11: =IF(VLOOKUP(C11,BlissDam!$A$3:$B$35999,1,TRUE)=C11,VLOOKUP(C11,BlissDam!$A$3:$B$35999,2,TRUE),NA()) -> 2653.865 | F11: =IF(VLOOKUP(C11,CJStageCalc!$A$3:$E$35999,1,TRUE)=C11,VLOOKUP(C11,CJStageCalc!$A$3:$E$35999,5,TRUE),NA()) -> 2454.90089 | G11: =IF(VLOOKUP(C11,SwanFallsDam!$A$3:$B$35999,1,TRUE)=C11,VLOOKUP(C11,SwanFallsDam!$A$3:$B$35999,2,TRUE),NA()) -> 2313.101 | X11: 2019-01-03 | Y11: 2019-01-03 | Z11: NO | AA11: =IF(ISNUMBER(AB11),INDEX(SnakeatMilnerLagged!$D$2:$D$370,MATCH(AnnualAADFMonitoring!Y11,SnakeatMilnerLagged!$B$2:$B$370))*-1,"") -> 3 | AB11: =IF(ISNUMBER(MATCH(AnnualAADFMonitoring!Y11,SnakeatMilnerLagged!$B$2:$B$370)),INDEX(SnakeatMilnerLagged!$E$2:$E$370,MATCH(AnnualAADFMonitoring!Y11,SnakeatMilnerLagged!$B$2:$B$370)),"") -> 882.5 | AC11: =IF(Y11<User!$E$26,((INDEX($H$6:$O$35750,MATCH(Y11+1,$B$6:$B$35750,0),1)*748+INDEX($H$6:$O$35750,MATCH(Y11+1,$B$6:$B$35750,0),3)*255+INDEX($H$6:$O$35750,MATCH(Y11+1,$B$6:$B$35750,0),5)*7500+INDEX($H$6:$O$35750,MATCH(Y11+1,$B$6:$B$35750,0),7)*870) - (INDEX($H$6:$O$35750,MATCH(Y11,$B$6:$B$35750,0),1)*748+INDEX($H$6:$O$35750,MATCH(Y11,$B$6:$B$35750,0),3)*255+INDEX($H$6:$O$35750,MATCH(Y11,$B$6:$B$35750,0),5)*7500+INDEX($H$6:$O$35750,MATCH(Y11,$B$6:$B$35750,0),7)*870)) /1.9835,"") -> -184.5429292 | AD11: 7520 | AE11: 7335.457071 | AF11: 7534.022889 | AH11: 5600 | AI11: 2019-01-03 | AJ11: =IF(Y11<User!$E$26,((INDEX($H$6:$O$35750,MATCH(Y11,$B$6:$B$35750,0),5)))) -> 2454.836797 | AK11: 44.61865391 | AL11: =IF(Y11<User!$E$26,((INDEX($H$6:$O$35750,MATCH(Y11,$B$6:$B$35750,0),1)))) -> 2797.774 | AM11: =IF(Y11<User!$E$26,((INDEX($H$6:$O$35750,MATCH(Y11,$B$6:$B$35750,0),3)))) -> 2653.901 | AN11: =IF(Y11<User!$E$26,((INDEX($H$6:$O$35750,MATCH(Y11,$B$6:$B$35750,0),7)))) -> 2313.425 | AO11: -24.40186539 | AP11: 2454.853517 | AQ11: 20.21678852 | AR11: 2797.774 | AS11: 2653.901 | AT11: 2313.425 | AV11: -24.40186539 | AW11: 0 | AY11: 2019-01-03 | AZ11: NO | BA11: 3 | BB11: 882.5 | BC11: -208.9447945 | BD11: 7520 | BE11: 7311.055205 | BF11: 7530.787497
A12: 8 | B12: 2018-12-27T01:59:59.712 | C12: 2018-12-27T02:00:00 | D12: =IF(VLOOKUP(C12,LwrSalmonFallsDam!$A$3:$B$35999,1,TRUE)=C12,VLOOKUP(C12,LwrSalmonFallsDam!$A$3:$B$35999,2,TRUE),NA()) -> 2797.728 | E12: =IF(VLOOKUP(C12,BlissDam!$A$3:$B$35999,1,TRUE)=C12,VLOOKUP(C12,BlissDam!$A$3:$B$35999,2,TRUE),NA()) -> 2653.859 | F12: =IF(VLOOKUP(C12,CJStageCalc!$A$3:$E$35999,1,TRUE)=C12,VLOOKUP(C12,CJStageCalc!$A$3:$E$35999,5,TRUE),NA()) -> 2454.905363 | G12: =IF(VLOOKUP(C12,SwanFallsDam!$A$3:$B$35999,1,TRUE)=C12,VLOOKUP(C12,SwanFallsDam!$A$3:$B$35999,2,TRUE),NA()) -> 2313.112 | X12: 2019-01-04 | Y12: 2019-01-04 | Z12: NO | AA12: =IF(ISNUMBER(AB12),INDEX(SnakeatMilnerLagged!$D$2:$D$370,MATCH(AnnualAADFMonitoring!Y12,SnakeatMilnerLagged!$B$2:$B$370))*-1,"") -> 3 | AB12: =IF(ISNUMBER(MATCH(AnnualAADFMonitoring!Y12,SnakeatMilnerLagged!$B$2:$B$370)),INDEX(SnakeatMilnerLagged!$E$2:$E$370,MATCH(AnnualAADFMonitoring!Y12,SnakeatMilnerLagged!$B$2:$B$370)),"") -> 715 | AC12: =IF(Y12<User!$E$26,((INDEX($H$6:$O$35750,MATCH(Y12+1,$B$6:$B$35750,0),1)*748+INDEX($H$6:$O$35750,MATCH(Y12+1,$B$6:$B$35750,0),3)*255+INDEX($H$6:$O$35750,MATCH(Y12+1,$B$6:$B$35750,0),5)*7500+INDEX($H$6:$O$35750,MATCH(Y12+1,$B$6:$B$35750,0),7)*870) - (INDEX($H$6:$O$35750,MATCH(Y12,$B$6:$B$35750,0),1)*748+INDEX($H$6:$O$35750,MATCH(Y12,$B$6:$B$35750,0),3)*255+INDEX($H$6:$O$35750,MATCH(Y12,$B$6:$B$35750,0),5)*7500+INDEX($H$6:$O$35750,MATCH(Y12,$B$6:$B$35750,0),7)*870)) /1.9835,"") -> -330.0726494 | AD12: 7260 | AE12: 6929.927351 | AF12: 7308.480632 | AH12: 5600 | AI12: 2019-01-04 | AJ12: =IF(Y12<User!$E$26,((INDEX($H$6:$O$35750,MATCH(Y12,$B$6:$B$35750,0),5)))) -> 2454.848597 | AK12: -465.7051172 | AL12: =IF(Y12<User!$E$26,((INDEX($H$6:$O$35750,MATCH(Y12,$B$6:$B$35750,0),1)))) -> 2797.69 | AM12: =IF(Y12<User!$E$26,((INDEX($H$6:$O$35750,MATCH(Y12,$B$6:$B$35750,0),3)))) -> 2653.907 | AN12: =IF(Y12<User!$E$26,((INDEX($H$6:$O$35750,MATCH(Y12,$B$6:$B$35750,0),7)))) -> 2312.973 | AO12: 29.3930426 | AP12: 2454.858863 | AQ12: -436.3120746 | AR12: 2797.69 | AS12: 2653.907 | AT12: 2312.973 | AV12: 29.3930426 | AW12: 1.878163403e-09 | AY12: 2019-01-04 | AZ12: NO | BA12: 3 | BB12: 715 | BC12: -300.6796068 | BD12: 7260 | BE12: 6959.320393 | BF12: 7313.749097
A13: 9 | B13: 2018-12-27T02:15:00 | C13: 2018-12-27T02:15:00 | D13: =IF(VLOOKUP(C13,LwrSalmonFallsDam!$A$3:$B$35999,1,TRUE)=C13,VLOOKUP(C13,LwrSalmonFallsDam!$A$3:$B$35999,2,TRUE),NA()) -> 2797.714 | E13: =IF(VLOOKUP(C13,BlissDam!$A$3:$B$35999,1,TRUE)=C13,VLOOKUP(C13,BlissDam!$A$3:$B$35999,2,TRUE),NA()) -> 2653.852 | F13: =IF(VLOOKUP(C13,CJStageCalc!$A$3:$E$35999,1,TRUE)=C13,VLOOKUP(C13,CJStageCalc!$A$3:$E$35999,5,TRUE),NA()) -> 2454.912863 | G13: =IF(VLOOKUP(C13,SwanFallsDam!$A$3:$B$35999,1,TRUE)=C13,VLOOKUP(C13,SwanFallsDam!$A$3:$B$35999,2,TRUE),NA()) -> 2313.108 | X13: 2019-01-05 | Y13: 2019-01-05 | Z13: NO | AA13: =IF(ISNUMBER(AB13),INDEX(SnakeatMilnerLagged!$D$2:$D$370,MATCH(AnnualAADFMonitoring!Y13,SnakeatMilnerLagged!$B$2:$B$370))*-1,"") -> 3 | AB13: =IF(ISNUMBER(MATCH(AnnualAADFMonitoring!Y13,SnakeatMilnerLagged!$B$2:$B$370)),INDEX(SnakeatMilnerLagged!$E$2:$E$370,MATCH(AnnualAADFMonitoring!Y13,SnakeatMilnerLagged!$B$2:$B$370)),"") -> 543 | AC13: =IF(Y13<User!$E$26,((INDEX($H$6:$O$35750,MATCH(Y13+1,$B$6:$B$35750,0),1)*748+INDEX($H$6:$O$35750,MATCH(Y13+1,$B$6:$B$35750,0),3)*255+INDEX($H$6:$O$35750,MATCH(Y13+1,$B$6:$B$35750,0),5)*7500+INDEX($H$6:$O$35750,MATCH(Y13+1,$B$6:$B$35750,0),7)*870) - (INDEX($H$6:$O$35750,MATCH(Y13,$B$6:$B$35750,0),1)*748+INDEX($H$6:$O$35750,MATCH(Y13,$B$6:$B$35750,0),3)*255+INDEX($H$6:$O$35750,MATCH(Y13,$B$6:$B$35750,0),5)*7500+INDEX($H$6:$O$35750,MATCH(Y13,$B$6:$B$35750,0),7)*870)) /1.9835,"") -> -93.01134359 | AD13: 6860 | AE13: 6766.988656 | AF13: 7010.791026 | AH13: 5600 | AI13: 2019-01-05 | AJ13: =IF(Y13<User!$E$26,((INDEX($H$6:$O$35750,MATCH(Y13,$B$6:$B$35750,0),5)))) -> 2454.725433 | AK13: -207.1968742 | AL13: =IF(Y13<User!$E$26,((INDEX($H$6:$O$35750,MATCH(Y13,$B$6:$B$35750,0),1)))) -> 2797.674 | AM13: =IF(Y13<User!$E$26,((INDEX($H$6:$O$35750,MATCH(Y13,$B$6:$B$35750,0),3)))) -> 2653.808 | AN13: =IF(Y13<User!$E$26,((INDEX($H$6:$O$35750,MATCH(Y13,$B$6:$B$35750,0),7)))) -> 2313.325 | AO13: -14.14166877 | AP13: 2454.743473 | AQ13: -221.338543 | AR13: 2797.674 | AS13: 2653.808 | AT13: 2313.325 | AV13: -14.14166877 | AW13: -1.878134981e-09 | AY13: 2019-01-05 | AZ13: NO | BA13: 3 | BB13: 543 | BC13: -107.1530124 | BD13: 6860 | BE13: 6752.846988 | BF13: 7007.740862
A14: 10 | B14: 2018-12-27T02:30:00.288 | C14: 2018-12-27T02:30:00 | D14: =IF(VLOOKUP(C14,LwrSalmonFallsDam!$A$3:$B$35999,1,TRUE)=C14,VLOOKUP(C14,LwrSalmonFallsDam!$A$3:$B$35999,2,TRUE),NA()) -> 2797.701 | E14: =IF(VLOOKUP(C14,BlissDam!$A$3:$B$35999,1,TRUE)=C14,VLOOKUP(C14,BlissDam!$A$3:$B$35999,2,TRUE),NA()) -> 2653.85 | F14: =IF(VLOOKUP(C14,CJStageCalc!$A$3:$E$35999,1,TRUE)=C14,VLOOKUP(C14,CJStageCalc!$A$3:$E$35999,5,TRUE),NA()) -> 2454.93702 | G14: =IF(VLOOKUP(C14,SwanFallsDam!$A$3:$B$35999,1,TRUE)=C14,VLOOKUP(C14,SwanFallsDam!$A$3:$B$35999,2,TRUE),NA()) -> 2313.123 | X14: 2019-01-06 | Y14: 2019-01-06 | Z14: NO | AA14: =IF(ISNUMBER(AB14),INDEX(SnakeatMilnerLagged!$D$2:$D$370,MATCH(AnnualAADFMonitoring!Y14,SnakeatMilnerLagged!$B$2:$B$370))*-1,"") -> 3 | AB14: =IF(ISNUMBER(MATCH(AnnualAADFMonitoring!Y14,SnakeatMilnerLagged!$B$2:$B$370)),INDEX(SnakeatMilnerLagged!$E$2:$E$370,MATCH(AnnualAADFMonitoring!Y14,SnakeatMilnerLagged!$B$2:$B$370)),"") -> 548 | AC14: =IF(Y14<User!$E$26,((INDEX($H$6:$O$35750,MATCH(Y14+1,$B$6:$B$35750,0),1)*748+INDEX($H$6:$O$35750,MATCH(Y14+1,$B$6:$B$35750,0),3)*255+INDEX($H$6:$O$35750,MATCH(Y14+1,$B$6:$B$35750,0),5)*7500+INDEX($H$6:$O$35750,MATCH(Y14+1,$B$6:$B$35750,0),7)*870) - (INDEX($H$6:$O$35750,MATCH(Y14,$B$6:$B$35750,0),1)*748+INDEX($H$6:$O$35750,MATCH(Y14,$B$6:$B$35750,0),3)*255+INDEX($H$6:$O$35750,MATCH(Y14,$B$6:$B$35750,0),5)*7500+INDEX($H$6:$O$35750,MATCH(Y14,$B$6:$B$35750,0),7)*870)) /1.9835,"") -> -161.5780186 | AD14: 7280 | AE14: 7118.421981 | AF14: 6938.445996 | AH14: 5600 | AI14: 2019-01-06 | AJ14: =IF(Y14<User!$E$26,((INDEX($H$6:$O$35750,MATCH(Y14,$B$6:$B$35750,0),5)))) -> 2454.670637 | AK14: -110.9150491 | AL14: =IF(Y14<User!$E$26,((INDEX($H$6:$O$35750,MATCH(Y14,$B$6:$B$35750,0),1)))) -> 2797.493 | AM14: =IF(Y14<User!$E$26,((INDEX($H$6:$O$35750,MATCH(Y14,$B$6:$B$35750,0),3)))) -> 2653.801 | AN14: =IF(Y14<User!$E$26,((INDEX($H$6:$O$35750,MATCH(Y14,$B$6:$B$35750,0),7)))) -> 2313.743 | AO14: 5.823040083 | AP14: 2454.684937 | AQ14: -105.0920091 | AR14: 2797.493 | AS14: 2653.801 | AT14: 2313.743 | AV14: 5.823040083 | AW14: 1.421085472e-14 | AY14: 2019-01-06 | AZ14: NO | BA14: 3 | BB14: 548 | BC14: -155.7549786 | BD14: 7280 | BE14: 7124.245021 | BF14: 6945.470801
A15: 11 | B15: 2018-12-27T02:44:59.712 | C15: 2018-12-27T02:45:00 | D15: =IF(VLOOKUP(C15,LwrSalmonFallsDam!$A$3:$B$35999,1,TRUE)=C15,VLOOKUP(C15,LwrSalmonFallsDam!$A$3:$B$35999,2,TRUE),NA()) -> 2797.741 | E15: =IF(VLOOKUP(C15,BlissDam!$A$3:$B$35999,1,TRUE)=C15,VLOOKUP(C15,BlissDam!$A$3:$B$35999,2,TRUE),NA()) -> 2653.838 | F15: =IF(VLOOKUP(C15,CJStageCalc!$A$3:$E$35999,1,TRUE)=C15,VLOOKUP(C15,CJStageCalc!$A$3:$E$35999,5,TRUE),NA()) -> 2454.934343 | G15: =IF(VLOOKUP(C15,SwanFallsDam!$A$3:$B$35999,1,TRUE)=C15,VLOOKUP(C15,SwanFallsDam!$A$3:$B$35999,2,TRUE),NA()) -> 2313.137 | X15: 2019-01-07 | Y15: 2019-01-07 | Z15: NO | AA15: =IF(ISNUMBER(AB15),INDEX(SnakeatMilnerLagged!$D$2:$D$370,MATCH(AnnualAADFMonitoring!Y15,SnakeatMilnerLagged!$B$2:$B$370))*-1,"") -> 3 | AB15: =IF(ISNUMBER(MATCH(AnnualAADFMonitoring!Y15,SnakeatMilnerLagged!$B$2:$B$370)),INDEX(SnakeatMilnerLagged!$E$2:$E$370,MATCH(AnnualAADFMonitoring!Y15,SnakeatMilnerLagged!$B$2:$B$370)),"") -> 551 | AC15: =IF(Y15<User!$E$26,((INDEX($H$6:$O$35750,MATCH(Y15+1,$B$6:$B$35750,0),1)*748+INDEX($H$6:$O$35750,MATCH(Y15+1,$B$6:$B$35750,0),3)*255+INDEX($H$6:$O$35750,MATCH(Y15+1,$B$6:$B$35750,0),5)*7500+INDEX($H$6:$O$35750,MATCH(Y15+1,$B$6:$B$35750,0),7)*870) - (INDEX($H$6:$O$35750,MATCH(Y15,$B$6:$B$35750,0),1)*748+INDEX($H$6:$O$35750,MATCH(Y15,$B$6:$B$35750,0),3)*255+INDEX($H$6:$O$35750,MATCH(Y15,$B$6:$B$35750,0),5)*7500+INDEX($H$6:$O$35750,MATCH(Y15,$B$6:$B$35750,0),7)*870)) /1.9835,"") -> 225.3698513 | AD15: 6790 | AE15: 7015.369851 | AF15: 6966.92683 | AH15: 5600 | AI15: 2019-01-07 | AJ15: =IF(Y15<User!$E$26,((INDEX($H$6:$O$35750,MATCH(Y15,$B$6:$B$35750,0),5)))) -> 2454.641303 | AK15: 309.3022939 | AL15: =IF(Y15<User!$E$26,((INDEX($H$6:$O$35750,MATCH(Y15,$B$6:$B$35750,0),1)))) -> 2797.683 | AM15: =IF(Y15<User!$E$26,((INDEX($H$6:$O$35750,MATCH(Y15,$B$6:$B$35750,0),3)))) -> 2653.839 | AN15: =IF(Y15<User!$E$26,((INDEX($H$6:$O$35750,MATCH(Y15,$B$6:$B$35750,0),7)))) -> 2313.453 | AO15: -19.41068818 | AP15: 2454.657143 | AQ15: 289.8916057 | AR15: 2797.683 | AS15: 2653.839 | AT15: 2313.453 | AV15: -19.41068818 | AW15: -2.842170943e-14 | AY15: 2019-01-07 | AZ15: NO | BA15: 3 | BB15: 551 | BC15: 205.9591631 | BD15: 6790 | BE15: 6995.959163 | BF15: 6957.683724
A16: 12 | B16: 2018-12-27T03:00:00 | C16: 2018-12-27T03:00:00 | D16: =IF(VLOOKUP(C16,LwrSalmonFallsDam!$A$3:$B$35999,1,TRUE)=C16,VLOOKUP(C16,LwrSalmonFallsDam!$A$3:$B$35999,2,TRUE),NA()) -> 2797.712 | E16: =IF(VLOOKUP(C16,BlissDam!$A$3:$B$35999,1,TRUE)=C16,VLOOKUP(C16,BlissDam!$A$3:$B$35999,2,TRUE),NA()) -> 2653.842 | F16: =IF(VLOOKUP(C16,CJStageCalc!$A$3:$E$35999,1,TRUE)=C16,VLOOKUP(C16,CJStageCalc!$A$3:$E$35999,5,TRUE),NA()) -> 2454.93815 | G16: =IF(VLOOKUP(C16,SwanFallsDam!$A$3:$B$35999,1,TRUE)=C16,VLOOKUP(C16,SwanFallsDam!$A$3:$B$35999,2,TRUE),NA()) -> 2313.158 | X16: 2019-01-08 | Y16: 2019-01-08 | Z16: NO | AA16: =IF(ISNUMBER(AB16),INDEX(SnakeatMilnerLagged!$D$2:$D$370,MATCH(AnnualAADFMonitoring!Y16,SnakeatMilnerLagged!$B$2:$B$370))*-1,"") -> 3 | AB16: =IF(ISNUMBER(MATCH(AnnualAADFMonitoring!Y16,SnakeatMilnerLagged!$B$2:$B$370)),INDEX(SnakeatMilnerLagged!$E$2:$E$370,MATCH(AnnualAADFMonitoring!Y16,SnakeatMilnerLagged!$B$2:$B$370)),"") -> 550 | AC16: =IF(Y16<User!$E$26,((INDEX($H$6:$O$35750,MATCH(Y16+1,$B$6:$B$35750,0),1)*748+INDEX($H$6:$O$35750,MATCH(Y16+1,$B$6:$B$35750,0),3)*255+INDEX($H$6:$O$35750,MATCH(Y16+1,$B$6:$B$35750,0),5)*7500+INDEX($H$6:$O$35750,MATCH(Y16+1,$B$6:$B$35750,0),7)*870) - (INDEX($H$6:$O$35750,MATCH(Y16,$B$6:$B$35750,0),1)*748+INDEX($H$6:$O$35750,MATCH(Y16,$B$6:$B$35750,0),3)*255+INDEX($H$6:$O$35750,MATCH(Y16,$B$6:$B$35750,0),5)*7500+INDEX($H$6:$O$35750,MATCH(Y16,$B$6:$B$35750,0),7)*870)) /1.9835,"") -> 489.5592639 | AD16: 6790 | AE16: 7279.559264 | AF16: 7137.783699 | AH16: 5600 | AI16: 2019-01-08 | AJ16: =IF(Y16<User!$E$26,((INDEX($H$6:$O$35750,MATCH(Y16,$B$6:$B$35750,0),5)))) -> 2454.723103 | AK16: 383.5759012 | AL16: =IF(Y16<User!$E$26,((INDEX($H$6:$O$35750,MATCH(Y16,$B$6:$B$35750,0),1)))) -> 2797.688 | AM16: =IF(Y16<User!$E$26,((INDEX($H$6:$O$35750,MATCH(Y16,$B$6:$B$35750,0),3)))) -> 2653.789 | AN16: =IF(Y16<User!$E$26,((INDEX($H$6:$O$35750,MATCH(Y16,$B$6:$B$35750,0),7)))) -> 2313.272 | AO16: 3.883135869 | AP16: 2454.73381 | AQ16: 387.4590371 | AR16: 2797.688 | AS16: 2653.789 | AT16: 2313.272 | AV16: 3.883135869 | AW16: -5.684341886e-14 | AY16: 2019-01-08 | AZ16: NO | BA16: 3 | BB16: 550 | BC16: 493.4423998 | BD16: 6790 | BE16: 7283.4424 | BF16: 7134.548861
A17: 13 | B17: 2018-12-27T03:15:00.288 | C17: 2018-12-27T03:15:00 | D17: =IF(VLOOKUP(C17,LwrSalmonFallsDam!$A$3:$B$35999,1,TRUE)=C17,VLOOKUP(C17,LwrSalmonFallsDam!$A$3:$B$35999,2,TRUE),NA()) -> 2797.721 | E17: =IF(VLOOKUP(C17,BlissDam!$A$3:$B$35999,1,TRUE)=C17,VLOOKUP(C17,BlissDam!$A$3:$B$35999,2,TRUE),NA()) -> 2653.838 | F17: =IF(VLOOKUP(C17,CJStageCalc!$A$3:$E$35999,1,TRUE)=C17,VLOOKUP(C17,CJStageCalc!$A$3:$E$35999,5,TRUE),NA()) -> 2454.942813 | G17: =IF(VLOOKUP(C17,SwanFallsDam!$A$3:$B$35999,1,TRUE)=C17,VLOOKUP(C17,SwanFallsDam!$A$3:$B$35999,2,TRUE),NA()) -> 2313.172 | X17: 2019-01-09 | Y17: 2019-01-09 | Z17: NO | AA17: =IF(ISNUMBER(AB17),INDEX(SnakeatMilnerLagged!$D$2:$D$370,MATCH(AnnualAADFMonitoring!Y17,SnakeatMilnerLagged!$B$2:$B$370))*-1,"") -> 3 | AB17: =IF(ISNUMBER(MATCH(AnnualAADFMonitoring!Y17,SnakeatMilnerLagged!$B$2:$B$370)),INDEX(SnakeatMilnerLagged!$E$2:$E$370,MATCH(AnnualAADFMonitoring!Y17,SnakeatMilnerLagged!$B$2:$B$370)),"") -> 551 | AC17: =IF(Y17<User!$E$26,((INDEX($H$6:$O$35750,MATCH(Y17+1,$B$6:$B$35750,0),1)*748+INDEX($H$6:$O$35750,MATCH(Y17+1,$B$6:$B$35750,0),3)*255+INDEX($H$6:$O$35750,MATCH(Y17+1,$B$6:$B$35750,0),5)*7500+INDEX($H$6:$O$35750,MATCH(Y17+1,$B$6:$B$35750,0),7)*870) - (INDEX($H$6:$O$35750,MATCH(Y17,$B$6:$B$35750,0),1)*748+INDEX($H$6:$O$35750,MATCH(Y17,$B$6:$B$35750,0),3)*255+INDEX($H$6:$O$35750,MATCH(Y17,$B$6:$B$35750,0),5)*7500+INDEX($H$6:$O$35750,MATCH(Y17,$B$6:$B$35750,0),7)*870)) /1.9835,"") -> -234.9901689 | AD17: 7090 | AE17: 6855.009831 | AF17: 7049.979649 | AH17: 5600 | AI17: 2019-01-09 | AJ17: =IF(Y17<User!$E$26,((INDEX($H$6:$O$35750,MATCH(Y17,$B$6:$B$35750,0),5)))) -> 2454.824547 | AK17: -196.6977565 | AL17: =IF(Y17<User!$E$26,((INDEX($H$6:$O$35750,MATCH(Y17,$B$6:$B$35750,0),1)))) -> 2797.609 | AM17: =IF(Y17<User!$E$26,((INDEX($H$6:$O$35750,MATCH(Y17,$B$6:$B$35750,0),3)))) -> 2653.825 | AN17: =IF(Y17<User!$E$26,((INDEX($H$6:$O$35750,MATCH(Y17,$B$6:$B$35750,0),7)))) -> 2313.571 | AO17: 27.45147467 | AP17: 2454.83628 | AQ17: -169.2462818 | AR17: 2797.609 | AS17: 2653.825 | AT17: 2313.571 | AV17: 27.45147467 | AW17: 0 | AY17: 2019-01-09 | AZ17: NO | BA17: 3 | BB17: 551 | BC17: -207.5386942 | BD17: 7090 | BE17: 6882.461306 | BF17: 7053.95429
A18: 14 | B18: 2018-12-27T03:29:59.712 | C18: 2018-12-27T03:30:00 | D18: =IF(VLOOKUP(C18,LwrSalmonFallsDam!$A$3:$B$35999,1,TRUE)=C18,VLOOKUP(C18,LwrSalmonFallsDam!$A$3:$B$35999,2,TRUE),NA()) -> 2797.719 | E18: =IF(VLOOKUP(C18,BlissDam!$A$3:$B$35999,1,TRUE)=C18,VLOOKUP(C18,BlissDam!$A$3:$B$35999,2,TRUE),NA()) -> 2653.839 | F18: =IF(VLOOKUP(C18,CJStageCalc!$A$3:$E$35999,1,TRUE)=C18,VLOOKUP(C18,CJStageCalc!$A$3:$E$35999,5,TRUE),NA()) -> 2454.94306 | G18: =IF(VLOOKUP(C18,SwanFallsDam!$A$3:$B$35999,1,TRUE)=C18,VLOOKUP(C18,SwanFallsDam!$A$3:$B$35999,2,TRUE),NA()) -> 2313.184 | X18: 2019-01-10 | Y18: 2019-01-10 | Z18: NO | AA18: =IF(ISNUMBER(AB18),INDEX(SnakeatMilnerLagged!$D$2:$D$370,MATCH(AnnualAADFMonitoring!Y18,SnakeatMilnerLagged!$B$2:$B$370))*-1,"") -> 3 | AB18: =IF(ISNUMBER(MATCH(AnnualAADFMonitoring!Y18,SnakeatMilnerLagged!$B$2:$B$370)),INDEX(SnakeatMilnerLagged!$E$2:$E$370,MATCH(AnnualAADFMonitoring!Y18,SnakeatMilnerLagged!$B$2:$B$370)),"") -> 359 | AC18: =IF(Y18<User!$E$26,((INDEX($H$6:$O$35750,MATCH(Y18+1,$B$6:$B$35750,0),1)*748+INDEX($H$6:$O$35750,MATCH(Y18+1,$B$6:$B$35750,0),3)*255+INDEX($H$6:$O$35750,MATCH(Y18+1,$B$6:$B$35750,0),5)*7500+INDEX($H$6:$O$35750,MATCH(Y18+1,$B$6:$B$35750,0),7)*870) - (INDEX($H$6:$O$35750,MATCH(Y18,$B$6:$B$35750,0),1)*748+INDEX($H$6:$O$35750,MATCH(Y18,$B$6:$B$35750,0),3)*255+INDEX($H$6:$O$35750,MATCH(Y18,$B$6:$B$35750,0),5)*7500+INDEX($H$6:$O$35750,MATCH(Y18,$B$6:$B$35750,0),7)*870)) /1.9835,"") -> -326.8529367 | AD18: 7000 | AE18: 6673.147063 | AF18: 6935.905386 | AH18: 5600 | AI18: 2019-01-10 | AJ18: =IF(Y18<User!$E$26,((INDEX($H$6:$O$35750,MATCH(Y18,$B$6:$B$35750,0),5)))) -> 2454.772527 | AK18: -292.1466095 | AL18: =IF(Y18<User!$E$26,((INDEX($H$6:$O$35750,MATCH(Y18,$B$6:$B$35750,0),1)))) -> 2797.778 | AM18: =IF(Y18<User!$E$26,((INDEX($H$6:$O$35750,MATCH(Y18,$B$6:$B$35750,0),3)))) -> 2653.84 | AN18: =IF(Y18<User!$E$26,((INDEX($H$6:$O$35750,MATCH(Y18,$B$6:$B$35750,0),7)))) -> 2313.334 | AO18: -24.67970759 | AP18: 2454.79152 | AQ18: -316.8263171 | AR18: 2797.778 | AS18: 2653.84 | AT18: 2313.334 | AV18: -24.67970759 | AW18: 0 | AY18: 2019-01-10 | AZ18: NO | BA18: 3 | BB18: 359 | BC18: -351.5326443 | BD18: 7000 | BE18: 6648.467356 | BF18: 6938.123687
A19: 15 | B19: 2018-12-27T03:45:00 | C19: 2018-12-27T03:45:00 | D19: =IF(VLOOKUP(C19,LwrSalmonFallsDam!$A$3:$B$35999,1,TRUE)=C19,VLOOKUP(C19,LwrSalmonFallsDam!$A$3:$B$35999,2,TRUE),NA()) -> 2797.739 | E19: =IF(VLOOKUP(C19,BlissDam!$A$3:$B$35999,1,TRUE)=C19,VLOOKUP(C19,BlissDam!$A$3:$B$35999,2,TRUE),NA()) -> 2653.841 | F19: =IF(VLOOKUP(C19,CJStageCalc!$A$3:$E$35999,1,TRUE)=C19,VLOOKUP(C19,CJStageCalc!$A$3:$E$35999,5,TRUE),NA()) -> 2454.937263 | G19: =IF(VLOOKUP(C19,SwanFallsDam!$A$3:$B$35999,1,TRUE)=C19,VLOOKUP(C19,SwanFallsDam!$A$3:$B$35999,2,TRUE),NA()) -> 2313.212 | X19: 2019-01-11 | Y19: 2019-01-11 | Z19: NO | AA19: =IF(ISNUMBER(AB19),INDEX(SnakeatMilnerLagged!$D$2:$D$370,MATCH(AnnualAADFMonitoring!Y19,SnakeatMilnerLagged!$B$2:$B$370))*-1,"") -> 3 | AB19: =IF(ISNUMBER(MATCH(AnnualAADFMonitoring!Y19,SnakeatMilnerLagged!$B$2:$B$370)),INDEX(SnakeatMilnerLagged!$E$2:$E$370,MATCH(AnnualAADFMonitoring!Y19,SnakeatMilnerLagged!$B$2:$B$370)),"") -> 236 | AC19: =IF(Y19<User!$E$26,((INDEX($H$6:$O$35750,MATCH(Y19+1,$B$6:$B$35750,0),1)*748+INDEX($H$6:$O$35750,MATCH(Y19+1,$B$6:$B$35750,0),3)*255+INDEX($H$6:$O$35750,MATCH(Y19+1,$B$6:$B$35750,0),5)*7500+INDEX($H$6:$O$35750,MATCH(Y19+1,$B$6:$B$35750,0),7)*870) - (INDEX($H$6:$O$35750,MATCH(Y19,$B$6:$B$35750,0),1)*748+INDEX($H$6:$O$35750,MATCH(Y19,$B$6:$B$35750,0),3)*255+INDEX($H$6:$O$35750,MATCH(Y19,$B$6:$B$35750,0),5)*7500+INDEX($H$6:$O$35750,MATCH(Y19,$B$6:$B$35750,0),7)*870)) /1.9835,"") -> 190.225813 | AD19: 6780 | AE19: 6970.225813 | AF19: 6832.794236 | AH19: 5600 | AI19: 2019-01-11 | AJ19: =IF(Y19<User!$E$26,((INDEX($H$6:$O$35750,MATCH(Y19,$B$6:$B$35750,0),5)))) -> 2454.695263 | AK19: 176.6568692 | AL19: =IF(Y19<User!$E$26,((INDEX($H$6:$O$35750,MATCH(Y19,$B$6:$B$35750,0),1)))) -> 2797.533 | AM19: =IF(Y19<User!$E$26,((INDEX($H$6:$O$35750,MATCH(Y19,$B$6:$B$35750,0),3)))) -> 2653.794 | AN19: =IF(Y19<User!$E$26,((INDEX($H$6:$O$35750,MATCH(Y19,$B$6:$B$35750,0),7)))) -> 2313.479 | AO19: 17.74696244 | AP19: 2454.70773 | AQ19: 194.4038316 | AR19: 2797.533 | AS19: 2653.794 | AT19: 2313.479 | AV19: 17.74696244 | AW19: 1.878134981e-09 | AY19: 2019-01-11 | AZ19: NO | BA19: 3 | BB19: 236 | BC19: 207.9727754 | BD19: 6780 | BE19: 6987.972775 | BF19: 6839.633812
A20: 16 | B20: 2018-12-27T04:00:00.288 | C20: 2018-12-27T04:00:00 | D20: =IF(VLOOKUP(C20,LwrSalmonFallsDam!$A$3:$B$35999,1,TRUE)=C20,VLOOKUP(C20,LwrSalmonFallsDam!$A$3:$B$35999,2,TRUE),NA()) -> 2797.761 | E20: =IF(VLOOKUP(C20,BlissDam!$A$3:$B$35999,1,TRUE)=C20,VLOOKUP(C20,BlissDam!$A$3:$B$35999,2,TRUE),NA()) -> 2653.85 | F20: =IF(VLOOKUP(C20,CJStageCalc!$A$3:$E$35999,1,TRUE)=C20,VLOOKUP(C20,CJStageCalc!$A$3:$E$35999,5,TRUE),NA()) -> 2454.93365 | G20: =IF(VLOOKUP(C20,SwanFallsDam!$A$3:$B$35999,1,TRUE)=C20,VLOOKUP(C20,SwanFallsDam!$A$3:$B$35999,2,TRUE),NA()) -> 2313.232 | X20: 2019-01-12 | Y20: 2019-01-12 | Z20: NO | AA20: =IF(ISNUMBER(AB20),INDEX(SnakeatMilnerLagged!$D$2:$D$370,MATCH(AnnualAADFMonitoring!Y20,SnakeatMilnerLagged!$B$2:$B$370))*-1,"") -> 3 | AB20: =IF(ISNUMBER(MATCH(AnnualAADFMonitoring!Y20,SnakeatMilnerLagged!$B$2:$B$370)),INDEX(SnakeatMilnerLagged!$E$2:$E$370,MATCH(AnnualAADFMonitoring!Y20,SnakeatMilnerLagged!$B$2:$B$370)),"") -> 290 | AC20: =IF(Y20<User!$E$26,((INDEX($H$6:$O$35750,MATCH(Y20+1,$B$6:$B$35750,0),1)*748+INDEX($H$6:$O$35750,MATCH(Y20+1,$B$6:$B$35750,0),3)*255+INDEX($H$6:$O$35750,MATCH(Y20+1,$B$6:$B$35750,0),5)*7500+INDEX($H$6:$O$35750,MATCH(Y20+1,$B$6:$B$35750,0),7)*870) - (INDEX($H$6:$O$35750,MATCH(Y20,$B$6:$B$35750,0),1)*748+INDEX($H$6:$O$35750,MATCH(Y20,$B$6:$B$35750,0),3)*255+INDEX($H$6:$O$35750,MATCH(Y20,$B$6:$B$35750,0),5)*7500+INDEX($H$6:$O$35750,MATCH(Y20,$B$6:$B$35750,0),7)*870)) /1.9835,"") -> 119.3824048 | AD20: 6580 | AE20: 6699.382405 | AF20: 6780.918427 | AH20: 5600 | AI20: 2019-01-12 | AJ20: =IF(Y20<User!$E$26,((INDEX($H$6:$O$35750,MATCH(Y20,$B$6:$B$35750,0),5)))) -> 2454.741983 | AK20: 256.1633476 | AL20: =IF(Y20<User!$E$26,((INDEX($H$6:$O$35750,MATCH(Y20,$B$6:$B$35750,0),1)))) -> 2797.696 | AM20: =IF(Y20<User!$E$26,((INDEX($H$6:$O$35750,MATCH(Y20,$B$6:$B$35750,0),3)))) -> 2653.94 | AN20: =IF(Y20<User!$E$26,((INDEX($H$6:$O$35750,MATCH(Y20,$B$6:$B$35750,0),7)))) -> 2313.327 | AO20: -15.80539451 | AP20: 2454.759143 | AQ20: 240.3579531 | AR20: 2797.696 | AS20: 2653.94 | AT20: 2313.327 | AV20: -15.80539451 | AW20: -1.421085472e-14 | AY20: 2019-01-12 | AZ20: NO | BA20: 3 | BB20: 290 | BC20: 103.5770103 | BD20: 6580 | BE20: 6683.57701 | BF20: 6773.339047
A21: 17 | B21: 2018-12-27T04:14:59.712 | C21: 2018-12-27T04:15:00 | D21: =IF(VLOOKUP(C21,LwrSalmonFallsDam!$A$3:$B$35999,1,TRUE)=C21,VLOOKUP(C21,LwrSalmonFallsDam!$A$3:$B$35999,2,TRUE),NA()) -> 2797.71 | E21: =IF(VLOOKUP(C21,BlissDam!$A$3:$B$35999,1,TRUE)=C21,VLOOKUP(C21,BlissDam!$A$3:$B$35999,2,TRUE),NA()) -> 2653.861 | F21: =IF(VLOOKUP(C21,CJStageCalc!$A$3:$E$35999,1,TRUE)=C21,VLOOKUP(C21,CJStageCalc!$A$3:$E$35999,5,TRUE),NA()) -> 2454.926867 | G21: =IF(VLOOKUP(C21,SwanFallsDam!$A$3:$B$35999,1,TRUE)=C21,VLOOKUP(C21,SwanFallsDam!$A$3:$B$35999,2,TRUE),NA()) -> 2313.248 | X21: 2019-01-13 | Y21: 2019-01-13 | Z21: NO | AA21: =IF(ISNUMBER(AB21),INDEX(SnakeatMilnerLagged!$D$2:$D$370,MATCH(AnnualAADFMonitoring!Y21,SnakeatMilnerLagged!$B$2:$B$370))*-1,"") -> 3 | AB21: =IF(ISNUMBER(MATCH(AnnualAADFMonitoring!Y21,SnakeatMilnerLagged!$B$2:$B$370)),INDEX(SnakeatMilnerLagged!$E$2:$E$370,MATCH(AnnualAADFMonitoring!Y21,SnakeatMilnerLagged!$B$2:$B$370)),"") -> 301 | AC21: =IF(Y21<User!$E$26,((INDEX($H$6:$O$35750,MATCH(Y21+1,$B$6:$B$35750,0),1)*748+INDEX($H$6:$O$35750,MATCH(Y21+1,$B$6:$B$35750,0),3)*255+INDEX($H$6:$O$35750,MATCH(Y21+1,$B$6:$B$35750,0),5)*7500+INDEX($H$6:$O$35750,MATCH(Y21+1,$B$6:$B$35750,0),7)*870) - (INDEX($H$6:$O$35750,MATCH(Y21,$B$6:$B$35750,0),1)*748+INDEX($H$6:$O$35750,MATCH(Y21,$B$6:$B$35750,0),3)*255+INDEX($H$6:$O$35750,MATCH(Y21,$B$6:$B$35750,0),5)*7500+INDEX($H$6:$O$35750,MATCH(Y21,$B$6:$B$35750,0),7)*870)) /1.9835,"") -> 175.1696496 | AD21: 6630 | AE21: 6805.16965 | AF21: 6824.925956 | AH21: 5600 | AI21: 2019-01-13 | AJ21: =IF(Y21<User!$E$26,((INDEX($H$6:$O$35750,MATCH(Y21,$B$6:$B$35750,0),5)))) -> 2454.80973 | AK21: -161.3435846 | AL21: =IF(Y21<User!$E$26,((INDEX($H$6:$O$35750,MATCH(Y21,$B$6:$B$35750,0),1)))) -> 2797.666 | AM21: =IF(Y21<User!$E$26,((INDEX($H$6:$O$35750,MATCH(Y21,$B$6:$B$35750,0),3)))) -> 2653.817 | AN21: =IF(Y21<User!$E$26,((INDEX($H$6:$O$35750,MATCH(Y21,$B$6:$B$35750,0),7)))) -> 2313.077 | AO21: -1.663725736 | AP21: 2454.82271 | AQ21: -163.0073103 | AR21: 2797.666 | AS21: 2653.817 | AT21: 2313.077 | AV21: -1.663725736 | AW21: -2.842170943e-14 | AY21: 2019-01-13 | AZ21: NO | BA21: 3 | BB21: 301 | BC21: 173.5059239 | BD21: 6630 | BE21: 6803.505924 | BF21: 6825.01857
A22: 18 | B22: 2018-12-27T04:30:00 | C22: 2018-12-27T04:30:00 | D22: =IF(VLOOKUP(C22,LwrSalmonFallsDam!$A$3:$B$35999,1,TRUE)=C22,VLOOKUP(C22,LwrSalmonFallsDam!$A$3:$B$35999,2,TRUE),NA()) -> 2797.758 | E22: =IF(VLOOKUP(C22,BlissDam!$A$3:$B$35999,1,TRUE)=C22,VLOOKUP(C22,BlissDam!$A$3:$B$35999,2,TRUE),NA()) -> 2653.872 | F22: =IF(VLOOKUP(C22,CJStageCalc!$A$3:$E$35999,1,TRUE)=C22,VLOOKUP(C22,CJStageCalc!$A$3:$E$35999,5,TRUE),NA()) -> 2454.925457 | G22: =IF(VLOOKUP(C22,SwanFallsDam!$A$3:$B$35999,1,TRUE)=C22,VLOOKUP(C22,SwanFallsDam!$A$3:$B$35999,2,TRUE),NA()) -> 2313.265 | X22: 2019-01-14 | Y22: 2019-01-14 | Z22: NO | AA22: =IF(ISNUMBER(AB22),INDEX(SnakeatMilnerLagged!$D$2:$D$370,MATCH(AnnualAADFMonitoring!Y22,SnakeatMilnerLagged!$B$2:$B$370))*-1,"") -> 3 | AB22: =IF(ISNUMBER(MATCH(AnnualAADFMonitoring!Y22,SnakeatMilnerLagged!$B$2:$B$370)),INDEX(SnakeatMilnerLagged!$E$2:$E$370,MATCH(AnnualAADFMonitoring!Y22,SnakeatMilnerLagged!$B$2:$B$370)),"") -> 301 | AC22: =IF(Y22<User!$E$26,((INDEX($H$6:$O$35750,MATCH(Y22+1,$B$6:$B$35750,0),1)*748+INDEX($H$6:$O$35750,MATCH(Y22+1,$B$6:$B$35750,0),3)*255+INDEX($H$6:$O$35750,MATCH(Y22+1,$B$6:$B$35750,0),5)*7500+INDEX($H$6:$O$35750,MATCH(Y22+1,$B$6:$B$35750,0),7)*870) - (INDEX($H$6:$O$35750,MATCH(Y22,$B$6:$B$35750,0),1)*748+INDEX($H$6:$O$35750,MATCH(Y22,$B$6:$B$35750,0),3)*255+INDEX($H$6:$O$35750,MATCH(Y22,$B$6:$B$35750,0),5)*7500+INDEX($H$6:$O$35750,MATCH(Y22,$B$6:$B$35750,0),7)*870)) /1.9835,"") -> -326.5621376 | AD22: 6830 | AE22: 6503.437862 | AF22: 6669.329972 | AH22: 5600 | AI22: 2019-01-14 | AJ22: =IF(Y22<User!$E$26,((INDEX($H$6:$O$35750,MATCH(Y22,$B$6:$B$35750,0),5)))) -> 2454.76706 | AK22: -254.7012856 | AL22: =IF(Y22<User!$E$26,((INDEX($H$6:$O$35750,MATCH(Y22,$B$6:$B$35750,0),1)))) -> 2797.754 | AM22: =IF(Y22<User!$E$26,((INDEX($H$6:$O$35750,MATCH(Y22,$B$6:$B$35750,0),3)))) -> 2653.911 | AN22: =IF(Y22<User!$E$26,((INDEX($H$6:$O$35750,MATCH(Y22,$B$6:$B$35750,0),7)))) -> 2313.741 | AO22: -7.486765819 | AP22: 2454.7796 | AQ22: -262.1880514 | AR22: 2797.754 | AS22: 2653.911 | AT22: 2313.741 | AV22: -7.486765821 | AW22: -1.878163403e-09 | AY22: 2019-01-14 | AZ22: NO | BA22: 3 | BB22: 301 | BC22: -334.0489035 | BD22: 6830 | BE22: 6495.951097 | BF22: 6661.011344
A23: 19 | B23: 2018-12-27T04:45:00.288 | C23: 2018-12-27T04:45:00 | D23: =IF(VLOOKUP(C23,LwrSalmonFallsDam!$A$3:$B$35999,1,TRUE)=C23,VLOOKUP(C23,LwrSalmonFallsDam!$A$3:$B$35999,2,TRUE),NA()) -> 2797.798 | E23: =IF(VLOOKUP(C23,BlissDam!$A$3:$B$35999,1,TRUE)=C23,VLOOKUP(C23,BlissDam!$A$3:$B$35999,2,TRUE),NA()) -> 2653.887 | F23: =IF(VLOOKUP(C23,CJStageCalc!$A$3:$E$35999,1,TRUE)=C23,VLOOKUP(C23,CJStageCalc!$A$3:$E$35999,5,TRUE),NA()) -> 2454.925547 | G23: =IF(VLOOKUP(C23,SwanFallsDam!$A$3:$B$35999,1,TRUE)=C23,VLOOKUP(C23,SwanFallsDam!$A$3:$B$35999,2,TRUE),NA()) -> 2313.283 | X23: 2019-01-15 | Y23: 2019-01-15 | Z23: NO | AA23: =IF(ISNUMBER(AB23),INDEX(SnakeatMilnerLagged!$D$2:$D$370,MATCH(AnnualAADFMonitoring!Y23,SnakeatMilnerLagged!$B$2:$B$370))*-1,"") -> 3 | AB23: =IF(ISNUMBER(MATCH(AnnualAADFMonitoring!Y23,SnakeatMilnerLagged!$B$2:$B$370)),INDEX(SnakeatMilnerLagged!$E$2:$E$370,MATCH(AnnualAADFMonitoring!Y23,SnakeatMilnerLagged!$B$2:$B$370)),"") -> 302 | AC23: =IF(Y23<User!$E$26,((INDEX($H$6:$O$35750,MATCH(Y23+1,$B$6:$B$35750,0),1)*748+INDEX($H$6:$O$35750,MATCH(Y23+1,$B$6:$B$35750,0),3)*255+INDEX($H$6:$O$35750,MATCH(Y23+1,$B$6:$B$35750,0),5)*7500+INDEX($H$6:$O$35750,MATCH(Y23+1,$B$6:$B$35750,0),7)*870) - (INDEX($H$6:$O$35750,MATCH(Y23,$B$6:$B$35750,0),1)*748+INDEX($H$6:$O$35750,MATCH(Y23,$B$6:$B$35750,0),3)*255+INDEX($H$6:$O$35750,MATCH(Y23,$B$6:$B$35750,0),5)*7500+INDEX($H$6:$O$35750,MATCH(Y23,$B$6:$B$35750,0),7)*870)) /1.9835,"") -> 403.5447946 | AD23: 6360 | AE23: 6763.544795 | AF23: 6690.717436 | AH23: 5600 | AI23: 2019-01-15 | AJ23: =IF(Y23<User!$E$26,((INDEX($H$6:$O$35750,MATCH(Y23,$B$6:$B$35750,0),5)))) -> 2454.6997 | AK23: 391.8205697 | AL23: =IF(Y23<User!$E$26,((INDEX($H$6:$O$35750,MATCH(Y23,$B$6:$B$35750,0),1)))) -> 2797.607 | AM23: =IF(Y23<User!$E$26,((INDEX($H$6:$O$35750,MATCH(Y23,$B$6:$B$35750,0),3)))) -> 2653.773 | AN23: =IF(Y23<User!$E$26,((INDEX($H$6:$O$35750,MATCH(Y23,$B$6:$B$35750,0),7)))) -> 2313.744 | AO23: 29.66922107 | AP23: 2454.71026 | AQ23: 421.4897908 | AR23: 2797.607 | AS23: 2653.773 | AT23: 2313.744 | AV23: 29.66922107 | AW23: 0 | AY23: 2019-01-15 | AZ23: NO | BA23: 3 | BB23: 302 | BC23: 433.2140156 | BD23: 6360 | BE23: 6793.214016 | BF23: 6697.557012
A24: 20 | B24: 2018-12-27T04:59:59.712 | C24: 2018-12-27T05:00:00 | D24: =IF(VLOOKUP(C24,LwrSalmonFallsDam!$A$3:$B$35999,1,TRUE)=C24,VLOOKUP(C24,LwrSalmonFallsDam!$A$3:$B$35999,2,TRUE),NA()) -> 2797.741 | E24: =IF(VLOOKUP(C24,BlissDam!$A$3:$B$35999,1,TRUE)=C24,VLOOKUP(C24,BlissDam!$A$3:$B$35999,2,TRUE),NA()) -> 2653.884 | F24: =IF(VLOOKUP(C24,CJStageCalc!$A$3:$E$35999,1,TRUE)=C24,VLOOKUP(C24,CJStageCalc!$A$3:$E$35999,5,TRUE),NA()) -> 2454.918803 | G24: =IF(VLOOKUP(C24,SwanFallsDam!$A$3:$B$35999,1,TRUE)=C24,VLOOKUP(C24,SwanFallsDam!$A$3:$B$35999,2,TRUE),NA()) -> 2313.303 | X24: 2019-01-16 | Y24: 2019-01-16 | Z24: NO | AA24: =IF(ISNUMBER(AB24),INDEX(SnakeatMilnerLagged!$D$2:$D$370,MATCH(AnnualAADFMonitoring!Y24,SnakeatMilnerLagged!$B$2:$B$370))*-1,"") -> 3 | AB24: =IF(ISNUMBER(MATCH(AnnualAADFMonitoring!Y24,SnakeatMilnerLagged!$B$2:$B$370)),INDEX(SnakeatMilnerLagged!$E$2:$E$370,MATCH(AnnualAADFMonitoring!Y24,SnakeatMilnerLagged!$B$2:$B$370)),"") -> 301 | AC24: =IF(Y24<User!$E$26,((INDEX($H$6:$O$35750,MATCH(Y24+1,$B$6:$B$35750,0),1)*748+INDEX($H$6:$O$35750,MATCH(Y24+1,$B$6:$B$35750,0),3)*255+INDEX($H$6:$O$35750,MATCH(Y24+1,$B$6:$B$35750,0),5)*7500+INDEX($H$6:$O$35750,MATCH(Y24+1,$B$6:$B$35750,0),7)*870) - (INDEX($H$6:$O$35750,MATCH(Y24,$B$6:$B$35750,0),1)*748+INDEX($H$6:$O$35750,MATCH(Y24,$B$6:$B$35750,0),3)*255+INDEX($H$6:$O$35750,MATCH(Y24,$B$6:$B$35750,0),5)*7500+INDEX($H$6:$O$35750,MATCH(Y24,$B$6:$B$35750,0),7)*870)) /1.9835,"") -> 23.14645829 | AD24: 6800 | AE24: 6823.146458 | AF24: 6696.709705 | AH24: 5600 | AI24: 2019-01-16 | AJ24: =IF(Y24<User!$E$26,((INDEX($H$6:$O$35750,MATCH(Y24,$B$6:$B$35750,0),5)))) -> 2454.803323 | AK24: 93.33249307 | AL24: =IF(Y24<User!$E$26,((INDEX($H$6:$O$35750,MATCH(Y24,$B$6:$B$35750,0),1)))) -> 2797.672 | AM24: =IF(Y24<User!$E$26,((INDEX($H$6:$O$35750,MATCH(Y24,$B$6:$B$35750,0),3)))) -> 2653.868 | AN24: =IF(Y24<User!$E$26,((INDEX($H$6:$O$35750,MATCH(Y24,$B$6:$B$35750,0),7)))) -> 2313.687 | AO24: 1.663725738 | AP24: 2454.82173 | AQ24: 94.99621881 | AR24: 2797.672 | AS24: 2653.868 | AT24: 2313.687 | AV24: 1.663725738 | AW24: -7.105427358e-15 | AY24: 2019-01-16 | AZ24: NO | BA24: 3 | BB24: 301 | BC24: 24.81018402 | BD24: 6800 | BE24: 6824.810184 | BF24: 6704.658432
A25: 21 | B25: 2018-12-27T05:15:00 | C25: 2018-12-27T05:15:00 | D25: =IF(VLOOKUP(C25,LwrSalmonFallsDam!$A$3:$B$35999,1,TRUE)=C25,VLOOKUP(C25,LwrSalmonFallsDam!$A$3:$B$35999,2,TRUE),NA()) -> 2797.738 | E25: =IF(VLOOKUP(C25,BlissDam!$A$3:$B$35999,1,TRUE)=C25,VLOOKUP(C25,BlissDam!$A$3:$B$35999,2,TRUE),NA()) -> 2653.89 | F25: =IF(VLOOKUP(C25,CJStageCalc!$A$3:$E$35999,1,TRUE)=C25,VLOOKUP(C25,CJStageCalc!$A$3:$E$35999,5,TRUE),NA()) -> 2454.923607 | G25: =IF(VLOOKUP(C25,SwanFallsDam!$A$3:$B$35999,1,TRUE)=C25,VLOOKUP(C25,SwanFallsDam!$A$3:$B$35999,2,TRUE),NA()) -> 2313.318 | X25: 2019-01-17 | Y25: 2019-01-17 | Z25: NO | AA25: =IF(ISNUMBER(AB25),INDEX(SnakeatMilnerLagged!$D$2:$D$370,MATCH(AnnualAADFMonitoring!Y25,SnakeatMilnerLagged!$B$2:$B$370))*-1,"") -> 3 | AB25: =IF(ISNUMBER(MATCH(AnnualAADFMonitoring!Y25,SnakeatMilnerLagged!$B$2:$B$370)),INDEX(SnakeatMilnerLagged!$E$2:$E$370,MATCH(AnnualAADFMonitoring!Y25,SnakeatMilnerLagged!$B$2:$B$370)),"") -> 224 | AC25: =IF(Y25<User!$E$26,((INDEX($H$6:$O$35750,MATCH(Y25+1,$B$6:$B$35750,0),1)*748+INDEX($H$6:$O$35750,MATCH(Y25+1,$B$6:$B$35750,0),3)*255+INDEX($H$6:$O$35750,MATCH(Y25+1,$B$6:$B$35750,0),5)*7500+INDEX($H$6:$O$35750,MATCH(Y25+1,$B$6:$B$35750,0),7)*870) - (INDEX($H$6:$O$35750,MATCH(Y25,$B$6:$B$35750,0),1)*748+INDEX($H$6:$O$35750,MATCH(Y25,$B$6:$B$35750,0),3)*255+INDEX($H$6:$O$35750,MATCH(Y25,$B$6:$B$35750,0),5)*7500+INDEX($H$6:$O$35750,MATCH(Y25,$B$6:$B$35750,0),7)*870)) /1.9835,"") -> -391.4711873 | AD25: 7150 | AE25: 6758.528813 | AF25: 6781.740022 | AH25: 5600 | AI25: 2019-01-17 | AJ25: =IF(Y25<User!$E$26,((INDEX($H$6:$O$35750,MATCH(Y25,$B$6:$B$35750,0),5)))) -> 2454.828007 | AK25: -311.5962188 | AL25: =IF(Y25<User!$E$26,((INDEX($H$6:$O$35750,MATCH(Y25,$B$6:$B$35750,0),1)))) -> 2797.739 | AM25: =IF(Y25<User!$E$26,((INDEX($H$6:$O$35750,MATCH(Y25,$B$6:$B$35750,0),3)))) -> 2653.842 | AN25: =IF(Y25<User!$E$26,((INDEX($H$6:$O$35750,MATCH(Y25,$B$6:$B$35750,0),7)))) -> 2313.477 | AO25: 1.109705065 | AP25: 2454.846853 | AQ25: -310.4865137 | AR25: 2797.739 | AS25: 2653.842 | AT25: 2313.477 | AV25: 1.109705065 | AW25: 0 | AY25: 2019-01-17 | AZ25: NO | BA25: 3 | BB25: 224 | BC25: -390.3614822 | BD25: 7150 | BE25: 6759.638518 | BF25: 6792.554239
A26: 22 | B26: 2018-12-27T05:30:00.288 | C26: 2018-12-27T05:30:00 | D26: =IF(VLOOKUP(C26,LwrSalmonFallsDam!$A$3:$B$35999,1,TRUE)=C26,VLOOKUP(C26,LwrSalmonFallsDam!$A$3:$B$35999,2,TRUE),NA()) -> 2797.765 | E26: =IF(VLOOKUP(C26,BlissDam!$A$3:$B$35999,1,TRUE)=C26,VLOOKUP(C26,BlissDam!$A$3:$B$35999,2,TRUE),NA()) -> 2653.882 | F26: =IF(VLOOKUP(C26,CJStageCalc!$A$3:$E$35999,1,TRUE)=C26,VLOOKUP(C26,CJStageCalc!$A$3:$E$35999,5,TRUE),NA()) -> 2454.91651 | G26: =IF(VLOOKUP(C26,SwanFallsDam!$A$3:$B$35999,1,TRUE)=C26,VLOOKUP(C26,SwanFallsDam!$A$3:$B$35999,2,TRUE),NA()) -> 2313.332 | X26: 2019-01-18 | Y26: 2019-01-18 | Z26: NO | AA26: =IF(ISNUMBER(AB26),INDEX(SnakeatMilnerLagged!$D$2:$D$370,MATCH(AnnualAADFMonitoring!Y26,SnakeatMilnerLagged!$B$2:$B$370))*-1,"") -> 3 | AB26: =IF(ISNUMBER(MATCH(AnnualAADFMonitoring!Y26,SnakeatMilnerLagged!$B$2:$B$370)),INDEX(SnakeatMilnerLagged!$E$2:$E$370,MATCH(AnnualAADFMonitoring!Y26,SnakeatMilnerLagged!$B$2:$B$370)),"") -> 119 | AC26: =IF(Y26<User!$E$26,((INDEX($H$6:$O$35750,MATCH(Y26+1,$B$6:$B$35750,0),1)*748+INDEX($H$6:$O$35750,MATCH(Y26+1,$B$6:$B$35750,0),3)*255+INDEX($H$6:$O$35750,MATCH(Y26+1,$B$6:$B$35750,0),5)*7500+INDEX($H$6:$O$35750,MATCH(Y26+1,$B$6:$B$35750,0),7)*870) - (INDEX($H$6:$O$35750,MATCH(Y26,$B$6:$B$35750,0),1)*748+INDEX($H$6:$O$35750,MATCH(Y26,$B$6:$B$35750,0),3)*255+INDEX($H$6:$O$35750,MATCH(Y26,$B$6:$B$35750,0),5)*7500+INDEX($H$6:$O$35750,MATCH(Y26,$B$6:$B$35750,0),7)*870)) /1.9835,"") -> -104.1330981 | AD26: 6820 | AE26: 6715.866902 | AF26: 6765.847391 | AH26: 5600 | AI26: 2019-01-18 | AJ26: =IF(Y26<User!$E$26,((INDEX($H$6:$O$35750,MATCH(Y26,$B$6:$B$35750,0),5)))) -> 2454.7456 | AK26: 141.9838669 | AL26: =IF(Y26<User!$E$26,((INDEX($H$6:$O$35750,MATCH(Y26,$B$6:$B$35750,0),1)))) -> 2797.635 | AM26: =IF(Y26<User!$E$26,((INDEX($H$6:$O$35750,MATCH(Y26,$B$6:$B$35750,0),3)))) -> 2653.768 | AN26: =IF(Y26<User!$E$26,((INDEX($H$6:$O$35750,MATCH(Y26,$B$6:$B$35750,0),7)))) -> 2313.406 | AO26: -15.8053945 | AP26: 2454.76474 | AQ26: 126.1784724 | AR26: 2797.635 | AS26: 2653.768 | AT26: 2313.406 | AV26: -15.8053945 | AW26: -1.421085472e-14 | AY26: 2019-01-18 | AZ26: NO | BA26: 3 | BB26: 119 | BC26: -119.9384926 | BD26: 6820 | BE26: 6700.061507 | BF26: 6761.503403
A27: 23 | B27: 2018-12-27T05:44:59.712 | C27: 2018-12-27T05:45:00 | D27: =IF(VLOOKUP(C27,LwrSalmonFallsDam!$A$3:$B$35999,1,TRUE)=C27,VLOOKUP(C27,LwrSalmonFallsDam!$A$3:$B$35999,2,TRUE),NA()) -> 2797.751 | E27: =IF(VLOOKUP(C27,BlissDam!$A$3:$B$35999,1,TRUE)=C27,VLOOKUP(C27,BlissDam!$A$3:$B$35999,2,TRUE),NA()) -> 2653.878 | F27: =IF(VLOOKUP(C27,CJStageCalc!$A$3:$E$35999,1,TRUE)=C27,VLOOKUP(C27,CJStageCalc!$A$3:$E$35999,5,TRUE),NA()) -> 2454.91694 | G27: =IF(VLOOKUP(C27,SwanFallsDam!$A$3:$B$35999,1,TRUE)=C27,VLOOKUP(C27,SwanFallsDam!$A$3:$B$35999,2,TRUE),NA()) -> 2313.36 | X27: 2019-01-19 | Y27: 2019-01-19 | Z27: NO | AA27: =IF(ISNUMBER(AB27),INDEX(SnakeatMilnerLagged!$D$2:$D$370,MATCH(AnnualAADFMonitoring!Y27,SnakeatMilnerLagged!$B$2:$B$370))*-1,"") -> 3 | AB27: =IF(ISNUMBER(MATCH(AnnualAADFMonitoring!Y27,SnakeatMilnerLagged!$B$2:$B$370)),INDEX(SnakeatMilnerLagged!$E$2:$E$370,MATCH(AnnualAADFMonitoring!Y27,SnakeatMilnerLagged!$B$2:$B$370)),"") -> 2.37 | AC27: =IF(Y27<User!$E$26,((INDEX($H$6:$O$35750,MATCH(Y27+1,$B$6:$B$35750,0),1)*748+INDEX($H$6:$O$35750,MATCH(Y27+1,$B$6:$B$35750,0),3)*255+INDEX($H$6:$O$35750,MATCH(Y27+1,$B$6:$B$35750,0),5)*7500+INDEX($H$6:$O$35750,MATCH(Y27+1,$B$6:$B$35750,0),7)*870) - (INDEX($H$6:$O$35750,MATCH(Y27,$B$6:$B$35750,0),1)*748+INDEX($H$6:$O$35750,MATCH(Y27,$B$6:$B$35750,0),3)*255+INDEX($H$6:$O$35750,MATCH(Y27,$B$6:$B$35750,0),5)*7500+INDEX($H$6:$O$35750,MATCH(Y27,$B$6:$B$35750,0),7)*870)) /1.9835,"") -> 86.06851524 | AD27: 6690 | AE27: 6776.068515 | AF27: 6750.154743 | AH27: 5600 | AI27: 2019-01-19 | AJ27: =IF(Y27<User!$E$26,((INDEX($H$6:$O$35750,MATCH(Y27,$B$6:$B$35750,0),5)))) -> 2454.78315 | AK27: -381.2710361 | AL27: =IF(Y27<User!$E$26,((INDEX($H$6:$O$35750,MATCH(Y27,$B$6:$B$35750,0),1)))) -> 2797.664 | AM27: =IF(Y27<User!$E$26,((INDEX($H$6:$O$35750,MATCH(Y27,$B$6:$B$35750,0),3)))) -> 2653.819 | AN27: =IF(Y27<User!$E$26,((INDEX($H$6:$O$35750,MATCH(Y27,$B$6:$B$35750,0),7)))) -> 2312.805 | AO27: 2.773430806 | AP27: 2454.79811 | AQ27: -378.4976052 | AR27: 2797.664 | AS27: 2653.819 | AT27: 2312.805 | AV27: 2.773430806 | AW27: -5.684341886e-14 | AY27: 2019-01-19 | AZ27: NO | BA27: 3 | BB27: 2.37 | BC27: 88.84194605 | BD27: 6690 | BE27: 6778.841946 | BF27: 6746.180657
A28: 24 | B28: 2018-12-27T06:00:00 | C28: 2018-12-27T06:00:00 | D28: =IF(VLOOKUP(C28,LwrSalmonFallsDam!$A$3:$B$35999,1,TRUE)=C28,VLOOKUP(C28,LwrSalmonFallsDam!$A$3:$B$35999,2,TRUE),NA()) -> 2797.796 | E28: =IF(VLOOKUP(C28,BlissDam!$A$3:$B$35999,1,TRUE)=C28,VLOOKUP(C28,BlissDam!$A$3:$B$35999,2,TRUE),NA()) -> 2653.877 | F28: =IF(VLOOKUP(C28,CJStageCalc!$A$3:$E$35999,1,TRUE)=C28,VLOOKUP(C28,CJStageCalc!$A$3:$E$35999,5,TRUE),NA()) -> 2454.900993 | G28: =IF(VLOOKUP(C28,SwanFallsDam!$A$3:$B$35999,1,TRUE)=C28,VLOOKUP(C28,SwanFallsDam!$A$3:$B$35999,2,TRUE),NA()) -> 2313.378 | X28: 2019-01-20 | Y28: 2019-01-20 | Z28: NO | AA28: =IF(ISNUMBER(AB28),INDEX(SnakeatMilnerLagged!$D$2:$D$370,MATCH(AnnualAADFMonitoring!Y28,SnakeatMilnerLagged!$B$2:$B$370))*-1,"") -> 3 | AB28: =IF(ISNUMBER(MATCH(AnnualAADFMonitoring!Y28,SnakeatMilnerLagged!$B$2:$B$370)),INDEX(SnakeatMilnerLagged!$E$2:$E$370,MATCH(AnnualAADFMonitoring!Y28,SnakeatMilnerLagged!$B$2:$B$370)),"") -> 0.252 | AC28: =IF(Y28<User!$E$26,((INDEX($H$6:$O$35750,MATCH(Y28+1,$B$6:$B$35750,0),1)*748+INDEX($H$6:$O$35750,MATCH(Y28+1,$B$6:$B$35750,0),3)*255+INDEX($H$6:$O$35750,MATCH(Y28+1,$B$6:$B$35750,0),5)*7500+INDEX($H$6:$O$35750,MATCH(Y28+1,$B$6:$B$35750,0),7)*870) - (INDEX($H$6:$O$35750,MATCH(Y28,$B$6:$B$35750,0),1)*748+INDEX($H$6:$O$35750,MATCH(Y28,$B$6:$B$35750,0),3)*255+INDEX($H$6:$O$35750,MATCH(Y28,$B$6:$B$35750,0),5)*7500+INDEX($H$6:$O$35750,MATCH(Y28,$B$6:$B$35750,0),7)*870)) /1.9835,"") -> -724.4274767 | AD28: 7430 | AE28: 6705.572523 | AF28: 6732.502647 | AH28: 5600 | AI28: 2019-01-20 | AJ28: =IF(Y28<User!$E$26,((INDEX($H$6:$O$35750,MATCH(Y28,$B$6:$B$35750,0),5)))) -> 2454.682317 | AK28: -132.3664734 | AL28: =IF(Y28<User!$E$26,((INDEX($H$6:$O$35750,MATCH(Y28,$B$6:$B$35750,0),1)))) -> 2797.65 | AM28: =IF(Y28<User!$E$26,((INDEX($H$6:$O$35750,MATCH(Y28,$B$6:$B$35750,0),3)))) -> 2653.831 | AN28: =IF(Y28<User!$E$26,((INDEX($H$6:$O$35750,MATCH(Y28,$B$6:$B$35750,0),7)))) -> 2313.879 | AO28: -4.437156546 | AP28: 2454.69801 | AQ28: -136.8036299 | AR28: 2797.65 | AS28: 2653.831 | AT28: 2313.879 | AV28: -4.437156546 | AW28: -5.684341886e-14 | AY28: 2019-01-20 | AZ28: NO | BA28: 3 | BB28: 0.252 | BC28: -728.8646332 | BD28: 7430 | BE28: 6701.135367 | BF28: 6726.679607
A29: 25 | B29: 2018-12-27T06:15:00.288 | C29: 2018-12-27T06:15:00 | D29: =IF(VLOOKUP(C29,LwrSalmonFallsDam!$A$3:$B$35999,1,TRUE)=C29,VLOOKUP(C29,LwrSalmonFallsDam!$A$3:$B$35999,2,TRUE),NA()) -> 2797.775 | E29: =IF(VLOOKUP(C29,BlissDam!$A$3:$B$35999,1,TRUE)=C29,VLOOKUP(C29,BlissDam!$A$3:$B$35999,2,TRUE),NA()) -> 2653.873 | F29: =IF(VLOOKUP(C29,CJStageCalc!$A$3:$E$35999,1,TRUE)=C29,VLOOKUP(C29,CJStageCalc!$A$3:$E$35999,5,TRUE),NA()) -> 2454.90734 | G29: =IF(VLOOKUP(C29,SwanFallsDam!$A$3:$B$35999,1,TRUE)=C29,VLOOKUP(C29,SwanFallsDam!$A$3:$B$35999,2,TRUE),NA()) -> 2313.397 | N29: 2313.172 | X29: 2019-01-21 | Y29: 2019-01-21 | Z29: NO | AA29: =IF(ISNUMBER(AB29),INDEX(SnakeatMilnerLagged!$D$2:$D$370,MATCH(AnnualAADFMonitoring!Y29,SnakeatMilnerLagged!$B$2:$B$370))*-1,"") -> 3 | AB29: =IF(ISNUMBER(MATCH(AnnualAADFMonitoring!Y29,SnakeatMilnerLagged!$B$2:$B$370)),INDEX(SnakeatMilnerLagged!$E$2:$E$370,MATCH(AnnualAADFMonitoring!Y29,SnakeatMilnerLagged!$B$2:$B$370)),"") -> 0.534 | AC29: =IF(Y29<User!$E$26,((INDEX($H$6:$O$35750,MATCH(Y29+1,$B$6:$B$35750,0),1)*748+INDEX($H$6:$O$35750,MATCH(Y29+1,$B$6:$B$35750,0),3)*255+INDEX($H$6:$O$35750,MATCH(Y29+1,$B$6:$B$35750,0),5)*7500+INDEX($H$6:$O$35750,MATCH(Y29+1,$B$6:$B$35750,0),7)*870) - (INDEX($H$6:$O$35750,MATCH(Y29,$B$6:$B$35750,0),1)*748+INDEX($H$6:$O$35750,MATCH(Y29,$B$6:$B$35750,0),3)*255+INDEX($H$6:$O$35750,MATCH(Y29,$B$6:$B$35750,0),5)*7500+INDEX($H$6:$O$35750,MATCH(Y29,$B$6:$B$35750,0),7)*870)) /1.9835,"") -> 183.2628687 | AD29: 6380 | AE29: 6563.262869 | AF29: 6681.634636 | AH29: 5600 | AI29: 2019-01-21 | AJ29: =IF(Y29<User!$E$26,((INDEX($H$6:$O$35750,MATCH(Y29,$B$6:$B$35750,0),5)))) -> 2454.64731 | AK29: -196.0555079 | AL29: =IF(Y29<User!$E$26,((INDEX($H$6:$O$35750,MATCH(Y29,$B$6:$B$35750,0),1)))) -> 2797.584 | AM29: =IF(Y29<User!$E$26,((INDEX($H$6:$O$35750,MATCH(Y29,$B$6:$B$35750,0),3)))) -> 2653.742 | AN29: =IF(Y29<User!$E$26,((INDEX($H$6:$O$35750,MATCH(Y29,$B$6:$B$35750,0),7)))) -> 2312.612 | AO29: -8.040786486 | AP29: 2454.66183 | AQ29: -204.0962944 | AR29: 2797.584 | AS29: 2653.742 | AT29: 2312.612 | AV29: -8.040786486 | AW29: 0 | AY29: 2019-01-21 | AZ29: NO | BA29: 3 | BB29: 0.534 | BC29: 175.2220822 | BD29: 6380 | BE29: 6555.222082 | BF29: 6678.399798
A30: 26 | B30: 2018-12-27T06:29:59.712 | C30: 2018-12-27T06:30:00 | D30: =IF(VLOOKUP(C30,LwrSalmonFallsDam!$A$3:$B$35999,1,TRUE)=C30,VLOOKUP(C30,LwrSalmonFallsDam!$A$3:$B$35999,2,TRUE),NA()) -> 2797.802 | E30: =IF(VLOOKUP(C30,BlissDam!$A$3:$B$35999,1,TRUE)=C30,VLOOKUP(C30,BlissDam!$A$3:$B$35999,2,TRUE),NA()) -> 2653.867 | F30: =IF(VLOOKUP(C30,CJStageCalc!$A$3:$E$35999,1,TRUE)=C30,VLOOKUP(C30,CJStageCalc!$A$3:$E$35999,5,TRUE),NA()) -> 2454.903763 | G30: =IF(VLOOKUP(C30,SwanFallsDam!$A$3:$B$35999,1,TRUE)=C30,VLOOKUP(C30,SwanFallsDam!$A$3:$B$35999,2,TRUE),NA()) -> 2313.397 | N30: 2313.184 | V30: 505.296 | X30: 2019-01-22 | Y30: 2019-01-22 | Z30: NO | AA30: =IF(ISNUMBER(AB30),INDEX(SnakeatMilnerLagged!$D$2:$D$370,MATCH(AnnualAADFMonitoring!Y30,SnakeatMilnerLagged!$B$2:$B$370))*-1,"") -> 3 | AB30: =IF(ISNUMBER(MATCH(AnnualAADFMonitoring!Y30,SnakeatMilnerLagged!$B$2:$B$370)),INDEX(SnakeatMilnerLagged!$E$2:$E$370,MATCH(AnnualAADFMonitoring!Y30,SnakeatMilnerLagged!$B$2:$B$370)),"") -> 0.0256 | AC30: =IF(Y30<User!$E$26,((INDEX($H$6:$O$35750,MATCH(Y30+1,$B$6:$B$35750,0),1)*748+INDEX($H$6:$O$35750,MATCH(Y30+1,$B$6:$B$35750,0),3)*255+INDEX($H$6:$O$35750,MATCH(Y30+1,$B$6:$B$35750,0),5)*7500+INDEX($H$6:$O$35750,MATCH(Y30+1,$B$6:$B$35750,0),7)*870) - (INDEX($H$6:$O$35750,MATCH(Y30,$B$6:$B$35750,0),1)*748+INDEX($H$6:$O$35750,MATCH(Y30,$B$6:$B$35750,0),3)*255+INDEX($H$6:$O$35750,MATCH(Y30,$B$6:$B$35750,0),5)*7500+INDEX($H$6:$O$35750,MATCH(Y30,$B$6:$B$35750,0),7)*870)) /1.9835,"") -> 398.9861356 | AD30: 6330 | AE30: 6728.986136 | AF30: 6665.940509 | AH30: 5600 | AI30: 2019-01-22 | AJ30: =IF(Y30<User!$E$26,((INDEX($H$6:$O$35750,MATCH(Y30,$B$6:$B$35750,0),5)))) -> 2454.59546 | AK30: 257.4489539 | AL30: =IF(Y30<User!$E$26,((INDEX($H$6:$O$35750,MATCH(Y30,$B$6:$B$35750,0),1)))) -> 2797.685 | AM30: =IF(Y30<User!$E$26,((INDEX($H$6:$O$35750,MATCH(Y30,$B$6:$B$35750,0),3)))) -> 2653.892 | AN30: =IF(Y30<User!$E$26,((INDEX($H$6:$O$35750,MATCH(Y30,$B$6:$B$35750,0),7)))) -> 2313.346 | AO30: 1.663725736 | AP30: 2454.607853 | AQ30: 259.1126796 | AR30: 2797.685 | AS30: 2653.892 | AT30: 2313.346 | AV30: 1.663725736 | AW30: -5.684341886e-14 | AY30: 2019-01-22 | AZ30: NO | BA30: 3 | BB30: 0.0256 | BC30: 400.6498614 | BD30: 6330 | BE30: 6730.649861 | BF30: 6662.33577
A31: 27 | B31: 2018-12-27T06:45:00 | C31: 2018-12-27T06:45:00 | D31: =IF(VLOOKUP(C31,LwrSalmonFallsDam!$A$3:$B$35999,1,TRUE)=C31,VLOOKUP(C31,LwrSalmonFallsDam!$A$3:$B$35999,2,TRUE),NA()) -> 2797.824 | E31: =IF(VLOOKUP(C31,BlissDam!$A$3:$B$35999,1,TRUE)=C31,VLOOKUP(C31,BlissDam!$A$3:$B$35999,2,TRUE),NA()) -> 2653.865 | F31: =IF(VLOOKUP(C31,CJStageCalc!$A$3:$E$35999,1,TRUE)=C31,VLOOKUP(C31,CJStageCalc!$A$3:$E$35999,5,TRUE),NA()) -> 2454.893803 | G31: =IF(VLOOKUP(C31,SwanFallsDam!$A$3:$B$35999,1,TRUE)=C31,VLOOKUP(C31,SwanFallsDam!$A$3:$B$35999,2,TRUE),NA()) -> 2313.414 | N31: 2313.212 | V31: 1179.024 | X31: 2019-01-23 | Y31: 2019-01-23 | Z31: NO | AA31: =IF(ISNUMBER(AB31),INDEX(SnakeatMilnerLagged!$D$2:$D$370,MATCH(AnnualAADFMonitoring!Y31,SnakeatMilnerLagged!$B$2:$B$370))*-1,"") -> 3 | AB31: =IF(ISNUMBER(MATCH(AnnualAADFMonitoring!Y31,SnakeatMilnerLagged!$B$2:$B$370)),INDEX(SnakeatMilnerLagged!$E$2:$E$370,MATCH(AnnualAADFMonitoring!Y31,SnakeatMilnerLagged!$B$2:$B$370)),"") -> 0 | AC31: =IF(Y31<User!$E$26,((INDEX($H$6:$O$35750,MATCH(Y31+1,$B$6:$B$35750,0),1)*748+INDEX($H$6:$O$35750,MATCH(Y31+1,$B$6:$B$35750,0),3)*255+INDEX($H$6:$O$35750,MATCH(Y31+1,$B$6:$B$35750,0),5)*7500+INDEX($H$6:$O$35750,MATCH(Y31+1,$B$6:$B$35750,0),7)*870) - (INDEX($H$6:$O$35750,MATCH(Y31,$B$6:$B$35750,0),1)*748+INDEX($H$6:$O$35750,MATCH(Y31,$B$6:$B$35750,0),3)*255+INDEX($H$6:$O$35750,MATCH(Y31,$B$6:$B$35750,0),5)*7500+INDEX($H$6:$O$35750,MATCH(Y31,$B$6:$B$35750,0),7)*870)) /1.9835,"") -> -7.077388458 | AD31: 6620 | AE31: 6612.922612 | AF31: 6635.057205 | AH31: 5600 | AI31: 2019-01-23 | AJ31: =IF(Y31<User!$E$26,((INDEX($H$6:$O$35750,MATCH(Y31,$B$6:$B$35750,0),5)))) -> 2454.663547 | AK31: 514.5449962 | AL31: =IF(Y31<User!$E$26,((INDEX($H$6:$O$35750,MATCH(Y31,$B$6:$B$35750,0),1)))) -> 2797.753 | AM31: =IF(Y31<User!$E$26,((INDEX($H$6:$O$35750,MATCH(Y31,$B$6:$B$35750,0),3)))) -> 2653.787 | AN31: =IF(Y31<User!$E$26,((INDEX($H$6:$O$35750,MATCH(Y31,$B$6:$B$35750,0),7)))) -> 2313.641 | AO31: 16.63725738 | AP31: 2454.67638 | AQ31: 531.1822536 | AR31: 2797.753 | AS31: 2653.787 | AT31: 2313.641 | AV31: 16.63725738 | AW31: -3.907985047e-14 | AY31: 2019-01-23 | AZ31: NO | BA31: 3 | BB31: 0 | BC31: 9.559868917 | BD31: 6620 | BE31: 6629.559869 | BF31: 6638.477271
A32: 28 | B32: 2018-12-27T07:00:00.288 | C32: 2018-12-27T07:00:00 | D32: =IF(VLOOKUP(C32,LwrSalmonFallsDam!$A$3:$B$35999,1,TRUE)=C32,VLOOKUP(C32,LwrSalmonFallsDam!$A$3:$B$35999,2,TRUE),NA()) -> 2797.798 | E32: =IF(VLOOKUP(C32,BlissDam!$A$3:$B$35999,1,TRUE)=C32,VLOOKUP(C32,BlissDam!$A$3:$B$35999,2,TRUE),NA()) -> 2653.861 | F32: =IF(VLOOKUP(C32,CJStageCalc!$A$3:$E$35999,1,TRUE)=C32,VLOOKUP(C32,CJStageCalc!$A$3:$E$35999,5,TRUE),NA()) -> 2454.887023 | G32: =IF(VLOOKUP(C32,SwanFallsDam!$A$3:$B$35999,1,TRUE)=C32,VLOOKUP(C32,SwanFallsDam!$A$3:$B$35999,2,TRUE),NA()) -> 2313.424 | N32: 2313.232 | V32: 842.16 | X32: 2019-01-24 | Y32: 2019-01-24 | Z32: NO | AA32: =IF(ISNUMBER(AB32),INDEX(SnakeatMilnerLagged!$D$2:$D$370,MATCH(AnnualAADFMonitoring!Y32,SnakeatMilnerLagged!$B$2:$B$370))*-1,"") -> 3 | AB32: =IF(ISNUMBER(MATCH(AnnualAADFMonitoring!Y32,SnakeatMilnerLagged!$B$2:$B$370)),INDEX(SnakeatMilnerLagged!$E$2:$E$370,MATCH(AnnualAADFMonitoring!Y32,SnakeatMilnerLagged!$B$2:$B$370)),"") -> 0.0174 | AC32: =IF(Y32<User!$E$26,((INDEX($H$6:$O$35750,MATCH(Y32+1,$B$6:$B$35750,0),1)*748+INDEX($H$6:$O$35750,MATCH(Y32+1,$B$6:$B$35750,0),3)*255+INDEX($H$6:$O$35750,MATCH(Y32+1,$B$6:$B$35750,0),5)*7500+INDEX($H$6:$O$35750,MATCH(Y32+1,$B$6:$B$35750,0),7)*870) - (INDEX($H$6:$O$35750,MATCH(Y32,$B$6:$B$35750,0),1)*748+INDEX($H$6:$O$35750,MATCH(Y32,$B$6:$B$35750,0),3)*255+INDEX($H$6:$O$35750,MATCH(Y32,$B$6:$B$35750,0),5)*7500+INDEX($H$6:$O$35750,MATCH(Y32,$B$6:$B$35750,0),7)*870)) /1.9835,"") -> 639.1232669 | AD32: 5890 | AE32: 6529.123267 | AF32: 6623.677338 | AH32: 5600 | AI32: 2019-01-24 | AJ32: =IF(Y32<User!$E$26,((INDEX($H$6:$O$35750,MATCH(Y32,$B$6:$B$35750,0),5)))) -> 2454.799627 | AK32: 99.71010839 | AL32: =IF(Y32<User!$E$26,((INDEX($H$6:$O$35750,MATCH(Y32,$B$6:$B$35750,0),1)))) -> 2797.677 | AM32: =IF(Y32<User!$E$26,((INDEX($H$6:$O$35750,MATCH(Y32,$B$6:$B$35750,0),3)))) -> 2653.917 | AN32: =IF(Y32<User!$E$26,((INDEX($H$6:$O$35750,MATCH(Y32,$B$6:$B$35750,0),7)))) -> 2312.479 | AO32: -14.14166877 | AP32: 2454.81686 | AQ32: 85.56843963 | AR32: 2797.677 | AS32: 2653.917 | AT32: 2312.479 | AV32: -14.14166876 | AW32: 1.87812077e-09 | AY32: 2019-01-24 | AZ32: NO | BA32: 3 | BB32: 0.0174 | BC32: 624.9815982 | BD32: 5890 | BE32: 6514.981598 | BF32: 6625.063776
A33: 29 | B33: 2018-12-27T07:14:59.712 | C33: 2018-12-27T07:15:00 | D33: =IF(VLOOKUP(C33,LwrSalmonFallsDam!$A$3:$B$35999,1,TRUE)=C33,VLOOKUP(C33,LwrSalmonFallsDam!$A$3:$B$35999,2,TRUE),NA()) -> 2797.765 | E33: =IF(VLOOKUP(C33,BlissDam!$A$3:$B$35999,1,TRUE)=C33,VLOOKUP(C33,BlissDam!$A$3:$B$35999,2,TRUE),NA()) -> 2653.857 | F33: =IF(VLOOKUP(C33,CJStageCalc!$A$3:$E$35999,1,TRUE)=C33,VLOOKUP(C33,CJStageCalc!$A$3:$E$35999,5,TRUE),NA()) -> 2454.886487 | G33: =IF(VLOOKUP(C33,SwanFallsDam!$A$3:$B$35999,1,TRUE)=C33,VLOOKUP(C33,SwanFallsDam!$A$3:$B$35999,2,TRUE),NA()) -> 2313.418 | N33: 2313.248 | V33: 673.728 | X33: 2019-01-25 | Y33: 2019-01-25 | Z33: NO | AA33: =IF(ISNUMBER(AB33),INDEX(SnakeatMilnerLagged!$D$2:$D$370,MATCH(AnnualAADFMonitoring!Y33,SnakeatMilnerLagged!$B$2:$B$370))*-1,"") -> 3 | AB33: =IF(ISNUMBER(MATCH(AnnualAADFMonitoring!Y33,SnakeatMilnerLagged!$B$2:$B$370)),INDEX(SnakeatMilnerLagged!$E$2:$E$370,MATCH(AnnualAADFMonitoring!Y33,SnakeatMilnerLagged!$B$2:$B$370)),"") -> 1.58 | AC33: =IF(Y33<User!$E$26,((INDEX($H$6:$O$35750,MATCH(Y33+1,$B$6:$B$35750,0),1)*748+INDEX($H$6:$O$35750,MATCH(Y33+1,$B$6:$B$35750,0),3)*255+INDEX($H$6:$O$35750,MATCH(Y33+1,$B$6:$B$35750,0),5)*7500+INDEX($H$6:$O$35750,MATCH(Y33+1,$B$6:$B$35750,0),7)*870) - (INDEX($H$6:$O$35750,MATCH(Y33,$B$6:$B$35750,0),1)*748+INDEX($H$6:$O$35750,MATCH(Y33,$B$6:$B$35750,0),3)*255+INDEX($H$6:$O$35750,MATCH(Y33,$B$6:$B$35750,0),5)*7500+INDEX($H$6:$O$35750,MATCH(Y33,$B$6:$B$35750,0),7)*870)) /1.9835,"") -> -635.085455 | AD33: 6970 | AE33: 6334.914545 | AF33: 6492.320141 | AH33: 5600 | AI33: 2019-01-25 | AJ33: =IF(Y33<User!$E$26,((INDEX($H$6:$O$35750,MATCH(Y33,$B$6:$B$35750,0),5)))) -> 2454.825997 | AK33: -323.4434081 | AL33: =IF(Y33<User!$E$26,((INDEX($H$6:$O$35750,MATCH(Y33,$B$6:$B$35750,0),1)))) -> 2797.779 | AM33: =IF(Y33<User!$E$26,((INDEX($H$6:$O$35750,MATCH(Y33,$B$6:$B$35750,0),3)))) -> 2653.873 | AN33: =IF(Y33<User!$E$26,((INDEX($H$6:$O$35750,MATCH(Y33,$B$6:$B$35750,0),7)))) -> 2313.634 | AO33: -20.79657172 | AP33: 2454.83949 | AQ33: -344.2399798 | AR33: 2797.779 | AS33: 2653.873 | AT33: 2313.634 | AV33: -20.79657172 | AW33: -1.878106559e-09 | AY33: 2019-01-25 | AZ33: NO | BA33: 3 | BB33: 1.58 | BC33: -655.8820267 | BD33: 6970 | BE33: 6314.117973 | BF33: 6486.219813
A34: 30 | B34: 2018-12-27T07:30:00 | C34: 2018-12-27T07:30:00 | D34: =IF(VLOOKUP(C34,LwrSalmonFallsDam!$A$3:$B$35999,1,TRUE)=C34,VLOOKUP(C34,LwrSalmonFallsDam!$A$3:$B$35999,2,TRUE),NA()) -> 2797.769 | E34: =IF(VLOOKUP(C34,BlissDam!$A$3:$B$35999,1,TRUE)=C34,VLOOKUP(C34,BlissDam!$A$3:$B$35999,2,TRUE),NA()) -> 2653.854 | F34: =IF(VLOOKUP(C34,CJStageCalc!$A$3:$E$35999,1,TRUE)=C34,VLOOKUP(C34,CJStageCalc!$A$3:$E$35999,5,TRUE),NA()) -> 2454.88079 | G34: =IF(VLOOKUP(C34,SwanFallsDam!$A$3:$B$35999,1,TRUE)=C34,VLOOKUP(C34,SwanFallsDam!$A$3:$B$35999,2,TRUE),NA()) -> 2313.407 | N34: 2313.265 | V34: 715.836 | X34: 2019-01-26 | Y34: 2019-01-26 | Z34: NO | AA34: =IF(ISNUMBER(AB34),INDEX(SnakeatMilnerLagged!$D$2:$D$370,MATCH(AnnualAADFMonitoring!Y34,SnakeatMilnerLagged!$B$2:$B$370))*-1,"") -> 3 | AB34: =IF(ISNUMBER(MATCH(AnnualAADFMonitoring!Y34,SnakeatMilnerLagged!$B$2:$B$370)),INDEX(SnakeatMilnerLagged!$E$2:$E$370,MATCH(AnnualAADFMonitoring!Y34,SnakeatMilnerLagged!$B$2:$B$370)),"") -> 2.24 | AC34: =IF(Y34<User!$E$26,((INDEX($H$6:$O$35750,MATCH(Y34+1,$B$6:$B$35750,0),1)*748+INDEX($H$6:$O$35750,MATCH(Y34+1,$B$6:$B$35750,0),3)*255+INDEX($H$6:$O$35750,MATCH(Y34+1,$B$6:$B$35750,0),5)*7500+INDEX($H$6:$O$35750,MATCH(Y34+1,$B$6:$B$35750,0),7)*870) - (INDEX($H$6:$O$35750,MATCH(Y34,$B$6:$B$35750,0),1)*748+INDEX($H$6:$O$35750,MATCH(Y34,$B$6:$B$35750,0),3)*255+INDEX($H$6:$O$35750,MATCH(Y34,$B$6:$B$35750,0),5)*7500+INDEX($H$6:$O$35750,MATCH(Y34,$B$6:$B$35750,0),7)*870)) /1.9835,"") -> 396.2975044 | AD34: 6050 | AE34: 6446.297504 | AF34: 6436.778439 | AH34: 5600 | AI34: 2019-01-26 | AJ34: =IF(Y34<User!$E$26,((INDEX($H$6:$O$35750,MATCH(Y34,$B$6:$B$35750,0),5)))) -> 2454.740457 | AK34: 193.5095034 | AL34: =IF(Y34<User!$E$26,((INDEX($H$6:$O$35750,MATCH(Y34,$B$6:$B$35750,0),1)))) -> 2797.58 | AM34: =IF(Y34<User!$E$26,((INDEX($H$6:$O$35750,MATCH(Y34,$B$6:$B$35750,0),3)))) -> 2653.817 | AN34: =IF(Y34<User!$E$26,((INDEX($H$6:$O$35750,MATCH(Y34,$B$6:$B$35750,0),7)))) -> 2313.111 | AO34: -5.26901941 | AP34: 2454.74845 | AQ34: 188.240484 | AR34: 2797.58 | AS34: 2653.817 | AT34: 2313.111 | AV34: -5.26901941 | AW34: -2.842170943e-14 | AY34: 2019-01-26 | AZ34: NO | BA34: 3 | BB34: 2.24 | BC34: 391.028485 | BD34: 6050 | BE34: 6441.028485 | BF34: 6423.376019
A35: 31 | B35: 2018-12-27T07:45:00.288 | C35: 2018-12-27T07:45:00 | D35: =IF(VLOOKUP(C35,LwrSalmonFallsDam!$A$3:$B$35999,1,TRUE)=C35,VLOOKUP(C35,LwrSalmonFallsDam!$A$3:$B$35999,2,TRUE),NA()) -> 2797.81 | E35: =IF(VLOOKUP(C35,BlissDam!$A$3:$B$35999,1,TRUE)=C35,VLOOKUP(C35,BlissDam!$A$3:$B$35999,2,TRUE),NA()) -> 2653.851 | F35: =IF(VLOOKUP(C35,CJStageCalc!$A$3:$E$35999,1,TRUE)=C35,VLOOKUP(C35,CJStageCalc!$A$3:$E$35999,5,TRUE),NA()) -> 2454.884453 | G35: =IF(VLOOKUP(C35,SwanFallsDam!$A$3:$B$35999,1,TRUE)=C35,VLOOKUP(C35,SwanFallsDam!$A$3:$B$35999,2,TRUE),NA()) -> 2313.405 | N35: 2313.283 | V35: 757.944 | X35: 2019-01-27 | Y35: 2019-01-27 | Z35: NO | AA35: =IF(ISNUMBER(AB35),INDEX(SnakeatMilnerLagged!$D$2:$D$370,MATCH(AnnualAADFMonitoring!Y35,SnakeatMilnerLagged!$B$2:$B$370))*-1,"") -> 3 | AB35: =IF(ISNUMBER(MATCH(AnnualAADFMonitoring!Y35,SnakeatMilnerLagged!$B$2:$B$370)),INDEX(SnakeatMilnerLagged!$E$2:$E$370,MATCH(AnnualAADFMonitoring!Y35,SnakeatMilnerLagged!$B$2:$B$370)),"") -> 33 | AC35: =IF(Y35<User!$E$26,((INDEX($H$6:$O$35750,MATCH(Y35+1,$B$6:$B$35750,0),1)*748+INDEX($H$6:$O$35750,MATCH(Y35+1,$B$6:$B$35750,0),3)*255+INDEX($H$6:$O$35750,MATCH(Y35+1,$B$6:$B$35750,0),5)*7500+INDEX($H$6:$O$35750,MATCH(Y35+1,$B$6:$B$35750,0),7)*870) - (INDEX($H$6:$O$35750,MATCH(Y35,$B$6:$B$35750,0),1)*748+INDEX($H$6:$O$35750,MATCH(Y35,$B$6:$B$35750,0),3)*255+INDEX($H$6:$O$35750,MATCH(Y35,$B$6:$B$35750,0),5)*7500+INDEX($H$6:$O$35750,MATCH(Y35,$B$6:$B$35750,0),7)*870)) /1.9835,"") -> 43.38190068 | AD35: 6390 | AE35: 6433.381901 | AF35: 6404.86465 | AH35: 5600 | AI35: 2019-01-27 | AJ35: =IF(Y35<User!$E$26,((INDEX($H$6:$O$35750,MATCH(Y35,$B$6:$B$35750,0),5)))) -> 2454.791633 | AK35: -18.33879506 | AL35: =IF(Y35<User!$E$26,((INDEX($H$6:$O$35750,MATCH(Y35,$B$6:$B$35750,0),1)))) -> 2797.57 | AM35: =IF(Y35<User!$E$26,((INDEX($H$6:$O$35750,MATCH(Y35,$B$6:$B$35750,0),3)))) -> 2653.827 | AN35: =IF(Y35<User!$E$26,((INDEX($H$6:$O$35750,MATCH(Y35,$B$6:$B$35750,0),7)))) -> 2313.579 | AO35: 41.59314343 | AP35: 2454.798233 | AQ35: 23.25434837 | AR35: 2797.57 | AS35: 2653.827 | AT35: 2313.579 | AV35: 41.59314343 | AW35: 0 | AY35: 2019-01-27 | AZ35: NO | BA35: 3 | BB35: 33 | BC35: 84.97504411 | BD35: 6390 | BE35: 6474.975044 | BF35: 6410.040501
A36: 32 | B36: 2018-12-27T07:59:59.712 | C36: 2018-12-27T08:00:00 | D36: =IF(VLOOKUP(C36,LwrSalmonFallsDam!$A$3:$B$35999,1,TRUE)=C36,VLOOKUP(C36,LwrSalmonFallsDam!$A$3:$B$35999,2,TRUE),NA()) -> 2797.798 | E36: =IF(VLOOKUP(C36,BlissDam!$A$3:$B$35999,1,TRUE)=C36,VLOOKUP(C36,BlissDam!$A$3:$B$35999,2,TRUE),NA()) -> 2653.857 | F36: =IF(VLOOKUP(C36,CJStageCalc!$A$3:$E$35999,1,TRUE)=C36,VLOOKUP(C36,CJStageCalc!$A$3:$E$35999,5,TRUE),NA()) -> 2454.878587 | G36: =IF(VLOOKUP(C36,SwanFallsDam!$A$3:$B$35999,1,TRUE)=C36,VLOOKUP(C36,SwanFallsDam!$A$3:$B$35999,2,TRUE),NA()) -> 2313.393 | N36: 2313.303 | V36: 842.16 | X36: 2019-01-28 | Y36: 2019-01-28 | Z36: NO | AA36: =IF(ISNUMBER(AB36),INDEX(SnakeatMilnerLagged!$D$2:$D$370,MATCH(AnnualAADFMonitoring!Y36,SnakeatMilnerLagged!$B$2:$B$370))*-1,"") -> 3 | AB36: =IF(ISNUMBER(MATCH(AnnualAADFMonitoring!Y36,SnakeatMilnerLagged!$B$2:$B$370)),INDEX(SnakeatMilnerLagged!$E$2:$E$370,MATCH(AnnualAADFMonitoring!Y36,SnakeatMilnerLagged!$B$2:$B$370)),"") -> 78.7 | AC36: =IF(Y36<User!$E$26,((INDEX($H$6:$O$35750,MATCH(Y36+1,$B$6:$B$35750,0),1)*748+INDEX($H$6:$O$35750,MATCH(Y36+1,$B$6:$B$35750,0),3)*255+INDEX($H$6:$O$35750,MATCH(Y36+1,$B$6:$B$35750,0),5)*7500+INDEX($H$6:$O$35750,MATCH(Y36+1,$B$6:$B$35750,0),7)*870) - (INDEX($H$6:$O$35750,MATCH(Y36,$B$6:$B$35750,0),1)*748+INDEX($H$6:$O$35750,MATCH(Y36,$B$6:$B$35750,0),3)*255+INDEX($H$6:$O$35750,MATCH(Y36,$B$6:$B$35750,0),5)*7500+INDEX($H$6:$O$35750,MATCH(Y36,$B$6:$B$35750,0),7)*870)) /1.9835,"") -> -72.73148475 | AD36: 6390 | AE36: 6317.268515 | AF36: 6398.98264 | AH36: 5600 | AI36: 2019-01-28 | AJ36: =IF(Y36<User!$E$26,((INDEX($H$6:$O$35750,MATCH(Y36,$B$6:$B$35750,0),5)))) -> 2454.786783 | AK36: -30.84139148 | AL36: =IF(Y36<User!$E$26,((INDEX($H$6:$O$35750,MATCH(Y36,$B$6:$B$35750,0),1)))) -> 2797.701 | AM36: =IF(Y36<User!$E$26,((INDEX($H$6:$O$35750,MATCH(Y36,$B$6:$B$35750,0),3)))) -> 2653.8 | AN36: =IF(Y36<User!$E$26,((INDEX($H$6:$O$35750,MATCH(Y36,$B$6:$B$35750,0),7)))) -> 2313.615 | AO36: -12.75578523 | AP36: 2454.804383 | AQ36: -43.59717671 | AR36: 2797.701 | AS36: 2653.8 | AT36: 2313.615 | AV36: -12.75578523 | AW36: 0 | AY36: 2019-01-28 | AZ36: NO | BA36: 3 | BB36: 78.7 | BC36: -85.48726998 | BD36: 6390 | BE36: 6304.51273 | BF36: 6406.838753
A37: 33 | B37: 2018-12-27T08:15:00 | C37: 2018-12-27T08:15:00 | D37: =IF(VLOOKUP(C37,LwrSalmonFallsDam!$A$3:$B$35999,1,TRUE)=C37,VLOOKUP(C37,LwrSalmonFallsDam!$A$3:$B$35999,2,TRUE),NA()) -> 2797.802 | E37: =IF(VLOOKUP(C37,BlissDam!$A$3:$B$35999,1,TRUE)=C37,VLOOKUP(C37,BlissDam!$A$3:$B$35999,2,TRUE),NA()) -> 2653.854 | F37: =IF(VLOOKUP(C37,CJStageCalc!$A$3:$E$35999,1,TRUE)=C37,VLOOKUP(C37,CJStageCalc!$A$3:$E$35999,5,TRUE),NA()) -> 2454.8753 | G37: =IF(VLOOKUP(C37,SwanFallsDam!$A$3:$B$35999,1,TRUE)=C37,VLOOKUP(C37,SwanFallsDam!$A$3:$B$35999,2,TRUE),NA()) -> 2313.378 | N37: 2313.318 | V37: 631.62 | X37: 2019-01-29 | Y37: 2019-01-29 | Z37: NO | AA37: =IF(ISNUMBER(AB37),INDEX(SnakeatMilnerLagged!$D$2:$D$370,MATCH(AnnualAADFMonitoring!Y37,SnakeatMilnerLagged!$B$2:$B$370))*-1,"") -> 3 | AB37: =IF(ISNUMBER(MATCH(AnnualAADFMonitoring!Y37,SnakeatMilnerLagged!$B$2:$B$370)),INDEX(SnakeatMilnerLagged!$E$2:$E$370,MATCH(AnnualAADFMonitoring!Y37,SnakeatMilnerLagged!$B$2:$B$370)),"") -> 2.39 | AC37: =IF(Y37<User!$E$26,((INDEX($H$6:$O$35750,MATCH(Y37+1,$B$6:$B$35750,0),1)*748+INDEX($H$6:$O$35750,MATCH(Y37+1,$B$6:$B$35750,0),3)*255+INDEX($H$6:$O$35750,MATCH(Y37+1,$B$6:$B$35750,0),5)*7500+INDEX($H$6:$O$35750,MATCH(Y37+1,$B$6:$B$35750,0),7)*870) - (INDEX($H$6:$O$35750,MATCH(Y37,$B$6:$B$35750,0),1)*748+INDEX($H$6:$O$35750,MATCH(Y37,$B$6:$B$35750,0),3)*255+INDEX($H$6:$O$35750,MATCH(Y37,$B$6:$B$35750,0),5)*7500+INDEX($H$6:$O$35750,MATCH(Y37,$B$6:$B$35750,0),7)*870)) /1.9835,"") -> -98.47345602 | AD37: 6590 | AE37: 6491.526544 | AF37: 6414.058987 | AH37: 5600 | AI37: 2019-01-29 | AJ37: =IF(Y37<User!$E$26,((INDEX($H$6:$O$35750,MATCH(Y37,$B$6:$B$35750,0),5)))) -> 2454.778627 | AK37: -51.56344845 | AL37: =IF(Y37<User!$E$26,((INDEX($H$6:$O$35750,MATCH(Y37,$B$6:$B$35750,0),1)))) -> 2797.703 | AM37: =IF(Y37<User!$E$26,((INDEX($H$6:$O$35750,MATCH(Y37,$B$6:$B$35750,0),3)))) -> 2653.847 | AN37: =IF(Y37<User!$E$26,((INDEX($H$6:$O$35750,MATCH(Y37,$B$6:$B$35750,0),7)))) -> 2313.504 | AO37: 16.91509957 | AP37: 2454.792853 | AQ37: -34.64834888 | AR37: 2797.703 | AS37: 2653.847 | AT37: 2313.504 | AV37: 16.91509958 | AW37: 1.878142086e-09 | AY37: 2019-01-29 | AZ37: NO | BA37: 3 | BB37: 2.39 | BC37: -81.55835644 | BD37: 6590 | BE37: 6508.441644 | BF37: 6429.309806
A38: 34 | B38: 2018-12-27T08:30:00.288 | C38: 2018-12-27T08:30:00 | D38: =IF(VLOOKUP(C38,LwrSalmonFallsDam!$A$3:$B$35999,1,TRUE)=C38,VLOOKUP(C38,LwrSalmonFallsDam!$A$3:$B$35999,2,TRUE),NA()) -> 2797.856 | E38: =IF(VLOOKUP(C38,BlissDam!$A$3:$B$35999,1,TRUE)=C38,VLOOKUP(C38,BlissDam!$A$3:$B$35999,2,TRUE),NA()) -> 2653.853 | F38: =IF(VLOOKUP(C38,CJStageCalc!$A$3:$E$35999,1,TRUE)=C38,VLOOKUP(C38,CJStageCalc!$A$3:$E$35999,5,TRUE),NA()) -> 2454.871287 | G38: =IF(VLOOKUP(C38,SwanFallsDam!$A$3:$B$35999,1,TRUE)=C38,VLOOKUP(C38,SwanFallsDam!$A$3:$B$35999,2,TRUE),NA()) -> 2313.373 | N38: 2313.332 | V38: 589.512 | X38: 2019-01-30 | Y38: 2019-01-30 | Z38: NO | AA38: =IF(ISNUMBER(AB38),INDEX(SnakeatMilnerLagged!$D$2:$D$370,MATCH(AnnualAADFMonitoring!Y38,SnakeatMilnerLagged!$B$2:$B$370))*-1,"") -> 3 | AB38: =IF(ISNUMBER(MATCH(AnnualAADFMonitoring!Y38,SnakeatMilnerLagged!$B$2:$B$370)),INDEX(SnakeatMilnerLagged!$E$2:$E$370,MATCH(AnnualAADFMonitoring!Y38,SnakeatMilnerLagged!$B$2:$B$370)),"") -> 2.26 | AC38: =IF(Y38<User!$E$26,((INDEX($H$6:$O$35750,MATCH(Y38+1,$B$6:$B$35750,0),1)*748+INDEX($H$6:$O$35750,MATCH(Y38+1,$B$6:$B$35750,0),3)*255+INDEX($H$6:$O$35750,MATCH(Y38+1,$B$6:$B$35750,0),5)*7500+INDEX($H$6:$O$35750,MATCH(Y38+1,$B$6:$B$35750,0),7)*870) - (INDEX($H$6:$O$35750,MATCH(Y38,$B$6:$B$35750,0),1)*748+INDEX($H$6:$O$35750,MATCH(Y38,$B$6:$B$35750,0),3)*255+INDEX($H$6:$O$35750,MATCH(Y38,$B$6:$B$35750,0),5)*7500+INDEX($H$6:$O$35750,MATCH(Y38,$B$6:$B$35750,0),7)*870)) /1.9835,"") -> 233.1524578 | AD38: 6350 | AE38: 6583.152458 | AF38: 6463.982506 | AH38: 5600 | AI38: 2019-01-30 | AJ38: =IF(Y38<User!$E$26,((INDEX($H$6:$O$35750,MATCH(Y38,$B$6:$B$35750,0),5)))) -> 2454.76499 | AK38: 71.71610788 | AL38: =IF(Y38<User!$E$26,((INDEX($H$6:$O$35750,MATCH(Y38,$B$6:$B$35750,0),1)))) -> 2797.681 | AM38: =IF(Y38<User!$E$26,((INDEX($H$6:$O$35750,MATCH(Y38,$B$6:$B$35750,0),3)))) -> 2653.823 | AN38: =IF(Y38<User!$E$26,((INDEX($H$6:$O$35750,MATCH(Y38,$B$6:$B$35750,0),7)))) -> 2313.423 | AO38: -0.5540206732 | AP38: 2454.78369 | AQ38: 71.16208721 | AR38: 2797.681 | AS38: 2653.823 | AT38: 2313.423 | AV38: -0.5540206769 | AW38: -3.756284173e-09 | AY38: 2019-01-30 | AZ38: NO | BA38: 3 | BB38: 2.26 | BC38: 232.5984371 | BD38: 6350 | BE38: 6582.598437 | BF38: 6465.18427
A39: 35 | B39: 2018-12-27T08:44:59.712 | C39: 2018-12-27T08:45:00 | D39: =IF(VLOOKUP(C39,LwrSalmonFallsDam!$A$3:$B$35999,1,TRUE)=C39,VLOOKUP(C39,LwrSalmonFallsDam!$A$3:$B$35999,2,TRUE),NA()) -> 2797.793 | E39: =IF(VLOOKUP(C39,BlissDam!$A$3:$B$35999,1,TRUE)=C39,VLOOKUP(C39,BlissDam!$A$3:$B$35999,2,TRUE),NA()) -> 2653.859 | F39: =IF(VLOOKUP(C39,CJStageCalc!$A$3:$E$35999,1,TRUE)=C39,VLOOKUP(C39,CJStageCalc!$A$3:$E$35999,5,TRUE),NA()) -> 2454.864797 | G39: =IF(VLOOKUP(C39,SwanFallsDam!$A$3:$B$35999,1,TRUE)=C39,VLOOKUP(C39,SwanFallsDam!$A$3:$B$35999,2,TRUE),NA()) -> 2313.352 | N39: 2313.36 | V39: 1179.024 | X39: 2019-01-31 | Y39: 2019-01-31 | Z39: NO | AA39: =IF(ISNUMBER(AB39),INDEX(SnakeatMilnerLagged!$D$2:$D$370,MATCH(AnnualAADFMonitoring!Y39,SnakeatMilnerLagged!$B$2:$B$370))*-1,"") -> 3 | AB39: =IF(ISNUMBER(MATCH(AnnualAADFMonitoring!Y39,SnakeatMilnerLagged!$B$2:$B$370)),INDEX(SnakeatMilnerLagged!$E$2:$E$370,MATCH(AnnualAADFMonitoring!Y39,SnakeatMilnerLagged!$B$2:$B$370)),"") -> 2.15 | AC39: =IF(Y39<User!$E$26,((INDEX($H$6:$O$35750,MATCH(Y39+1,$B$6:$B$35750,0),1)*748+INDEX($H$6:$O$35750,MATCH(Y39+1,$B$6:$B$35750,0),3)*255+INDEX($H$6:$O$35750,MATCH(Y39+1,$B$6:$B$35750,0),5)*7500+INDEX($H$6:$O$35750,MATCH(Y39+1,$B$6:$B$35750,0),7)*870) - (INDEX($H$6:$O$35750,MATCH(Y39,$B$6:$B$35750,0),1)*748+INDEX($H$6:$O$35750,MATCH(Y39,$B$6:$B$35750,0),3)*255+INDEX($H$6:$O$35750,MATCH(Y39,$B$6:$B$35750,0),5)*7500+INDEX($H$6:$O$35750,MATCH(Y39,$B$6:$B$35750,0),7)*870)) /1.9835,"") -> -295.5291152 | AD39: 6440 | AE39: =IF(ISNUMBER(AD39),IF(Z39="YES",AD39-AB39+AC39,AD39+AC39),NA()) -> 6144.470885 | AF39: 6406.383296 | AH39: 5600 | AI39: 2019-01-31 | AJ39: =IF(Y39<User!$E$26,((INDEX($H$6:$O$35750,MATCH(Y39,$B$6:$B$35750,0),5)))) -> 2454.783957 | AK39: -114.5954121 | AL39: =IF(Y39<User!$E$26,((INDEX($H$6:$O$35750,MATCH(Y39,$B$6:$B$35750,0),1)))) -> 2797.784 | AM39: =IF(Y39<User!$E$26,((INDEX($H$6:$O$35750,MATCH(Y39,$B$6:$B$35750,0),3)))) -> 2653.91 | AN39: =IF(Y39<User!$E$26,((INDEX($H$6:$O$35750,MATCH(Y39,$B$6:$B$35750,0),7)))) -> 2313.677 | AO39: -24.95588606 | AP39: 2454.80251 | AQ39: -139.5512982 | AR39: 2797.784 | AS39: 2653.91 | AT39: 2313.677 | AV39: -24.95588606 | AW39: 1.878134981e-09 | AY39: 2019-01-31 | AZ39: NO | BA39: 3 | BB39: 2.15 | BC39: -320.4850013 | BD39: 6440 | BE39: 6119.514999 | BF39: 6403.51836
A40: 36 | B40: 2018-12-27T09:00:00 | C40: 2018-12-27T09:00:00 | D40: =IF(VLOOKUP(C40,LwrSalmonFallsDam!$A$3:$B$35999,1,TRUE)=C40,VLOOKUP(C40,LwrSalmonFallsDam!$A$3:$B$35999,2,TRUE),NA()) -> 2797.811 | E40: =IF(VLOOKUP(C40,BlissDam!$A$3:$B$35999,1,TRUE)=C40,VLOOKUP(C40,BlissDam!$A$3:$B$35999,2,TRUE),NA()) -> 2653.857 | F40: =IF(VLOOKUP(C40,CJStageCalc!$A$3:$E$35999,1,TRUE)=C40,VLOOKUP(C40,CJStageCalc!$A$3:$E$35999,5,TRUE),NA()) -> 2454.859427 | G40: =IF(VLOOKUP(C40,SwanFallsDam!$A$3:$B$35999,1,TRUE)=C40,VLOOKUP(C40,SwanFallsDam!$A$3:$B$35999,2,TRUE),NA()) -> 2313.33 | N40: 2313.378 | V40: 757.944 | X40: 2019-02-01 | Y40: 2019-02-01 | Z40: NO | AA40: =IF(ISNUMBER(AB40),INDEX(SnakeatMilnerLagged!$D$2:$D$370,MATCH(AnnualAADFMonitoring!Y40,SnakeatMilnerLagged!$B$2:$B$370))*-1,"") -> 3 | AB40: =IF(ISNUMBER(MATCH(AnnualAADFMonitoring!Y40,SnakeatMilnerLagged!$B$2:$B$370)),INDEX(SnakeatMilnerLagged!$E$2:$E$370,MATCH(AnnualAADFMonitoring!Y40,SnakeatMilnerLagged!$B$2:$B$370)),"") -> 2.3 | AC40: =IF(Y40<User!$E$26,((INDEX($H$6:$O$35750,MATCH(Y40+1,$B$6:$B$35750,0),1)*748+INDEX($H$6:$O$35750,MATCH(Y40+1,$B$6:$B$35750,0),3)*255+INDEX($H$6:$O$35750,MATCH(Y40+1,$B$6:$B$35750,0),5)*7500+INDEX($H$6:$O$35750,MATCH(Y40+1,$B$6:$B$35750,0),7)*870) - (INDEX($H$6:$O$35750,MATCH(Y40,$B$6:$B$35750,0),1)*748+INDEX($H$6:$O$35750,MATCH(Y40,$B$6:$B$35750,0),3)*255+INDEX($H$6:$O$35750,MATCH(Y40,$B$6:$B$35750,0),5)*7500+INDEX($H$6:$O$35750,MATCH(Y40,$B$6:$B$35750,0),7)*870)) /1.9835,"") -> -203.0879758 | AD40: 6550 | AE40: 6346.912024 | AF40: 6358.178456 | AH40: 5600 | AI40: 2019-02-01 | AJ40: =IF(Y40<User!$E$26,((INDEX($H$6:$O$35750,MATCH(Y40,$B$6:$B$35750,0),5)))) -> 2454.75365 | AK40: -175.5230653 | AL40: =IF(Y40<User!$E$26,((INDEX($H$6:$O$35750,MATCH(Y40,$B$6:$B$35750,0),1)))) -> 2797.585 | AM40: =IF(Y40<User!$E$26,((INDEX($H$6:$O$35750,MATCH(Y40,$B$6:$B$35750,0),3)))) -> 2653.796 | AN40: =IF(Y40<User!$E$26,((INDEX($H$6:$O$35750,MATCH(Y40,$B$6:$B$35750,0),7)))) -> 2313.469 | AO40: 39.09755483 | AP40: 2454.765603 | AQ40: -136.4255105 | AR40: 2797.585 | AS40: 2653.796 | AT40: 2313.469 | AV40: 39.09755483 | AW40: 0 | AY40: 2019-02-01 | AZ40: NO | BA40: 3 | BB40: 2.3 | BC40: -163.990421 | BD40: 6550 | BE40: 6386.009579 | BF40: 6362.707672
A41: 37 | B41: 2018-12-27T09:15:00.288 | C41: 2018-12-27T09:15:00 | D41: =IF(VLOOKUP(C41,LwrSalmonFallsDam!$A$3:$B$35999,1,TRUE)=C41,VLOOKUP(C41,LwrSalmonFallsDam!$A$3:$B$35999,2,TRUE),NA()) -> 2797.771 | E41: =IF(VLOOKUP(C41,BlissDam!$A$3:$B$35999,1,TRUE)=C41,VLOOKUP(C41,BlissDam!$A$3:$B$35999,2,TRUE),NA()) -> 2653.857 | F41: =IF(VLOOKUP(C41,CJStageCalc!$A$3:$E$35999,1,TRUE)=C41,VLOOKUP(C41,CJStageCalc!$A$3:$E$35999,5,TRUE),NA()) -> 2454.858847 | G41: =IF(VLOOKUP(C41,SwanFallsDam!$A$3:$B$35999,1,TRUE)=C41,VLOOKUP(C41,SwanFallsDam!$A$3:$B$35999,2,TRUE),NA()) -> 2313.306 | N41: 2313.397 | V41: 800.052 | X41: 2019-02-02 | Y41: 2019-02-02 | Z41: NO | AA41: =IF(ISNUMBER(AB41),INDEX(SnakeatMilnerLagged!$D$2:$D$370,MATCH(AnnualAADFMonitoring!Y41,SnakeatMilnerLagged!$B$2:$B$370))*-1,"") -> 3 | AB41: =IF(ISNUMBER(MATCH(AnnualAADFMonitoring!Y41,SnakeatMilnerLagged!$B$2:$B$370)),INDEX(SnakeatMilnerLagged!$E$2:$E$370,MATCH(AnnualAADFMonitoring!Y41,SnakeatMilnerLagged!$B$2:$B$370)),"") -> 2.16 | AC41: =IF(Y41<User!$E$26,((INDEX($H$6:$O$35750,MATCH(Y41+1,$B$6:$B$35750,0),1)*748+INDEX($H$6:$O$35750,MATCH(Y41+1,$B$6:$B$35750,0),3)*255+INDEX($H$6:$O$35750,MATCH(Y41+1,$B$6:$B$35750,0),5)*7500+INDEX($H$6:$O$35750,MATCH(Y41+1,$B$6:$B$35750,0),7)*870) - (INDEX($H$6:$O$35750,MATCH(Y41,$B$6:$B$35750,0),1)*748+INDEX($H$6:$O$35750,MATCH(Y41,$B$6:$B$35750,0),3)*255+INDEX($H$6:$O$35750,MATCH(Y41,$B$6:$B$35750,0),5)*7500+INDEX($H$6:$O$35750,MATCH(Y41,$B$6:$B$35750,0),7)*870)) /1.9835,"") -> -56.4955382 | AD41: 6510 | AE41: 6453.504462 | AF41: 6314.962457 | AH41: 5600 | AI41: 2019-02-02 | AJ41: =IF(Y41<User!$E$26,((INDEX($H$6:$O$35750,MATCH(Y41,$B$6:$B$35750,0),5)))) -> 2454.70723 | AK41: -114.2419461 | AL41: =IF(Y41<User!$E$26,((INDEX($H$6:$O$35750,MATCH(Y41,$B$6:$B$35750,0),1)))) -> 2797.585 | AM41: =IF(Y41<User!$E$26,((INDEX($H$6:$O$35750,MATCH(Y41,$B$6:$B$35750,0),3)))) -> 2653.817 | AN41: =IF(Y41<User!$E$26,((INDEX($H$6:$O$35750,MATCH(Y41,$B$6:$B$35750,0),7)))) -> 2313.4 | AO41: -21.07441392 | AP41: 2454.729523 | AQ41: -135.31636 | AR41: 2797.585 | AS41: 2653.817 | AT41: 2313.4 | AV41: -21.07441392 | AW41: 0 | AY41: 2019-02-02 | AZ41: NO | BA41: 3 | BB41: 2.16 | BC41: -77.56995211 | BD41: 6510 | BE41: 6432.430048 | BF41: 6312.651542
A42: 38 | B42: 2018-12-27T09:29:59.712 | C42: 2018-12-27T09:30:00 | D42: =IF(VLOOKUP(C42,LwrSalmonFallsDam!$A$3:$B$35999,1,TRUE)=C42,VLOOKUP(C42,LwrSalmonFallsDam!$A$3:$B$35999,2,TRUE),NA()) -> 2797.836 | E42: =IF(VLOOKUP(C42,BlissDam!$A$3:$B$35999,1,TRUE)=C42,VLOOKUP(C42,BlissDam!$A$3:$B$35999,2,TRUE),NA()) -> 2653.857 | F42: =IF(VLOOKUP(C42,CJStageCalc!$A$3:$E$35999,1,TRUE)=C42,VLOOKUP(C42,CJStageCalc!$A$3:$E$35999,5,TRUE),NA()) -> 2454.85642 | G42: =IF(VLOOKUP(C42,SwanFallsDam!$A$3:$B$35999,1,TRUE)=C42,VLOOKUP(C42,SwanFallsDam!$A$3:$B$35999,2,TRUE),NA()) -> 2313.279 | N42: 2313.397 | V42: 0 | X42: 2019-02-03 | Y42: 2019-02-03 | Z42: NO | AA42: =IF(ISNUMBER(AB42),INDEX(SnakeatMilnerLagged!$D$2:$D$370,MATCH(AnnualAADFMonitoring!Y42,SnakeatMilnerLagged!$B$2:$B$370))*-1,"") -> 3 | AB42: =IF(ISNUMBER(MATCH(AnnualAADFMonitoring!Y42,SnakeatMilnerLagged!$B$2:$B$370)),INDEX(SnakeatMilnerLagged!$E$2:$E$370,MATCH(AnnualAADFMonitoring!Y42,SnakeatMilnerLagged!$B$2:$B$370)),"") -> 2.21 | AC42: =IF(Y42<User!$E$26,((INDEX($H$6:$O$35750,MATCH(Y42+1,$B$6:$B$35750,0),1)*748+INDEX($H$6:$O$35750,MATCH(Y42+1,$B$6:$B$35750,0),3)*255+INDEX($H$6:$O$35750,MATCH(Y42+1,$B$6:$B$35750,0),5)*7500+INDEX($H$6:$O$35750,MATCH(Y42+1,$B$6:$B$35750,0),7)*870) - (INDEX($H$6:$O$35750,MATCH(Y42,$B$6:$B$35750,0),1)*748+INDEX($H$6:$O$35750,MATCH(Y42,$B$6:$B$35750,0),3)*255+INDEX($H$6:$O$35750,MATCH(Y42,$B$6:$B$35750,0),5)*7500+INDEX($H$6:$O$35750,MATCH(Y42,$B$6:$B$35750,0),7)*870)) /1.9835,"") -> -22.96244013 | AD42: 6430 | AE42: 6407.03756 | AF42: 6402.484682 | AH42: 5600 | AI42: 2019-02-03 | AJ42: =IF(Y42<User!$E$26,((INDEX($H$6:$O$35750,MATCH(Y42,$B$6:$B$35750,0),5)))) -> 2454.677017 | AK42: 95.86589363 | AL42: =IF(Y42<User!$E$26,((INDEX($H$6:$O$35750,MATCH(Y42,$B$6:$B$35750,0),1)))) -> 2797.705 | AM42: =IF(Y42<User!$E$26,((INDEX($H$6:$O$35750,MATCH(Y42,$B$6:$B$35750,0),3)))) -> 2653.921 | AN42: =IF(Y42<User!$E$26,((INDEX($H$6:$O$35750,MATCH(Y42,$B$6:$B$35750,0),7)))) -> 2313.398 | AO42: 12.47794303 | AP42: 2454.693737 | AQ42: 108.3438367 | AR42: 2797.705 | AS42: 2653.921 | AT42: 2313.398 | AV42: 12.47794303 | AW42: 0 | AY42: 2019-02-03 | AZ42: NO | BA42: 3 | BB42: 2.21 | BC42: -10.4844971 | BD42: 6430 | BE42: 6419.515503 | BF42: 6412.65171
A43: 39 | B43: 2018-12-27T09:45:00 | C43: 2018-12-27T09:45:00 | D43: =IF(VLOOKUP(C43,LwrSalmonFallsDam!$A$3:$B$35999,1,TRUE)=C43,VLOOKUP(C43,LwrSalmonFallsDam!$A$3:$B$35999,2,TRUE),NA()) -> 2797.797 | E43: =IF(VLOOKUP(C43,BlissDam!$A$3:$B$35999,1,TRUE)=C43,VLOOKUP(C43,BlissDam!$A$3:$B$35999,2,TRUE),NA()) -> 2653.863 | F43: =IF(VLOOKUP(C43,CJStageCalc!$A$3:$E$35999,1,TRUE)=C43,VLOOKUP(C43,CJStageCalc!$A$3:$E$35999,5,TRUE),NA()) -> 2454.84373 | G43: =IF(VLOOKUP(C43,SwanFallsDam!$A$3:$B$35999,1,TRUE)=C43,VLOOKUP(C43,SwanFallsDam!$A$3:$B$35999,2,TRUE),NA()) -> 2313.261 | N43: 2313.414 | V43: 715.836 | X43: 2019-02-04 | Y43: 2019-02-04 | Z43: NO | AA43: =IF(ISNUMBER(AB43),INDEX(SnakeatMilnerLagged!$D$2:$D$370,MATCH(AnnualAADFMonitoring!Y43,SnakeatMilnerLagged!$B$2:$B$370))*-1,"") -> 3 | AB43: =IF(ISNUMBER(MATCH(AnnualAADFMonitoring!Y43,SnakeatMilnerLagged!$B$2:$B$370)),INDEX(SnakeatMilnerLagged!$E$2:$E$370,MATCH(AnnualAADFMonitoring!Y43,SnakeatMilnerLagged!$B$2:$B$370)),"") -> 2.13 | AC43: =IF(Y43<User!$E$26,((INDEX($H$6:$O$35750,MATCH(Y43+1,$B$6:$B$35750,0),1)*748+INDEX($H$6:$O$35750,MATCH(Y43+1,$B$6:$B$35750,0),3)*255+INDEX($H$6:$O$35750,MATCH(Y43+1,$B$6:$B$35750,0),5)*7500+INDEX($H$6:$O$35750,MATCH(Y43+1,$B$6:$B$35750,0),7)*870) - (INDEX($H$6:$O$35750,MATCH(Y43,$B$6:$B$35750,0),1)*748+INDEX($H$6:$O$35750,MATCH(Y43,$B$6:$B$35750,0),3)*255+INDEX($H$6:$O$35750,MATCH(Y43,$B$6:$B$35750,0),5)*7500+INDEX($H$6:$O$35750,MATCH(Y43,$B$6:$B$35750,0),7)*870)) /1.9835,"") -> 575.917822 | AD43: 6060 | AE43: 6635.917822 | AF43: 6498.819948 | AH43: 5600 | AI43: 2019-02-04 | AJ43: =IF(Y43<User!$E$26,((INDEX($H$6:$O$35750,MATCH(Y43,$B$6:$B$35750,0),5)))) -> 2454.70237 | AK43: 442.2485505 | AL43: =IF(Y43<User!$E$26,((INDEX($H$6:$O$35750,MATCH(Y43,$B$6:$B$35750,0),1)))) -> 2797.698 | AM43: =IF(Y43<User!$E$26,((INDEX($H$6:$O$35750,MATCH(Y43,$B$6:$B$35750,0),3)))) -> 2653.819 | AN43: =IF(Y43<User!$E$26,((INDEX($H$6:$O$35750,MATCH(Y43,$B$6:$B$35750,0),7)))) -> 2313.163 | AO43: -4.159314347 | AP43: 2454.72239 | AQ43: 438.0892362 | AR43: 2797.698 | AS43: 2653.819 | AT43: 2313.163 | AV43: -4.159314345 | AW43: 1.878220246e-09 | AY43: 2019-02-04 | AZ43: NO | BA43: 3 | BB43: 2.13 | BC43: 571.7585077 | BD43: 6060 | BE43: 6631.758508 | BF43: 6494.568019
A44: 40 | B44: 2018-12-27T10:00:00.288 | C44: 2018-12-27T10:00:00 | D44: =IF(VLOOKUP(C44,LwrSalmonFallsDam!$A$3:$B$35999,1,TRUE)=C44,VLOOKUP(C44,LwrSalmonFallsDam!$A$3:$B$35999,2,TRUE),NA()) -> 2797.775 | E44: =IF(VLOOKUP(C44,BlissDam!$A$3:$B$35999,1,TRUE)=C44,VLOOKUP(C44,BlissDam!$A$3:$B$35999,2,TRUE),NA()) -> 2653.865 | F44: =IF(VLOOKUP(C44,CJStageCalc!$A$3:$E$35999,1,TRUE)=C44,VLOOKUP(C44,CJStageCalc!$A$3:$E$35999,5,TRUE),NA()) -> 2454.845043 | G44: =IF(VLOOKUP(C44,SwanFallsDam!$A$3:$B$35999,1,TRUE)=C44,VLOOKUP(C44,SwanFallsDam!$A$3:$B$35999,2,TRUE),NA()) -> 2313.244 | N44: 2313.424 | V44: 421.08 | X44: 2019-02-05 | Y44: 2019-02-05 | Z44: NO | AA44: =IF(ISNUMBER(AB44),INDEX(SnakeatMilnerLagged!$D$2:$D$370,MATCH(AnnualAADFMonitoring!Y44,SnakeatMilnerLagged!$B$2:$B$370))*-1,"") -> 3 | AB44: =IF(ISNUMBER(MATCH(AnnualAADFMonitoring!Y44,SnakeatMilnerLagged!$B$2:$B$370)),INDEX(SnakeatMilnerLagged!$E$2:$E$370,MATCH(AnnualAADFMonitoring!Y44,SnakeatMilnerLagged!$B$2:$B$370)),"") -> 2.16 | AC44: =IF(Y44<User!$E$26,((INDEX($H$6:$O$35750,MATCH(Y44+1,$B$6:$B$35750,0),1)*748+INDEX($H$6:$O$35750,MATCH(Y44+1,$B$6:$B$35750,0),3)*255+INDEX($H$6:$O$35750,MATCH(Y44+1,$B$6:$B$35750,0),5)*7500+INDEX($H$6:$O$35750,MATCH(Y44+1,$B$6:$B$35750,0),7)*870) - (INDEX($H$6:$O$35750,MATCH(Y44,$B$6:$B$35750,0),1)*748+INDEX($H$6:$O$35750,MATCH(Y44,$B$6:$B$35750,0),3)*255+INDEX($H$6:$O$35750,MATCH(Y44,$B$6:$B$35750,0),5)*7500+INDEX($H$6:$O$35750,MATCH(Y44,$B$6:$B$35750,0),7)*870)) /1.9835,"") -> 237.8598437 | AD44: 6340 | AE44: 6577.859844 | AF44: 6540.271742 | AH44: 5600 | AI44: 2019-02-05 | AJ44: =IF(Y44<User!$E$26,((INDEX($H$6:$O$35750,MATCH(Y44,$B$6:$B$35750,0),5)))) -> 2454.81933 | AK44: 198.3614822 | AL44: =IF(Y44<User!$E$26,((INDEX($H$6:$O$35750,MATCH(Y44,$B$6:$B$35750,0),1)))) -> 2797.634 | AM44: =IF(Y44<User!$E$26,((INDEX($H$6:$O$35750,MATCH(Y44,$B$6:$B$35750,0),3)))) -> 2653.866 | AN44: =IF(Y44<User!$E$26,((INDEX($H$6:$O$35750,MATCH(Y44,$B$6:$B$35750,0),7)))) -> 2313.509 | AO44: -18.30098311 | AP44: 2454.83825 | AQ44: 180.0604991 | AR44: 2797.634 | AS44: 2653.866 | AT44: 2313.509 | AV44: -18.30098311 | AW44: -1.878163403e-09 | AY44: 2019-02-05 | AZ44: NO | BA44: 3 | BB44: 2.16 | BC44: 219.5588606 | BD44: 6340 | BE44: 6559.558861 | BF44: 6536.94429
A45: 41 | B45: 2018-12-27T10:14:59.712 | C45: 2018-12-27T10:15:00 | D45: =IF(VLOOKUP(C45,LwrSalmonFallsDam!$A$3:$B$35999,1,TRUE)=C45,VLOOKUP(C45,LwrSalmonFallsDam!$A$3:$B$35999,2,TRUE),NA()) -> 2797.798 | E45: =IF(VLOOKUP(C45,BlissDam!$A$3:$B$35999,1,TRUE)=C45,VLOOKUP(C45,BlissDam!$A$3:$B$35999,2,TRUE),NA()) -> 2653.869 | F45: =IF(VLOOKUP(C45,CJStageCalc!$A$3:$E$35999,1,TRUE)=C45,VLOOKUP(C45,CJStageCalc!$A$3:$E$35999,5,TRUE),NA()) -> 2454.84775 | G45: =IF(VLOOKUP(C45,SwanFallsDam!$A$3:$B$35999,1,TRUE)=C45,VLOOKUP(C45,SwanFallsDam!$A$3:$B$35999,2,TRUE),NA()) -> 2313.225 | N45: =IF(ISNUMBER(OFFSET(G45,$N$3,0)),OFFSET(G45,$N$3,0),"") -> 2313.418 | V45: -252.648 | X45: 2019-02-06 | Y45: 2019-02-06 | Z45: NO | AA45: =IF(ISNUMBER(AB45),INDEX(SnakeatMilnerLagged!$D$2:$D$370,MATCH(AnnualAADFMonitoring!Y45,SnakeatMilnerLagged!$B$2:$B$370))*-1,"") -> 3 | AB45: =IF(ISNUMBER(MATCH(AnnualAADFMonitoring!Y45,SnakeatMilnerLagged!$B$2:$B$370)),INDEX(SnakeatMilnerLagged!$E$2:$E$370,MATCH(AnnualAADFMonitoring!Y45,SnakeatMilnerLagged!$B$2:$B$370)),"") -> 2.09 | AC45: =IF(Y45<User!$E$26,((INDEX($H$6:$O$35750,MATCH(Y45+1,$B$6:$B$35750,0),1)*748+INDEX($H$6:$O$35750,MATCH(Y45+1,$B$6:$B$35750,0),3)*255+INDEX($H$6:$O$35750,MATCH(Y45+1,$B$6:$B$35750,0),5)*7500+INDEX($H$6:$O$35750,MATCH(Y45+1,$B$6:$B$35750,0),7)*870) - (INDEX($H$6:$O$35750,MATCH(Y45,$B$6:$B$35750,0),1)*748+INDEX($H$6:$O$35750,MATCH(Y45,$B$6:$B$35750,0),3)*255+INDEX($H$6:$O$35750,MATCH(Y45,$B$6:$B$35750,0),5)*7500+INDEX($H$6:$O$35750,MATCH(Y45,$B$6:$B$35750,0),7)*870)) /1.9835,"") -> -79.52704814 | AD45: 6590 | AE45: 6510.472952 | AF45: 6574.750206 | AH45: 5600 | AI45: 2019-02-06 | AJ45: =IF(Y45<User!$E$26,((INDEX($H$6:$O$35750,MATCH(Y45,$B$6:$B$35750,0),5)))) -> 2454.87179 | AK45: -117.191278 | AL45: =IF(Y45<User!$E$26,((INDEX($H$6:$O$35750,MATCH(Y45,$B$6:$B$35750,0),1)))) -> 2797.709 | AM45: =IF(Y45<User!$E$26,((INDEX($H$6:$O$35750,MATCH(Y45,$B$6:$B$35750,0),3)))) -> 2653.885 | AN45: =IF(Y45<User!$E$26,((INDEX($H$6:$O$35750,MATCH(Y45,$B$6:$B$35750,0),7)))) -> 2313.529 | AO45: -5.26901941 | AP45: 2454.88587 | AQ45: -122.4602974 | AR45: 2797.709 | AS45: 2653.885 | AT45: 2313.529 | AV45: -5.26901941 | AW45: -1.421085472e-14 | AY45: 2019-02-06 | AZ45: NO | BA45: 3 | BB45: 2.09 | BC45: -84.79606755 | BD45: 6590 | BE45: 6505.203932 | BF45: 6565.5071
A46: 42 | B46: 2018-12-27T10:30:00 | C46: 2018-12-27T10:30:00 | D46: =IF(VLOOKUP(C46,LwrSalmonFallsDam!$A$3:$B$35999,1,TRUE)=C46,VLOOKUP(C46,LwrSalmonFallsDam!$A$3:$B$35999,2,TRUE),NA()) -> 2797.818 | E46: =IF(VLOOKUP(C46,BlissDam!$A$3:$B$35999,1,TRUE)=C46,VLOOKUP(C46,BlissDam!$A$3:$B$35999,2,TRUE),NA()) -> 2653.871 | F46: =IF(VLOOKUP(C46,CJStageCalc!$A$3:$E$35999,1,TRUE)=C46,VLOOKUP(C46,CJStageCalc!$A$3:$E$35999,5,TRUE),NA()) -> 2454.835923 | G46: =IF(VLOOKUP(C46,SwanFallsDam!$A$3:$B$35999,1,TRUE)=C46,VLOOKUP(C46,SwanFallsDam!$A$3:$B$35999,2,TRUE),NA()) -> 2313.197 | N46: =IF(ISNUMBER(OFFSET(G46,$N$3,0)),OFFSET(G46,$N$3,0),"") -> 2313.407 | V46: -463.188 | X46: 2019-02-07 | Y46: 2019-02-07 | Z46: NO | AA46: =IF(ISNUMBER(AB46),INDEX(SnakeatMilnerLagged!$D$2:$D$370,MATCH(AnnualAADFMonitoring!Y46,SnakeatMilnerLagged!$B$2:$B$370))*-1,"") -> 3 | AB46: =IF(ISNUMBER(MATCH(AnnualAADFMonitoring!Y46,SnakeatMilnerLagged!$B$2:$B$370)),INDEX(SnakeatMilnerLagged!$E$2:$E$370,MATCH(AnnualAADFMonitoring!Y46,SnakeatMilnerLagged!$B$2:$B$370)),"") -> 2.09 | AC46: =IF(Y46<User!$E$26,((INDEX($H$6:$O$35750,MATCH(Y46+1,$B$6:$B$35750,0),1)*748+INDEX($H$6:$O$35750,MATCH(Y46+1,$B$6:$B$35750,0),3)*255+INDEX($H$6:$O$35750,MATCH(Y46+1,$B$6:$B$35750,0),5)*7500+INDEX($H$6:$O$35750,MATCH(Y46+1,$B$6:$B$35750,0),7)*870) - (INDEX($H$6:$O$35750,MATCH(Y46,$B$6:$B$35750,0),1)*748+INDEX($H$6:$O$35750,MATCH(Y46,$B$6:$B$35750,0),3)*255+INDEX($H$6:$O$35750,MATCH(Y46,$B$6:$B$35750,0),5)*7500+INDEX($H$6:$O$35750,MATCH(Y46,$B$6:$B$35750,0),7)*870)) /1.9835,"") -> -304.2420973 | AD46: 6840 | AE46: 6535.757903 | AF46: 6541.363566 | AH46: 5600 | AI46: 2019-02-07 | AJ46: =IF(Y46<User!$E$26,((INDEX($H$6:$O$35750,MATCH(Y46,$B$6:$B$35750,0),5)))) -> 2454.840797 | AK46: -282.2925132 | AL46: =IF(Y46<User!$E$26,((INDEX($H$6:$O$35750,MATCH(Y46,$B$6:$B$35750,0),1)))) -> 2797.683 | AM46: =IF(Y46<User!$E$26,((INDEX($H$6:$O$35750,MATCH(Y46,$B$6:$B$35750,0),3)))) -> 2653.838 | AN46: =IF(Y46<User!$E$26,((INDEX($H$6:$O$35750,MATCH(Y46,$B$6:$B$35750,0),7)))) -> 2313.651 | AO46: 25.51157046 | AP46: 2454.853483 | AQ46: -256.7809428 | AR46: 2797.683 | AS46: 2653.838 | AT46: 2313.651 | AV46: 25.51157045 | AW46: -1.878106559e-09 | AY46: 2019-02-07 | AZ46: NO | BA46: 3 | BB46: 2.09 | BC46: -278.7305269 | BD46: 6840 | BE46: 6561.269473 | BF46: 6542.010755
A47: 43 | B47: 2018-12-27T10:45:00.288 | C47: 2018-12-27T10:45:00 | D47: =IF(VLOOKUP(C47,LwrSalmonFallsDam!$A$3:$B$35999,1,TRUE)=C47,VLOOKUP(C47,LwrSalmonFallsDam!$A$3:$B$35999,2,TRUE),NA()) -> 2797.804 | E47: =IF(VLOOKUP(C47,BlissDam!$A$3:$B$35999,1,TRUE)=C47,VLOOKUP(C47,BlissDam!$A$3:$B$35999,2,TRUE),NA()) -> 2653.88 | F47: =IF(VLOOKUP(C47,CJStageCalc!$A$3:$E$35999,1,TRUE)=C47,VLOOKUP(C47,CJStageCalc!$A$3:$E$35999,5,TRUE),NA()) -> 2454.838177 | G47: =IF(VLOOKUP(C47,SwanFallsDam!$A$3:$B$35999,1,TRUE)=C47,VLOOKUP(C47,SwanFallsDam!$A$3:$B$35999,2,TRUE),NA()) -> 2313.196 | N47: 2313.405 | V47: -84.216 | X47: 2019-02-08 | Y47: 2019-02-08 | Z47: NO | AA47: =IF(ISNUMBER(AB47),INDEX(SnakeatMilnerLagged!$D$2:$D$370,MATCH(AnnualAADFMonitoring!Y47,SnakeatMilnerLagged!$B$2:$B$370))*-1,"") -> 3 | AB47: =IF(ISNUMBER(MATCH(AnnualAADFMonitoring!Y47,SnakeatMilnerLagged!$B$2:$B$370)),INDEX(SnakeatMilnerLagged!$E$2:$E$370,MATCH(AnnualAADFMonitoring!Y47,SnakeatMilnerLagged!$B$2:$B$370)),"") -> 2.07 | AC47: =IF(Y47<User!$E$26,((INDEX($H$6:$O$35750,MATCH(Y47+1,$B$6:$B$35750,0),1)*748+INDEX($H$6:$O$35750,MATCH(Y47+1,$B$6:$B$35750,0),3)*255+INDEX($H$6:$O$35750,MATCH(Y47+1,$B$6:$B$35750,0),5)*7500+INDEX($H$6:$O$35750,MATCH(Y47+1,$B$6:$B$35750,0),7)*870) - (INDEX($H$6:$O$35750,MATCH(Y47,$B$6:$B$35750,0),1)*748+INDEX($H$6:$O$35750,MATCH(Y47,$B$6:$B$35750,0),3)*255+INDEX($H$6:$O$35750,MATCH(Y47,$B$6:$B$35750,0),5)*7500+INDEX($H$6:$O$35750,MATCH(Y47,$B$6:$B$35750,0),7)*870)) /1.9835,"") -> 29.87143937 | AD47: 6560 | AE47: 6589.871439 | AF47: 6545.367431 | AH47: 5600 | AI47: 2019-02-08 | AJ47: =IF(Y47<User!$E$26,((INDEX($H$6:$O$35750,MATCH(Y47,$B$6:$B$35750,0),5)))) -> 2454.76614 | AK47: 10.77640534 | AL47: =IF(Y47<User!$E$26,((INDEX($H$6:$O$35750,MATCH(Y47,$B$6:$B$35750,0),1)))) -> 2797.619 | AM47: =IF(Y47<User!$E$26,((INDEX($H$6:$O$35750,MATCH(Y47,$B$6:$B$35750,0),3)))) -> 2653.739 | AN47: =IF(Y47<User!$E$26,((INDEX($H$6:$O$35750,MATCH(Y47,$B$6:$B$35750,0),7)))) -> 2313.685 | AO47: -2.495588606 | AP47: 2454.785573 | AQ47: 8.280816738 | AR47: 2797.619 | AS47: 2653.739 | AT47: 2313.685 | AV47: -2.495588604 | AW47: 1.87814031e-09 | AY47: 2019-02-08 | AZ47: NO | BA47: 3 | BB47: 2.07 | BC47: 27.37585077 | BD47: 6560 | BE47: 6587.375851 | BF47: 6551.283085
A48: 44 | B48: 2018-12-27T10:59:59.712 | C48: 2018-12-27T11:00:00 | D48: =IF(VLOOKUP(C48,LwrSalmonFallsDam!$A$3:$B$35999,1,TRUE)=C48,VLOOKUP(C48,LwrSalmonFallsDam!$A$3:$B$35999,2,TRUE),NA()) -> 2797.775 | E48: =IF(VLOOKUP(C48,BlissDam!$A$3:$B$35999,1,TRUE)=C48,VLOOKUP(C48,BlissDam!$A$3:$B$35999,2,TRUE),NA()) -> 2653.872 | F48: =IF(VLOOKUP(C48,CJStageCalc!$A$3:$E$35999,1,TRUE)=C48,VLOOKUP(C48,CJStageCalc!$A$3:$E$35999,5,TRUE),NA()) -> 2454.82251 | G48: =IF(VLOOKUP(C48,SwanFallsDam!$A$3:$B$35999,1,TRUE)=C48,VLOOKUP(C48,SwanFallsDam!$A$3:$B$35999,2,TRUE),NA()) -> 2313.178 | L48: 2454.88981 | N48: 2313.393 | V48: -505.296 | X48: 2019-02-09 | Y48: 2019-02-09 | Z48: NO | AA48: =IF(ISNUMBER(AB48),INDEX(SnakeatMilnerLagged!$D$2:$D$370,MATCH(AnnualAADFMonitoring!Y48,SnakeatMilnerLagged!$B$2:$B$370))*-1,"") -> 3 | AB48: =IF(ISNUMBER(MATCH(AnnualAADFMonitoring!Y48,SnakeatMilnerLagged!$B$2:$B$370)),INDEX(SnakeatMilnerLagged!$E$2:$E$370,MATCH(AnnualAADFMonitoring!Y48,SnakeatMilnerLagged!$B$2:$B$370)),"") -> 2.03 | AC48: =IF(Y48<User!$E$26,((INDEX($H$6:$O$35750,MATCH(Y48+1,$B$6:$B$35750,0),1)*748+INDEX($H$6:$O$35750,MATCH(Y48+1,$B$6:$B$35750,0),3)*255+INDEX($H$6:$O$35750,MATCH(Y48+1,$B$6:$B$35750,0),5)*7500+INDEX($H$6:$O$35750,MATCH(Y48+1,$B$6:$B$35750,0),7)*870) - (INDEX($H$6:$O$35750,MATCH(Y48,$B$6:$B$35750,0),1)*748+INDEX($H$6:$O$35750,MATCH(Y48,$B$6:$B$35750,0),3)*255+INDEX($H$6:$O$35750,MATCH(Y48,$B$6:$B$35750,0),5)*7500+INDEX($H$6:$O$35750,MATCH(Y48,$B$6:$B$35750,0),7)*870)) /1.9835,"") -> 109.7514494 | AD48: 6130 | AE48: 6239.751449 | AF48: 6455.126931 | AH48: 5600 | AI48: 2019-02-09 | AJ48: =IF(Y48<User!$E$26,((INDEX($H$6:$O$35750,MATCH(Y48,$B$6:$B$35750,0),5)))) -> 2454.76899 | AK48: 78.90093269 | AL48: =IF(Y48<User!$E$26,((INDEX($H$6:$O$35750,MATCH(Y48,$B$6:$B$35750,0),1)))) -> 2797.739 | AM48: =IF(Y48<User!$E$26,((INDEX($H$6:$O$35750,MATCH(Y48,$B$6:$B$35750,0),3)))) -> 2653.846 | AN48: =IF(Y48<User!$E$26,((INDEX($H$6:$O$35750,MATCH(Y48,$B$6:$B$35750,0),7)))) -> 2313.594 | AO48: 7.486765815 | AP48: 2454.787763 | AQ48: 86.3876985 | AR48: 2797.739 | AS48: 2653.846 | AT48: 2313.594 | AV48: 7.486765815 | AW48: 0 | AY48: 2019-02-09 | AZ48: NO | BA48: 3 | BB48: 2.03 | BC48: 117.2382153 | BD48: 6130 | BE48: 6247.238215 | BF48: 6465.294513
A49: 45 | B49: 2018-12-27T11:15:00 | C49: 2018-12-27T11:15:00 | D49: =IF(VLOOKUP(C49,LwrSalmonFallsDam!$A$3:$B$35999,1,TRUE)=C49,VLOOKUP(C49,LwrSalmonFallsDam!$A$3:$B$35999,2,TRUE),NA()) -> 2797.81 | E49: =IF(VLOOKUP(C49,BlissDam!$A$3:$B$35999,1,TRUE)=C49,VLOOKUP(C49,BlissDam!$A$3:$B$35999,2,TRUE),NA()) -> 2653.872 | F49: =IF(VLOOKUP(C49,CJStageCalc!$A$3:$E$35999,1,TRUE)=C49,VLOOKUP(C49,CJStageCalc!$A$3:$E$35999,5,TRUE),NA()) -> 2454.823357 | G49: =IF(VLOOKUP(C49,SwanFallsDam!$A$3:$B$35999,1,TRUE)=C49,VLOOKUP(C49,SwanFallsDam!$A$3:$B$35999,2,TRUE),NA()) -> 2313.17 | L49: 2454.88338 | N49: 2313.378 | T49: -2334.036761 | V49: -631.62 | X49: 2019-02-10 | Y49: 2019-02-10 | Z49: NO | AA49: =IF(ISNUMBER(AB49),INDEX(SnakeatMilnerLagged!$D$2:$D$370,MATCH(AnnualAADFMonitoring!Y49,SnakeatMilnerLagged!$B$2:$B$370))*-1,"") -> 3 | AB49: =IF(ISNUMBER(MATCH(AnnualAADFMonitoring!Y49,SnakeatMilnerLagged!$B$2:$B$370)),INDEX(SnakeatMilnerLagged!$E$2:$E$370,MATCH(AnnualAADFMonitoring!Y49,SnakeatMilnerLagged!$B$2:$B$370)),"") -> 2.16 | AC49: =IF(Y49<User!$E$26,((INDEX($H$6:$O$35750,MATCH(Y49+1,$B$6:$B$35750,0),1)*748+INDEX($H$6:$O$35750,MATCH(Y49+1,$B$6:$B$35750,0),3)*255+INDEX($H$6:$O$35750,MATCH(Y49+1,$B$6:$B$35750,0),5)*7500+INDEX($H$6:$O$35750,MATCH(Y49+1,$B$6:$B$35750,0),7)*870) - (INDEX($H$6:$O$35750,MATCH(Y49,$B$6:$B$35750,0),1)*748+INDEX($H$6:$O$35750,MATCH(Y49,$B$6:$B$35750,0),3)*255+INDEX($H$6:$O$35750,MATCH(Y49,$B$6:$B$35750,0),5)*7500+INDEX($H$6:$O$35750,MATCH(Y49,$B$6:$B$35750,0),7)*870)) /1.9835,"") -> -75.32840937 | AD49: 6150 | AE49: 6074.671591 | AF49: 6301.431493 | AH49: 5600 | AI49: 2019-02-10 | AJ49: =IF(Y49<User!$E$26,((INDEX($H$6:$O$35750,MATCH(Y49,$B$6:$B$35750,0),5)))) -> 2454.789857 | AK49: 30.35094531 | AL49: =IF(Y49<User!$E$26,((INDEX($H$6:$O$35750,MATCH(Y49,$B$6:$B$35750,0),1)))) -> 2797.773 | AM49: =IF(Y49<User!$E$26,((INDEX($H$6:$O$35750,MATCH(Y49,$B$6:$B$35750,0),3)))) -> 2653.918 | AN49: =IF(Y49<User!$E$26,((INDEX($H$6:$O$35750,MATCH(Y49,$B$6:$B$35750,0),7)))) -> 2313.614 | AO49: -16.91509957 | AP49: 2454.81061 | AQ49: 13.43584574 | AR49: 2797.773 | AS49: 2653.918 | AT49: 2313.614 | AV49: -16.91509957 | AW49: 0 | AY49: 2019-02-10 | AZ49: NO | BA49: 3 | BB49: 2.16 | BC49: -92.24350894 | BD49: 6150 | BE49: 6057.756491 | BF49: 6297.456852
A50: 46 | B50: 2018-12-27T11:30:00.288 | C50: 2018-12-27T11:30:00 | D50: =IF(VLOOKUP(C50,LwrSalmonFallsDam!$A$3:$B$35999,1,TRUE)=C50,VLOOKUP(C50,LwrSalmonFallsDam!$A$3:$B$35999,2,TRUE),NA()) -> 2797.809 | E50: =IF(VLOOKUP(C50,BlissDam!$A$3:$B$35999,1,TRUE)=C50,VLOOKUP(C50,BlissDam!$A$3:$B$35999,2,TRUE),NA()) -> 2653.877 | F50: =IF(VLOOKUP(C50,CJStageCalc!$A$3:$E$35999,1,TRUE)=C50,VLOOKUP(C50,CJStageCalc!$A$3:$E$35999,5,TRUE),NA()) -> 2454.81936 | G50: =IF(VLOOKUP(C50,SwanFallsDam!$A$3:$B$35999,1,TRUE)=C50,VLOOKUP(C50,SwanFallsDam!$A$3:$B$35999,2,TRUE),NA()) -> 2313.165 | L50: 2454.87966 | N50: 2313.373 | T50: -1350.413239 | V50: -210.54 | X50: 2019-02-11 | Y50: 2019-02-11 | Z50: NO | AA50: =IF(ISNUMBER(AB50),INDEX(SnakeatMilnerLagged!$D$2:$D$370,MATCH(AnnualAADFMonitoring!Y50,SnakeatMilnerLagged!$B$2:$B$370))*-1,"") -> 3 | AB50: =IF(ISNUMBER(MATCH(AnnualAADFMonitoring!Y50,SnakeatMilnerLagged!$B$2:$B$370)),INDEX(SnakeatMilnerLagged!$E$2:$E$370,MATCH(AnnualAADFMonitoring!Y50,SnakeatMilnerLagged!$B$2:$B$370)),"") -> 2.34 | AC50: =IF(Y50<User!$E$26,((INDEX($H$6:$O$35750,MATCH(Y50+1,$B$6:$B$35750,0),1)*748+INDEX($H$6:$O$35750,MATCH(Y50+1,$B$6:$B$35750,0),3)*255+INDEX($H$6:$O$35750,MATCH(Y50+1,$B$6:$B$35750,0),5)*7500+INDEX($H$6:$O$35750,MATCH(Y50+1,$B$6:$B$35750,0),7)*870) - (INDEX($H$6:$O$35750,MATCH(Y50,$B$6:$B$35750,0),1)*748+INDEX($H$6:$O$35750,MATCH(Y50,$B$6:$B$35750,0),3)*255+INDEX($H$6:$O$35750,MATCH(Y50,$B$6:$B$35750,0),5)*7500+INDEX($H$6:$O$35750,MATCH(Y50,$B$6:$B$35750,0),7)*870)) /1.9835,"") -> 396.8202672 | AD50: 5960 | AE50: 6356.820267 | AF50: 6223.747769 | AH50: 5600 | AI50: 2019-02-11 | AJ50: =IF(Y50<User!$E$26,((INDEX($H$6:$O$35750,MATCH(Y50,$B$6:$B$35750,0),5)))) -> 2454.797883 | AK50: 313.9021931 | AL50: =IF(Y50<User!$E$26,((INDEX($H$6:$O$35750,MATCH(Y50,$B$6:$B$35750,0),1)))) -> 2797.858 | AM50: =IF(Y50<User!$E$26,((INDEX($H$6:$O$35750,MATCH(Y50,$B$6:$B$35750,0),3)))) -> 2653.877 | AN50: =IF(Y50<User!$E$26,((INDEX($H$6:$O$35750,MATCH(Y50,$B$6:$B$35750,0),7)))) -> 2313.312 | AO50: -33.27451475 | AP50: 2454.814163 | AQ50: 280.6276783 | AR50: 2797.858 | AS50: 2653.877 | AT50: 2313.312 | AV50: -33.27451475 | AW50: 0 | AY50: 2019-02-11 | AZ50: NO | BA50: 3 | BB50: 2.34 | BC50: 363.5457525 | BD50: 5960 | BE50: 6323.545752 | BF50: 6209.513486
A51: 47 | B51: 2018-12-27T11:44:59.712 | C51: 2018-12-27T11:45:00 | D51: =IF(VLOOKUP(C51,LwrSalmonFallsDam!$A$3:$B$35999,1,TRUE)=C51,VLOOKUP(C51,LwrSalmonFallsDam!$A$3:$B$35999,2,TRUE),NA()) -> 2797.783 | E51: =IF(VLOOKUP(C51,BlissDam!$A$3:$B$35999,1,TRUE)=C51,VLOOKUP(C51,BlissDam!$A$3:$B$35999,2,TRUE),NA()) -> 2653.879 | F51: =IF(VLOOKUP(C51,CJStageCalc!$A$3:$E$35999,1,TRUE)=C51,VLOOKUP(C51,CJStageCalc!$A$3:$E$35999,5,TRUE),NA()) -> 2454.808193 | G51: =IF(VLOOKUP(C51,SwanFallsDam!$A$3:$B$35999,1,TRUE)=C51,VLOOKUP(C51,SwanFallsDam!$A$3:$B$35999,2,TRUE),NA()) -> 2313.163 | L51: 2454.87992 | N51: 2313.352 | T51: 94.37999993 | V51: -884.268 | X51: 2019-02-12 | Y51: 2019-02-12 | Z51: NO | AA51: =IF(ISNUMBER(AB51),INDEX(SnakeatMilnerLagged!$D$2:$D$370,MATCH(AnnualAADFMonitoring!Y51,SnakeatMilnerLagged!$B$2:$B$370))*-1,"") -> 3 | AB51: =IF(ISNUMBER(MATCH(AnnualAADFMonitoring!Y51,SnakeatMilnerLagged!$B$2:$B$370)),INDEX(SnakeatMilnerLagged!$E$2:$E$370,MATCH(AnnualAADFMonitoring!Y51,SnakeatMilnerLagged!$B$2:$B$370)),"") -> 2.27 | AC51: =IF(Y51<User!$E$26,((INDEX($H$6:$O$35750,MATCH(Y51+1,$B$6:$B$35750,0),1)*748+INDEX($H$6:$O$35750,MATCH(Y51+1,$B$6:$B$35750,0),3)*255+INDEX($H$6:$O$35750,MATCH(Y51+1,$B$6:$B$35750,0),5)*7500+INDEX($H$6:$O$35750,MATCH(Y51+1,$B$6:$B$35750,0),7)*870) - (INDEX($H$6:$O$35750,MATCH(Y51,$B$6:$B$35750,0),1)*748+INDEX($H$6:$O$35750,MATCH(Y51,$B$6:$B$35750,0),3)*255+INDEX($H$6:$O$35750,MATCH(Y51,$B$6:$B$35750,0),5)*7500+INDEX($H$6:$O$35750,MATCH(Y51,$B$6:$B$35750,0),7)*870)) /1.9835,"") -> -556.1189312 | AD51: 6920 | AE51: 6363.881069 | AF51: 6265.124309 | AH51: 5600 | AI51: 2019-02-12 | AJ51: =IF(Y51<User!$E$26,((INDEX($H$6:$O$35750,MATCH(Y51,$B$6:$B$35750,0),5)))) -> 2454.8809 | AK51: -366.0821276 | AL51: =IF(Y51<User!$E$26,((INDEX($H$6:$O$35750,MATCH(Y51,$B$6:$B$35750,0),1)))) -> 2797.779 | AM51: =IF(Y51<User!$E$26,((INDEX($H$6:$O$35750,MATCH(Y51,$B$6:$B$35750,0),3)))) -> 2653.853 | AN51: =IF(Y51<User!$E$26,((INDEX($H$6:$O$35750,MATCH(Y51,$B$6:$B$35750,0),7)))) -> 2313.576 | AO51: 40.48343837 | AP51: 2454.88838 | AQ51: -325.5986892 | AR51: 2797.779 | AS51: 2653.853 | AT51: 2313.576 | AV51: 40.48343837 | AW51: 0 | AY51: 2019-02-12 | AZ51: NO | BA51: 3 | BB51: 2.27 | BC51: -515.6354928 | BD51: 6920 | BE51: 6404.364507 | BF51: 6261.888917
A52: 48 | B52: 2018-12-27T12:00:00 | C52: 2018-12-27T12:00:00 | D52: =IF(VLOOKUP(C52,LwrSalmonFallsDam!$A$3:$B$35999,1,TRUE)=C52,VLOOKUP(C52,LwrSalmonFallsDam!$A$3:$B$35999,2,TRUE),NA()) -> 2797.757 | E52: =IF(VLOOKUP(C52,BlissDam!$A$3:$B$35999,1,TRUE)=C52,VLOOKUP(C52,BlissDam!$A$3:$B$35999,2,TRUE),NA()) -> 2653.885 | F52: =IF(VLOOKUP(C52,CJStageCalc!$A$3:$E$35999,1,TRUE)=C52,VLOOKUP(C52,CJStageCalc!$A$3:$E$35999,5,TRUE),NA()) -> 2454.799737 | G52: =IF(VLOOKUP(C52,SwanFallsDam!$A$3:$B$35999,1,TRUE)=C52,VLOOKUP(C52,SwanFallsDam!$A$3:$B$35999,2,TRUE),NA()) -> 2313.159 | L52: 2454.87771 | N52: 2313.33 | T52: -802.2300005 | V52: -926.376 | X52: 2019-02-13 | Y52: 2019-02-13 | Z52: NO | AA52: =IF(ISNUMBER(AB52),INDEX(SnakeatMilnerLagged!$D$2:$D$370,MATCH(AnnualAADFMonitoring!Y52,SnakeatMilnerLagged!$B$2:$B$370))*-1,"") -> 3 | AB52: =IF(ISNUMBER(MATCH(AnnualAADFMonitoring!Y52,SnakeatMilnerLagged!$B$2:$B$370)),INDEX(SnakeatMilnerLagged!$E$2:$E$370,MATCH(AnnualAADFMonitoring!Y52,SnakeatMilnerLagged!$B$2:$B$370)),"") -> 2.28 | AC52: =IF(Y52<User!$E$26,((INDEX($H$6:$O$35750,MATCH(Y52+1,$B$6:$B$35750,0),1)*748+INDEX($H$6:$O$35750,MATCH(Y52+1,$B$6:$B$35750,0),3)*255+INDEX($H$6:$O$35750,MATCH(Y52+1,$B$6:$B$35750,0),5)*7500+INDEX($H$6:$O$35750,MATCH(Y52+1,$B$6:$B$35750,0),7)*870) - (INDEX($H$6:$O$35750,MATCH(Y52,$B$6:$B$35750,0),1)*748+INDEX($H$6:$O$35750,MATCH(Y52,$B$6:$B$35750,0),3)*255+INDEX($H$6:$O$35750,MATCH(Y52,$B$6:$B$35750,0),5)*7500+INDEX($H$6:$O$35750,MATCH(Y52,$B$6:$B$35750,0),7)*870)) /1.9835,"") -> 303.7423746 | AD52: 6080 | AE52: 6383.742375 | AF52: 6368.147904 | AH52: 5600 | AI52: 2019-02-13 | AJ52: =IF(Y52<User!$E$26,((INDEX($H$6:$O$35750,MATCH(Y52,$B$6:$B$35750,0),5)))) -> 2454.784083 | AK52: 154.0710865 | AL52: =IF(Y52<User!$E$26,((INDEX($H$6:$O$35750,MATCH(Y52,$B$6:$B$35750,0),1)))) -> 2797.653 | AM52: =IF(Y52<User!$E$26,((INDEX($H$6:$O$35750,MATCH(Y52,$B$6:$B$35750,0),3)))) -> 2653.785 | AN52: =IF(Y52<User!$E$26,((INDEX($H$6:$O$35750,MATCH(Y52,$B$6:$B$35750,0),7)))) -> 2313.271 | AO52: -17.46912024 | AP52: 2454.80227 | AQ52: 136.6019662 | AR52: 2797.653 | AS52: 2653.785 | AT52: 2313.271 | AV52: -17.46912024 | AW52: 5.684341886e-14 | AY52: 2019-02-13 | AZ52: NO | BA52: 3 | BB52: 2.28 | BC52: 286.2732543 | BD52: 6080 | BE52: 6366.273254 | BF52: 6364.727838
A53: 49 | B53: 2018-12-27T12:15:00.288 | C53: 2018-12-27T12:15:00 | D53: =IF(VLOOKUP(C53,LwrSalmonFallsDam!$A$3:$B$35999,1,TRUE)=C53,VLOOKUP(C53,LwrSalmonFallsDam!$A$3:$B$35999,2,TRUE),NA()) -> 2797.769 | E53: =IF(VLOOKUP(C53,BlissDam!$A$3:$B$35999,1,TRUE)=C53,VLOOKUP(C53,BlissDam!$A$3:$B$35999,2,TRUE),NA()) -> 2653.89 | F53: =IF(VLOOKUP(C53,CJStageCalc!$A$3:$E$35999,1,TRUE)=C53,VLOOKUP(C53,CJStageCalc!$A$3:$E$35999,5,TRUE),NA()) -> 2454.80278 | G53: =IF(VLOOKUP(C53,SwanFallsDam!$A$3:$B$35999,1,TRUE)=C53,VLOOKUP(C53,SwanFallsDam!$A$3:$B$35999,2,TRUE),NA()) -> 2313.167 | L53: =IF(ISNUMBER(OFFSET(F53,$L$3,0)),OFFSET(F53,$L$3,0),"") -> 2454.886077 | N53: 2313.306 | T53: 3037.04676 | V53: -1010.592 | X53: 2019-02-14 | Y53: 2019-02-14 | Z53: NO | AA53: =IF(ISNUMBER(AB53),INDEX(SnakeatMilnerLagged!$D$2:$D$370,MATCH(AnnualAADFMonitoring!Y53,SnakeatMilnerLagged!$B$2:$B$370))*-1,"") -> 3 | AB53: =IF(ISNUMBER(MATCH(AnnualAADFMonitoring!Y53,SnakeatMilnerLagged!$B$2:$B$370)),INDEX(SnakeatMilnerLagged!$E$2:$E$370,MATCH(AnnualAADFMonitoring!Y53,SnakeatMilnerLagged!$B$2:$B$370)),"") -> 2.13 | AC53: =IF(Y53<User!$E$26,((INDEX($H$6:$O$35750,MATCH(Y53+1,$B$6:$B$35750,0),1)*748+INDEX($H$6:$O$35750,MATCH(Y53+1,$B$6:$B$35750,0),3)*255+INDEX($H$6:$O$35750,MATCH(Y53+1,$B$6:$B$35750,0),5)*7500+INDEX($H$6:$O$35750,MATCH(Y53+1,$B$6:$B$35750,0),7)*870) - (INDEX($H$6:$O$35750,MATCH(Y53,$B$6:$B$35750,0),1)*748+INDEX($H$6:$O$35750,MATCH(Y53,$B$6:$B$35750,0),3)*255+INDEX($H$6:$O$35750,MATCH(Y53,$B$6:$B$35750,0),5)*7500+INDEX($H$6:$O$35750,MATCH(Y53,$B$6:$B$35750,0),7)*870)) /1.9835,"") -> 224.0246534 | AD53: 6440 | AE53: 6664.024653 | AF53: 6470.549366 | AH53: 5600 | AI53: 2019-02-14 | AJ53: =IF(Y53<User!$E$26,((INDEX($H$6:$O$35750,MATCH(Y53,$B$6:$B$35750,0),5)))) -> 2454.82483 | AK53: 178.6104865 | AL53: =IF(Y53<User!$E$26,((INDEX($H$6:$O$35750,MATCH(Y53,$B$6:$B$35750,0),1)))) -> 2797.784 | AM53: =IF(Y53<User!$E$26,((INDEX($H$6:$O$35750,MATCH(Y53,$B$6:$B$35750,0),3)))) -> 2653.828 | AN53: =IF(Y53<User!$E$26,((INDEX($H$6:$O$35750,MATCH(Y53,$B$6:$B$35750,0),7)))) -> 2313.487 | AO53: 59.34010587 | AP53: 2454.838397 | AQ53: 237.9505924 | AR53: 2797.784 | AS53: 2653.828 | AT53: 2313.487 | AV53: 59.34010587 | AW53: 0 | AY53: 2019-02-14 | AZ53: NO | BA53: 3 | BB53: 2.13 | BC53: 283.3647593 | BD53: 6440 | BE53: 6723.364759 | BF53: 6498.00084
A54: 50 | B54: 2018-12-27T12:29:59.712 | C54: 2018-12-27T12:30:00 | D54: =IF(VLOOKUP(C54,LwrSalmonFallsDam!$A$3:$B$35999,1,TRUE)=C54,VLOOKUP(C54,LwrSalmonFallsDam!$A$3:$B$35999,2,TRUE),NA()) -> 2797.783 | E54: =IF(VLOOKUP(C54,BlissDam!$A$3:$B$35999,1,TRUE)=C54,VLOOKUP(C54,BlissDam!$A$3:$B$35999,2,TRUE),NA()) -> 2653.895 | F54: =IF(VLOOKUP(C54,CJStageCalc!$A$3:$E$35999,1,TRUE)=C54,VLOOKUP(C54,CJStageCalc!$A$3:$E$35999,5,TRUE),NA()) -> 2454.80877 | G54: =IF(VLOOKUP(C54,SwanFallsDam!$A$3:$B$35999,1,TRUE)=C54,VLOOKUP(C54,SwanFallsDam!$A$3:$B$35999,2,TRUE),NA()) -> 2313.166 | L54: =IF(ISNUMBER(OFFSET(F54,$L$3,0)),OFFSET(F54,$L$3,0),"") -> 2454.89315 | N54: 2313.279 | T54: 2567.67324 | V54: -1136.916 | X54: 2019-02-15 | Y54: 2019-02-15 | Z54: NO | AA54: =IF(ISNUMBER(AB54),INDEX(SnakeatMilnerLagged!$D$2:$D$370,MATCH(AnnualAADFMonitoring!Y54,SnakeatMilnerLagged!$B$2:$B$370))*-1,"") -> 3 | AB54: =IF(ISNUMBER(MATCH(AnnualAADFMonitoring!Y54,SnakeatMilnerLagged!$B$2:$B$370)),INDEX(SnakeatMilnerLagged!$E$2:$E$370,MATCH(AnnualAADFMonitoring!Y54,SnakeatMilnerLagged!$B$2:$B$370)),"") -> 2.21 | AC54: =IF(Y54<User!$E$26,((INDEX($H$6:$O$35750,MATCH(Y54+1,$B$6:$B$35750,0),1)*748+INDEX($H$6:$O$35750,MATCH(Y54+1,$B$6:$B$35750,0),3)*255+INDEX($H$6:$O$35750,MATCH(Y54+1,$B$6:$B$35750,0),5)*7500+INDEX($H$6:$O$35750,MATCH(Y54+1,$B$6:$B$35750,0),7)*870) - (INDEX($H$6:$O$35750,MATCH(Y54,$B$6:$B$35750,0),1)*748+INDEX($H$6:$O$35750,MATCH(Y54,$B$6:$B$35750,0),3)*255+INDEX($H$6:$O$35750,MATCH(Y54,$B$6:$B$35750,0),5)*7500+INDEX($H$6:$O$35750,MATCH(Y54,$B$6:$B$35750,0),7)*870)) /1.9835,"") -> 53.87401059 | AD54: 6770 | AE54: 6823.874011 | AF54: 6623.880346 | AH54: 5600 | AI54: 2019-02-15 | AJ54: =IF(Y54<User!$E$26,((INDEX($H$6:$O$35750,MATCH(Y54,$B$6:$B$35750,0),5)))) -> 2454.872067 | AK54: 134.5606756 | AL54: =IF(Y54<User!$E$26,((INDEX($H$6:$O$35750,MATCH(Y54,$B$6:$B$35750,0),1)))) -> 2797.902 | AM54: =IF(Y54<User!$E$26,((INDEX($H$6:$O$35750,MATCH(Y54,$B$6:$B$35750,0),3)))) -> 2653.859 | AN54: =IF(Y54<User!$E$26,((INDEX($H$6:$O$35750,MATCH(Y54,$B$6:$B$35750,0),7)))) -> 2313.48 | AO54: -63.49942022 | AP54: 2454.901327 | AQ54: 71.06125536 | AR54: 2797.902 | AS54: 2653.859 | AT54: 2313.48 | AV54: -63.49942022 | AW54: 0 | AY54: 2019-02-15 | AZ54: NO | BA54: 3 | BB54: 2.21 | BC54: -9.625409626 | BD54: 6770 | BE54: 6760.37459 | BF54: 6616.670868
A55: 51 | B55: 2018-12-27T12:45:00 | C55: 2018-12-27T12:45:00 | D55: =IF(VLOOKUP(C55,LwrSalmonFallsDam!$A$3:$B$35999,1,TRUE)=C55,VLOOKUP(C55,LwrSalmonFallsDam!$A$3:$B$35999,2,TRUE),NA()) -> 2797.787 | E55: =IF(VLOOKUP(C55,BlissDam!$A$3:$B$35999,1,TRUE)=C55,VLOOKUP(C55,BlissDam!$A$3:$B$35999,2,TRUE),NA()) -> 2653.893 | F55: =IF(VLOOKUP(C55,CJStageCalc!$A$3:$E$35999,1,TRUE)=C55,VLOOKUP(C55,CJStageCalc!$A$3:$E$35999,5,TRUE),NA()) -> 2454.8018 | G55: =IF(VLOOKUP(C55,SwanFallsDam!$A$3:$B$35999,1,TRUE)=C55,VLOOKUP(C55,SwanFallsDam!$A$3:$B$35999,2,TRUE),NA()) -> 2313.164 | L55: 2454.90089 | N55: 2313.261 | T55: 2809.620001 | V55: -757.944 | X55: 2019-02-16 | Y55: 2019-02-16 | Z55: NO | AA55: =IF(ISNUMBER(AB55),INDEX(SnakeatMilnerLagged!$D$2:$D$370,MATCH(AnnualAADFMonitoring!Y55,SnakeatMilnerLagged!$B$2:$B$370))*-1,"") -> 3 | AB55: =IF(ISNUMBER(MATCH(AnnualAADFMonitoring!Y55,SnakeatMilnerLagged!$B$2:$B$370)),INDEX(SnakeatMilnerLagged!$E$2:$E$370,MATCH(AnnualAADFMonitoring!Y55,SnakeatMilnerLagged!$B$2:$B$370)),"") -> 2.4 | AC55: =IF(Y55<User!$E$26,((INDEX($H$6:$O$35750,MATCH(Y55+1,$B$6:$B$35750,0),1)*748+INDEX($H$6:$O$35750,MATCH(Y55+1,$B$6:$B$35750,0),3)*255+INDEX($H$6:$O$35750,MATCH(Y55+1,$B$6:$B$35750,0),5)*7500+INDEX($H$6:$O$35750,MATCH(Y55+1,$B$6:$B$35750,0),7)*870) - (INDEX($H$6:$O$35750,MATCH(Y55,$B$6:$B$35750,0),1)*748+INDEX($H$6:$O$35750,MATCH(Y55,$B$6:$B$35750,0),3)*255+INDEX($H$6:$O$35750,MATCH(Y55,$B$6:$B$35750,0),5)*7500+INDEX($H$6:$O$35750,MATCH(Y55,$B$6:$B$35750,0),7)*870)) /1.9835,"") -> -284.2889337 | AD55: 7030 | AE55: 6745.711066 | AF55: 6744.536577 | AH55: 5600 | AI55: 2019-02-16 | AJ55: =IF(Y55<User!$E$26,((INDEX($H$6:$O$35750,MATCH(Y55,$B$6:$B$35750,0),5)))) -> 2454.907653 | AK55: -326.0025712 | AL55: =IF(Y55<User!$E$26,((INDEX($H$6:$O$35750,MATCH(Y55,$B$6:$B$35750,0),1)))) -> 2797.883 | AM55: =IF(Y55<User!$E$26,((INDEX($H$6:$O$35750,MATCH(Y55,$B$6:$B$35750,0),3)))) -> 2653.891 | AN55: =IF(Y55<User!$E$26,((INDEX($H$6:$O$35750,MATCH(Y55,$B$6:$B$35750,0),7)))) -> 2313.303 | AO55: -22.18245526 | AP55: 2454.92012 | AQ55: -348.1850265 | AR55: 2797.883 | AS55: 2653.891 | AT55: 2313.303 | AV55: -22.18245526 | AW55: 0 | AY55: 2019-02-16 | AZ55: NO | BA55: 3 | BB55: 2.4 | BC55: -306.471389 | BD55: 7030 | BE55: 6723.528611 | BF55: 6735.755987
A56: 52 | B56: 2018-12-27T13:00:00.288 | C56: 2018-12-27T13:00:00 | D56: =IF(VLOOKUP(C56,LwrSalmonFallsDam!$A$3:$B$35999,1,TRUE)=C56,VLOOKUP(C56,LwrSalmonFallsDam!$A$3:$B$35999,2,TRUE),NA()) -> 2797.763 | E56: =IF(VLOOKUP(C56,BlissDam!$A$3:$B$35999,1,TRUE)=C56,VLOOKUP(C56,BlissDam!$A$3:$B$35999,2,TRUE),NA()) -> 2653.89 | F56: =IF(VLOOKUP(C56,CJStageCalc!$A$3:$E$35999,1,TRUE)=C56,VLOOKUP(C56,CJStageCalc!$A$3:$E$35999,5,TRUE),NA()) -> 2454.79826 | G56: =IF(VLOOKUP(C56,SwanFallsDam!$A$3:$B$35999,1,TRUE)=C56,VLOOKUP(C56,SwanFallsDam!$A$3:$B$35999,2,TRUE),NA()) -> 2313.176 | L56: 2454.905363 | N56: 2313.244 | T56: 1623.87324 | V56: -715.836 | X56: 2019-02-17 | Y56: 2019-02-17 | Z56: NO | AA56: =IF(ISNUMBER(AB56),INDEX(SnakeatMilnerLagged!$D$2:$D$370,MATCH(AnnualAADFMonitoring!Y56,SnakeatMilnerLagged!$B$2:$B$370))*-1,"") -> 3 | AB56: =IF(ISNUMBER(MATCH(AnnualAADFMonitoring!Y56,SnakeatMilnerLagged!$B$2:$B$370)),INDEX(SnakeatMilnerLagged!$E$2:$E$370,MATCH(AnnualAADFMonitoring!Y56,SnakeatMilnerLagged!$B$2:$B$370)),"") -> 2.57 | AC56: =IF(Y56<User!$E$26,((INDEX($H$6:$O$35750,MATCH(Y56+1,$B$6:$B$35750,0),1)*748+INDEX($H$6:$O$35750,MATCH(Y56+1,$B$6:$B$35750,0),3)*255+INDEX($H$6:$O$35750,MATCH(Y56+1,$B$6:$B$35750,0),5)*7500+INDEX($H$6:$O$35750,MATCH(Y56+1,$B$6:$B$35750,0),7)*870) - (INDEX($H$6:$O$35750,MATCH(Y56,$B$6:$B$35750,0),1)*748+INDEX($H$6:$O$35750,MATCH(Y56,$B$6:$B$35750,0),3)*255+INDEX($H$6:$O$35750,MATCH(Y56,$B$6:$B$35750,0),5)*7500+INDEX($H$6:$O$35750,MATCH(Y56,$B$6:$B$35750,0),7)*870)) /1.9835,"") -> -426.9502899 | AD56: 7050 | AE56: 6623.04971 | AF56: 6730.878262 | AH56: 5600 | AI56: 2019-02-17 | AJ56: =IF(Y56<User!$E$26,((INDEX($H$6:$O$35750,MATCH(Y56,$B$6:$B$35750,0),5)))) -> 2454.821437 | AK56: -83.27396016 | AL56: =IF(Y56<User!$E$26,((INDEX($H$6:$O$35750,MATCH(Y56,$B$6:$B$35750,0),1)))) -> 2797.756 | AM56: =IF(Y56<User!$E$26,((INDEX($H$6:$O$35750,MATCH(Y56,$B$6:$B$35750,0),3)))) -> 2653.776 | AN56: =IF(Y56<User!$E$26,((INDEX($H$6:$O$35750,MATCH(Y56,$B$6:$B$35750,0),7)))) -> 2313.541 | AO56: 30.50108394 | AP56: 2454.828037 | AQ56: -52.77287622 | AR56: 2797.756 | AS56: 2653.776 | AT56: 2313.541 | AV56: 30.50108394 | AW56: -1.878156297e-09 | AY56: 2019-02-17 | AZ56: NO | BA56: 3 | BB56: 2.57 | BC56: -396.4492059 | BD56: 7050 | BE56: 6653.550794 | BF56: 6712.484665
A57: 53 | B57: 2018-12-27T13:14:59.712 | C57: 2018-12-27T13:15:00 | D57: =IF(VLOOKUP(C57,LwrSalmonFallsDam!$A$3:$B$35999,1,TRUE)=C57,VLOOKUP(C57,LwrSalmonFallsDam!$A$3:$B$35999,2,TRUE),NA()) -> 2797.759 | E57: =IF(VLOOKUP(C57,BlissDam!$A$3:$B$35999,1,TRUE)=C57,VLOOKUP(C57,BlissDam!$A$3:$B$35999,2,TRUE),NA()) -> 2653.889 | F57: =IF(VLOOKUP(C57,CJStageCalc!$A$3:$E$35999,1,TRUE)=C57,VLOOKUP(C57,CJStageCalc!$A$3:$E$35999,5,TRUE),NA()) -> 2454.791 | G57: =IF(VLOOKUP(C57,SwanFallsDam!$A$3:$B$35999,1,TRUE)=C57,VLOOKUP(C57,SwanFallsDam!$A$3:$B$35999,2,TRUE),NA()) -> 2313.19 | L57: 2454.912863 | N57: 2313.225 | T57: 2722.499999 | V57: -800.052 | X57: 2019-02-18 | Y57: 2019-02-18 | Z57: NO | AA57: =IF(ISNUMBER(AB57),INDEX(SnakeatMilnerLagged!$D$2:$D$370,MATCH(AnnualAADFMonitoring!Y57,SnakeatMilnerLagged!$B$2:$B$370))*-1,"") -> 3 | AB57: =IF(ISNUMBER(MATCH(AnnualAADFMonitoring!Y57,SnakeatMilnerLagged!$B$2:$B$370)),INDEX(SnakeatMilnerLagged!$E$2:$E$370,MATCH(AnnualAADFMonitoring!Y57,SnakeatMilnerLagged!$B$2:$B$370)),"") -> 2.47 | AC57: =IF(Y57<User!$E$26,((INDEX($H$6:$O$35750,MATCH(Y57+1,$B$6:$B$35750,0),1)*748+INDEX($H$6:$O$35750,MATCH(Y57+1,$B$6:$B$35750,0),3)*255+INDEX($H$6:$O$35750,MATCH(Y57+1,$B$6:$B$35750,0),5)*7500+INDEX($H$6:$O$35750,MATCH(Y57+1,$B$6:$B$35750,0),7)*870) - (INDEX($H$6:$O$35750,MATCH(Y57,$B$6:$B$35750,0),1)*748+INDEX($H$6:$O$35750,MATCH(Y57,$B$6:$B$35750,0),3)*255+INDEX($H$6:$O$35750,MATCH(Y57,$B$6:$B$35750,0),5)*7500+INDEX($H$6:$O$35750,MATCH(Y57,$B$6:$B$35750,0),7)*870)) /1.9835,"") -> 166.606907 | AD57: 6390 | AE57: 6556.606907 | AF57: 6641.789228 | AH57: 5600 | AI57: 2019-02-18 | AJ57: =IF(Y57<User!$E$26,((INDEX($H$6:$O$35750,MATCH(Y57,$B$6:$B$35750,0),5)))) -> 2454.799413 | AK57: -64.16798589 | AL57: =IF(Y57<User!$E$26,((INDEX($H$6:$O$35750,MATCH(Y57,$B$6:$B$35750,0),1)))) -> 2797.677 | AM57: =IF(Y57<User!$E$26,((INDEX($H$6:$O$35750,MATCH(Y57,$B$6:$B$35750,0),3)))) -> 2653.808 | AN57: =IF(Y57<User!$E$26,((INDEX($H$6:$O$35750,MATCH(Y57,$B$6:$B$35750,0),7)))) -> 2312.816 | AO57: 6.378724478 | AP57: 2454.81408 | AQ57: -57.78926141 | AR57: 2797.677 | AS57: 2653.808 | AT57: 2312.816 | AV57: 6.37872448 | AW57: 1.878127875e-09 | AY57: 2019-02-18 | AZ57: NO | BA57: 3 | BB57: 2.47 | BC57: 172.9856315 | BD57: 6390 | BE57: 6562.985631 | BF57: 6646.688346
A58: 54 | B58: 2018-12-27T13:30:00 | C58: 2018-12-27T13:30:00 | D58: =IF(VLOOKUP(C58,LwrSalmonFallsDam!$A$3:$B$35999,1,TRUE)=C58,VLOOKUP(C58,LwrSalmonFallsDam!$A$3:$B$35999,2,TRUE),NA()) -> 2797.727 | E58: =IF(VLOOKUP(C58,BlissDam!$A$3:$B$35999,1,TRUE)=C58,VLOOKUP(C58,BlissDam!$A$3:$B$35999,2,TRUE),NA()) -> 2653.886 | F58: =IF(VLOOKUP(C58,CJStageCalc!$A$3:$E$35999,1,TRUE)=C58,VLOOKUP(C58,CJStageCalc!$A$3:$E$35999,5,TRUE),NA()) -> 2454.784723 | G58: =IF(VLOOKUP(C58,SwanFallsDam!$A$3:$B$35999,1,TRUE)=C58,VLOOKUP(C58,SwanFallsDam!$A$3:$B$35999,2,TRUE),NA()) -> 2313.206 | J58: =IF(ISNUMBER(OFFSET(E58,$J$3,0)),OFFSET(E58,$J$3,0),"") ->  | L58: 2454.93702 | N58: 2313.197 | T58: 8768.87 | V58: -1179.024 | X58: 2019-02-19 | Y58: 2019-02-19 | Z58: NO | AA58: =IF(ISNUMBER(AB58),INDEX(SnakeatMilnerLagged!$D$2:$D$370,MATCH(AnnualAADFMonitoring!Y58,SnakeatMilnerLagged!$B$2:$B$370))*-1,"") -> 3 | AB58: =IF(ISNUMBER(MATCH(AnnualAADFMonitoring!Y58,SnakeatMilnerLagged!$B$2:$B$370)),INDEX(SnakeatMilnerLagged!$E$2:$E$370,MATCH(AnnualAADFMonitoring!Y58,SnakeatMilnerLagged!$B$2:$B$370)),"") -> 2.44 | AC58: =IF(Y58<User!$E$26,((INDEX($H$6:$O$35750,MATCH(Y58+1,$B$6:$B$35750,0),1)*748+INDEX($H$6:$O$35750,MATCH(Y58+1,$B$6:$B$35750,0),3)*255+INDEX($H$6:$O$35750,MATCH(Y58+1,$B$6:$B$35750,0),5)*7500+INDEX($H$6:$O$35750,MATCH(Y58+1,$B$6:$B$35750,0),7)*870) - (INDEX($H$6:$O$35750,MATCH(Y58,$B$6:$B$35750,0),1)*748+INDEX($H$6:$O$35750,MATCH(Y58,$B$6:$B$35750,0),3)*255+INDEX($H$6:$O$35750,MATCH(Y58,$B$6:$B$35750,0),5)*7500+INDEX($H$6:$O$35750,MATCH(Y58,$B$6:$B$35750,0),7)*870)) /1.9835,"") -> -91.46049911 | AD58: 6700 | AE58: 6608.539501 | AF58: 6596.065373 | AH58: 5600 | AI58: 2019-02-19 | AJ58: =IF(Y58<User!$E$26,((INDEX($H$6:$O$35750,MATCH(Y58,$B$6:$B$35750,0),5)))) -> 2454.782443 | AK58: 7.852835905 | AL58: =IF(Y58<User!$E$26,((INDEX($H$6:$O$35750,MATCH(Y58,$B$6:$B$35750,0),1)))) -> 2797.571 | AM58: =IF(Y58<User!$E$26,((INDEX($H$6:$O$35750,MATCH(Y58,$B$6:$B$35750,0),3)))) -> 2653.768 | AN58: =IF(Y58<User!$E$26,((INDEX($H$6:$O$35750,MATCH(Y58,$B$6:$B$35750,0),7)))) -> 2313.445 | AO58: -6.932745149 | AP58: 2454.798797 | AQ58: 0.9200907558 | AR58: 2797.571 | AS58: 2653.768 | AT58: 2313.445 | AV58: -6.932745149 | AW58: -7.105427358e-15 | AY58: 2019-02-19 | AZ58: NO | BA58: 3 | BB58: 2.44 | BC58: -98.39324426 | BD58: 6700 | BE58: 6601.606756 | BF58: 6606.047727
A59: 55 | B59: 2018-12-27T13:45:00.288 | C59: 2018-12-27T13:45:00 | D59: =IF(VLOOKUP(C59,LwrSalmonFallsDam!$A$3:$B$35999,1,TRUE)=C59,VLOOKUP(C59,LwrSalmonFallsDam!$A$3:$B$35999,2,TRUE),NA()) -> 2797.783 | E59: =IF(VLOOKUP(C59,BlissDam!$A$3:$B$35999,1,TRUE)=C59,VLOOKUP(C59,BlissDam!$A$3:$B$35999,2,TRUE),NA()) -> 2653.886 | F59: =IF(VLOOKUP(C59,CJStageCalc!$A$3:$E$35999,1,TRUE)=C59,VLOOKUP(C59,CJStageCalc!$A$3:$E$35999,5,TRUE),NA()) -> 2454.782673 | G59: =IF(VLOOKUP(C59,SwanFallsDam!$A$3:$B$35999,1,TRUE)=C59,VLOOKUP(C59,SwanFallsDam!$A$3:$B$35999,2,TRUE),NA()) -> 2313.224 | L59: 2454.934343 | N59: 2313.196 | T59: -971.6300001 | V59: -42.10800001 | X59: 2019-02-20 | Y59: 2019-02-20 | Z59: NO | AA59: =IF(ISNUMBER(AB59),INDEX(SnakeatMilnerLagged!$D$2:$D$370,MATCH(AnnualAADFMonitoring!Y59,SnakeatMilnerLagged!$B$2:$B$370))*-1,"") -> 3 | AB59: =IF(ISNUMBER(MATCH(AnnualAADFMonitoring!Y59,SnakeatMilnerLagged!$B$2:$B$370)),INDEX(SnakeatMilnerLagged!$E$2:$E$370,MATCH(AnnualAADFMonitoring!Y59,SnakeatMilnerLagged!$B$2:$B$370)),"") -> 2.42 | AC59: =IF(Y59<User!$E$26,((INDEX($H$6:$O$35750,MATCH(Y59+1,$B$6:$B$35750,0),1)*748+INDEX($H$6:$O$35750,MATCH(Y59+1,$B$6:$B$35750,0),3)*255+INDEX($H$6:$O$35750,MATCH(Y59+1,$B$6:$B$35750,0),5)*7500+INDEX($H$6:$O$35750,MATCH(Y59+1,$B$6:$B$35750,0),7)*870) - (INDEX($H$6:$O$35750,MATCH(Y59,$B$6:$B$35750,0),1)*748+INDEX($H$6:$O$35750,MATCH(Y59,$B$6:$B$35750,0),3)*255+INDEX($H$6:$O$35750,MATCH(Y59,$B$6:$B$35750,0),5)*7500+INDEX($H$6:$O$35750,MATCH(Y59,$B$6:$B$35750,0),7)*870)) /1.9835,"") -> -151.8824805 | AD59: 6620 | AE59: 6468.11752 | AF59: 6544.421309 | AH59: 5600 | AI59: 2019-02-20 | AJ59: =IF(Y59<User!$E$26,((INDEX($H$6:$O$35750,MATCH(Y59,$B$6:$B$35750,0),5)))) -> 2454.78452 | AK59: -262.7294681 | AL59: =IF(Y59<User!$E$26,((INDEX($H$6:$O$35750,MATCH(Y59,$B$6:$B$35750,0),1)))) -> 2797.605 | AM59: =IF(Y59<User!$E$26,((INDEX($H$6:$O$35750,MATCH(Y59,$B$6:$B$35750,0),3)))) -> 2653.834 | AN59: =IF(Y59<User!$E$26,((INDEX($H$6:$O$35750,MATCH(Y59,$B$6:$B$35750,0),7)))) -> 2313.17 | AO59: 3.049609279 | AP59: 2454.79904 | AQ59: -259.6798588 | AR59: 2797.605 | AS59: 2653.834 | AT59: 2313.17 | AV59: 3.049609279 | AW59: -2.842170943e-14 | AY59: 2019-02-20 | AZ59: NO | BA59: 3 | BB59: 2.42 | BC59: -148.8328712 | BD59: 6620 | BE59: 6471.167129 | BF59: 6545.253172
A60: 56 | B60: 2018-12-27T13:59:59.712 | C60: 2018-12-27T14:00:00 | D60: =IF(VLOOKUP(C60,LwrSalmonFallsDam!$A$3:$B$35999,1,TRUE)=C60,VLOOKUP(C60,LwrSalmonFallsDam!$A$3:$B$35999,2,TRUE),NA()) -> 2797.754 | E60: =IF(VLOOKUP(C60,BlissDam!$A$3:$B$35999,1,TRUE)=C60,VLOOKUP(C60,BlissDam!$A$3:$B$35999,2,TRUE),NA()) -> 2653.882 | F60: =IF(VLOOKUP(C60,CJStageCalc!$A$3:$E$35999,1,TRUE)=C60,VLOOKUP(C60,CJStageCalc!$A$3:$E$35999,5,TRUE),NA()) -> 2454.781003 | G60: =IF(VLOOKUP(C60,SwanFallsDam!$A$3:$B$35999,1,TRUE)=C60,VLOOKUP(C60,SwanFallsDam!$A$3:$B$35999,2,TRUE),NA()) -> 2313.241 | L60: 2454.93815 | N60: 2313.178 | T60: =IF(ISNUMBER(L59),(L60-L59)*$T$3*12.1*4,"") -> 1381.76676 | V60: -757.944 | X60: 2019-02-21 | Y60: 2019-02-21 | Z60: NO | AA60: =IF(ISNUMBER(AB60),INDEX(SnakeatMilnerLagged!$D$2:$D$370,MATCH(AnnualAADFMonitoring!Y60,SnakeatMilnerLagged!$B$2:$B$370))*-1,"") -> 3 | AB60: =IF(ISNUMBER(MATCH(AnnualAADFMonitoring!Y60,SnakeatMilnerLagged!$B$2:$B$370)),INDEX(SnakeatMilnerLagged!$E$2:$E$370,MATCH(AnnualAADFMonitoring!Y60,SnakeatMilnerLagged!$B$2:$B$370)),"") -> 2.44 | AC60: =IF(Y60<User!$E$26,((INDEX($H$6:$O$35750,MATCH(Y60+1,$B$6:$B$35750,0),1)*748+INDEX($H$6:$O$35750,MATCH(Y60+1,$B$6:$B$35750,0),3)*255+INDEX($H$6:$O$35750,MATCH(Y60+1,$B$6:$B$35750,0),5)*7500+INDEX($H$6:$O$35750,MATCH(Y60+1,$B$6:$B$35750,0),7)*870) - (INDEX($H$6:$O$35750,MATCH(Y60,$B$6:$B$35750,0),1)*748+INDEX($H$6:$O$35750,MATCH(Y60,$B$6:$B$35750,0),3)*255+INDEX($H$6:$O$35750,MATCH(Y60,$B$6:$B$35750,0),5)*7500+INDEX($H$6:$O$35750,MATCH(Y60,$B$6:$B$35750,0),7)*870)) /1.9835,"") -> -570.7068818 | AD60: 6890 | AE60: 6319.293118 | AF60: 6465.316713 | AH60: 5600 | AI60: 2019-02-21 | AJ60: =IF(Y60<User!$E$26,((INDEX($H$6:$O$35750,MATCH(Y60,$B$6:$B$35750,0),5)))) -> 2454.715037 | AK60: -316.3605243 | AL60: =IF(Y60<User!$E$26,((INDEX($H$6:$O$35750,MATCH(Y60,$B$6:$B$35750,0),1)))) -> 2797.57 | AM60: =IF(Y60<User!$E$26,((INDEX($H$6:$O$35750,MATCH(Y60,$B$6:$B$35750,0),3)))) -> 2653.847 | AN60: =IF(Y60<User!$E$26,((INDEX($H$6:$O$35750,MATCH(Y60,$B$6:$B$35750,0),7)))) -> 2313.449 | AO60: -12.20010083 | AP60: 2454.730363 | AQ60: -328.5606252 | AR60: 2797.57 | AS60: 2653.847 | AT60: 2313.449 | AV60: -12.20010083 | AW60: 5.684341886e-14 | AY60: 2019-02-21 | AZ60: NO | BA60: 3 | BB60: 2.44 | BC60: -582.9069826 | BD60: 6890 | BE60: 6307.093017 | BF60: 6459.955634
A61: 57 | B61: 2018-12-27T14:15:00 | C61: 2018-12-27T14:15:00 | D61: =IF(VLOOKUP(C61,LwrSalmonFallsDam!$A$3:$B$35999,1,TRUE)=C61,VLOOKUP(C61,LwrSalmonFallsDam!$A$3:$B$35999,2,TRUE),NA()) -> 2797.762 | E61: =IF(VLOOKUP(C61,BlissDam!$A$3:$B$35999,1,TRUE)=C61,VLOOKUP(C61,BlissDam!$A$3:$B$35999,2,TRUE),NA()) -> 2653.878 | F61: =IF(VLOOKUP(C61,CJStageCalc!$A$3:$E$35999,1,TRUE)=C61,VLOOKUP(C61,CJStageCalc!$A$3:$E$35999,5,TRUE),NA()) -> 2454.790873 | G61: =IF(VLOOKUP(C61,SwanFallsDam!$A$3:$B$35999,1,TRUE)=C61,VLOOKUP(C61,SwanFallsDam!$A$3:$B$35999,2,TRUE),NA()) -> 2313.262 | H61: =IF(ISNUMBER(OFFSET(D61,$H$3,0)),OFFSET(D61,$H$3,0),"") ->  | L61: 2454.942813 | N61: 2313.17 | T61: 1692.736759 | V61: -336.864 | X61: 2019-02-22 | Y61: 2019-02-22 | Z61: NO | AA61: =IF(ISNUMBER(AB61),INDEX(SnakeatMilnerLagged!$D$2:$D$370,MATCH(AnnualAADFMonitoring!Y61,SnakeatMilnerLagged!$B$2:$B$370))*-1,"") -> 3 | AB61: =IF(ISNUMBER(MATCH(AnnualAADFMonitoring!Y61,SnakeatMilnerLagged!$B$2:$B$370)),INDEX(SnakeatMilnerLagged!$E$2:$E$370,MATCH(AnnualAADFMonitoring!Y61,SnakeatMilnerLagged!$B$2:$B$370)),"") -> 366 | AC61: =IF(Y61<User!$E$26,((INDEX($H$6:$O$35750,MATCH(Y61+1,$B$6:$B$35750,0),1)*748+INDEX($H$6:$O$35750,MATCH(Y61+1,$B$6:$B$35750,0),3)*255+INDEX($H$6:$O$35750,MATCH(Y61+1,$B$6:$B$35750,0),5)*7500+INDEX($H$6:$O$35750,MATCH(Y61+1,$B$6:$B$35750,0),7)*870) - (INDEX($H$6:$O$35750,MATCH(Y61,$B$6:$B$35750,0),1)*748+INDEX($H$6:$O$35750,MATCH(Y61,$B$6:$B$35750,0),3)*255+INDEX($H$6:$O$35750,MATCH(Y61,$B$6:$B$35750,0),5)*7500+INDEX($H$6:$O$35750,MATCH(Y61,$B$6:$B$35750,0),7)*870)) /1.9835,"") -> 512.0841442 | AD61: 6320 | AE61: 6832.084144 | AF61: 6539.831594 | AH61: 5600 | AI61: 2019-02-22 | AJ61: =IF(Y61<User!$E$26,((INDEX($H$6:$O$35750,MATCH(Y61,$B$6:$B$35750,0),5)))) -> 2454.63137 | AK61: -49.04265187 | AL61: =IF(Y61<User!$E$26,((INDEX($H$6:$O$35750,MATCH(Y61,$B$6:$B$35750,0),1)))) -> 2797.263 | AM61: =IF(Y61<User!$E$26,((INDEX($H$6:$O$35750,MATCH(Y61,$B$6:$B$35750,0),3)))) -> 2653.837 | AN61: =IF(Y61<User!$E$26,((INDEX($H$6:$O$35750,MATCH(Y61,$B$6:$B$35750,0),7)))) -> 2313.136 | AO61: -8.872649356 | AP61: 2454.64347 | AQ61: -57.91530123 | AR61: 2797.263 | AS61: 2653.837 | AT61: 2313.136 | AV61: -8.872649356 | AW61: 0 | AY61: 2019-02-22 | AZ61: NO | BA61: 3 | BB61: 366 | BC61: 503.2114948 | BD61: 6320 | BE61: 6823.211495 | BF61: 6533.82388
A62: 58 | B62: 2018-12-27T14:30:00.288 | C62: 2018-12-27T14:30:00 | D62: =IF(VLOOKUP(C62,LwrSalmonFallsDam!$A$3:$B$35999,1,TRUE)=C62,VLOOKUP(C62,LwrSalmonFallsDam!$A$3:$B$35999,2,TRUE),NA()) -> 2797.774 | E62: =IF(VLOOKUP(C62,BlissDam!$A$3:$B$35999,1,TRUE)=C62,VLOOKUP(C62,BlissDam!$A$3:$B$35999,2,TRUE),NA()) -> 2653.875 | F62: =IF(VLOOKUP(C62,CJStageCalc!$A$3:$E$35999,1,TRUE)=C62,VLOOKUP(C62,CJStageCalc!$A$3:$E$35999,5,TRUE),NA()) -> 2454.795003 | G62: =IF(VLOOKUP(C62,SwanFallsDam!$A$3:$B$35999,1,TRUE)=C62,VLOOKUP(C62,SwanFallsDam!$A$3:$B$35999,2,TRUE),NA()) -> 2313.28 | L62: 2454.94306 | N62: 2313.165 | T62: 89.5932402 | V62: -210.54 | X62: 2019-02-23 | Y62: 2019-02-23 | Z62: NO | AA62: =IF(ISNUMBER(AB62),INDEX(SnakeatMilnerLagged!$D$2:$D$370,MATCH(AnnualAADFMonitoring!Y62,SnakeatMilnerLagged!$B$2:$B$370))*-1,"") -> 2 | AB62: =IF(ISNUMBER(MATCH(AnnualAADFMonitoring!Y62,SnakeatMilnerLagged!$B$2:$B$370)),INDEX(SnakeatMilnerLagged!$E$2:$E$370,MATCH(AnnualAADFMonitoring!Y62,SnakeatMilnerLagged!$B$2:$B$370)),"") -> 851 | AC62: =IF(Y62<User!$E$26,((INDEX($H$6:$O$35750,MATCH(Y62+1,$B$6:$B$35750,0),1)*748+INDEX($H$6:$O$35750,MATCH(Y62+1,$B$6:$B$35750,0),3)*255+INDEX($H$6:$O$35750,MATCH(Y62+1,$B$6:$B$35750,0),5)*7500+INDEX($H$6:$O$35750,MATCH(Y62+1,$B$6:$B$35750,0),7)*870) - (INDEX($H$6:$O$35750,MATCH(Y62,$B$6:$B$35750,0),1)*748+INDEX($H$6:$O$35750,MATCH(Y62,$B$6:$B$35750,0),3)*255+INDEX($H$6:$O$35750,MATCH(Y62,$B$6:$B$35750,0),5)*7500+INDEX($H$6:$O$35750,MATCH(Y62,$B$6:$B$35750,0),7)*870)) /1.9835,"") -> -19.22656919 | AD62: 7130 | AE62: 7110.773431 | AF62: 6754.050231 | AH62: 5600 | AI62: 2019-02-23 | AJ62: =IF(Y62<User!$E$26,((INDEX($H$6:$O$35750,MATCH(Y62,$B$6:$B$35750,0),5)))) -> 2454.6184 | AK62: 476.9604739 | AL62: =IF(Y62<User!$E$26,((INDEX($H$6:$O$35750,MATCH(Y62,$B$6:$B$35750,0),1)))) -> 2797.798 | AM62: =IF(Y62<User!$E$26,((INDEX($H$6:$O$35750,MATCH(Y62,$B$6:$B$35750,0),3)))) -> 2653.862 | AN62: =IF(Y62<User!$E$26,((INDEX($H$6:$O$35750,MATCH(Y62,$B$6:$B$35750,0),7)))) -> 2313.948 | AO62: 23.846181 | AP62: 2454.628153 | AQ62: 500.8066549 | AR62: 2797.798 | AS62: 2653.862 | AT62: 2313.948 | AV62: 23.846181 | AW62: 2.842170943e-14 | AY62: 2019-02-23 | AZ62: NO | BA62: 2 | BB62: 851 | BC62: 4.6196118 | BD62: 7130 | BE62: 7134.619612 | BF62: 6754.974708
A63: 59 | B63: 2018-12-27T14:44:59.712 | C63: 2018-12-27T14:45:00 | D63: =IF(VLOOKUP(C63,LwrSalmonFallsDam!$A$3:$B$35999,1,TRUE)=C63,VLOOKUP(C63,LwrSalmonFallsDam!$A$3:$B$35999,2,TRUE),NA()) -> 2797.763 | E63: =IF(VLOOKUP(C63,BlissDam!$A$3:$B$35999,1,TRUE)=C63,VLOOKUP(C63,BlissDam!$A$3:$B$35999,2,TRUE),NA()) -> 2653.868 | F63: =IF(VLOOKUP(C63,CJStageCalc!$A$3:$E$35999,1,TRUE)=C63,VLOOKUP(C63,CJStageCalc!$A$3:$E$35999,5,TRUE),NA()) -> 2454.80128 | G63: =IF(VLOOKUP(C63,SwanFallsDam!$A$3:$B$35999,1,TRUE)=C63,VLOOKUP(C63,SwanFallsDam!$A$3:$B$35999,2,TRUE),NA()) -> 2313.299 | L63: 2454.937263 | N63: 2313.163 | T63: -2104.189999 | V63: -84.216 | X63: 2019-02-24 | Y63: 2019-02-24 | Z63: NO | AA63: =IF(ISNUMBER(AB63),INDEX(SnakeatMilnerLagged!$D$2:$D$370,MATCH(AnnualAADFMonitoring!Y63,SnakeatMilnerLagged!$B$2:$B$370))*-1,"") -> 2 | AB63: =IF(ISNUMBER(MATCH(AnnualAADFMonitoring!Y63,SnakeatMilnerLagged!$B$2:$B$370)),INDEX(SnakeatMilnerLagged!$E$2:$E$370,MATCH(AnnualAADFMonitoring!Y63,SnakeatMilnerLagged!$B$2:$B$370)),"") -> 853 | AC63: =IF(Y63<User!$E$26,((INDEX($H$6:$O$35750,MATCH(Y63+1,$B$6:$B$35750,0),1)*748+INDEX($H$6:$O$35750,MATCH(Y63+1,$B$6:$B$35750,0),3)*255+INDEX($H$6:$O$35750,MATCH(Y63+1,$B$6:$B$35750,0),5)*7500+INDEX($H$6:$O$35750,MATCH(Y63+1,$B$6:$B$35750,0),7)*870) - (INDEX($H$6:$O$35750,MATCH(Y63,$B$6:$B$35750,0),1)*748+INDEX($H$6:$O$35750,MATCH(Y63,$B$6:$B$35750,0),3)*255+INDEX($H$6:$O$35750,MATCH(Y63,$B$6:$B$35750,0),5)*7500+INDEX($H$6:$O$35750,MATCH(Y63,$B$6:$B$35750,0),7)*870)) /1.9835,"") -> 290.9039576 | AD63: 6920 | AE63: 7210.903958 | AF63: 7051.253844 | AH63: 5600 | AI63: 2019-02-24 | AJ63: =IF(Y63<User!$E$26,((INDEX($H$6:$O$35750,MATCH(Y63,$B$6:$B$35750,0),5)))) -> 2454.74454 | AK63: 202.218301 | AL63: =IF(Y63<User!$E$26,((INDEX($H$6:$O$35750,MATCH(Y63,$B$6:$B$35750,0),1)))) -> 2797.599 | AM63: =IF(Y63<User!$E$26,((INDEX($H$6:$O$35750,MATCH(Y63,$B$6:$B$35750,0),3)))) -> 2653.783 | AN63: =IF(Y63<User!$E$26,((INDEX($H$6:$O$35750,MATCH(Y63,$B$6:$B$35750,0),7)))) -> 2313.011 | AO63: 13.30980589 | AP63: 2454.7606 | AQ63: 215.5281069 | AR63: 2797.599 | AS63: 2653.783 | AT63: 2313.011 | AV63: 13.30980589 | AW63: -2.842170943e-14 | AY63: 2019-02-24 | AZ63: NO | BA63: 2 | BB63: 853 | BC63: 304.2137635 | BD63: 6920 | BE63: 7224.213764 | BF63: 7060.681623
A64: 60 | B64: 2018-12-27T15:00:00 | C64: 2018-12-27T15:00:00 | D64: =IF(VLOOKUP(C64,LwrSalmonFallsDam!$A$3:$B$35999,1,TRUE)=C64,VLOOKUP(C64,LwrSalmonFallsDam!$A$3:$B$35999,2,TRUE),NA()) -> 2797.776 | E64: =IF(VLOOKUP(C64,BlissDam!$A$3:$B$35999,1,TRUE)=C64,VLOOKUP(C64,BlissDam!$A$3:$B$35999,2,TRUE),NA()) -> 2653.863 | F64: =IF(VLOOKUP(C64,CJStageCalc!$A$3:$E$35999,1,TRUE)=C64,VLOOKUP(C64,CJStageCalc!$A$3:$E$35999,5,TRUE),NA()) -> 2454.811107 | G64: =IF(VLOOKUP(C64,SwanFallsDam!$A$3:$B$35999,1,TRUE)=C64,VLOOKUP(C64,SwanFallsDam!$A$3:$B$35999,2,TRUE),NA()) -> 2313.323 | L64: 2454.93365 | N64: 2313.159 | T64: -1311.64 | V64: -168.432 | X64: 2019-02-25 | Y64: 2019-02-25 | Z64: NO | AA64: =IF(ISNUMBER(AB64),INDEX(SnakeatMilnerLagged!$D$2:$D$370,MATCH(AnnualAADFMonitoring!Y64,SnakeatMilnerLagged!$B$2:$B$370))*-1,"") -> 2 | AB64: =IF(ISNUMBER(MATCH(AnnualAADFMonitoring!Y64,SnakeatMilnerLagged!$B$2:$B$370)),INDEX(SnakeatMilnerLagged!$E$2:$E$370,MATCH(AnnualAADFMonitoring!Y64,SnakeatMilnerLagged!$B$2:$B$370)),"") -> 1074.5 | AC64: =IF(Y64<User!$E$26,((INDEX($H$6:$O$35750,MATCH(Y64+1,$B$6:$B$35750,0),1)*748+INDEX($H$6:$O$35750,MATCH(Y64+1,$B$6:$B$35750,0),3)*255+INDEX($H$6:$O$35750,MATCH(Y64+1,$B$6:$B$35750,0),5)*7500+INDEX($H$6:$O$35750,MATCH(Y64+1,$B$6:$B$35750,0),7)*870) - (INDEX($H$6:$O$35750,MATCH(Y64,$B$6:$B$35750,0),1)*748+INDEX($H$6:$O$35750,MATCH(Y64,$B$6:$B$35750,0),3)*255+INDEX($H$6:$O$35750,MATCH(Y64,$B$6:$B$35750,0),5)*7500+INDEX($H$6:$O$35750,MATCH(Y64,$B$6:$B$35750,0),7)*870)) /1.9835,"") -> 387.6380136 | AD64: 7170 | AE64: 7557.638014 | AF64: 7293.105134 | AH64: 5600 | AI64: 2019-02-25 | AJ64: =IF(Y64<User!$E$26,((INDEX($H$6:$O$35750,MATCH(Y64,$B$6:$B$35750,0),5)))) -> 2454.79802 | AK64: 477.174187 | AL64: =IF(Y64<User!$E$26,((INDEX($H$6:$O$35750,MATCH(Y64,$B$6:$B$35750,0),1)))) -> 2797.725 | AM64: =IF(Y64<User!$E$26,((INDEX($H$6:$O$35750,MATCH(Y64,$B$6:$B$35750,0),3)))) -> 2653.861 | AN64: =IF(Y64<User!$E$26,((INDEX($H$6:$O$35750,MATCH(Y64,$B$6:$B$35750,0),7)))) -> 2313.082 | AO64: -49.07990925 | AP64: 2454.8176 | AQ64: 428.0942778 | AR64: 2797.725 | AS64: 2653.861 | AT64: 2313.082 | AV64: -49.07990925 | AW64: -5.684341886e-14 | AY64: 2019-02-25 | AZ64: NO | BA64: 2 | BB64: 1074.5 | BC64: 338.5581044 | BD64: 7170 | BE64: 7508.558104 | BF64: 7289.130493
A65: 61 | B65: 2018-12-27T15:15:00.288 | C65: 2018-12-27T15:15:00 | D65: =IF(VLOOKUP(C65,LwrSalmonFallsDam!$A$3:$B$35999,1,TRUE)=C65,VLOOKUP(C65,LwrSalmonFallsDam!$A$3:$B$35999,2,TRUE),NA()) -> 2797.783 | E65: =IF(VLOOKUP(C65,BlissDam!$A$3:$B$35999,1,TRUE)=C65,VLOOKUP(C65,BlissDam!$A$3:$B$35999,2,TRUE),NA()) -> 2653.849 | F65: =IF(VLOOKUP(C65,CJStageCalc!$A$3:$E$35999,1,TRUE)=C65,VLOOKUP(C65,CJStageCalc!$A$3:$E$35999,5,TRUE),NA()) -> 2454.815667 | G65: =IF(VLOOKUP(C65,SwanFallsDam!$A$3:$B$35999,1,TRUE)=C65,VLOOKUP(C65,SwanFallsDam!$A$3:$B$35999,2,TRUE),NA()) -> 2313.333 | L65: 2454.926867 | N65: 2313.167 | T65: -2462.403241 | V65: 336.864 | X65: 2019-02-26 | Y65: 2019-02-26 | Z65: NO | AA65: =IF(ISNUMBER(AB65),INDEX(SnakeatMilnerLagged!$D$2:$D$370,MATCH(AnnualAADFMonitoring!Y65,SnakeatMilnerLagged!$B$2:$B$370))*-1,"") -> 2 | AB65: =IF(ISNUMBER(MATCH(AnnualAADFMonitoring!Y65,SnakeatMilnerLagged!$B$2:$B$370)),INDEX(SnakeatMilnerLagged!$E$2:$E$370,MATCH(AnnualAADFMonitoring!Y65,SnakeatMilnerLagged!$B$2:$B$370)),"") -> 1410 | AC65: =IF(Y65<User!$E$26,((INDEX($H$6:$O$35750,MATCH(Y65+1,$B$6:$B$35750,0),1)*748+INDEX($H$6:$O$35750,MATCH(Y65+1,$B$6:$B$35750,0),3)*255+INDEX($H$6:$O$35750,MATCH(Y65+1,$B$6:$B$35750,0),5)*7500+INDEX($H$6:$O$35750,MATCH(Y65+1,$B$6:$B$35750,0),7)*870) - (INDEX($H$6:$O$35750,MATCH(Y65,$B$6:$B$35750,0),1)*748+INDEX($H$6:$O$35750,MATCH(Y65,$B$6:$B$35750,0),3)*255+INDEX($H$6:$O$35750,MATCH(Y65,$B$6:$B$35750,0),5)*7500+INDEX($H$6:$O$35750,MATCH(Y65,$B$6:$B$35750,0),7)*870)) /1.9835,"") -> -222.1013864 | AD65: 7780 | AE65: 7557.898614 | AF65: 7442.146862 | AH65: 5600 | AI65: 2019-02-26 | AJ65: =IF(Y65<User!$E$26,((INDEX($H$6:$O$35750,MATCH(Y65,$B$6:$B$35750,0),5)))) -> 2454.924217 | AK65: 73.12775397 | AL65: =IF(Y65<User!$E$26,((INDEX($H$6:$O$35750,MATCH(Y65,$B$6:$B$35750,0),1)))) -> 2797.79 | AM65: =IF(Y65<User!$E$26,((INDEX($H$6:$O$35750,MATCH(Y65,$B$6:$B$35750,0),3)))) -> 2653.878 | AN65: =IF(Y65<User!$E$26,((INDEX($H$6:$O$35750,MATCH(Y65,$B$6:$B$35750,0),7)))) -> 2312.817 | AO65: -18.02314091 | AP65: 2454.930817 | AQ65: 55.10461306 | AR65: 2797.79 | AS65: 2653.878 | AT65: 2312.817 | AV65: -18.02314091 | AW65: 0 | AY65: 2019-02-26 | AZ65: NO | BA65: 2 | BB65: 1410 | BC65: -240.1245273 | BD65: 7780 | BE65: 7539.875473 | BF65: 7424.21578
A66: 62 | B66: 2018-12-27T15:29:59.712 | C66: 2018-12-27T15:30:00 | D66: =IF(VLOOKUP(C66,LwrSalmonFallsDam!$A$3:$B$35999,1,TRUE)=C66,VLOOKUP(C66,LwrSalmonFallsDam!$A$3:$B$35999,2,TRUE),NA()) -> 2797.739 | E66: =IF(VLOOKUP(C66,BlissDam!$A$3:$B$35999,1,TRUE)=C66,VLOOKUP(C66,BlissDam!$A$3:$B$35999,2,TRUE),NA()) -> 2653.843 | F66: =IF(VLOOKUP(C66,CJStageCalc!$A$3:$E$35999,1,TRUE)=C66,VLOOKUP(C66,CJStageCalc!$A$3:$E$35999,5,TRUE),NA()) -> 2454.821527 | G66: =IF(VLOOKUP(C66,SwanFallsDam!$A$3:$B$35999,1,TRUE)=C66,VLOOKUP(C66,SwanFallsDam!$A$3:$B$35999,2,TRUE),NA()) -> 2313.371 | L66: 2454.925457 | N66: 2313.166 | T66: -511.8299996 | V66: -42.10799999 | X66: 2019-02-27 | Y66: 2019-02-27 | Z66: NO | AA66: =IF(ISNUMBER(AB66),INDEX(SnakeatMilnerLagged!$D$2:$D$370,MATCH(AnnualAADFMonitoring!Y66,SnakeatMilnerLagged!$B$2:$B$370))*-1,"") -> 2 | AB66: =IF(ISNUMBER(MATCH(AnnualAADFMonitoring!Y66,SnakeatMilnerLagged!$B$2:$B$370)),INDEX(SnakeatMilnerLagged!$E$2:$E$370,MATCH(AnnualAADFMonitoring!Y66,SnakeatMilnerLagged!$B$2:$B$370)),"") -> 1670 | AC66: =IF(Y66<User!$E$26,((INDEX($H$6:$O$35750,MATCH(Y66+1,$B$6:$B$35750,0),1)*748+INDEX($H$6:$O$35750,MATCH(Y66+1,$B$6:$B$35750,0),3)*255+INDEX($H$6:$O$35750,MATCH(Y66+1,$B$6:$B$35750,0),5)*7500+INDEX($H$6:$O$35750,MATCH(Y66+1,$B$6:$B$35750,0),7)*870) - (INDEX($H$6:$O$35750,MATCH(Y66,$B$6:$B$35750,0),1)*748+INDEX($H$6:$O$35750,MATCH(Y66,$B$6:$B$35750,0),3)*255+INDEX($H$6:$O$35750,MATCH(Y66,$B$6:$B$35750,0),5)*7500+INDEX($H$6:$O$35750,MATCH(Y66,$B$6:$B$35750,0),7)*870)) /1.9835,"") -> 132.3710613 | AD66: 8320 | AE66: 8452.371061 | AF66: 7855.969229 | AH66: 5600 | AI66: 2019-02-27 | AJ66: =IF(Y66<User!$E$26,((INDEX($H$6:$O$35750,MATCH(Y66,$B$6:$B$35750,0),5)))) -> 2454.943557 | AK66: -330.3503907 | AL66: =IF(Y66<User!$E$26,((INDEX($H$6:$O$35750,MATCH(Y66,$B$6:$B$35750,0),1)))) -> 2797.476 | AM66: =IF(Y66<User!$E$26,((INDEX($H$6:$O$35750,MATCH(Y66,$B$6:$B$35750,0),3)))) -> 2653.707 | AN66: =IF(Y66<User!$E$26,((INDEX($H$6:$O$35750,MATCH(Y66,$B$6:$B$35750,0),7)))) -> 2312.464 | AO66: 0.8318628717 | AP66: 2454.94539 | AQ66: -329.5185279 | AR66: 2797.476 | AS66: 2653.707 | AT66: 2312.464 | AV66: 0.8318628717 | AW66: 2.842170943e-14 | AY66: 2019-02-27 | AZ66: NO | BA66: 2 | BB66: 1670 | BC66: 133.2029241 | BD66: 8320 | BE66: 8453.202924 | BF66: 7833.878834
A67: 63 | B67: 2018-12-27T15:45:00 | C67: 2018-12-27T15:45:00 | D67: =IF(VLOOKUP(C67,LwrSalmonFallsDam!$A$3:$B$35999,1,TRUE)=C67,VLOOKUP(C67,LwrSalmonFallsDam!$A$3:$B$35999,2,TRUE),NA()) -> 2797.715 | E67: =IF(VLOOKUP(C67,BlissDam!$A$3:$B$35999,1,TRUE)=C67,VLOOKUP(C67,BlissDam!$A$3:$B$35999,2,TRUE),NA()) -> 2653.843 | F67: =IF(VLOOKUP(C67,CJStageCalc!$A$3:$E$35999,1,TRUE)=C67,VLOOKUP(C67,CJStageCalc!$A$3:$E$35999,5,TRUE),NA()) -> 2454.824913 | G67: =IF(VLOOKUP(C67,SwanFallsDam!$A$3:$B$35999,1,TRUE)=C67,VLOOKUP(C67,SwanFallsDam!$A$3:$B$35999,2,TRUE),NA()) -> 2313.391 | L67: 2454.925547 | N67: 2313.164 | T67: 32.67000017 | V67: -84.216 | X67: 2019-02-28 | Y67: 2019-02-28 | Z67: NO | AA67: =IF(ISNUMBER(AB67),INDEX(SnakeatMilnerLagged!$D$2:$D$370,MATCH(AnnualAADFMonitoring!Y67,SnakeatMilnerLagged!$B$2:$B$370))*-1,"") -> 2 | AB67: =IF(ISNUMBER(MATCH(AnnualAADFMonitoring!Y67,SnakeatMilnerLagged!$B$2:$B$370)),INDEX(SnakeatMilnerLagged!$E$2:$E$370,MATCH(AnnualAADFMonitoring!Y67,SnakeatMilnerLagged!$B$2:$B$370)),"") -> 2300 | AC67: =IF(Y67<User!$E$26,((INDEX($H$6:$O$35750,MATCH(Y67+1,$B$6:$B$35750,0),1)*748+INDEX($H$6:$O$35750,MATCH(Y67+1,$B$6:$B$35750,0),3)*255+INDEX($H$6:$O$35750,MATCH(Y67+1,$B$6:$B$35750,0),5)*7500+INDEX($H$6:$O$35750,MATCH(Y67+1,$B$6:$B$35750,0),7)*870) - (INDEX($H$6:$O$35750,MATCH(Y67,$B$6:$B$35750,0),1)*748+INDEX($H$6:$O$35750,MATCH(Y67,$B$6:$B$35750,0),3)*255+INDEX($H$6:$O$35750,MATCH(Y67,$B$6:$B$35750,0),5)*7500+INDEX($H$6:$O$35750,MATCH(Y67,$B$6:$B$35750,0),7)*870)) /1.9835,"") -> 356.6333249 | AD67: 10000 | AE67: 10356.63332 | AF67: 8788.967667 | AH67: 5600 | AI67: 2019-02-28 | AJ67: =IF(Y67<User!$E$26,((INDEX($H$6:$O$35750,MATCH(Y67,$B$6:$B$35750,0),5)))) -> 2454.85619 | AK67: 417.2307537 | AL67: =IF(Y67<User!$E$26,((INDEX($H$6:$O$35750,MATCH(Y67,$B$6:$B$35750,0),1)))) -> 2797.692 | AM67: =IF(Y67<User!$E$26,((INDEX($H$6:$O$35750,MATCH(Y67,$B$6:$B$35750,0),3)))) -> 2653.933 | AN67: =IF(Y67<User!$E$26,((INDEX($H$6:$O$35750,MATCH(Y67,$B$6:$B$35750,0),7)))) -> 2313.267 | AO67: -7.210587348 | AP67: 2454.858243 | AQ67: 410.0201664 | AR67: 2797.692 | AS67: 2653.933 | AT67: 2313.267 | AV67: -7.210587348 | AW67: 0 | AY67: 2019-02-28 | AZ67: NO | BA67: 2 | BB67: 2300 | BC67: 349.4227376 | BD67: 10000 | BE67: 10349.42274 | BF67: 8780.833711
A68: 64 | B68: 2018-12-27T16:00:00.288 | C68: 2018-12-27T16:00:00 | D68: =IF(VLOOKUP(C68,LwrSalmonFallsDam!$A$3:$B$35999,1,TRUE)=C68,VLOOKUP(C68,LwrSalmonFallsDam!$A$3:$B$35999,2,TRUE),NA()) -> 2797.74 | E68: =IF(VLOOKUP(C68,BlissDam!$A$3:$B$35999,1,TRUE)=C68,VLOOKUP(C68,BlissDam!$A$3:$B$35999,2,TRUE),NA()) -> 2653.837 | F68: =IF(VLOOKUP(C68,CJStageCalc!$A$3:$E$35999,1,TRUE)=C68,VLOOKUP(C68,CJStageCalc!$A$3:$E$35999,5,TRUE),NA()) -> 2454.83099 | G68: =IF(VLOOKUP(C68,SwanFallsDam!$A$3:$B$35999,1,TRUE)=C68,VLOOKUP(C68,SwanFallsDam!$A$3:$B$35999,2,TRUE),NA()) -> 2313.411 | L68: 2454.918803 | N68: 2313.176 | T68: -2447.72352 | V68: 505.296 | X68: 2019-03-01 | Y68: 2019-03-01 | Z68: NO | AA68: =IF(ISNUMBER(AB68),INDEX(SnakeatMilnerLagged!$D$2:$D$370,MATCH(AnnualAADFMonitoring!Y68,SnakeatMilnerLagged!$B$2:$B$370))*-1,"") -> 2 | AB68: =IF(ISNUMBER(MATCH(AnnualAADFMonitoring!Y68,SnakeatMilnerLagged!$B$2:$B$370)),INDEX(SnakeatMilnerLagged!$E$2:$E$370,MATCH(AnnualAADFMonitoring!Y68,SnakeatMilnerLagged!$B$2:$B$370)),"") -> 3380 | AC68: =IF(Y68<User!$E$26,((INDEX($H$6:$O$35750,MATCH(Y68+1,$B$6:$B$35750,0),1)*748+INDEX($H$6:$O$35750,MATCH(Y68+1,$B$6:$B$35750,0),3)*255+INDEX($H$6:$O$35750,MATCH(Y68+1,$B$6:$B$35750,0),5)*7500+INDEX($H$6:$O$35750,MATCH(Y68+1,$B$6:$B$35750,0),7)*870) - (INDEX($H$6:$O$35750,MATCH(Y68,$B$6:$B$35750,0),1)*748+INDEX($H$6:$O$35750,MATCH(Y68,$B$6:$B$35750,0),3)*255+INDEX($H$6:$O$35750,MATCH(Y68,$B$6:$B$35750,0),5)*7500+INDEX($H$6:$O$35750,MATCH(Y68,$B$6:$B$35750,0),7)*870)) /1.9835,"") -> -651.668364 | AD68: 12500 | AE68: 11848.33164 | AF68: 10219.11201 | AH68: 5600 | AI68: 2019-03-01 | AJ68: =IF(Y68<User!$E$26,((INDEX($H$6:$O$35750,MATCH(Y68,$B$6:$B$35750,0),5)))) -> 2454.966533 | AK68: -292.8798588 | AL68: =IF(Y68<User!$E$26,((INDEX($H$6:$O$35750,MATCH(Y68,$B$6:$B$35750,0),1)))) -> 2798.292 | AM68: =IF(Y68<User!$E$26,((INDEX($H$6:$O$35750,MATCH(Y68,$B$6:$B$35750,0),3)))) -> 2653.776 | AN68: =IF(Y68<User!$E$26,((INDEX($H$6:$O$35750,MATCH(Y68,$B$6:$B$35750,0),7)))) -> 2312.659 | AO68: 28.00715906 | AP68: 2454.96668 | AQ68: -264.8726998 | AR68: 2798.292 | AS68: 2653.776 | AT68: 2312.659 | AV68: =BC68-AC68 -> 28.00715906 | AW68: =AV68-AO68 -> -5.684341886e-14 | AY68: 2019-03-01 | AZ68: NO | BA68: 2 | BB68: 3380 | BC68: -623.6612049 | BD68: 12500 | BE68: 11876.3388 | BF68: 10226.32149
A69: 65 | B69: 2018-12-27T16:14:59.712 | C69: 2018-12-27T16:15:00 | D69: =IF(VLOOKUP(C69,LwrSalmonFallsDam!$A$3:$B$35999,1,TRUE)=C69,VLOOKUP(C69,LwrSalmonFallsDam!$A$3:$B$35999,2,TRUE),NA()) -> 2797.725 | E69: =IF(VLOOKUP(C69,BlissDam!$A$3:$B$35999,1,TRUE)=C69,VLOOKUP(C69,BlissDam!$A$3:$B$35999,2,TRUE),NA()) -> 2653.827 | F69: =IF(VLOOKUP(C69,CJStageCalc!$A$3:$E$35999,1,TRUE)=C69,VLOOKUP(C69,CJStageCalc!$A$3:$E$35999,5,TRUE),NA()) -> 2454.849177 | G69: =IF(VLOOKUP(C69,SwanFallsDam!$A$3:$B$35999,1,TRUE)=C69,VLOOKUP(C69,SwanFallsDam!$A$3:$B$35999,2,TRUE),NA()) -> 2313.428 | L69: 2454.923607 | N69: 2313.19 | R69: =IF(ISNUMBER(J68),(J69-J68)*$R$3*12.1*4,"") ->  | T69: 1743.503521 | V69: 589.512 | X69: 2019-03-02 | Y69: 2019-03-02 | Z69: NO | AA69: =IF(ISNUMBER(AB69),INDEX(SnakeatMilnerLagged!$D$2:$D$370,MATCH(AnnualAADFMonitoring!Y69,SnakeatMilnerLagged!$B$2:$B$370))*-1,"") -> 2 | AB69: =IF(ISNUMBER(MATCH(AnnualAADFMonitoring!Y69,SnakeatMilnerLagged!$B$2:$B$370)),INDEX(SnakeatMilnerLagged!$E$2:$E$370,MATCH(AnnualAADFMonitoring!Y69,SnakeatMilnerLagged!$B$2:$B$370)),"") -> 4320 | AC69: =IF(Y69<User!$E$26,((INDEX($H$6:$O$35750,MATCH(Y69+1,$B$6:$B$35750,0),1)*748+INDEX($H$6:$O$35750,MATCH(Y69+1,$B$6:$B$35750,0),3)*255+INDEX($H$6:$O$35750,MATCH(Y69+1,$B$6:$B$35750,0),5)*7500+INDEX($H$6:$O$35750,MATCH(Y69+1,$B$6:$B$35750,0),7)*870) - (INDEX($H$6:$O$35750,MATCH(Y69,$B$6:$B$35750,0),1)*748+INDEX($H$6:$O$35750,MATCH(Y69,$B$6:$B$35750,0),3)*255+INDEX($H$6:$O$35750,MATCH(Y69,$B$6:$B$35750,0),5)*7500+INDEX($H$6:$O$35750,MATCH(Y69,$B$6:$B$35750,0),7)*870)) /1.9835,"") -> 115.5502899 | AD69: 12700 | AE69: 12815.55029 | AF69: 11673.50508 | AH69: 5600 | AI69: 2019-03-02 | AJ69: =IF(Y69<User!$E$26,((INDEX($H$6:$O$35750,MATCH(Y69,$B$6:$B$35750,0),5)))) -> 2454.889077 | AK69: 179.6823796 | AL69: =IF(Y69<User!$E$26,((INDEX($H$6:$O$35750,MATCH(Y69,$B$6:$B$35750,0),1)))) -> 2797.503 | AM69: =IF(Y69<User!$E$26,((INDEX($H$6:$O$35750,MATCH(Y69,$B$6:$B$35750,0),3)))) -> 2653.767 | AN69: =IF(Y69<User!$E$26,((INDEX($H$6:$O$35750,MATCH(Y69,$B$6:$B$35750,0),7)))) -> 2312.522 | AO69: -22.46029746 | AP69: 2454.89663 | AQ69: 157.2220822 | AR69: 2797.503 | AS69: 2653.767 | AT69: 2312.522 | AV69: -22.46029746 | AW69: 0 | AY69: 2019-03-02 | AZ69: NO | BA69: 2 | BB69: 4320 | BC69: 93.08999243 | BD69: 12700 | BE69: 12793.08999 | BF69: 11672.95051
A70: 66 | B70: =ROUND(OFFSET(C70,0,0),5) -> 2018-12-27T16:30:00 | C70: 2018-12-27T16:30:00 | D70: =IF(VLOOKUP(C70,LwrSalmonFallsDam!$A$3:$B$35999,1,TRUE)=C70,VLOOKUP(C70,LwrSalmonFallsDam!$A$3:$B$35999,2,TRUE),NA()) -> 2797.751 | E70: =IF(VLOOKUP(C70,BlissDam!$A$3:$B$35999,1,TRUE)=C70,VLOOKUP(C70,BlissDam!$A$3:$B$35999,2,TRUE),NA()) -> 2653.821 | F70: =IF(VLOOKUP(C70,CJStageCalc!$A$3:$E$35999,1,TRUE)=C70,VLOOKUP(C70,CJStageCalc!$A$3:$E$35999,5,TRUE),NA()) -> 2454.844793 | G70: =IF(VLOOKUP(C70,SwanFallsDam!$A$3:$B$35999,1,TRUE)=C70,VLOOKUP(C70,SwanFallsDam!$A$3:$B$35999,2,TRUE),NA()) -> 2313.442 | H70: =IF(ISNUMBER(OFFSET(D70,$H$3,0)),OFFSET(D70,$H$3,0),"") ->  | L70: 2454.91651 | N70: 2313.206 | P70: =IF(ISNUMBER(H69),(H70-H69)*$P$3*12.1*4,"") ->  | T70: =IF(ISNUMBER(L69),(L70-L69)*$T$3*12.1*4,"") -> -2576.03676 | V70: 673.728 | X70: 2019-03-03 | Y70: 2019-03-03 | Z70: NO | AA70: =IF(ISNUMBER(AB70),INDEX(SnakeatMilnerLagged!$D$2:$D$370,MATCH(AnnualAADFMonitoring!Y70,SnakeatMilnerLagged!$B$2:$B$370))*-1,"") -> 2 | AB70: =IF(ISNUMBER(MATCH(AnnualAADFMonitoring!Y70,SnakeatMilnerLagged!$B$2:$B$370)),INDEX(SnakeatMilnerLagged!$E$2:$E$370,MATCH(AnnualAADFMonitoring!Y70,SnakeatMilnerLagged!$B$2:$B$370)),"") -> 4560 | AC70: =IF(Y70<User!$E$26,((INDEX($H$6:$O$35750,MATCH(Y70+1,$B$6:$B$35750,0),1)*748+INDEX($H$6:$O$35750,MATCH(Y70+1,$B$6:$B$35750,0),3)*255+INDEX($H$6:$O$35750,MATCH(Y70+1,$B$6:$B$35750,0),5)*7500+INDEX($H$6:$O$35750,MATCH(Y70+1,$B$6:$B$35750,0),7)*870) - (INDEX($H$6:$O$35750,MATCH(Y70,$B$6:$B$35750,0),1)*748+INDEX($H$6:$O$35750,MATCH(Y70,$B$6:$B$35750,0),3)*255+INDEX($H$6:$O$35750,MATCH(Y70,$B$6:$B$35750,0),5)*7500+INDEX($H$6:$O$35750,MATCH(Y70,$B$6:$B$35750,0),7)*870)) /1.9835,"") -> -523.771515 | AD70: 13100 | AE70: 12576.22849 | AF70: 12413.37014 | AH70: 5600 | AI70: =Y70 -> 2019-03-03 | AJ70: =IF(Y70<User!$E$26,((INDEX($H$6:$O$35750,MATCH(Y70,$B$6:$B$35750,0),5)))) -> 2454.936597 | AK70: -1007.699924 | AL70: =IF(Y70<User!$E$26,((INDEX($H$6:$O$35750,MATCH(Y70,$B$6:$B$35750,0),1)))) -> 2797.611 | AM70: =IF(Y70<User!$E$26,((INDEX($H$6:$O$35750,MATCH(Y70,$B$6:$B$35750,0),3)))) -> 2653.835 | AN70: =IF(Y70<User!$E$26,((INDEX($H$6:$O$35750,MATCH(Y70,$B$6:$B$35750,0),7)))) -> 2312.263 | AO70: =AQ70-AK70 -> -30.50274767 | AP70: 2454.93821 | AQ70: -1038.202672 | AR70: 2797.611 | AS70: 2653.835 | AT70: 2312.263 | AV70: -30.50274767 | AW70: 0 | AY70: 2019-03-03 | AZ70: NO | BA70: 2 | BB70: 4560 | BC70: -554.2742627 | BD70: 13100 | BE70: 12545.72574 | BF70: 12405.05151
A71: 67 | B71: 2018-12-27T16:45:00.288 | C71: 2018-12-27T16:45:00 | D71: =IF(VLOOKUP(C71,LwrSalmonFallsDam!$A$3:$B$35999,1,TRUE)=C71,VLOOKUP(C71,LwrSalmonFallsDam!$A$3:$B$35999,2,TRUE),NA()) -> 2797.723 | E71: =IF(VLOOKUP(C71,BlissDam!$A$3:$B$35999,1,TRUE)=C71,VLOOKUP(C71,BlissDam!$A$3:$B$35999,2,TRUE),NA()) -> 2653.814 | F71: =IF(VLOOKUP(C71,CJStageCalc!$A$3:$E$35999,1,TRUE)=C71,VLOOKUP(C71,CJStageCalc!$A$3:$E$35999,5,TRUE),NA()) -> 2454.856757 | G71: =IF(VLOOKUP(C71,SwanFallsDam!$A$3:$B$35999,1,TRUE)=C71,VLOOKUP(C71,SwanFallsDam!$A$3:$B$35999,2,TRUE),NA()) -> 2313.466 | L71: 2454.91694 | N71: 2313.224 | T71: 156.09 | V71: 757.944 | X71: 2019-03-04 | Y71: 2019-03-04 | Z71: NO | AA71: =IF(ISNUMBER(AB71),INDEX(SnakeatMilnerLagged!$D$2:$D$370,MATCH(AnnualAADFMonitoring!Y71,SnakeatMilnerLagged!$B$2:$B$370))*-1,"") -> 2 | AB71: =IF(ISNUMBER(MATCH(AnnualAADFMonitoring!Y71,SnakeatMilnerLagged!$B$2:$B$370)),INDEX(SnakeatMilnerLagged!$E$2:$E$370,MATCH(AnnualAADFMonitoring!Y71,SnakeatMilnerLagged!$B$2:$B$370)),"") -> 4500 | AC71: =IF(Y71<User!$E$26,((INDEX($H$6:$O$35750,MATCH(Y71+1,$B$6:$B$35750,0),1)*748+INDEX($H$6:$O$35750,MATCH(Y71+1,$B$6:$B$35750,0),3)*255+INDEX($H$6:$O$35750,MATCH(Y71+1,$B$6:$B$35750,0),5)*7500+INDEX($H$6:$O$35750,MATCH(Y71+1,$B$6:$B$35750,0),7)*870) - (INDEX($H$6:$O$35750,MATCH(Y71,$B$6:$B$35750,0),1)*748+INDEX($H$6:$O$35750,MATCH(Y71,$B$6:$B$35750,0),3)*255+INDEX($H$6:$O$35750,MATCH(Y71,$B$6:$B$35750,0),5)*7500+INDEX($H$6:$O$35750,MATCH(Y71,$B$6:$B$35750,0),7)*870)) /1.9835,"") -> -1073.079506 | AD71: 12200 | AE71: =IF(ISNUMBER(AD71),IF(Z71="YES",AD71-AB71+AC71,AD71+AC71),NA()) -> 11126.92049 | AF71: 12172.89976 | AH71: 5600 | AI71: 2019-03-04 | AJ71: =IF(Y71<User!$E$26,((INDEX($H$6:$O$35750,MATCH(Y71,$B$6:$B$35750,0),5)))) -> 2454.670093 | AK71: =(INDEX($H$6:$O$35750,MATCH(Y71+1,$B$6:$B$35750,0),5)*$T$3-(INDEX($H$6:$O$35750,MATCH(Y71,$B$6:$B$35750,0),5))*$T$3)/1.9835 -> -1227.049256 | AL71: =IF(Y71<User!$E$26,((INDEX($H$6:$O$35750,MATCH(Y71,$B$6:$B$35750,0),1)))) -> 2797.915 | AM71: =IF(Y71<User!$E$26,((INDEX($H$6:$O$35750,MATCH(Y71,$B$6:$B$35750,0),3)))) -> 2653.671 | AN71: =IF(Y71<User!$E$26,((INDEX($H$6:$O$35750,MATCH(Y71,$B$6:$B$35750,0),7)))) -> 2313.153 | AO71: 63.77726242 | AP71: 2454.66364 | AQ71: -1163.271994 | AR71: 2797.915 | AS71: 2653.671 | AT71: 2313.153 | AV71: 63.77726242 | AW71: 1.136868377e-13 | AY71: 2019-03-04 | AZ71: NO | BA71: 2 | BB71: 4500 | BC71: -1009.302244 | BD71: 12200 | BE71: 11190.69776 | BF71: 12176.5045
A72: 68 | B72: 2018-12-27T16:59:59.712 | C72: 2018-12-27T17:00:00 | D72: =IF(VLOOKUP(C72,LwrSalmonFallsDam!$A$3:$B$35999,1,TRUE)=C72,VLOOKUP(C72,LwrSalmonFallsDam!$A$3:$B$35999,2,TRUE),NA()) -> 2797.71 | E72: =IF(VLOOKUP(C72,BlissDam!$A$3:$B$35999,1,TRUE)=C72,VLOOKUP(C72,BlissDam!$A$3:$B$35999,2,TRUE),NA()) -> 2653.821 | F72: =IF(VLOOKUP(C72,CJStageCalc!$A$3:$E$35999,1,TRUE)=C72,VLOOKUP(C72,CJStageCalc!$A$3:$E$35999,5,TRUE),NA()) -> 2454.864903 | G72: =IF(VLOOKUP(C72,SwanFallsDam!$A$3:$B$35999,1,TRUE)=C72,VLOOKUP(C72,SwanFallsDam!$A$3:$B$35999,2,TRUE),NA()) -> 2313.484 | L72: 2454.900993 | N72: 2313.241 | T72: -5788.58676 | V72: 715.836 | X72: 2019-03-05 | Y72: 2019-03-05 | Z72: NO | AA72: =IF(ISNUMBER(AB72),INDEX(SnakeatMilnerLagged!$D$2:$D$370,MATCH(AnnualAADFMonitoring!Y72,SnakeatMilnerLagged!$B$2:$B$370))*-1,"") -> 2 | AB72: =IF(ISNUMBER(MATCH(AnnualAADFMonitoring!Y72,SnakeatMilnerLagged!$B$2:$B$370)),INDEX(SnakeatMilnerLagged!$E$2:$E$370,MATCH(AnnualAADFMonitoring!Y72,SnakeatMilnerLagged!$B$2:$B$370)),"") -> 4360 | AC72: =IF(Y72<User!$E$26,((INDEX($H$6:$O$35750,MATCH(Y72+1,$B$6:$B$35750,0),1)*748+INDEX($H$6:$O$35750,MATCH(Y72+1,$B$6:$B$35750,0),3)*255+INDEX($H$6:$O$35750,MATCH(Y72+1,$B$6:$B$35750,0),5)*7500+INDEX($H$6:$O$35750,MATCH(Y72+1,$B$6:$B$35750,0),7)*870) - (INDEX($H$6:$O$35750,MATCH(Y72,$B$6:$B$35750,0),1)*748+INDEX($H$6:$O$35750,MATCH(Y72,$B$6:$B$35750,0),3)*255+INDEX($H$6:$O$35750,MATCH(Y72,$B$6:$B$35750,0),5)*7500+INDEX($H$6:$O$35750,MATCH(Y72,$B$6:$B$35750,0),7)*870)) /1.9835,"") -> 616.7562894 | AD72: 10400 | AE72: 11016.75629 | AF72: 11573.30176 | AH72: 5600 | AI72: 2019-03-05 | AJ72: =IF(Y72<User!$E$26,((INDEX($H$6:$O$35750,MATCH(Y72,$B$6:$B$35750,0),5)))) -> 2454.34558 | AK72: 723.0406352 | AL72: =IF(Y72<User!$E$26,((INDEX($H$6:$O$35750,MATCH(Y72,$B$6:$B$35750,0),1)))) -> 2797.683 | AM72: =IF(Y72<User!$E$26,((INDEX($H$6:$O$35750,MATCH(Y72,$B$6:$B$35750,0),3)))) -> 2653.816 | AN72: =IF(Y72<User!$E$26,((INDEX($H$6:$O$35750,MATCH(Y72,$B$6:$B$35750,0),7)))) -> 2313.661 | AO72: 3.881472143 | AP72: 2454.355993 | AQ72: 726.9221074 | AR72: 2797.683 | AS72: 2653.816 | AT72: 2313.661 | AV72: 3.881472143 | AW72: 1.136868377e-13 | AY72: 2019-03-05 | AZ72: NO | BA72: 2 | BB72: 4360 | BC72: 620.6377615 | BD72: 10400 | BE72: 11020.63776 | BF72: 11585.68709
A73: 69 | B73: 2018-12-27T17:15:00 | C73: 2018-12-27T17:15:00 | D73: =IF(VLOOKUP(C73,LwrSalmonFallsDam!$A$3:$B$35999,1,TRUE)=C73,VLOOKUP(C73,LwrSalmonFallsDam!$A$3:$B$35999,2,TRUE),NA()) -> 2797.714 | E73: =IF(VLOOKUP(C73,BlissDam!$A$3:$B$35999,1,TRUE)=C73,VLOOKUP(C73,BlissDam!$A$3:$B$35999,2,TRUE),NA()) -> 2653.816 | F73: =IF(VLOOKUP(C73,CJStageCalc!$A$3:$E$35999,1,TRUE)=C73,VLOOKUP(C73,CJStageCalc!$A$3:$E$35999,5,TRUE),NA()) -> 2454.870423 | G73: =IF(VLOOKUP(C73,SwanFallsDam!$A$3:$B$35999,1,TRUE)=C73,VLOOKUP(C73,SwanFallsDam!$A$3:$B$35999,2,TRUE),NA()) -> 2313.501 | J73: =IF(ISNUMBER(OFFSET(E73,$J$3,0)),OFFSET(E73,$J$3,0),"") ->  | L73: 2454.90734 | N73: 2313.262 | T73: 2303.839999 | V73: 884.268 | X73: 2019-03-06 | Y73: 2019-03-06 | Z73: NO | AA73: =IF(ISNUMBER(AB73),INDEX(SnakeatMilnerLagged!$D$2:$D$370,MATCH(AnnualAADFMonitoring!Y73,SnakeatMilnerLagged!$B$2:$B$370))*-1,"") -> 2 | AB73: =IF(ISNUMBER(MATCH(AnnualAADFMonitoring!Y73,SnakeatMilnerLagged!$B$2:$B$370)),INDEX(SnakeatMilnerLagged!$E$2:$E$370,MATCH(AnnualAADFMonitoring!Y73,SnakeatMilnerLagged!$B$2:$B$370)),"") -> 5340 | AC73: =IF(Y73<User!$E$26,((INDEX($H$6:$O$35750,MATCH(Y73+1,$B$6:$B$35750,0),1)*748+INDEX($H$6:$O$35750,MATCH(Y73+1,$B$6:$B$35750,0),3)*255+INDEX($H$6:$O$35750,MATCH(Y73+1,$B$6:$B$35750,0),5)*7500+INDEX($H$6:$O$35750,MATCH(Y73+1,$B$6:$B$35750,0),7)*870) - (INDEX($H$6:$O$35750,MATCH(Y73,$B$6:$B$35750,0),1)*748+INDEX($H$6:$O$35750,MATCH(Y73,$B$6:$B$35750,0),3)*255+INDEX($H$6:$O$35750,MATCH(Y73,$B$6:$B$35750,0),5)*7500+INDEX($H$6:$O$35750,MATCH(Y73,$B$6:$B$35750,0),7)*870)) /1.9835,"") -> -64.20564659 | AD73: 13100 | AE73: 13035.79435 | AF73: =IF(ISNUMBER(AE73),AVERAGE(AE71:AE73),NA()) -> 11726.49038 | AH73: 5600 | AI73: 2019-03-06 | AJ73: =IF(Y73<User!$E$26,((INDEX($H$6:$O$35750,MATCH(Y73,$B$6:$B$35750,0),5)))) -> 2454.5368 | AK73: 64.10441139 | AL73: =IF(Y73<User!$E$26,((INDEX($H$6:$O$35750,MATCH(Y73,$B$6:$B$35750,0),1)))) -> 2797.783 | AM73: =IF(Y73<User!$E$26,((INDEX($H$6:$O$35750,MATCH(Y73,$B$6:$B$35750,0),3)))) -> 2653.815 | AN73: =IF(Y73<User!$E$26,((INDEX($H$6:$O$35750,MATCH(Y73,$B$6:$B$35750,0),7)))) -> 2313.333 | AO73: -43.53471137 | AP73: 2454.54824 | AQ73: 20.56970002 | AR73: 2797.783 | AS73: 2653.815 | AT73: 2313.333 | AV73: -43.53471137 | AW73: 0 | AY73: 2019-03-06 | AZ73: NO | BA73: 2 | BB73: 5340 | BC73: -107.740358 | BD73: 13100 | BE73: 12992.25964 | BF73: 11734.53172
A74: 70 | B74: 2018-12-27T17:30:00.288 | C74: 2018-12-27T17:30:00 | D74: =IF(VLOOKUP(C74,LwrSalmonFallsDam!$A$3:$B$35999,1,TRUE)=C74,VLOOKUP(C74,LwrSalmonFallsDam!$A$3:$B$35999,2,TRUE),NA()) -> 2797.695 | E74: =IF(VLOOKUP(C74,BlissDam!$A$3:$B$35999,1,TRUE)=C74,VLOOKUP(C74,BlissDam!$A$3:$B$35999,2,TRUE),NA()) -> 2653.829 | F74: =IF(VLOOKUP(C74,CJStageCalc!$A$3:$E$35999,1,TRUE)=C74,VLOOKUP(C74,CJStageCalc!$A$3:$E$35999,5,TRUE),NA()) -> 2454.861777 | G74: =IF(VLOOKUP(C74,SwanFallsDam!$A$3:$B$35999,1,TRUE)=C74,VLOOKUP(C74,SwanFallsDam!$A$3:$B$35999,2,TRUE),NA()) -> 2313.519 | J74: =IF(ISNUMBER(OFFSET(E74,$J$3,0)),OFFSET(E74,$J$3,0),"") ->  | L74: 2454.903763 | N74: 2313.28 | T74: -1298.33 | V74: =IF(ISNUMBER(N73),(N74-N73)*$V$3*12.1*4,"") -> 757.944 | X74: 2019-03-07 | Y74: =Y73+1 -> 2019-03-07 | Z74: NO | AA74: =IF(ISNUMBER(AB74),INDEX(SnakeatMilnerLagged!$D$2:$D$370,MATCH(AnnualAADFMonitoring!Y74,SnakeatMilnerLagged!$B$2:$B$370))*-1,"") -> 2 | AB74: =IF(ISNUMBER(MATCH(AnnualAADFMonitoring!Y74,SnakeatMilnerLagged!$B$2:$B$370)),INDEX(SnakeatMilnerLagged!$E$2:$E$370,MATCH(AnnualAADFMonitoring!Y74,SnakeatMilnerLagged!$B$2:$B$370)),"") -> 5980 | AC74: =IF(Y74<User!$E$26,((INDEX($H$6:$O$35750,MATCH(Y74+1,$B$6:$B$35750,0),1)*748+INDEX($H$6:$O$35750,MATCH(Y74+1,$B$6:$B$35750,0),3)*255+INDEX($H$6:$O$35750,MATCH(Y74+1,$B$6:$B$35750,0),5)*7500+INDEX($H$6:$O$35750,MATCH(Y74+1,$B$6:$B$35750,0),7)*870) - (INDEX($H$6:$O$35750,MATCH(Y74,$B$6:$B$35750,0),1)*748+INDEX($H$6:$O$35750,MATCH(Y74,$B$6:$B$35750,0),3)*255+INDEX($H$6:$O$35750,MATCH(Y74,$B$6:$B$35750,0),5)*7500+INDEX($H$6:$O$35750,MATCH(Y74,$B$6:$B$35750,0),7)*870)) /1.9835,"") -> 243.5673809 | AD74: 12400 | AE74: 12643.56738 | AF74: 12232.03934 | AH74: 5600 | AI74: 2019-03-07 | AJ74: =IF(Y74<User!$E$26,((INDEX($H$6:$O$35750,MATCH(Y74,$B$6:$B$35750,0),5)))) -> 2454.553753 | AK74: 463.4100832 | AL74: =IF(Y74<User!$E$26,((INDEX($H$6:$O$35750,MATCH(Y74,$B$6:$B$35750,0),1)))) -> 2797.842 | AM74: =IF(Y74<User!$E$26,((INDEX($H$6:$O$35750,MATCH(Y74,$B$6:$B$35750,0),3)))) -> 2653.838 | AN74: =IF(Y74<User!$E$26,((INDEX($H$6:$O$35750,MATCH(Y74,$B$6:$B$35750,0),7)))) -> 2312.983 | AO74: 28.56117973 | AP74: 2454.55368 | AQ74: 491.9712629 | AR74: 2797.842 | AS74: 2653.838 | AT74: 2312.983 | AV74: 28.56117973 | AW74: 0 | AY74: 2019-03-07 | AZ74: NO | BA74: 2 | BB74: 5980 | BC74: 272.1285606 | BD74: 12400 | BE74: 12672.12856 | BF74: 12228.34199
A75: 71 | B75: 2018-12-27T17:44:59.712 | C75: 2018-12-27T17:45:00 | D75: =IF(VLOOKUP(C75,LwrSalmonFallsDam!$A$3:$B$35999,1,TRUE)=C75,VLOOKUP(C75,LwrSalmonFallsDam!$A$3:$B$35999,2,TRUE),NA()) -> 2797.721 | E75: =IF(VLOOKUP(C75,BlissDam!$A$3:$B$35999,1,TRUE)=C75,VLOOKUP(C75,BlissDam!$A$3:$B$35999,2,TRUE),NA()) -> 2653.838 | F75: =IF(VLOOKUP(C75,CJStageCalc!$A$3:$E$35999,1,TRUE)=C75,VLOOKUP(C75,CJStageCalc!$A$3:$E$35999,5,TRUE),NA()) -> 2454.85799 | G75: =IF(VLOOKUP(C75,SwanFallsDam!$A$3:$B$35999,1,TRUE)=C75,VLOOKUP(C75,SwanFallsDam!$A$3:$B$35999,2,TRUE),NA()) -> 2313.536 | L75: 2454.893803 | N75: 2313.299 | T75: -3615.48 | V75: 800.052 | X75: 2019-03-08 | Y75: 2019-03-08 | Z75: NO | AA75: =IF(ISNUMBER(AB75),INDEX(SnakeatMilnerLagged!$D$2:$D$370,MATCH(AnnualAADFMonitoring!Y75,SnakeatMilnerLagged!$B$2:$B$370))*-1,"") -> 2 | AB75: =IF(ISNUMBER(MATCH(AnnualAADFMonitoring!Y75,SnakeatMilnerLagged!$B$2:$B$370)),INDEX(SnakeatMilnerLagged!$E$2:$E$370,MATCH(AnnualAADFMonitoring!Y75,SnakeatMilnerLagged!$B$2:$B$370)),"") -> 5980 | AC75: =IF(Y75<User!$E$26,((INDEX($H$6:$O$35750,MATCH(Y75+1,$B$6:$B$35750,0),1)*748+INDEX($H$6:$O$35750,MATCH(Y75+1,$B$6:$B$35750,0),3)*255+INDEX($H$6:$O$35750,MATCH(Y75+1,$B$6:$B$35750,0),5)*7500+INDEX($H$6:$O$35750,MATCH(Y75+1,$B$6:$B$35750,0),7)*870) - (INDEX($H$6:$O$35750,MATCH(Y75,$B$6:$B$35750,0),1)*748+INDEX($H$6:$O$35750,MATCH(Y75,$B$6:$B$35750,0),3)*255+INDEX($H$6:$O$35750,MATCH(Y75,$B$6:$B$35750,0),5)*7500+INDEX($H$6:$O$35750,MATCH(Y75,$B$6:$B$35750,0),7)*870)) /1.9835,"") -> 882.5227628 | AD75: 12400 | AE75: 13282.52276 | AF75: 12987.29483 | AH75: 5600 | AI75: 2019-03-08 | AJ75: =IF(Y75<User!$E$26,((INDEX($H$6:$O$35750,MATCH(Y75,$B$6:$B$35750,0),5)))) -> 2454.67631 | AK75: 460.4733552 | AL75: =IF(Y75<User!$E$26,((INDEX($H$6:$O$35750,MATCH(Y75,$B$6:$B$35750,0),1)))) -> 2797.756 | AM75: =IF(Y75<User!$E$26,((INDEX($H$6:$O$35750,MATCH(Y75,$B$6:$B$35750,0),3)))) -> 2653.82 | AN75: =IF(Y75<User!$E$26,((INDEX($H$6:$O$35750,MATCH(Y75,$B$6:$B$35750,0),7)))) -> 2312.561 | AO75: -58.78442148 | AP75: 2454.68379 | AQ75: 401.6889337 | AR75: 2797.756 | AS75: 2653.82 | AT75: 2312.561 | AV75: -58.78442148 | AW75: 0 | AY75: 2019-03-08 | AZ75: NO | BA75: 2 | BB75: 5980 | BC75: 823.7383413 | BD75: 12400 | BE75: 13223.73834 | BF75: 12962.70885
A76: 72 | B76: 2018-12-27T18:00:00 | C76: 2018-12-27T18:00:00 | D76: =IF(VLOOKUP(C76,LwrSalmonFallsDam!$A$3:$B$35999,1,TRUE)=C76,VLOOKUP(C76,LwrSalmonFallsDam!$A$3:$B$35999,2,TRUE),NA()) -> 2797.746 | E76: =IF(VLOOKUP(C76,BlissDam!$A$3:$B$35999,1,TRUE)=C76,VLOOKUP(C76,BlissDam!$A$3:$B$35999,2,TRUE),NA()) -> 2653.848 | F76: =IF(VLOOKUP(C76,CJStageCalc!$A$3:$E$35999,1,TRUE)=C76,VLOOKUP(C76,CJStageCalc!$A$3:$E$35999,5,TRUE),NA()) -> 2454.86068 | G76: =IF(VLOOKUP(C76,SwanFallsDam!$A$3:$B$35999,1,TRUE)=C76,VLOOKUP(C76,SwanFallsDam!$A$3:$B$35999,2,TRUE),NA()) -> 2313.55 | L76: 2454.887023 | N76: 2313.323 | T76: -2461.14 | V76: 1010.592 | X76: 2019-03-09 | Y76: 2019-03-09 | Z76: NO | AA76: =IF(ISNUMBER(AB76),INDEX(SnakeatMilnerLagged!$D$2:$D$370,MATCH(AnnualAADFMonitoring!Y76,SnakeatMilnerLagged!$B$2:$B$370))*-1,"") -> 2 | AB76: =IF(ISNUMBER(MATCH(AnnualAADFMonitoring!Y76,SnakeatMilnerLagged!$B$2:$B$370)),INDEX(SnakeatMilnerLagged!$E$2:$E$370,MATCH(AnnualAADFMonitoring!Y76,SnakeatMilnerLagged!$B$2:$B$370)),"") -> 5970 | AC76: =IF(Y76<User!$E$26,((INDEX($H$6:$O$35750,MATCH(Y76+1,$B$6:$B$35750,0),1)*748+INDEX($H$6:$O$35750,MATCH(Y76+1,$B$6:$B$35750,0),3)*255+INDEX($H$6:$O$35750,MATCH(Y76+1,$B$6:$B$35750,0),5)*7500+INDEX($H$6:$O$35750,MATCH(Y76+1,$B$6:$B$35750,0),7)*870) - (INDEX($H$6:$O$35750,MATCH(Y76,$B$6:$B$35750,0),1)*748+INDEX($H$6:$O$35750,MATCH(Y76,$B$6:$B$35750,0),3)*255+INDEX($H$6:$O$35750,MATCH(Y76,$B$6:$B$35750,0),5)*7500+INDEX($H$6:$O$35750,MATCH(Y76,$B$6:$B$35750,0),7)*870)) /1.9835,"") -> -141.3546257 | AD76: 13600 | AE76: 13458.64537 | AF76: 13128.24517 | AH76: 5600 | AI76: 2019-03-09 | AJ76: =IF(Y76<User!$E$26,((INDEX($H$6:$O$35750,MATCH(Y76,$B$6:$B$35750,0),5)))) -> 2454.79809 | AK76: -138.6684648 | AL76: =IF(Y76<User!$E$26,((INDEX($H$6:$O$35750,MATCH(Y76,$B$6:$B$35750,0),1)))) -> 2797.681 | AM76: =IF(Y76<User!$E$26,((INDEX($H$6:$O$35750,MATCH(Y76,$B$6:$B$35750,0),3)))) -> 2653.819 | AN76: =IF(Y76<User!$E$26,((INDEX($H$6:$O$35750,MATCH(Y76,$B$6:$B$35750,0),7)))) -> 2313.588 | AO76: 35.49226115 | AP76: 2454.790023 | AQ76: -103.1762037 | AR76: 2797.681 | AS76: 2653.819 | AT76: 2313.588 | AV76: 35.49226115 | AW76: 0 | AY76: 2019-03-09 | AZ76: NO | BA76: 2 | BB76: 5970 | BC76: -105.8623645 | BD76: 13600 | BE76: 13494.13764 | BF76: 13130.00151
A77: 73 | B77: 2018-12-27T18:15:00.288 | C77: 2018-12-27T18:15:00 | D77: =IF(VLOOKUP(C77,LwrSalmonFallsDam!$A$3:$B$35999,1,TRUE)=C77,VLOOKUP(C77,LwrSalmonFallsDam!$A$3:$B$35999,2,TRUE),NA()) -> 2797.713 | E77: =IF(VLOOKUP(C77,BlissDam!$A$3:$B$35999,1,TRUE)=C77,VLOOKUP(C77,BlissDam!$A$3:$B$35999,2,TRUE),NA()) -> 2653.858 | F77: =IF(VLOOKUP(C77,CJStageCalc!$A$3:$E$35999,1,TRUE)=C77,VLOOKUP(C77,CJStageCalc!$A$3:$E$35999,5,TRUE),NA()) -> 2454.845083 | G77: =IF(VLOOKUP(C77,SwanFallsDam!$A$3:$B$35999,1,TRUE)=C77,VLOOKUP(C77,SwanFallsDam!$A$3:$B$35999,2,TRUE),NA()) -> 2313.568 | L77: 2454.886487 | N77: 2313.333 | T77: -194.9164801 | V77: 421.08 | X77: 2019-03-10 | Y77: 2019-03-10 | Z77: NO | AA77: =IF(ISNUMBER(AB77),INDEX(SnakeatMilnerLagged!$D$2:$D$370,MATCH(AnnualAADFMonitoring!Y77,SnakeatMilnerLagged!$B$2:$B$370))*-1,"") -> 2 | AB77: =IF(ISNUMBER(MATCH(AnnualAADFMonitoring!Y77,SnakeatMilnerLagged!$B$2:$B$370)),INDEX(SnakeatMilnerLagged!$E$2:$E$370,MATCH(AnnualAADFMonitoring!Y77,SnakeatMilnerLagged!$B$2:$B$370)),"") -> 5970 | AC77: =IF(Y77<User!$E$26,((INDEX($H$6:$O$35750,MATCH(Y77+1,$B$6:$B$35750,0),1)*748+INDEX($H$6:$O$35750,MATCH(Y77+1,$B$6:$B$35750,0),3)*255+INDEX($H$6:$O$35750,MATCH(Y77+1,$B$6:$B$35750,0),5)*7500+INDEX($H$6:$O$35750,MATCH(Y77+1,$B$6:$B$35750,0),7)*870) - (INDEX($H$6:$O$35750,MATCH(Y77,$B$6:$B$35750,0),1)*748+INDEX($H$6:$O$35750,MATCH(Y77,$B$6:$B$35750,0),3)*255+INDEX($H$6:$O$35750,MATCH(Y77,$B$6:$B$35750,0),5)*7500+INDEX($H$6:$O$35750,MATCH(Y77,$B$6:$B$35750,0),7)*870)) /1.9835,"") -> -394.0388203 | AD77: 13700 | AE77: 13305.96118 | AF77: 13349.04311 | AH77: 5600 | AI77: 2019-03-10 | AJ77: =IF(Y77<User!$E$26,((INDEX($H$6:$O$35750,MATCH(Y77,$B$6:$B$35750,0),5)))) -> 2454.761417 | AK77: -399.0420973 | AL77: =IF(Y77<User!$E$26,((INDEX($H$6:$O$35750,MATCH(Y77,$B$6:$B$35750,0),1)))) -> 2797.645 | AM77: =IF(Y77<User!$E$26,((INDEX($H$6:$O$35750,MATCH(Y77,$B$6:$B$35750,0),3)))) -> 2653.873 | AN77: =IF(Y77<User!$E$26,((INDEX($H$6:$O$35750,MATCH(Y77,$B$6:$B$35750,0),7)))) -> 2313.597 | AO77: -14.97353164 | AP77: 2454.762737 | AQ77: -414.0156289 | AR77: 2797.645 | AS77: 2653.873 | AT77: 2313.597 | AV77: -14.97353164 | AW77: 5.684341886e-14 | AY77: 2019-03-10 | AZ77: NO | BA77: 2 | BB77: 5970 | BC77: -409.0123519 | BD77: 13700 | BE77: 13290.98765 | BF77: 13336.28787
A78: 74 | B78: 2018-12-27T18:29:59.712 | C78: 2018-12-27T18:30:00 | D78: =IF(VLOOKUP(C78,LwrSalmonFallsDam!$A$3:$B$35999,1,TRUE)=C78,VLOOKUP(C78,LwrSalmonFallsDam!$A$3:$B$35999,2,TRUE),NA()) -> 2797.75 | E78: =IF(VLOOKUP(C78,BlissDam!$A$3:$B$35999,1,TRUE)=C78,VLOOKUP(C78,BlissDam!$A$3:$B$35999,2,TRUE),NA()) -> 2653.864 | F78: =IF(VLOOKUP(C78,CJStageCalc!$A$3:$E$35999,1,TRUE)=C78,VLOOKUP(C78,CJStageCalc!$A$3:$E$35999,5,TRUE),NA()) -> 2454.840093 | G78: =IF(VLOOKUP(C78,SwanFallsDam!$A$3:$B$35999,1,TRUE)=C78,VLOOKUP(C78,SwanFallsDam!$A$3:$B$35999,2,TRUE),NA()) -> 2313.59 | H78: =IF(ISNUMBER(OFFSET(D78,$H$3,0)),OFFSET(D78,$H$3,0),"") ->  | L78: 2454.88079 | N78: 2313.371 | T78: -2067.83676 | V78: 1600.104 | X78: 2019-03-11 | Y78: 2019-03-11 | Z78: NO | AA78: =IF(ISNUMBER(AB78),INDEX(SnakeatMilnerLagged!$D$2:$D$370,MATCH(AnnualAADFMonitoring!Y78,SnakeatMilnerLagged!$B$2:$B$370))*-1,"") -> 2 | AB78: =IF(ISNUMBER(MATCH(AnnualAADFMonitoring!Y78,SnakeatMilnerLagged!$B$2:$B$370)),INDEX(SnakeatMilnerLagged!$E$2:$E$370,MATCH(AnnualAADFMonitoring!Y78,SnakeatMilnerLagged!$B$2:$B$370)),"") -> 5970 | AC78: =IF(Y78<User!$E$26,((INDEX($H$6:$O$35750,MATCH(Y78+1,$B$6:$B$35750,0),1)*748+INDEX($H$6:$O$35750,MATCH(Y78+1,$B$6:$B$35750,0),3)*255+INDEX($H$6:$O$35750,MATCH(Y78+1,$B$6:$B$35750,0),5)*7500+INDEX($H$6:$O$35750,MATCH(Y78+1,$B$6:$B$35750,0),7)*870) - (INDEX($H$6:$O$35750,MATCH(Y78,$B$6:$B$35750,0),1)*748+INDEX($H$6:$O$35750,MATCH(Y78,$B$6:$B$35750,0),3)*255+INDEX($H$6:$O$35750,MATCH(Y78,$B$6:$B$35750,0),5)*7500+INDEX($H$6:$O$35750,MATCH(Y78,$B$6:$B$35750,0),7)*870)) /1.9835,"") -> 172.5550794 | AD78: 12700 | AE78: 12872.55508 | AF78: 13212.38721 | AH78: 5600 | AI78: 2019-03-11 | AJ78: =IF(Y78<User!$E$26,((INDEX($H$6:$O$35750,MATCH(Y78,$B$6:$B$35750,0),5)))) -> 2454.655883 | AK78: 25.01890597 | AL78: =IF(Y78<User!$E$26,((INDEX($H$6:$O$35750,MATCH(Y78,$B$6:$B$35750,0),1)))) -> 2797.798 | AM78: =IF(Y78<User!$E$26,((INDEX($H$6:$O$35750,MATCH(Y78,$B$6:$B$35750,0),3)))) -> 2653.835 | AN78: =IF(Y78<User!$E$26,((INDEX($H$6:$O$35750,MATCH(Y78,$B$6:$B$35750,0),7)))) -> 2313.488 | AO78: 1.663725736 | AP78: 2454.653243 | AQ78: 26.68263171 | AR78: 2797.798 | AS78: 2653.835 | AT78: 2313.488 | AV78: 1.663725736 | AW78: 1.065814104e-14 | AY78: 2019-03-11 | AZ78: NO | BA78: 2 | BB78: 5970 | BC78: 174.2188051 | BD78: 12700 | BE78: 12874.21881 | BF78: 13219.78136
A79: 75 | B79: 2018-12-27T18:45:00 | C79: 2018-12-27T18:45:00 | D79: =IF(VLOOKUP(C79,LwrSalmonFallsDam!$A$3:$B$35999,1,TRUE)=C79,VLOOKUP(C79,LwrSalmonFallsDam!$A$3:$B$35999,2,TRUE),NA()) -> 2797.741 | E79: =IF(VLOOKUP(C79,BlissDam!$A$3:$B$35999,1,TRUE)=C79,VLOOKUP(C79,BlissDam!$A$3:$B$35999,2,TRUE),NA()) -> 2653.862 | F79: =IF(VLOOKUP(C79,CJStageCalc!$A$3:$E$35999,1,TRUE)=C79,VLOOKUP(C79,CJStageCalc!$A$3:$E$35999,5,TRUE),NA()) -> 2454.84258 | G79: =IF(VLOOKUP(C79,SwanFallsDam!$A$3:$B$35999,1,TRUE)=C79,VLOOKUP(C79,SwanFallsDam!$A$3:$B$35999,2,TRUE),NA()) -> 2313.615 | L79: 2454.884453 | N79: 2313.391 | T79: 1329.736759 | V79: 842.16 | X79: 2019-03-12 | Y79: 2019-03-12 | Z79: NO | AA79: =IF(ISNUMBER(AB79),INDEX(SnakeatMilnerLagged!$D$2:$D$370,MATCH(AnnualAADFMonitoring!Y79,SnakeatMilnerLagged!$B$2:$B$370))*-1,"") -> 2 | AB79: =IF(ISNUMBER(MATCH(AnnualAADFMonitoring!Y79,SnakeatMilnerLagged!$B$2:$B$370)),INDEX(SnakeatMilnerLagged!$E$2:$E$370,MATCH(AnnualAADFMonitoring!Y79,SnakeatMilnerLagged!$B$2:$B$370)),"") -> 5970 | AC79: =IF(Y79<User!$E$26,((INDEX($H$6:$O$35750,MATCH(Y79+1,$B$6:$B$35750,0),1)*748+INDEX($H$6:$O$35750,MATCH(Y79+1,$B$6:$B$35750,0),3)*255+INDEX($H$6:$O$35750,MATCH(Y79+1,$B$6:$B$35750,0),5)*7500+INDEX($H$6:$O$35750,MATCH(Y79+1,$B$6:$B$35750,0),7)*870) - (INDEX($H$6:$O$35750,MATCH(Y79,$B$6:$B$35750,0),1)*748+INDEX($H$6:$O$35750,MATCH(Y79,$B$6:$B$35750,0),3)*255+INDEX($H$6:$O$35750,MATCH(Y79,$B$6:$B$35750,0),5)*7500+INDEX($H$6:$O$35750,MATCH(Y79,$B$6:$B$35750,0),7)*870)) /1.9835,"") -> 259.9531132 | AD79: 12300 | AE79: 12559.95311 | AF79: 12912.82312 | AH79: 5600 | AI79: 2019-03-12 | AJ79: =IF(Y79<User!$E$26,((INDEX($H$6:$O$35750,MATCH(Y79,$B$6:$B$35750,0),5)))) -> 2454.6625 | AK79: 515.9062264 | AL79: =IF(Y79<User!$E$26,((INDEX($H$6:$O$35750,MATCH(Y79,$B$6:$B$35750,0),1)))) -> 2797.789 | AM79: =IF(Y79<User!$E$26,((INDEX($H$6:$O$35750,MATCH(Y79,$B$6:$B$35750,0),3)))) -> 2653.849 | AN79: =IF(Y79<User!$E$26,((INDEX($H$6:$O$35750,MATCH(Y79,$B$6:$B$35750,0),7)))) -> 2313.828 | AO79: 39.9294177 | AP79: 2454.6603 | AQ79: 555.8356441 | AR79: 2797.789 | AS79: 2653.849 | AT79: 2313.828 | AV79: 39.9294177 | AW79: -5.684341886e-14 | AY79: 2019-03-12 | AZ79: NO | BA79: 2 | BB79: 5970 | BC79: 299.8825309 | BD79: 12300 | BE79: 12599.88253 | BF79: 12921.69633
A80: 76 | B80: 2018-12-27T19:00:00.288 | C80: 2018-12-27T19:00:00 | D80: =IF(VLOOKUP(C80,LwrSalmonFallsDam!$A$3:$B$35999,1,TRUE)=C80,VLOOKUP(C80,LwrSalmonFallsDam!$A$3:$B$35999,2,TRUE),NA()) -> 2797.731 | E80: =IF(VLOOKUP(C80,BlissDam!$A$3:$B$35999,1,TRUE)=C80,VLOOKUP(C80,BlissDam!$A$3:$B$35999,2,TRUE),NA()) -> 2653.862 | F80: =IF(VLOOKUP(C80,CJStageCalc!$A$3:$E$35999,1,TRUE)=C80,VLOOKUP(C80,CJStageCalc!$A$3:$E$35999,5,TRUE),NA()) -> 2454.8435 | G80: =IF(VLOOKUP(C80,SwanFallsDam!$A$3:$B$35999,1,TRUE)=C80,VLOOKUP(C80,SwanFallsDam!$A$3:$B$35999,2,TRUE),NA()) -> 2313.627 | L80: 2454.878587 | N80: 2313.411 | T80: -2129.54676 | V80: 842.16 | X80: 2019-03-13 | Y80: 2019-03-13 | Z80: NO | AA80: =IF(ISNUMBER(AB80),INDEX(SnakeatMilnerLagged!$D$2:$D$370,MATCH(AnnualAADFMonitoring!Y80,SnakeatMilnerLagged!$B$2:$B$370))*-1,"") -> 2 | AB80: =IF(ISNUMBER(MATCH(AnnualAADFMonitoring!Y80,SnakeatMilnerLagged!$B$2:$B$370)),INDEX(SnakeatMilnerLagged!$E$2:$E$370,MATCH(AnnualAADFMonitoring!Y80,SnakeatMilnerLagged!$B$2:$B$370)),"") -> 5970 | AC80: =IF(Y80<User!$E$26,((INDEX($H$6:$O$35750,MATCH(Y80+1,$B$6:$B$35750,0),1)*748+INDEX($H$6:$O$35750,MATCH(Y80+1,$B$6:$B$35750,0),3)*255+INDEX($H$6:$O$35750,MATCH(Y80+1,$B$6:$B$35750,0),5)*7500+INDEX($H$6:$O$35750,MATCH(Y80+1,$B$6:$B$35750,0),7)*870) - (INDEX($H$6:$O$35750,MATCH(Y80,$B$6:$B$35750,0),1)*748+INDEX($H$6:$O$35750,MATCH(Y80,$B$6:$B$35750,0),3)*255+INDEX($H$6:$O$35750,MATCH(Y80,$B$6:$B$35750,0),5)*7500+INDEX($H$6:$O$35750,MATCH(Y80,$B$6:$B$35750,0),7)*870)) /1.9835,"") -> 423.71515 | AD80: 11900 | AE80: 12323.71515 | AF80: 12585.40778 | AH80: 5600 | AI80: 2019-03-13 | AJ80: =IF(Y80<User!$E$26,((INDEX($H$6:$O$35750,MATCH(Y80,$B$6:$B$35750,0),5)))) -> 2454.79894 | AK80: 570.1537686 | AL80: =IF(Y80<User!$E$26,((INDEX($H$6:$O$35750,MATCH(Y80,$B$6:$B$35750,0),1)))) -> 2797.853 | AM80: =IF(Y80<User!$E$26,((INDEX($H$6:$O$35750,MATCH(Y80,$B$6:$B$35750,0),3)))) -> 2653.888 | AN80: =IF(Y80<User!$E$26,((INDEX($H$6:$O$35750,MATCH(Y80,$B$6:$B$35750,0),7)))) -> 2313.178 | AO80: -1.878220246e-09 | AP80: 2454.8073 | AQ80: 570.1537686 | AR80: 2797.853 | AS80: 2653.888 | AT80: 2313.178 | AV80: 0 | AW80: 1.878220246e-09 | AY80: 2019-03-13 | AZ80: NO | BA80: 2 | BB80: 5970 | BC80: 423.71515 | BD80: 11900 | BE80: 12323.71515 | BF80: 12599.27216
A81: 77 | B81: 2018-12-27T19:14:59.712 | C81: 2018-12-27T19:15:00 | D81: =IF(VLOOKUP(C81,LwrSalmonFallsDam!$A$3:$B$35999,1,TRUE)=C81,VLOOKUP(C81,LwrSalmonFallsDam!$A$3:$B$35999,2,TRUE),NA()) -> 2797.708 | E81: =IF(VLOOKUP(C81,BlissDam!$A$3:$B$35999,1,TRUE)=C81,VLOOKUP(C81,BlissDam!$A$3:$B$35999,2,TRUE),NA()) -> 2653.858 | F81: =IF(VLOOKUP(C81,CJStageCalc!$A$3:$E$35999,1,TRUE)=C81,VLOOKUP(C81,CJStageCalc!$A$3:$E$35999,5,TRUE),NA()) -> 2454.833813 | G81: =IF(VLOOKUP(C81,SwanFallsDam!$A$3:$B$35999,1,TRUE)=C81,VLOOKUP(C81,SwanFallsDam!$A$3:$B$35999,2,TRUE),NA()) -> 2313.651 | L81: 2454.8753 | N81: 2313.428 | T81: -1193.06 | V81: 715.836 | X81: 2019-03-14 | Y81: 2019-03-14 | Z81: NO | AA81: =IF(ISNUMBER(AB81),INDEX(SnakeatMilnerLagged!$D$2:$D$370,MATCH(AnnualAADFMonitoring!Y81,SnakeatMilnerLagged!$B$2:$B$370))*-1,"") -> 2 | AB81: =IF(ISNUMBER(MATCH(AnnualAADFMonitoring!Y81,SnakeatMilnerLagged!$B$2:$B$370)),INDEX(SnakeatMilnerLagged!$E$2:$E$370,MATCH(AnnualAADFMonitoring!Y81,SnakeatMilnerLagged!$B$2:$B$370)),"") -> 5890 | AC81: =IF(Y81<User!$E$26,((INDEX($H$6:$O$35750,MATCH(Y81+1,$B$6:$B$35750,0),1)*748+INDEX($H$6:$O$35750,MATCH(Y81+1,$B$6:$B$35750,0),3)*255+INDEX($H$6:$O$35750,MATCH(Y81+1,$B$6:$B$35750,0),5)*7500+INDEX($H$6:$O$35750,MATCH(Y81+1,$B$6:$B$35750,0),7)*870) - (INDEX($H$6:$O$35750,MATCH(Y81,$B$6:$B$35750,0),1)*748+INDEX($H$6:$O$35750,MATCH(Y81,$B$6:$B$35750,0),3)*255+INDEX($H$6:$O$35750,MATCH(Y81,$B$6:$B$35750,0),5)*7500+INDEX($H$6:$O$35750,MATCH(Y81,$B$6:$B$35750,0),7)*870)) /1.9835,"") -> -76.15724729 | AD81: 12900 | AE81: 12823.84275 | AF81: 12569.17034 | AH81: 5600 | AI81: 2019-03-14 | AJ81: =IF(Y81<User!$E$26,((INDEX($H$6:$O$35750,MATCH(Y81,$B$6:$B$35750,0),5)))) -> 2454.949727 | AK81: -229.4171414 | AL81: =IF(Y81<User!$E$26,((INDEX($H$6:$O$35750,MATCH(Y81,$B$6:$B$35750,0),1)))) -> 2797.651 | AM81: =IF(Y81<User!$E$26,((INDEX($H$6:$O$35750,MATCH(Y81,$B$6:$B$35750,0),3)))) -> 2653.901 | AN81: =IF(Y81<User!$E$26,((INDEX($H$6:$O$35750,MATCH(Y81,$B$6:$B$35750,0),7)))) -> 2313.014 | AO81: -41.87098563 | AP81: 2454.958087 | AQ81: -271.288127 | AR81: 2797.651 | AS81: 2653.901 | AT81: 2313.014 | AV81: -41.87098563 | AW81: -1.87812077e-09 | AY81: 2019-03-14 | AZ81: NO | BA81: 2 | BB81: 5890 | BC81: -118.0282329 | BD81: 12900 | BE81: 12781.97177 | BF81: 12568.52315
A82: 78 | B82: 2018-12-27T19:30:00 | C82: 2018-12-27T19:30:00 | D82: =IF(VLOOKUP(C82,LwrSalmonFallsDam!$A$3:$B$35999,1,TRUE)=C82,VLOOKUP(C82,LwrSalmonFallsDam!$A$3:$B$35999,2,TRUE),NA()) -> 2797.723 | E82: =IF(VLOOKUP(C82,BlissDam!$A$3:$B$35999,1,TRUE)=C82,VLOOKUP(C82,BlissDam!$A$3:$B$35999,2,TRUE),NA()) -> 2653.852 | F82: =IF(VLOOKUP(C82,CJStageCalc!$A$3:$E$35999,1,TRUE)=C82,VLOOKUP(C82,CJStageCalc!$A$3:$E$35999,5,TRUE),NA()) -> 2454.83594 | G82: =IF(VLOOKUP(C82,SwanFallsDam!$A$3:$B$35999,1,TRUE)=C82,VLOOKUP(C82,SwanFallsDam!$A$3:$B$35999,2,TRUE),NA()) -> 2313.656 | L82: 2454.871287 | N82: 2313.442 | T82: -1456.893239 | V82: 589.512 | X82: 2019-03-15 | Y82: 2019-03-15 | Z82: NO | AA82: =IF(ISNUMBER(AB82),INDEX(SnakeatMilnerLagged!$D$2:$D$370,MATCH(AnnualAADFMonitoring!Y82,SnakeatMilnerLagged!$B$2:$B$370))*-1,"") -> 2 | AB82: =IF(ISNUMBER(MATCH(AnnualAADFMonitoring!Y82,SnakeatMilnerLagged!$B$2:$B$370)),INDEX(SnakeatMilnerLagged!$E$2:$E$370,MATCH(AnnualAADFMonitoring!Y82,SnakeatMilnerLagged!$B$2:$B$370)),"") -> 5740 | AC82: =IF(Y82<User!$E$26,((INDEX($H$6:$O$35750,MATCH(Y82+1,$B$6:$B$35750,0),1)*748+INDEX($H$6:$O$35750,MATCH(Y82+1,$B$6:$B$35750,0),3)*255+INDEX($H$6:$O$35750,MATCH(Y82+1,$B$6:$B$35750,0),5)*7500+INDEX($H$6:$O$35750,MATCH(Y82+1,$B$6:$B$35750,0),7)*870) - (INDEX($H$6:$O$35750,MATCH(Y82,$B$6:$B$35750,0),1)*748+INDEX($H$6:$O$35750,MATCH(Y82,$B$6:$B$35750,0),3)*255+INDEX($H$6:$O$35750,MATCH(Y82,$B$6:$B$35750,0),5)*7500+INDEX($H$6:$O$35750,MATCH(Y82,$B$6:$B$35750,0),7)*870)) /1.9835,"") -> -641.8704815 | AD82: 13100 | AE82: 12458.12952 | AF82: 12535.22914 | AH82: 5600 | AI82: 2019-03-15 | AJ82: =IF(Y82<User!$E$26,((INDEX($H$6:$O$35750,MATCH(Y82,$B$6:$B$35750,0),5)))) -> 2454.889053 | AK82: -404.7900681 | AL82: =IF(Y82<User!$E$26,((INDEX($H$6:$O$35750,MATCH(Y82,$B$6:$B$35750,0),1)))) -> 2797.778 | AM82: =IF(Y82<User!$E$26,((INDEX($H$6:$O$35750,MATCH(Y82,$B$6:$B$35750,0),3)))) -> 2653.912 | AN82: =IF(Y82<User!$E$26,((INDEX($H$6:$O$35750,MATCH(Y82,$B$6:$B$35750,0),7)))) -> 2313.251 | AO82: -9.704512226 | AP82: 2454.88634 | AQ82: -414.4945803 | AR82: 2797.778 | AS82: 2653.912 | AT82: 2313.251 | AV82: -9.704512226 | AW82: 5.684341886e-14 | AY82: 2019-03-15 | AZ82: NO | BA82: 2 | BB82: 5740 | BC82: -651.5749937 | BD82: 13100 | BE82: 12448.42501 | BF82: 12518.03731
A83: 79 | B83: 2018-12-27T19:45:00.288 | C83: 2018-12-27T19:45:00 | D83: =IF(VLOOKUP(C83,LwrSalmonFallsDam!$A$3:$B$35999,1,TRUE)=C83,VLOOKUP(C83,LwrSalmonFallsDam!$A$3:$B$35999,2,TRUE),NA()) -> 2797.783 | E83: =IF(VLOOKUP(C83,BlissDam!$A$3:$B$35999,1,TRUE)=C83,VLOOKUP(C83,BlissDam!$A$3:$B$35999,2,TRUE),NA()) -> 2653.847 | F83: =IF(VLOOKUP(C83,CJStageCalc!$A$3:$E$35999,1,TRUE)=C83,VLOOKUP(C83,CJStageCalc!$A$3:$E$35999,5,TRUE),NA()) -> 2454.832527 | G83: =IF(VLOOKUP(C83,SwanFallsDam!$A$3:$B$35999,1,TRUE)=C83,VLOOKUP(C83,SwanFallsDam!$A$3:$B$35999,2,TRUE),NA()) -> 2313.673 | L83: 2454.864797 | N83: 2313.466 | T83: -2355.76352 | V83: 1010.592 | X83: 2019-03-16 | Y83: 2019-03-16 | Z83: NO | AA83: =IF(ISNUMBER(AB83),INDEX(SnakeatMilnerLagged!$D$2:$D$370,MATCH(AnnualAADFMonitoring!Y83,SnakeatMilnerLagged!$B$2:$B$370))*-1,"") -> 2 | AB83: =IF(ISNUMBER(MATCH(AnnualAADFMonitoring!Y83,SnakeatMilnerLagged!$B$2:$B$370)),INDEX(SnakeatMilnerLagged!$E$2:$E$370,MATCH(AnnualAADFMonitoring!Y83,SnakeatMilnerLagged!$B$2:$B$370)),"") -> 5740 | AC83: =IF(Y83<User!$E$26,((INDEX($H$6:$O$35750,MATCH(Y83+1,$B$6:$B$35750,0),1)*748+INDEX($H$6:$O$35750,MATCH(Y83+1,$B$6:$B$35750,0),3)*255+INDEX($H$6:$O$35750,MATCH(Y83+1,$B$6:$B$35750,0),5)*7500+INDEX($H$6:$O$35750,MATCH(Y83+1,$B$6:$B$35750,0),7)*870) - (INDEX($H$6:$O$35750,MATCH(Y83,$B$6:$B$35750,0),1)*748+INDEX($H$6:$O$35750,MATCH(Y83,$B$6:$B$35750,0),3)*255+INDEX($H$6:$O$35750,MATCH(Y83,$B$6:$B$35750,0),5)*7500+INDEX($H$6:$O$35750,MATCH(Y83,$B$6:$B$35750,0),7)*870)) /1.9835,"") -> -168.0438619 | AD83: 12400 | AE83: 12231.95614 | AF83: 12504.6428 | AH83: 5600 | AI83: 2019-03-16 | AJ83: =IF(Y83<User!$E$26,((INDEX($H$6:$O$35750,MATCH(Y83,$B$6:$B$35750,0),5)))) -> 2454.782 | AK83: -174.4265188 | AL83: =IF(Y83<User!$E$26,((INDEX($H$6:$O$35750,MATCH(Y83,$B$6:$B$35750,0),1)))) -> 2797.695 | AM83: =IF(Y83<User!$E$26,((INDEX($H$6:$O$35750,MATCH(Y83,$B$6:$B$35750,0),3)))) -> 2653.833 | AN83: =IF(Y83<User!$E$26,((INDEX($H$6:$O$35750,MATCH(Y83,$B$6:$B$35750,0),7)))) -> 2312.805 | AO83: 65.71716663 | AP83: 2454.77672 | AQ83: -108.7093522 | AR83: 2797.695 | AS83: 2653.833 | AT83: 2312.805 | AV83: 65.71716663 | AW83: 0 | AY83: 2019-03-16 | AZ83: NO | BA83: 2 | BB83: 5740 | BC83: -102.3266952 | BD83: 12400 | BE83: 12297.6733 | BF83: 12509.35669
A84: 80 | B84: 2018-12-27T19:59:59.712 | C84: 2018-12-27T20:00:00 | D84: =IF(VLOOKUP(C84,LwrSalmonFallsDam!$A$3:$B$35999,1,TRUE)=C84,VLOOKUP(C84,LwrSalmonFallsDam!$A$3:$B$35999,2,TRUE),NA()) -> 2797.733 | E84: =IF(VLOOKUP(C84,BlissDam!$A$3:$B$35999,1,TRUE)=C84,VLOOKUP(C84,BlissDam!$A$3:$B$35999,2,TRUE),NA()) -> 2653.849 | F84: =IF(VLOOKUP(C84,CJStageCalc!$A$3:$E$35999,1,TRUE)=C84,VLOOKUP(C84,CJStageCalc!$A$3:$E$35999,5,TRUE),NA()) -> 2454.827857 | G84: =IF(VLOOKUP(C84,SwanFallsDam!$A$3:$B$35999,1,TRUE)=C84,VLOOKUP(C84,SwanFallsDam!$A$3:$B$35999,2,TRUE),NA()) -> 2313.673 | L84: 2454.859427 | N84: 2313.484 | T84: -1949.36324 | V84: 757.944 | X84: 2019-03-17 | Y84: 2019-03-17 | Z84: NO | AA84: =IF(ISNUMBER(AB84),INDEX(SnakeatMilnerLagged!$D$2:$D$370,MATCH(AnnualAADFMonitoring!Y84,SnakeatMilnerLagged!$B$2:$B$370))*-1,"") -> 2 | AB84: =IF(ISNUMBER(MATCH(AnnualAADFMonitoring!Y84,SnakeatMilnerLagged!$B$2:$B$370)),INDEX(SnakeatMilnerLagged!$E$2:$E$370,MATCH(AnnualAADFMonitoring!Y84,SnakeatMilnerLagged!$B$2:$B$370)),"") -> 5740 | AC84: =IF(Y84<User!$E$26,((INDEX($H$6:$O$35750,MATCH(Y84+1,$B$6:$B$35750,0),1)*748+INDEX($H$6:$O$35750,MATCH(Y84+1,$B$6:$B$35750,0),3)*255+INDEX($H$6:$O$35750,MATCH(Y84+1,$B$6:$B$35750,0),5)*7500+INDEX($H$6:$O$35750,MATCH(Y84+1,$B$6:$B$35750,0),7)*870) - (INDEX($H$6:$O$35750,MATCH(Y84,$B$6:$B$35750,0),1)*748+INDEX($H$6:$O$35750,MATCH(Y84,$B$6:$B$35750,0),3)*255+INDEX($H$6:$O$35750,MATCH(Y84,$B$6:$B$35750,0),5)*7500+INDEX($H$6:$O$35750,MATCH(Y84,$B$6:$B$35750,0),7)*870)) /1.9835,"") -> 190.6862112 | AD84: 12100 | AE84: 12290.68621 | AF84: 12326.92396 | AH84: 5600 | AI84: 2019-03-17 | AJ84: =IF(Y84<User!$E$26,((INDEX($H$6:$O$35750,MATCH(Y84,$B$6:$B$35750,0),5)))) -> 2454.73587 | AK84: 17.30582304 | AL84: =IF(Y84<User!$E$26,((INDEX($H$6:$O$35750,MATCH(Y84,$B$6:$B$35750,0),1)))) -> 2797.71 | AM84: =IF(Y84<User!$E$26,((INDEX($H$6:$O$35750,MATCH(Y84,$B$6:$B$35750,0),3)))) -> 2653.883 | AN84: =IF(Y84<User!$E$26,((INDEX($H$6:$O$35750,MATCH(Y84,$B$6:$B$35750,0),7)))) -> 2312.792 | AO84: 3.049609277 | AP84: 2454.74797 | AQ84: 20.35543232 | AR84: 2797.71 | AS84: 2653.883 | AT84: 2312.792 | AV84: 3.049609277 | AW84: 3.552713679e-15 | AY84: 2019-03-17 | AZ84: NO | BA84: 2 | BB84: 5740 | BC84: 193.7358205 | BD84: 12100 | BE84: 12293.73582 | BF84: 12346.61138
A85: 81 | B85: 2018-12-27T20:15:00 | C85: 2018-12-27T20:15:00 | D85: =IF(VLOOKUP(C85,LwrSalmonFallsDam!$A$3:$B$35999,1,TRUE)=C85,VLOOKUP(C85,LwrSalmonFallsDam!$A$3:$B$35999,2,TRUE),NA()) -> 2797.769 | E85: =IF(VLOOKUP(C85,BlissDam!$A$3:$B$35999,1,TRUE)=C85,VLOOKUP(C85,BlissDam!$A$3:$B$35999,2,TRUE),NA()) -> 2653.848 | F85: =IF(VLOOKUP(C85,CJStageCalc!$A$3:$E$35999,1,TRUE)=C85,VLOOKUP(C85,CJStageCalc!$A$3:$E$35999,5,TRUE),NA()) -> 2454.815257 | G85: =IF(VLOOKUP(C85,SwanFallsDam!$A$3:$B$35999,1,TRUE)=C85,VLOOKUP(C85,SwanFallsDam!$A$3:$B$35999,2,TRUE),NA()) -> 2313.66 | L85: 2454.858847 | N85: 2313.501 | T85: -210.5932401 | V85: 715.836 | X85: 2019-03-18 | Y85: 2019-03-18 | Z85: NO | AA85: =IF(ISNUMBER(AB85),INDEX(SnakeatMilnerLagged!$D$2:$D$370,MATCH(AnnualAADFMonitoring!Y85,SnakeatMilnerLagged!$B$2:$B$370))*-1,"") -> 2 | AB85: =IF(ISNUMBER(MATCH(AnnualAADFMonitoring!Y85,SnakeatMilnerLagged!$B$2:$B$370)),INDEX(SnakeatMilnerLagged!$E$2:$E$370,MATCH(AnnualAADFMonitoring!Y85,SnakeatMilnerLagged!$B$2:$B$370)),"") -> 5750 | AC85: =IF(Y85<User!$E$26,((INDEX($H$6:$O$35750,MATCH(Y85+1,$B$6:$B$35750,0),1)*748+INDEX($H$6:$O$35750,MATCH(Y85+1,$B$6:$B$35750,0),3)*255+INDEX($H$6:$O$35750,MATCH(Y85+1,$B$6:$B$35750,0),5)*7500+INDEX($H$6:$O$35750,MATCH(Y85+1,$B$6:$B$35750,0),7)*870) - (INDEX($H$6:$O$35750,MATCH(Y85,$B$6:$B$35750,0),1)*748+INDEX($H$6:$O$35750,MATCH(Y85,$B$6:$B$35750,0),3)*255+INDEX($H$6:$O$35750,MATCH(Y85,$B$6:$B$35750,0),5)*7500+INDEX($H$6:$O$35750,MATCH(Y85,$B$6:$B$35750,0),7)*870)) /1.9835,"") -> -8.973531645 | AD85: 12700 | AE85: 12691.02647 | AF85: 12404.55627 | AH85: 5600 | AI85: 2019-03-18 | AJ85: =IF(Y85<User!$E$26,((INDEX($H$6:$O$35750,MATCH(Y85,$B$6:$B$35750,0),5)))) -> 2454.740447 | AK85: -80.52684649 | AL85: =IF(Y85<User!$E$26,((INDEX($H$6:$O$35750,MATCH(Y85,$B$6:$B$35750,0),1)))) -> 2797.705 | AM85: =IF(Y85<User!$E$26,((INDEX($H$6:$O$35750,MATCH(Y85,$B$6:$B$35750,0),3)))) -> 2653.827 | AN85: =IF(Y85<User!$E$26,((INDEX($H$6:$O$35750,MATCH(Y85,$B$6:$B$35750,0),7)))) -> 2313.208 | AO85: -61.55785228 | AP85: 2454.753353 | AQ85: -142.0846988 | AR85: 2797.705 | AS85: 2653.827 | AT85: 2313.208 | AV85: -61.55785229 | AW85: -1.878156297e-09 | AY85: 2019-03-18 | AZ85: NO | BA85: 2 | BB85: 5750 | BC85: -70.53138393 | BD85: 12700 | BE85: 12629.46862 | BF85: 12406.95925
A86: 82 | B86: 2018-12-27T20:30:00.288 | C86: 2018-12-27T20:30:00 | D86: =IF(VLOOKUP(C86,LwrSalmonFallsDam!$A$3:$B$35999,1,TRUE)=C86,VLOOKUP(C86,LwrSalmonFallsDam!$A$3:$B$35999,2,TRUE),NA()) -> 2797.658 | E86: =IF(VLOOKUP(C86,BlissDam!$A$3:$B$35999,1,TRUE)=C86,VLOOKUP(C86,BlissDam!$A$3:$B$35999,2,TRUE),NA()) -> 2653.849 | F86: =IF(VLOOKUP(C86,CJStageCalc!$A$3:$E$35999,1,TRUE)=C86,VLOOKUP(C86,CJStageCalc!$A$3:$E$35999,5,TRUE),NA()) -> 2454.806023 | G86: =IF(VLOOKUP(C86,SwanFallsDam!$A$3:$B$35999,1,TRUE)=C86,VLOOKUP(C86,SwanFallsDam!$A$3:$B$35999,2,TRUE),NA()) -> 2313.646 | L86: 2454.85642 | N86: 2313.519 | T86: -880.7735207 | V86: 757.944 | X86: 2019-03-19 | Y86: 2019-03-19 | Z86: NO | AA86: =IF(ISNUMBER(AB86),INDEX(SnakeatMilnerLagged!$D$2:$D$370,MATCH(AnnualAADFMonitoring!Y86,SnakeatMilnerLagged!$B$2:$B$370))*-1,"") -> 2 | AB86: =IF(ISNUMBER(MATCH(AnnualAADFMonitoring!Y86,SnakeatMilnerLagged!$B$2:$B$370)),INDEX(SnakeatMilnerLagged!$E$2:$E$370,MATCH(AnnualAADFMonitoring!Y86,SnakeatMilnerLagged!$B$2:$B$370)),"") -> 5740 | AC86: =IF(Y86<User!$E$26,((INDEX($H$6:$O$35750,MATCH(Y86+1,$B$6:$B$35750,0),1)*748+INDEX($H$6:$O$35750,MATCH(Y86+1,$B$6:$B$35750,0),3)*255+INDEX($H$6:$O$35750,MATCH(Y86+1,$B$6:$B$35750,0),5)*7500+INDEX($H$6:$O$35750,MATCH(Y86+1,$B$6:$B$35750,0),7)*870) - (INDEX($H$6:$O$35750,MATCH(Y86,$B$6:$B$35750,0),1)*748+INDEX($H$6:$O$35750,MATCH(Y86,$B$6:$B$35750,0),3)*255+INDEX($H$6:$O$35750,MATCH(Y86,$B$6:$B$35750,0),5)*7500+INDEX($H$6:$O$35750,MATCH(Y86,$B$6:$B$35750,0),7)*870)) /1.9835,"") -> -367.3462062 | AD86: 13100 | AE86: 12732.65379 | AF86: 12571.45549 | AH86: 5600 | AI86: 2019-03-19 | AJ86: =IF(Y86<User!$E$26,((INDEX($H$6:$O$35750,MATCH(Y86,$B$6:$B$35750,0),5)))) -> 2454.71915 | AK86: -264.4704815 | AL86: =IF(Y86<User!$E$26,((INDEX($H$6:$O$35750,MATCH(Y86,$B$6:$B$35750,0),1)))) -> 2797.722 | AM86: =IF(Y86<User!$E$26,((INDEX($H$6:$O$35750,MATCH(Y86,$B$6:$B$35750,0),3)))) -> 2653.839 | AN86: =IF(Y86<User!$E$26,((INDEX($H$6:$O$35750,MATCH(Y86,$B$6:$B$35750,0),7)))) -> 2313.353 | AO86: 16.3610789 | AP86: 2454.715777 | AQ86: -248.1094026 | AR86: 2797.722 | AS86: 2653.839 | AT86: 2313.353 | AV86: 16.36107891 | AW86: 1.878106559e-09 | AY86: 2019-03-19 | AZ86: NO | BA86: 2 | BB86: 5740 | BC86: -350.9851273 | BD86: 13100 | BE86: 12749.01487 | BF86: 12557.40644
A87: 83 | B87: 2018-12-27T20:44:59.712 | C87: 2018-12-27T20:45:00 | D87: =IF(VLOOKUP(C87,LwrSalmonFallsDam!$A$3:$B$35999,1,TRUE)=C87,VLOOKUP(C87,LwrSalmonFallsDam!$A$3:$B$35999,2,TRUE),NA()) -> 2797.719 | E87: =IF(VLOOKUP(C87,BlissDam!$A$3:$B$35999,1,TRUE)=C87,VLOOKUP(C87,BlissDam!$A$3:$B$35999,2,TRUE),NA()) -> 2653.85 | F87: =IF(VLOOKUP(C87,CJStageCalc!$A$3:$E$35999,1,TRUE)=C87,VLOOKUP(C87,CJStageCalc!$A$3:$E$35999,5,TRUE),NA()) -> 2454.80705 | G87: =IF(VLOOKUP(C87,SwanFallsDam!$A$3:$B$35999,1,TRUE)=C87,VLOOKUP(C87,SwanFallsDam!$A$3:$B$35999,2,TRUE),NA()) -> 2313.636 | L87: 2454.84373 | N87: 2313.536 | T87: -4606.576479 | V87: 715.836 | X87: 2019-03-20 | Y87: 2019-03-20 | Z87: NO | AA87: =IF(ISNUMBER(AB87),INDEX(SnakeatMilnerLagged!$D$2:$D$370,MATCH(AnnualAADFMonitoring!Y87,SnakeatMilnerLagged!$B$2:$B$370))*-1,"") -> 2 | AB87: =IF(ISNUMBER(MATCH(AnnualAADFMonitoring!Y87,SnakeatMilnerLagged!$B$2:$B$370)),INDEX(SnakeatMilnerLagged!$E$2:$E$370,MATCH(AnnualAADFMonitoring!Y87,SnakeatMilnerLagged!$B$2:$B$370)),"") -> 6300 | AC87: =IF(Y87<User!$E$26,((INDEX($H$6:$O$35750,MATCH(Y87+1,$B$6:$B$35750,0),1)*748+INDEX($H$6:$O$35750,MATCH(Y87+1,$B$6:$B$35750,0),3)*255+INDEX($H$6:$O$35750,MATCH(Y87+1,$B$6:$B$35750,0),5)*7500+INDEX($H$6:$O$35750,MATCH(Y87+1,$B$6:$B$35750,0),7)*870) - (INDEX($H$6:$O$35750,MATCH(Y87,$B$6:$B$35750,0),1)*748+INDEX($H$6:$O$35750,MATCH(Y87,$B$6:$B$35750,0),3)*255+INDEX($H$6:$O$35750,MATCH(Y87,$B$6:$B$35750,0),5)*7500+INDEX($H$6:$O$35750,MATCH(Y87,$B$6:$B$35750,0),7)*870)) /1.9835,"") -> 490.5102092 | AD87: 13300 | AE87: 13790.51021 | AF87: 13071.39682 | AH87: 5600 | AI87: 2019-03-20 | AJ87: =IF(Y87<User!$E$26,((INDEX($H$6:$O$35750,MATCH(Y87,$B$6:$B$35750,0),5)))) -> 2454.649207 | AK87: 410.9150492 | AL87: =IF(Y87<User!$E$26,((INDEX($H$6:$O$35750,MATCH(Y87,$B$6:$B$35750,0),1)))) -> 2797.764 | AM87: =IF(Y87<User!$E$26,((INDEX($H$6:$O$35750,MATCH(Y87,$B$6:$B$35750,0),3)))) -> 2653.847 | AN87: =IF(Y87<User!$E$26,((INDEX($H$6:$O$35750,MATCH(Y87,$B$6:$B$35750,0),7)))) -> 2313.08 | AO87: 50.74363499 | AP87: 2454.65016 | AQ87: 461.6586842 | AR87: 2797.764 | AS87: 2653.847 | AT87: 2313.08 | AV87: 50.74363499 | AW87: 0 | AY87: 2019-03-20 | AZ87: NO | BA87: 2 | BB87: 6300 | BC87: 541.2538442 | BD87: 13300 | BE87: 13841.25384 | BF87: 13073.24578
A88: 84 | B88: 2018-12-27T21:00:00 | C88: 2018-12-27T21:00:00 | D88: =IF(VLOOKUP(C88,LwrSalmonFallsDam!$A$3:$B$35999,1,TRUE)=C88,VLOOKUP(C88,LwrSalmonFallsDam!$A$3:$B$35999,2,TRUE),NA()) -> 2797.719 | E88: =IF(VLOOKUP(C88,BlissDam!$A$3:$B$35999,1,TRUE)=C88,VLOOKUP(C88,BlissDam!$A$3:$B$35999,2,TRUE),NA()) -> 2653.864 | F88: =IF(VLOOKUP(C88,CJStageCalc!$A$3:$E$35999,1,TRUE)=C88,VLOOKUP(C88,CJStageCalc!$A$3:$E$35999,5,TRUE),NA()) -> 2454.799033 | G88: =IF(VLOOKUP(C88,SwanFallsDam!$A$3:$B$35999,1,TRUE)=C88,VLOOKUP(C88,SwanFallsDam!$A$3:$B$35999,2,TRUE),NA()) -> 2313.621 | L88: 2454.845043 | N88: 2313.55 | T88: 476.7932402 | V88: 589.512 | X88: 2019-03-21 | Y88: 2019-03-21 | Z88: NO | AA88: =IF(ISNUMBER(AB88),INDEX(SnakeatMilnerLagged!$D$2:$D$370,MATCH(AnnualAADFMonitoring!Y88,SnakeatMilnerLagged!$B$2:$B$370))*-1,"") -> 2 | AB88: =IF(ISNUMBER(MATCH(AnnualAADFMonitoring!Y88,SnakeatMilnerLagged!$B$2:$B$370)),INDEX(SnakeatMilnerLagged!$E$2:$E$370,MATCH(AnnualAADFMonitoring!Y88,SnakeatMilnerLagged!$B$2:$B$370)),"") -> 6980 | AC88: =IF(Y88<User!$E$26,((INDEX($H$6:$O$35750,MATCH(Y88+1,$B$6:$B$35750,0),1)*748+INDEX($H$6:$O$35750,MATCH(Y88+1,$B$6:$B$35750,0),3)*255+INDEX($H$6:$O$35750,MATCH(Y88+1,$B$6:$B$35750,0),5)*7500+INDEX($H$6:$O$35750,MATCH(Y88+1,$B$6:$B$35750,0),7)*870) - (INDEX($H$6:$O$35750,MATCH(Y88,$B$6:$B$35750,0),1)*748+INDEX($H$6:$O$35750,MATCH(Y88,$B$6:$B$35750,0),3)*255+INDEX($H$6:$O$35750,MATCH(Y88,$B$6:$B$35750,0),5)*7500+INDEX($H$6:$O$35750,MATCH(Y88,$B$6:$B$35750,0),7)*870)) /1.9835,"") -> 373.6390723 | AD88: 13400 | AE88: 13773.63907 | AF88: 13432.26769 | AH88: 5600 | AI88: 2019-03-21 | AJ88: =IF(Y88<User!$E$26,((INDEX($H$6:$O$35750,MATCH(Y88,$B$6:$B$35750,0),5)))) -> 2454.75788 | AK88: 519.0073607 | AL88: =IF(Y88<User!$E$26,((INDEX($H$6:$O$35750,MATCH(Y88,$B$6:$B$35750,0),1)))) -> 2797.673 | AM88: =IF(Y88<User!$E$26,((INDEX($H$6:$O$35750,MATCH(Y88,$B$6:$B$35750,0),3)))) -> 2653.846 | AN88: =IF(Y88<User!$E$26,((INDEX($H$6:$O$35750,MATCH(Y88,$B$6:$B$35750,0),7)))) -> 2313.34 | AO88: -78.47295185 | AP88: 2454.772253 | AQ88: 440.5344089 | AR88: 2797.673 | AS88: 2653.846 | AT88: 2313.34 | AV88: -78.47295185 | AW88: 0 | AY88: 2019-03-21 | AZ88: NO | BA88: 2 | BB88: 6980 | BC88: 295.1661205 | BD88: 13400 | BE88: 13695.16612 | BF88: 13428.47828
A89: 85 | B89: 2018-12-27T21:15:00.288 | C89: 2018-12-27T21:15:00 | D89: =IF(VLOOKUP(C89,LwrSalmonFallsDam!$A$3:$B$35999,1,TRUE)=C89,VLOOKUP(C89,LwrSalmonFallsDam!$A$3:$B$35999,2,TRUE),NA()) -> 2797.728 | E89: =IF(VLOOKUP(C89,BlissDam!$A$3:$B$35999,1,TRUE)=C89,VLOOKUP(C89,BlissDam!$A$3:$B$35999,2,TRUE),NA()) -> 2653.865 | F89: =IF(VLOOKUP(C89,CJStageCalc!$A$3:$E$35999,1,TRUE)=C89,VLOOKUP(C89,CJStageCalc!$A$3:$E$35999,5,TRUE),NA()) -> 2454.801853 | G89: =IF(VLOOKUP(C89,SwanFallsDam!$A$3:$B$35999,1,TRUE)=C89,VLOOKUP(C89,SwanFallsDam!$A$3:$B$35999,2,TRUE),NA()) -> 2313.602 | L89: 2454.84775 | N89: 2313.568 | T89: 982.52 | V89: 757.944 | X89: 2019-03-22 | Y89: 2019-03-22 | Z89: NO | AA89: =IF(ISNUMBER(AB89),INDEX(SnakeatMilnerLagged!$D$2:$D$370,MATCH(AnnualAADFMonitoring!Y89,SnakeatMilnerLagged!$B$2:$B$370))*-1,"") -> 2 | AB89: =IF(ISNUMBER(MATCH(AnnualAADFMonitoring!Y89,SnakeatMilnerLagged!$B$2:$B$370)),INDEX(SnakeatMilnerLagged!$E$2:$E$370,MATCH(AnnualAADFMonitoring!Y89,SnakeatMilnerLagged!$B$2:$B$370)),"") -> 7130 | AC89: =IF(Y89<User!$E$26,((INDEX($H$6:$O$35750,MATCH(Y89+1,$B$6:$B$35750,0),1)*748+INDEX($H$6:$O$35750,MATCH(Y89+1,$B$6:$B$35750,0),3)*255+INDEX($H$6:$O$35750,MATCH(Y89+1,$B$6:$B$35750,0),5)*7500+INDEX($H$6:$O$35750,MATCH(Y89+1,$B$6:$B$35750,0),7)*870) - (INDEX($H$6:$O$35750,MATCH(Y89,$B$6:$B$35750,0),1)*748+INDEX($H$6:$O$35750,MATCH(Y89,$B$6:$B$35750,0),3)*255+INDEX($H$6:$O$35750,MATCH(Y89,$B$6:$B$35750,0),5)*7500+INDEX($H$6:$O$35750,MATCH(Y89,$B$6:$B$35750,0),7)*870)) /1.9835,"") -> 181.5482228 | AD89: 14300 | AE89: 14481.54822 | AF89: 14015.2325 | AH89: 5600 | AI89: 2019-03-22 | AJ89: =IF(Y89<User!$E$26,((INDEX($H$6:$O$35750,MATCH(Y89,$B$6:$B$35750,0),5)))) -> 2454.89514 | AK89: 16.77534661 | AL89: =IF(Y89<User!$E$26,((INDEX($H$6:$O$35750,MATCH(Y89,$B$6:$B$35750,0),1)))) -> 2797.767 | AM89: =IF(Y89<User!$E$26,((INDEX($H$6:$O$35750,MATCH(Y89,$B$6:$B$35750,0),3)))) -> 2653.852 | AN89: =IF(Y89<User!$E$26,((INDEX($H$6:$O$35750,MATCH(Y89,$B$6:$B$35750,0),7)))) -> 2312.926 | AO89: -15.52755231 | AP89: 2454.88876 | AQ89: 1.2477943 | AR89: 2797.767 | AS89: 2653.852 | AT89: 2312.926 | AV89: -15.52755231 | AW89: 0 | AY89: 2019-03-22 | AZ89: NO | BA89: 2 | BB89: 7130 | BC89: 166.0206705 | BD89: 14300 | BE89: 14466.02067 | BF89: 14000.81355
A90: 86 | B90: 2018-12-27T21:29:59.712 | C90: 2018-12-27T21:30:00 | D90: =IF(VLOOKUP(C90,LwrSalmonFallsDam!$A$3:$B$35999,1,TRUE)=C90,VLOOKUP(C90,LwrSalmonFallsDam!$A$3:$B$35999,2,TRUE),NA()) -> 2797.704 | E90: =IF(VLOOKUP(C90,BlissDam!$A$3:$B$35999,1,TRUE)=C90,VLOOKUP(C90,BlissDam!$A$3:$B$35999,2,TRUE),NA()) -> 2653.874 | F90: =IF(VLOOKUP(C90,CJStageCalc!$A$3:$E$35999,1,TRUE)=C90,VLOOKUP(C90,CJStageCalc!$A$3:$E$35999,5,TRUE),NA()) -> 2454.79515 | G90: =IF(VLOOKUP(C90,SwanFallsDam!$A$3:$B$35999,1,TRUE)=C90,VLOOKUP(C90,SwanFallsDam!$A$3:$B$35999,2,TRUE),NA()) -> 2313.579 | L90: 2454.835923 | N90: 2313.59 | T90: -4293.026761 | V90: 926.376 | X90: 2019-03-23 | Y90: 2019-03-23 | Z90: NO | AA90: =IF(ISNUMBER(AB90),INDEX(SnakeatMilnerLagged!$D$2:$D$370,MATCH(AnnualAADFMonitoring!Y90,SnakeatMilnerLagged!$B$2:$B$370))*-1,"") -> 2 | AB90: =IF(ISNUMBER(MATCH(AnnualAADFMonitoring!Y90,SnakeatMilnerLagged!$B$2:$B$370)),INDEX(SnakeatMilnerLagged!$E$2:$E$370,MATCH(AnnualAADFMonitoring!Y90,SnakeatMilnerLagged!$B$2:$B$370)),"") -> 7610 | AC90: =IF(Y90<User!$E$26,((INDEX($H$6:$O$35750,MATCH(Y90+1,$B$6:$B$35750,0),1)*748+INDEX($H$6:$O$35750,MATCH(Y90+1,$B$6:$B$35750,0),3)*255+INDEX($H$6:$O$35750,MATCH(Y90+1,$B$6:$B$35750,0),5)*7500+INDEX($H$6:$O$35750,MATCH(Y90+1,$B$6:$B$35750,0),7)*870) - (INDEX($H$6:$O$35750,MATCH(Y90,$B$6:$B$35750,0),1)*748+INDEX($H$6:$O$35750,MATCH(Y90,$B$6:$B$35750,0),3)*255+INDEX($H$6:$O$35750,MATCH(Y90,$B$6:$B$35750,0),5)*7500+INDEX($H$6:$O$35750,MATCH(Y90,$B$6:$B$35750,0),7)*870)) /1.9835,"") -> 141.8538442 | AD90: 15300 | AE90: 15441.85384 | AF90: 14565.68038 | AH90: 5600 | AI90: 2019-03-23 | AJ90: =IF(Y90<User!$E$26,((INDEX($H$6:$O$35750,MATCH(Y90,$B$6:$B$35750,0),5)))) -> 2454.899577 | AK90: 93.86241492 | AL90: =IF(Y90<User!$E$26,((INDEX($H$6:$O$35750,MATCH(Y90,$B$6:$B$35750,0),1)))) -> 2797.681 | AM90: =IF(Y90<User!$E$26,((INDEX($H$6:$O$35750,MATCH(Y90,$B$6:$B$35750,0),3)))) -> 2653.837 | AN90: =IF(Y90<User!$E$26,((INDEX($H$6:$O$35750,MATCH(Y90,$B$6:$B$35750,0),7)))) -> 2313.38 | AO90: 18.85500378 | AP90: 2454.88909 | AQ90: 112.7174187 | AR90: 2797.681 | AS90: 2653.837 | AT90: 2313.38 | AV90: 18.85500378 | AW90: 2.842170943e-14 | AY90: 2019-03-23 | AZ90: NO | BA90: 2 | BB90: 7610 | BC90: 160.708848 | BD90: 15300 | BE90: 15460.70885 | BF90: 14540.63188
A91: 87 | B91: 2018-12-27T21:45:00 | C91: 2018-12-27T21:45:00 | D91: =IF(VLOOKUP(C91,LwrSalmonFallsDam!$A$3:$B$35999,1,TRUE)=C91,VLOOKUP(C91,LwrSalmonFallsDam!$A$3:$B$35999,2,TRUE),NA()) -> 2797.759 | E91: =IF(VLOOKUP(C91,BlissDam!$A$3:$B$35999,1,TRUE)=C91,VLOOKUP(C91,BlissDam!$A$3:$B$35999,2,TRUE),NA()) -> 2653.884 | F91: =IF(VLOOKUP(C91,CJStageCalc!$A$3:$E$35999,1,TRUE)=C91,VLOOKUP(C91,CJStageCalc!$A$3:$E$35999,5,TRUE),NA()) -> 2454.795483 | G91: =IF(VLOOKUP(C91,SwanFallsDam!$A$3:$B$35999,1,TRUE)=C91,VLOOKUP(C91,SwanFallsDam!$A$3:$B$35999,2,TRUE),NA()) -> 2313.56 | L91: 2454.838177 | N91: 2313.615 | T91: 817.9067601 | V91: 1052.7 | X91: 2019-03-24 | Y91: 2019-03-24 | Z91: NO | AA91: =IF(ISNUMBER(AB91),INDEX(SnakeatMilnerLagged!$D$2:$D$370,MATCH(AnnualAADFMonitoring!Y91,SnakeatMilnerLagged!$B$2:$B$370))*-1,"") -> 2 | AB91: =IF(ISNUMBER(MATCH(AnnualAADFMonitoring!Y91,SnakeatMilnerLagged!$B$2:$B$370)),INDEX(SnakeatMilnerLagged!$E$2:$E$370,MATCH(AnnualAADFMonitoring!Y91,SnakeatMilnerLagged!$B$2:$B$370)),"") -> 8110 | AC91: =IF(Y91<User!$E$26,((INDEX($H$6:$O$35750,MATCH(Y91+1,$B$6:$B$35750,0),1)*748+INDEX($H$6:$O$35750,MATCH(Y91+1,$B$6:$B$35750,0),3)*255+INDEX($H$6:$O$35750,MATCH(Y91+1,$B$6:$B$35750,0),5)*7500+INDEX($H$6:$O$35750,MATCH(Y91+1,$B$6:$B$35750,0),7)*870) - (INDEX($H$6:$O$35750,MATCH(Y91,$B$6:$B$35750,0),1)*748+INDEX($H$6:$O$35750,MATCH(Y91,$B$6:$B$35750,0),3)*255+INDEX($H$6:$O$35750,MATCH(Y91,$B$6:$B$35750,0),5)*7500+INDEX($H$6:$O$35750,MATCH(Y91,$B$6:$B$35750,0),7)*870)) /1.9835,"") -> -71.37332996 | AD91: 15700 | AE91: 15628.62667 | AF91: 15184.00958 | AH91: 5600 | AI91: 2019-03-24 | AJ91: =IF(Y91<User!$E$26,((INDEX($H$6:$O$35750,MATCH(Y91,$B$6:$B$35750,0),5)))) -> 2454.9244 | AK91: -95.32392235 | AL91: =IF(Y91<User!$E$26,((INDEX($H$6:$O$35750,MATCH(Y91,$B$6:$B$35750,0),1)))) -> 2797.658 | AM91: =IF(Y91<User!$E$26,((INDEX($H$6:$O$35750,MATCH(Y91,$B$6:$B$35750,0),3)))) -> 2653.824 | AN91: =IF(Y91<User!$E$26,((INDEX($H$6:$O$35750,MATCH(Y91,$B$6:$B$35750,0),7)))) -> 2313.513 | AO91: -27.45147466 | AP91: 2454.9189 | AQ91: -122.775397 | AR91: 2797.658 | AS91: 2653.824 | AT91: 2313.513 | AV91: -27.45147466 | AW91: 0 | AY91: 2019-03-24 | AZ91: NO | BA91: 2 | BB91: 8110 | BC91: -98.82480463 | BD91: 15700 | BE91: 15601.1752 | BF91: 15175.96824
A92: 88 | B92: 2018-12-27T22:00:00.288 | C92: 2018-12-27T22:00:00 | D92: =IF(VLOOKUP(C92,LwrSalmonFallsDam!$A$3:$B$35999,1,TRUE)=C92,VLOOKUP(C92,LwrSalmonFallsDam!$A$3:$B$35999,2,TRUE),NA()) -> 2797.698 | E92: =IF(VLOOKUP(C92,BlissDam!$A$3:$B$35999,1,TRUE)=C92,VLOOKUP(C92,BlissDam!$A$3:$B$35999,2,TRUE),NA()) -> 2653.893 | F92: =IF(VLOOKUP(C92,CJStageCalc!$A$3:$E$35999,1,TRUE)=C92,VLOOKUP(C92,CJStageCalc!$A$3:$E$35999,5,TRUE),NA()) -> 2454.78744 | G92: =IF(VLOOKUP(C92,SwanFallsDam!$A$3:$B$35999,1,TRUE)=C92,VLOOKUP(C92,SwanFallsDam!$A$3:$B$35999,2,TRUE),NA()) -> 2313.525 | L92: 2454.82251 | N92: 2313.627 | T92: -5687 | V92: 505.296 | X92: 2019-03-25 | Y92: 2019-03-25 | Z92: NO | AA92: =IF(ISNUMBER(AB92),INDEX(SnakeatMilnerLagged!$D$2:$D$370,MATCH(AnnualAADFMonitoring!Y92,SnakeatMilnerLagged!$B$2:$B$370))*-1,"") -> 2 | AB92: =IF(ISNUMBER(MATCH(AnnualAADFMonitoring!Y92,SnakeatMilnerLagged!$B$2:$B$370)),INDEX(SnakeatMilnerLagged!$E$2:$E$370,MATCH(AnnualAADFMonitoring!Y92,SnakeatMilnerLagged!$B$2:$B$370)),"") -> 8100 | AC92: =IF(Y92<User!$E$26,((INDEX($H$6:$O$35750,MATCH(Y92+1,$B$6:$B$35750,0),1)*748+INDEX($H$6:$O$35750,MATCH(Y92+1,$B$6:$B$35750,0),3)*255+INDEX($H$6:$O$35750,MATCH(Y92+1,$B$6:$B$35750,0),5)*7500+INDEX($H$6:$O$35750,MATCH(Y92+1,$B$6:$B$35750,0),7)*870) - (INDEX($H$6:$O$35750,MATCH(Y92,$B$6:$B$35750,0),1)*748+INDEX($H$6:$O$35750,MATCH(Y92,$B$6:$B$35750,0),3)*255+INDEX($H$6:$O$35750,MATCH(Y92,$B$6:$B$35750,0),5)*7500+INDEX($H$6:$O$35750,MATCH(Y92,$B$6:$B$35750,0),7)*870)) /1.9835,"") -> -1.106175961 | AD92: 16400 | AE92: 16398.89382 | AF92: 15823.12478 | AH92: 5600 | AI92: 2019-03-25 | AJ92: =IF(Y92<User!$E$26,((INDEX($H$6:$O$35750,MATCH(Y92,$B$6:$B$35750,0),5)))) -> 2454.89919 | AK92: 16.23337534 | AL92: =IF(Y92<User!$E$26,((INDEX($H$6:$O$35750,MATCH(Y92,$B$6:$B$35750,0),1)))) -> 2797.725 | AM92: =IF(Y92<User!$E$26,((INDEX($H$6:$O$35750,MATCH(Y92,$B$6:$B$35750,0),3)))) -> 2653.882 | AN92: =IF(Y92<User!$E$26,((INDEX($H$6:$O$35750,MATCH(Y92,$B$6:$B$35750,0),7)))) -> 2313.493 | AO92: 144.1901185 | AP92: 2454.88643 | AQ92: 160.4234938 | AR92: 2797.725 | AS92: 2653.882 | AT92: 2313.493 | AV92: 144.1901185 | AW92: 0 | AY92: 2019-03-25 | AZ92: NO | BA92: 2 | BB92: 8100 | BC92: 143.0839425 | BD92: 16400 | BE92: 16543.08394 | BF92: 15868.32266
A93: 89 | B93: 2018-12-27T22:14:59.712 | C93: 2018-12-27T22:15:00 | D93: =IF(VLOOKUP(C93,LwrSalmonFallsDam!$A$3:$B$35999,1,TRUE)=C93,VLOOKUP(C93,LwrSalmonFallsDam!$A$3:$B$35999,2,TRUE),NA()) -> 2797.725 | E93: =IF(VLOOKUP(C93,BlissDam!$A$3:$B$35999,1,TRUE)=C93,VLOOKUP(C93,BlissDam!$A$3:$B$35999,2,TRUE),NA()) -> 2653.895 | F93: =IF(VLOOKUP(C93,CJStageCalc!$A$3:$E$35999,1,TRUE)=C93,VLOOKUP(C93,CJStageCalc!$A$3:$E$35999,5,TRUE),NA()) -> 2454.78469 | G93: =IF(VLOOKUP(C93,SwanFallsDam!$A$3:$B$35999,1,TRUE)=C93,VLOOKUP(C93,SwanFallsDam!$A$3:$B$35999,2,TRUE),NA()) -> 2313.478 | L93: 2454.823357 | N93: 2313.651 | T93: 307.3399997 | V93: 1010.592 | X93: 2019-03-26 | Y93: 2019-03-26 | Z93: NO | AA93: =IF(ISNUMBER(AB93),INDEX(SnakeatMilnerLagged!$D$2:$D$370,MATCH(AnnualAADFMonitoring!Y93,SnakeatMilnerLagged!$B$2:$B$370))*-1,"") -> 2 | AB93: =IF(ISNUMBER(MATCH(AnnualAADFMonitoring!Y93,SnakeatMilnerLagged!$B$2:$B$370)),INDEX(SnakeatMilnerLagged!$E$2:$E$370,MATCH(AnnualAADFMonitoring!Y93,SnakeatMilnerLagged!$B$2:$B$370)),"") -> 8110 | AC93: =IF(Y93<User!$E$26,((INDEX($H$6:$O$35750,MATCH(Y93+1,$B$6:$B$35750,0),1)*748+INDEX($H$6:$O$35750,MATCH(Y93+1,$B$6:$B$35750,0),3)*255+INDEX($H$6:$O$35750,MATCH(Y93+1,$B$6:$B$35750,0),5)*7500+INDEX($H$6:$O$35750,MATCH(Y93+1,$B$6:$B$35750,0),7)*870) - (INDEX($H$6:$O$35750,MATCH(Y93,$B$6:$B$35750,0),1)*748+INDEX($H$6:$O$35750,MATCH(Y93,$B$6:$B$35750,0),3)*255+INDEX($H$6:$O$35750,MATCH(Y93,$B$6:$B$35750,0),5)*7500+INDEX($H$6:$O$35750,MATCH(Y93,$B$6:$B$35750,0),7)*870)) /1.9835,"") -> -477.5931434 | AD93: 16200 | AE93: 15722.40686 | AF93: 15916.64245 | AH93: 5600 | AI93: 2019-03-26 | AJ93: =IF(Y93<User!$E$26,((INDEX($H$6:$O$35750,MATCH(Y93,$B$6:$B$35750,0),5)))) -> 2454.903483 | AK93: -416.914545 | AL93: =IF(Y93<User!$E$26,((INDEX($H$6:$O$35750,MATCH(Y93,$B$6:$B$35750,0),1)))) -> 2797.769 | AM93: =IF(Y93<User!$E$26,((INDEX($H$6:$O$35750,MATCH(Y93,$B$6:$B$35750,0),3)))) -> 2653.891 | AN93: =IF(Y93<User!$E$26,((INDEX($H$6:$O$35750,MATCH(Y93,$B$6:$B$35750,0),7)))) -> 2313.413 | AO93: -121.4519788 | AP93: 2454.928857 | AQ93: -538.3665238 | AR93: 2797.769 | AS93: 2653.891 | AT93: 2313.413 | AV93: -121.4519788 | AW93: 1.878163403e-09 | AY93: 2019-03-26 | AZ93: NO | BA93: 2 | BB93: 8110 | BC93: -599.0451223 | BD93: 16200 | BE93: 15600.95488 | BF93: 15915.07134
A94: 90 | B94: 2018-12-27T22:30:00 | C94: 2018-12-27T22:30:00 | D94: =IF(VLOOKUP(C94,LwrSalmonFallsDam!$A$3:$B$35999,1,TRUE)=C94,VLOOKUP(C94,LwrSalmonFallsDam!$A$3:$B$35999,2,TRUE),NA()) -> 2797.734 | E94: =IF(VLOOKUP(C94,BlissDam!$A$3:$B$35999,1,TRUE)=C94,VLOOKUP(C94,BlissDam!$A$3:$B$35999,2,TRUE),NA()) -> 2653.896 | F94: =IF(VLOOKUP(C94,CJStageCalc!$A$3:$E$35999,1,TRUE)=C94,VLOOKUP(C94,CJStageCalc!$A$3:$E$35999,5,TRUE),NA()) -> 2454.782307 | G94: =IF(VLOOKUP(C94,SwanFallsDam!$A$3:$B$35999,1,TRUE)=C94,VLOOKUP(C94,SwanFallsDam!$A$3:$B$35999,2,TRUE),NA()) -> 2313.437 | L94: 2454.81936 | N94: 2313.656 | T94: -1450.73676 | V94: 210.54 | X94: 2019-03-27 | Y94: 2019-03-27 | Z94: NO | AA94: =IF(ISNUMBER(AB94),INDEX(SnakeatMilnerLagged!$D$2:$D$370,MATCH(AnnualAADFMonitoring!Y94,SnakeatMilnerLagged!$B$2:$B$370))*-1,"") -> 2 | AB94: =IF(ISNUMBER(MATCH(AnnualAADFMonitoring!Y94,SnakeatMilnerLagged!$B$2:$B$370)),INDEX(SnakeatMilnerLagged!$E$2:$E$370,MATCH(AnnualAADFMonitoring!Y94,SnakeatMilnerLagged!$B$2:$B$370)),"") -> 8230 | AC94: =IF(Y94<User!$E$26,((INDEX($H$6:$O$35750,MATCH(Y94+1,$B$6:$B$35750,0),1)*748+INDEX($H$6:$O$35750,MATCH(Y94+1,$B$6:$B$35750,0),3)*255+INDEX($H$6:$O$35750,MATCH(Y94+1,$B$6:$B$35750,0),5)*7500+INDEX($H$6:$O$35750,MATCH(Y94+1,$B$6:$B$35750,0),7)*870) - (INDEX($H$6:$O$35750,MATCH(Y94,$B$6:$B$35750,0),1)*748+INDEX($H$6:$O$35750,MATCH(Y94,$B$6:$B$35750,0),3)*255+INDEX($H$6:$O$35750,MATCH(Y94,$B$6:$B$35750,0),5)*7500+INDEX($H$6:$O$35750,MATCH(Y94,$B$6:$B$35750,0),7)*870)) /1.9835,"") -> 374.8853542 | AD94: 15600 | AE94: 15974.88535 | AF94: 16032.06201 | AH94: 5600 | AI94: 2019-03-27 | AJ94: =IF(Y94<User!$E$26,((INDEX($H$6:$O$35750,MATCH(Y94,$B$6:$B$35750,0),5)))) -> 2454.793223 | AK94: 260.9156037 | AL94: =IF(Y94<User!$E$26,((INDEX($H$6:$O$35750,MATCH(Y94,$B$6:$B$35750,0),1)))) -> 2797.677 | AM94: =IF(Y94<User!$E$26,((INDEX($H$6:$O$35750,MATCH(Y94,$B$6:$B$35750,0),3)))) -> 2653.839 | AN94: =IF(Y94<User!$E$26,((INDEX($H$6:$O$35750,MATCH(Y94,$B$6:$B$35750,0),7)))) -> 2313.369 | AO94: 22.18245526 | AP94: 2454.786477 | AQ94: 283.098059 | AR94: 2797.677 | AS94: 2653.839 | AT94: 2313.369 | AV94: 22.18245526 | AW94: -1.878163403e-09 | AY94: 2019-03-27 | AZ94: NO | BA94: 2 | BB94: 8230 | BC94: 397.0678094 | BD94: 15600 | BE94: 15997.06781 | BF94: 16047.03554
A95: 91 | B95: 2018-12-27T22:45:00.288 | C95: 2018-12-27T22:45:00 | D95: =IF(VLOOKUP(C95,LwrSalmonFallsDam!$A$3:$B$35999,1,TRUE)=C95,VLOOKUP(C95,LwrSalmonFallsDam!$A$3:$B$35999,2,TRUE),NA()) -> 2797.712 | E95: =IF(VLOOKUP(C95,BlissDam!$A$3:$B$35999,1,TRUE)=C95,VLOOKUP(C95,BlissDam!$A$3:$B$35999,2,TRUE),NA()) -> 2653.899 | F95: =IF(VLOOKUP(C95,CJStageCalc!$A$3:$E$35999,1,TRUE)=C95,VLOOKUP(C95,CJStageCalc!$A$3:$E$35999,5,TRUE),NA()) -> 2454.77069 | G95: =IF(VLOOKUP(C95,SwanFallsDam!$A$3:$B$35999,1,TRUE)=C95,VLOOKUP(C95,SwanFallsDam!$A$3:$B$35999,2,TRUE),NA()) -> 2313.396 | L95: 2454.808193 | N95: 2313.673 | T95: -4053.55324 | V95: 715.836 | X95: 2019-03-28 | Y95: 2019-03-28 | Z95: NO | AA95: =IF(ISNUMBER(AB95),INDEX(SnakeatMilnerLagged!$D$2:$D$370,MATCH(AnnualAADFMonitoring!Y95,SnakeatMilnerLagged!$B$2:$B$370))*-1,"") -> 2 | AB95: =IF(ISNUMBER(MATCH(AnnualAADFMonitoring!Y95,SnakeatMilnerLagged!$B$2:$B$370)),INDEX(SnakeatMilnerLagged!$E$2:$E$370,MATCH(AnnualAADFMonitoring!Y95,SnakeatMilnerLagged!$B$2:$B$370)),"") -> 8230 | AC95: =IF(Y95<User!$E$26,((INDEX($H$6:$O$35750,MATCH(Y95+1,$B$6:$B$35750,0),1)*748+INDEX($H$6:$O$35750,MATCH(Y95+1,$B$6:$B$35750,0),3)*255+INDEX($H$6:$O$35750,MATCH(Y95+1,$B$6:$B$35750,0),5)*7500+INDEX($H$6:$O$35750,MATCH(Y95+1,$B$6:$B$35750,0),7)*870) - (INDEX($H$6:$O$35750,MATCH(Y95,$B$6:$B$35750,0),1)*748+INDEX($H$6:$O$35750,MATCH(Y95,$B$6:$B$35750,0),3)*255+INDEX($H$6:$O$35750,MATCH(Y95,$B$6:$B$35750,0),5)*7500+INDEX($H$6:$O$35750,MATCH(Y95,$B$6:$B$35750,0),7)*870)) /1.9835,"") -> 109.0607512 | AD95: 15800 | AE95: 15909.06075 | AF95: 15868.78432 | AH95: 5600 | AI95: 2019-03-28 | AJ95: =IF(Y95<User!$E$26,((INDEX($H$6:$O$35750,MATCH(Y95,$B$6:$B$35750,0),5)))) -> 2454.862227 | AK95: 131.4217293 | AL95: =IF(Y95<User!$E$26,((INDEX($H$6:$O$35750,MATCH(Y95,$B$6:$B$35750,0),1)))) -> 2797.71 | AM95: =IF(Y95<User!$E$26,((INDEX($H$6:$O$35750,MATCH(Y95,$B$6:$B$35750,0),3)))) -> 2653.844 | AN95: =IF(Y95<User!$E$26,((INDEX($H$6:$O$35750,MATCH(Y95,$B$6:$B$35750,0),7)))) -> 2313.599 | AO95: -19.96470885 | AP95: 2454.861347 | AQ95: 111.4570204 | AR95: 2797.71 | AS95: 2653.844 | AT95: 2313.599 | AV95: -19.96470885 | AW95: 0 | AY95: 2019-03-28 | AZ95: NO | BA95: 2 | BB95: 8230 | BC95: 89.09604235 | BD95: 15800 | BE95: 15889.09604 | BF95: 15829.03958
A96: 92 | B96: 2018-12-27T22:59:59.712 | C96: 2018-12-27T23:00:00 | D96: =IF(VLOOKUP(C96,LwrSalmonFallsDam!$A$3:$B$35999,1,TRUE)=C96,VLOOKUP(C96,LwrSalmonFallsDam!$A$3:$B$35999,2,TRUE),NA()) -> 2797.693 | E96: =IF(VLOOKUP(C96,BlissDam!$A$3:$B$35999,1,TRUE)=C96,VLOOKUP(C96,BlissDam!$A$3:$B$35999,2,TRUE),NA()) -> 2653.895 | F96: =IF(VLOOKUP(C96,CJStageCalc!$A$3:$E$35999,1,TRUE)=C96,VLOOKUP(C96,CJStageCalc!$A$3:$E$35999,5,TRUE),NA()) -> 2454.770903 | G96: =IF(VLOOKUP(C96,SwanFallsDam!$A$3:$B$35999,1,TRUE)=C96,VLOOKUP(C96,SwanFallsDam!$A$3:$B$35999,2,TRUE),NA()) -> 2313.349 | L96: 2454.799737 | N96: 2313.673 | T96: -3069.71676 | V96: 0 | X96: 2019-03-29 | Y96: 2019-03-29 | Z96: NO | AA96: =IF(ISNUMBER(AB96),INDEX(SnakeatMilnerLagged!$D$2:$D$370,MATCH(AnnualAADFMonitoring!Y96,SnakeatMilnerLagged!$B$2:$B$370))*-1,"") -> 2 | AB96: =IF(ISNUMBER(MATCH(AnnualAADFMonitoring!Y96,SnakeatMilnerLagged!$B$2:$B$370)),INDEX(SnakeatMilnerLagged!$E$2:$E$370,MATCH(AnnualAADFMonitoring!Y96,SnakeatMilnerLagged!$B$2:$B$370)),"") -> 8110 | AC96: =IF(Y96<User!$E$26,((INDEX($H$6:$O$35750,MATCH(Y96+1,$B$6:$B$35750,0),1)*748+INDEX($H$6:$O$35750,MATCH(Y96+1,$B$6:$B$35750,0),3)*255+INDEX($H$6:$O$35750,MATCH(Y96+1,$B$6:$B$35750,0),5)*7500+INDEX($H$6:$O$35750,MATCH(Y96+1,$B$6:$B$35750,0),7)*870) - (INDEX($H$6:$O$35750,MATCH(Y96,$B$6:$B$35750,0),1)*748+INDEX($H$6:$O$35750,MATCH(Y96,$B$6:$B$35750,0),3)*255+INDEX($H$6:$O$35750,MATCH(Y96,$B$6:$B$35750,0),5)*7500+INDEX($H$6:$O$35750,MATCH(Y96,$B$6:$B$35750,0),7)*870)) /1.9835,"") -> -55.88757248 | AD96: 15700 | AE96: 15644.11243 | AF96: 15842.68618 | AH96: 5600 | AI96: 2019-03-29 | AJ96: =IF(Y96<User!$E$26,((INDEX($H$6:$O$35750,MATCH(Y96,$B$6:$B$35750,0),5)))) -> 2454.896983 | AK96: -44.15175196 | AL96: =IF(Y96<User!$E$26,((INDEX($H$6:$O$35750,MATCH(Y96,$B$6:$B$35750,0),1)))) -> 2797.769 | AM96: =IF(Y96<User!$E$26,((INDEX($H$6:$O$35750,MATCH(Y96,$B$6:$B$35750,0),3)))) -> 2653.903 | AN96: =IF(Y96<User!$E$26,((INDEX($H$6:$O$35750,MATCH(Y96,$B$6:$B$35750,0),7)))) -> 2313.48 | AO96: 1.663725738 | AP96: 2454.890823 | AQ96: -42.48802623 | AR96: 2797.769 | AS96: 2653.903 | AT96: 2313.48 | AV96: 1.663725738 | AW96: 0 | AY96: 2019-03-29 | AZ96: NO | BA96: 2 | BB96: 8110 | BC96: -54.22384674 | BD96: 15700 | BE96: 15645.77615 | BF96: 15843.98
A97: 93 | B97: 2018-12-27T23:15:00 | C97: 2018-12-27T23:15:00 | D97: =IF(VLOOKUP(C97,LwrSalmonFallsDam!$A$3:$B$35999,1,TRUE)=C97,VLOOKUP(C97,LwrSalmonFallsDam!$A$3:$B$35999,2,TRUE),NA()) -> 2797.725 | E97: =IF(VLOOKUP(C97,BlissDam!$A$3:$B$35999,1,TRUE)=C97,VLOOKUP(C97,BlissDam!$A$3:$B$35999,2,TRUE),NA()) -> 2653.887 | F97: =IF(VLOOKUP(C97,CJStageCalc!$A$3:$E$35999,1,TRUE)=C97,VLOOKUP(C97,CJStageCalc!$A$3:$E$35999,5,TRUE),NA()) -> 2454.76699 | G97: =IF(VLOOKUP(C97,SwanFallsDam!$A$3:$B$35999,1,TRUE)=C97,VLOOKUP(C97,SwanFallsDam!$A$3:$B$35999,2,TRUE),NA()) -> 2313.3 | L97: 2454.80278 | N97: 2313.66 | T97: 1104.67676 | V97: -547.404 | X97: 2019-03-30 | Y97: 2019-03-30 | Z97: NO | AA97: =IF(ISNUMBER(AB97),INDEX(SnakeatMilnerLagged!$D$2:$D$370,MATCH(AnnualAADFMonitoring!Y97,SnakeatMilnerLagged!$B$2:$B$370))*-1,"") -> 2 | AB97: =IF(ISNUMBER(MATCH(AnnualAADFMonitoring!Y97,SnakeatMilnerLagged!$B$2:$B$370)),INDEX(SnakeatMilnerLagged!$E$2:$E$370,MATCH(AnnualAADFMonitoring!Y97,SnakeatMilnerLagged!$B$2:$B$370)),"") -> 7550 | AC97: =IF(Y97<User!$E$26,((INDEX($H$6:$O$35750,MATCH(Y97+1,$B$6:$B$35750,0),1)*748+INDEX($H$6:$O$35750,MATCH(Y97+1,$B$6:$B$35750,0),3)*255+INDEX($H$6:$O$35750,MATCH(Y97+1,$B$6:$B$35750,0),5)*7500+INDEX($H$6:$O$35750,MATCH(Y97+1,$B$6:$B$35750,0),7)*870) - (INDEX($H$6:$O$35750,MATCH(Y97,$B$6:$B$35750,0),1)*748+INDEX($H$6:$O$35750,MATCH(Y97,$B$6:$B$35750,0),3)*255+INDEX($H$6:$O$35750,MATCH(Y97,$B$6:$B$35750,0),5)*7500+INDEX($H$6:$O$35750,MATCH(Y97,$B$6:$B$35750,0),7)*870)) /1.9835,"") -> -664.5560877 | AD97: 15600 | AE97: 14935.44391 | AF97: 15496.2057 | AH97: 5600 | AI97: 2019-03-30 | AJ97: =IF(Y97<User!$E$26,((INDEX($H$6:$O$35750,MATCH(Y97,$B$6:$B$35750,0),5)))) -> 2454.885307 | AK97: -625.4726494 | AL97: =IF(Y97<User!$E$26,((INDEX($H$6:$O$35750,MATCH(Y97,$B$6:$B$35750,0),1)))) -> 2797.708 | AM97: =IF(Y97<User!$E$26,((INDEX($H$6:$O$35750,MATCH(Y97,$B$6:$B$35750,0),3)))) -> 2653.919 | AN97: =IF(Y97<User!$E$26,((INDEX($H$6:$O$35750,MATCH(Y97,$B$6:$B$35750,0),7)))) -> 2313.501 | AO97: -4.991177209 | AP97: 2454.879587 | AQ97: -630.4638266 | AR97: 2797.708 | AS97: 2653.919 | AT97: 2313.501 | AV97: -4.991177209 | AW97: -1.136868377e-13 | AY97: 2019-03-30 | AZ97: NO | BA97: 2 | BB97: 7550 | BC97: -669.5472649 | BD97: 15600 | BE97: 14930.45274 | BF97: 15488.44164
A98: 94 | B98: 2018-12-27T23:30:00.288 | C98: 2018-12-27T23:30:00 | D98: =IF(VLOOKUP(C98,LwrSalmonFallsDam!$A$3:$B$35999,1,TRUE)=C98,VLOOKUP(C98,LwrSalmonFallsDam!$A$3:$B$35999,2,TRUE),NA()) -> 2797.734 | E98: =IF(VLOOKUP(C98,BlissDam!$A$3:$B$35999,1,TRUE)=C98,VLOOKUP(C98,BlissDam!$A$3:$B$35999,2,TRUE),NA()) -> 2653.878 | F98: =IF(VLOOKUP(C98,CJStageCalc!$A$3:$E$35999,1,TRUE)=C98,VLOOKUP(C98,CJStageCalc!$A$3:$E$35999,5,TRUE),NA()) -> 2454.769623 | G98: =IF(VLOOKUP(C98,SwanFallsDam!$A$3:$B$35999,1,TRUE)=C98,VLOOKUP(C98,SwanFallsDam!$A$3:$B$35999,2,TRUE),NA()) -> 2313.262 | L98: 2454.80877 | N98: 2313.646 | T98: 2174.37 | V98: -589.512 | X98: 2019-03-31 | Y98: 2019-03-31 | Z98: NO | AA98: =IF(ISNUMBER(AB98),INDEX(SnakeatMilnerLagged!$D$2:$D$370,MATCH(AnnualAADFMonitoring!Y98,SnakeatMilnerLagged!$B$2:$B$370))*-1,"") -> 2 | AB98: =IF(ISNUMBER(MATCH(AnnualAADFMonitoring!Y98,SnakeatMilnerLagged!$B$2:$B$370)),INDEX(SnakeatMilnerLagged!$E$2:$E$370,MATCH(AnnualAADFMonitoring!Y98,SnakeatMilnerLagged!$B$2:$B$370)),"") -> 6890 | AC98: =IF(Y98<User!$E$26,((INDEX($H$6:$O$35750,MATCH(Y98+1,$B$6:$B$35750,0),1)*748+INDEX($H$6:$O$35750,MATCH(Y98+1,$B$6:$B$35750,0),3)*255+INDEX($H$6:$O$35750,MATCH(Y98+1,$B$6:$B$35750,0),5)*7500+INDEX($H$6:$O$35750,MATCH(Y98+1,$B$6:$B$35750,0),7)*870) - (INDEX($H$6:$O$35750,MATCH(Y98,$B$6:$B$35750,0),1)*748+INDEX($H$6:$O$35750,MATCH(Y98,$B$6:$B$35750,0),3)*255+INDEX($H$6:$O$35750,MATCH(Y98,$B$6:$B$35750,0),5)*7500+INDEX($H$6:$O$35750,MATCH(Y98,$B$6:$B$35750,0),7)*870)) /1.9835,"") -> -337.7070834 | AD98: 14400 | AE98: 14062.29292 | AF98: 14880.61642 | AH98: 5600 | AI98: 2019-03-31 | AJ98: =IF(Y98<User!$E$26,((INDEX($H$6:$O$35750,MATCH(Y98,$B$6:$B$35750,0),5)))) -> 2454.71989 | AK98: -147.806907 | AL98: =IF(Y98<User!$E$26,((INDEX($H$6:$O$35750,MATCH(Y98,$B$6:$B$35750,0),1)))) -> 2797.769 | AM98: =IF(Y98<User!$E$26,((INDEX($H$6:$O$35750,MATCH(Y98,$B$6:$B$35750,0),3)))) -> 2653.825 | AN98: =IF(Y98<User!$E$26,((INDEX($H$6:$O$35750,MATCH(Y98,$B$6:$B$35750,0),7)))) -> 2313.387 | AO98: 38.26569196 | AP98: 2454.71285 | AQ98: -109.541215 | AR98: 2797.769 | AS98: 2653.825 | AT98: 2313.387 | AV98: 38.26569196 | AW98: 0 | AY98: 2019-03-31 | AZ98: NO | BA98: 2 | BB98: 6890 | BC98: -299.4413915 | BD98: 14400 | BE98: 14100.55861 | BF98: 14892.2625
A99: 95 | B99: 2018-12-27T23:44:59.712 | C99: 2018-12-27T23:45:00 | D99: =IF(VLOOKUP(C99,LwrSalmonFallsDam!$A$3:$B$35999,1,TRUE)=C99,VLOOKUP(C99,LwrSalmonFallsDam!$A$3:$B$35999,2,TRUE),NA()) -> 2797.78 | E99: =IF(VLOOKUP(C99,BlissDam!$A$3:$B$35999,1,TRUE)=C99,VLOOKUP(C99,BlissDam!$A$3:$B$35999,2,TRUE),NA()) -> 2653.874 | F99: =IF(VLOOKUP(C99,CJStageCalc!$A$3:$E$35999,1,TRUE)=C99,VLOOKUP(C99,CJStageCalc!$A$3:$E$35999,5,TRUE),NA()) -> 2454.76654 | G99: =IF(VLOOKUP(C99,SwanFallsDam!$A$3:$B$35999,1,TRUE)=C99,VLOOKUP(C99,SwanFallsDam!$A$3:$B$35999,2,TRUE),NA()) -> 2313.224 | L99: 2454.8018 | N99: 2313.636 | T99: -2530.11 | V99: -421.08 | X99: 2019-04-01 | Y99: 2019-04-01 | Z99: NO | AA99: =IF(ISNUMBER(AB99),INDEX(SnakeatMilnerLagged!$D$2:$D$370,MATCH(AnnualAADFMonitoring!Y99,SnakeatMilnerLagged!$B$2:$B$370))*-1,"") -> 2 | AB99: =IF(ISNUMBER(MATCH(AnnualAADFMonitoring!Y99,SnakeatMilnerLagged!$B$2:$B$370)),INDEX(SnakeatMilnerLagged!$E$2:$E$370,MATCH(AnnualAADFMonitoring!Y99,SnakeatMilnerLagged!$B$2:$B$370)),"") -> 6910 | AC99: =IF(Y99<User!$E$26,((INDEX($H$6:$O$35750,MATCH(Y99+1,$B$6:$B$35750,0),1)*748+INDEX($H$6:$O$35750,MATCH(Y99+1,$B$6:$B$35750,0),3)*255+INDEX($H$6:$O$35750,MATCH(Y99+1,$B$6:$B$35750,0),5)*7500+INDEX($H$6:$O$35750,MATCH(Y99+1,$B$6:$B$35750,0),7)*870) - (INDEX($H$6:$O$35750,MATCH(Y99,$B$6:$B$35750,0),1)*748+INDEX($H$6:$O$35750,MATCH(Y99,$B$6:$B$35750,0),3)*255+INDEX($H$6:$O$35750,MATCH(Y99,$B$6:$B$35750,0),5)*7500+INDEX($H$6:$O$35750,MATCH(Y99,$B$6:$B$35750,0),7)*870)) /1.9835,"") -> 181.3904714 | AD99: 14000 | AE99: 14181.39047 | AF99: 14393.04243 | AH99: 3900 | AI99: 2019-04-01 | AJ99: =IF(Y99<User!$E$26,((INDEX($H$6:$O$35750,MATCH(Y99,$B$6:$B$35750,0),5)))) -> 2454.6808 | AK99: 144.2525838 | AL99: =IF(Y99<User!$E$26,((INDEX($H$6:$O$35750,MATCH(Y99,$B$6:$B$35750,0),1)))) -> 2797.71 | AM99: =IF(Y99<User!$E$26,((INDEX($H$6:$O$35750,MATCH(Y99,$B$6:$B$35750,0),3)))) -> 2653.814 | AN99: =IF(Y99<User!$E$26,((INDEX($H$6:$O$35750,MATCH(Y99,$B$6:$B$35750,0),7)))) -> 2313.008 | AO99: -1.663725738 | AP99: 2454.68388 | AQ99: 142.5888581 | AR99: 2797.71 | AS99: 2653.814 | AT99: 2313.008 | AV99: -1.663725738 | AW99: 2.842170943e-14 | AY99: 2019-04-01 | AZ99: NO | BA99: 2 | BB99: 6910 | BC99: 179.7267456 | BD99: 14000 | BE99: 14179.72675 | BF99: 14403.57936
A100: 96 | B100: =ROUND(OFFSET(C100,-4,0),5) -> 2018-12-27T22:59:59.712 | C100: 2018-12-28 | D100: =IF(VLOOKUP(C100,LwrSalmonFallsDam!$A$3:$B$35999,1,TRUE)=C100,VLOOKUP(C100,LwrSalmonFallsDam!$A$3:$B$35999,2,TRUE),NA()) -> 2797.763 | E100: =IF(VLOOKUP(C100,BlissDam!$A$3:$B$35999,1,TRUE)=C100,VLOOKUP(C100,BlissDam!$A$3:$B$35999,2,TRUE),NA()) -> 2653.879 | F100: =IF(VLOOKUP(C100,CJStageCalc!$A$3:$E$35999,1,TRUE)=C100,VLOOKUP(C100,CJStageCalc!$A$3:$E$35999,5,TRUE),NA()) -> 2454.75887 | G100: =IF(VLOOKUP(C100,SwanFallsDam!$A$3:$B$35999,1,TRUE)=C100,VLOOKUP(C100,SwanFallsDam!$A$3:$B$35999,2,TRUE),NA()) -> 2313.19 | L100: 2454.79826 | N100: 2313.621 | T100: -1285.02 | V100: -631.62 | X100: 2019-04-02 | Y100: 2019-04-02 | Z100: NO | AA100: =IF(ISNUMBER(AB100),INDEX(SnakeatMilnerLagged!$D$2:$D$370,MATCH(AnnualAADFMonitoring!Y100,SnakeatMilnerLagged!$B$2:$B$370))*-1,"") -> 2 | AB100: =IF(ISNUMBER(MATCH(AnnualAADFMonitoring!Y100,SnakeatMilnerLagged!$B$2:$B$370)),INDEX(SnakeatMilnerLagged!$E$2:$E$370,MATCH(AnnualAADFMonitoring!Y100,SnakeatMilnerLagged!$B$2:$B$370)),"") -> 6760 | AC100: =IF(Y100<User!$E$26,((INDEX($H$6:$O$35750,MATCH(Y100+1,$B$6:$B$35750,0),1)*748+INDEX($H$6:$O$35750,MATCH(Y100+1,$B$6:$B$35750,0),3)*255+INDEX($H$6:$O$35750,MATCH(Y100+1,$B$6:$B$35750,0),5)*7500+INDEX($H$6:$O$35750,MATCH(Y100+1,$B$6:$B$35750,0),7)*870) - (INDEX($H$6:$O$35750,MATCH(Y100,$B$6:$B$35750,0),1)*748+INDEX($H$6:$O$35750,MATCH(Y100,$B$6:$B$35750,0),3)*255+INDEX($H$6:$O$35750,MATCH(Y100,$B$6:$B$35750,0),5)*7500+INDEX($H$6:$O$35750,MATCH(Y100,$B$6:$B$35750,0),7)*870)) /1.9835,"") -> 464.706548 | AD100: 13500 | AE100: 13964.70655 | AF100: 14069.46331 | AH100: 3900 | AI100: 2019-04-02 | AJ100: =IF(Y100<User!$E$26,((INDEX($H$6:$O$35750,MATCH(Y100,$B$6:$B$35750,0),5)))) -> 2454.71895 | AK100: 335.5021114 | AL100: =IF(Y100<User!$E$26,((INDEX($H$6:$O$35750,MATCH(Y100,$B$6:$B$35750,0),1)))) -> 2797.666 | AM100: =IF(Y100<User!$E$26,((INDEX($H$6:$O$35750,MATCH(Y100,$B$6:$B$35750,0),3)))) -> 2653.843 | AN100: =IF(Y100<User!$E$26,((INDEX($H$6:$O$35750,MATCH(Y100,$B$6:$B$35750,0),7)))) -> 2313.122 | AO100: -18.02314091 | AP100: 2454.72159 | AQ100: 317.4789705 | AR100: 2797.666 | AS100: 2653.843 | AT100: 2313.122 | AV100: -18.02314091 | AW100: 0 | AY100: 2019-04-02 | AZ100: NO | BA100: 2 | BB100: 6760 | BC100: 446.6834071 | BD100: 13500 | BE100: 13946.68341 | BF100: 14075.65625
A101: 97 | B101: =ROUND(OFFSET(C101,-4,0),5) -> 2018-12-27T23:15:00 | C101: 2018-12-28T00:15:00 | D101: =IF(VLOOKUP(C101,LwrSalmonFallsDam!$A$3:$B$35999,1,TRUE)=C101,VLOOKUP(C101,LwrSalmonFallsDam!$A$3:$B$35999,2,TRUE),NA()) -> 2797.761 | E101: =IF(VLOOKUP(C101,BlissDam!$A$3:$B$35999,1,TRUE)=C101,VLOOKUP(C101,BlissDam!$A$3:$B$35999,2,TRUE),NA()) -> 2653.864 | F101: =IF(VLOOKUP(C101,CJStageCalc!$A$3:$E$35999,1,TRUE)=C101,VLOOKUP(C101,CJStageCalc!$A$3:$E$35999,5,TRUE),NA()) -> 2454.75609 | G101: =IF(VLOOKUP(C101,SwanFallsDam!$A$3:$B$35999,1,TRUE)=C101,VLOOKUP(C101,SwanFallsDam!$A$3:$B$35999,2,TRUE),NA()) -> 2313.161 | L101: 2454.791 | N101: 2313.602 | T101: -2635.43324 | V101: -800.052 | X101: 2019-04-03 | Y101: 2019-04-03 | Z101: NO | AA101: =IF(ISNUMBER(AB101),INDEX(SnakeatMilnerLagged!$D$2:$D$370,MATCH(AnnualAADFMonitoring!Y101,SnakeatMilnerLagged!$B$2:$B$370))*-1,"") -> 2 | AB101: =IF(ISNUMBER(MATCH(AnnualAADFMonitoring!Y101,SnakeatMilnerLagged!$B$2:$B$370)),INDEX(SnakeatMilnerLagged!$E$2:$E$370,MATCH(AnnualAADFMonitoring!Y101,SnakeatMilnerLagged!$B$2:$B$370)),"") -> 6600 | AC101: =IF(Y101<User!$E$26,((INDEX($H$6:$O$35750,MATCH(Y101+1,$B$6:$B$35750,0),1)*748+INDEX($H$6:$O$35750,MATCH(Y101+1,$B$6:$B$35750,0),3)*255+INDEX($H$6:$O$35750,MATCH(Y101+1,$B$6:$B$35750,0),5)*7500+INDEX($H$6:$O$35750,MATCH(Y101+1,$B$6:$B$35750,0),7)*870) - (INDEX($H$6:$O$35750,MATCH(Y101,$B$6:$B$35750,0),1)*748+INDEX($H$6:$O$35750,MATCH(Y101,$B$6:$B$35750,0),3)*255+INDEX($H$6:$O$35750,MATCH(Y101,$B$6:$B$35750,0),5)*7500+INDEX($H$6:$O$35750,MATCH(Y101,$B$6:$B$35750,0),7)*870)) /1.9835,"") -> 277.6994982 | AD101: 13900 | AE101: 14177.6995 | AF101: 14107.93217 | AH101: 3900 | AI101: 2019-04-03 | AJ101: =IF(Y101<User!$E$26,((INDEX($H$6:$O$35750,MATCH(Y101,$B$6:$B$35750,0),5)))) -> 2454.807679 | AK101: 299.1328232 | AL101: =IF(Y101<User!$E$26,((INDEX($H$6:$O$35750,MATCH(Y101,$B$6:$B$35750,0),1)))) -> 2797.725 | AM101: =IF(Y101<User!$E$26,((INDEX($H$6:$O$35750,MATCH(Y101,$B$6:$B$35750,0),3)))) -> 2653.88 | AN101: =IF(Y101<User!$E$26,((INDEX($H$6:$O$35750,MATCH(Y101,$B$6:$B$35750,0),7)))) -> 2313.355 | AO101: 3.049609277 | AP101: 2454.805553 | AQ101: 302.1824324 | AR101: 2797.725 | AS101: 2653.88 | AT101: 2313.355 | AV101: 3.049609277 | AW101: 0 | AY101: 2019-04-03 | AZ101: NO | BA101: 2 | BB101: 6600 | BC101: 280.7491075 | BD101: 13900 | BE101: 14180.74911 | BF101: 14102.38642
A102: 98 | B102: 2018-12-27T23:30:00.288 | C102: 2018-12-28T00:30:00 | D102: =IF(VLOOKUP(C102,LwrSalmonFallsDam!$A$3:$B$35999,1,TRUE)=C102,VLOOKUP(C102,LwrSalmonFallsDam!$A$3:$B$35999,2,TRUE),NA()) -> 2797.783 | E102: =IF(VLOOKUP(C102,BlissDam!$A$3:$B$35999,1,TRUE)=C102,VLOOKUP(C102,BlissDam!$A$3:$B$35999,2,TRUE),NA()) -> 2653.851 | F102: =IF(VLOOKUP(C102,CJStageCalc!$A$3:$E$35999,1,TRUE)=C102,VLOOKUP(C102,CJStageCalc!$A$3:$E$35999,5,TRUE),NA()) -> 2454.750573 | G102: =IF(VLOOKUP(C102,SwanFallsDam!$A$3:$B$35999,1,TRUE)=C102,VLOOKUP(C102,SwanFallsDam!$A$3:$B$35999,2,TRUE),NA()) -> 2313.145 | L102: 2454.784723 | N102: 2313.579 | T102: -2278.323521 | V102: -968.484 | X102: 2019-04-04 | Y102: 2019-04-04 | Z102: NO | AA102: =IF(ISNUMBER(AB102),INDEX(SnakeatMilnerLagged!$D$2:$D$370,MATCH(AnnualAADFMonitoring!Y102,SnakeatMilnerLagged!$B$2:$B$370))*-1,"") -> 2 | AB102: =IF(ISNUMBER(MATCH(AnnualAADFMonitoring!Y102,SnakeatMilnerLagged!$B$2:$B$370)),INDEX(SnakeatMilnerLagged!$E$2:$E$370,MATCH(AnnualAADFMonitoring!Y102,SnakeatMilnerLagged!$B$2:$B$370)),"") -> 6720 | AC102: =IF(Y102<User!$E$26,((INDEX($H$6:$O$35750,MATCH(Y102+1,$B$6:$B$35750,0),1)*748+INDEX($H$6:$O$35750,MATCH(Y102+1,$B$6:$B$35750,0),3)*255+INDEX($H$6:$O$35750,MATCH(Y102+1,$B$6:$B$35750,0),5)*7500+INDEX($H$6:$O$35750,MATCH(Y102+1,$B$6:$B$35750,0),7)*870) - (INDEX($H$6:$O$35750,MATCH(Y102,$B$6:$B$35750,0),1)*748+INDEX($H$6:$O$35750,MATCH(Y102,$B$6:$B$35750,0),3)*255+INDEX($H$6:$O$35750,MATCH(Y102,$B$6:$B$35750,0),5)*7500+INDEX($H$6:$O$35750,MATCH(Y102,$B$6:$B$35750,0),7)*870)) /1.9835,"") -> -142.252657 | AD102: 15000 | AE102: 14857.74734 | AF102: 14333.38446 | AH102: 3900 | AI102: 2019-04-04 | AJ102: =IF(Y102<User!$E$26,((INDEX($H$6:$O$35750,MATCH(Y102,$B$6:$B$35750,0),5)))) -> 2454.88679 | AK102: -284.5077617 | AL102: =IF(Y102<User!$E$26,((INDEX($H$6:$O$35750,MATCH(Y102,$B$6:$B$35750,0),1)))) -> 2797.704 | AM102: =IF(Y102<User!$E$26,((INDEX($H$6:$O$35750,MATCH(Y102,$B$6:$B$35750,0),3)))) -> 2653.867 | AN102: =IF(Y102<User!$E$26,((INDEX($H$6:$O$35750,MATCH(Y102,$B$6:$B$35750,0),7)))) -> 2313.328 | AO102: 3.327451477 | AP102: 2454.88547 | AQ102: -281.1803102 | AR102: 2797.704 | AS102: 2653.867 | AT102: 2313.328 | AV102: 3.327451477 | AW102: 0 | AY102: 2019-04-04 | AZ102: NO | BA102: 2 | BB102: 6720 | BC102: -138.9252056 | BD102: 15000 | BE102: 14861.07479 | BF102: 14329.50244
A103: 99 | B103: 2018-12-27T23:44:59.712 | C103: 2018-12-28T00:45:00 | D103: =IF(VLOOKUP(C103,LwrSalmonFallsDam!$A$3:$B$35999,1,TRUE)=C103,VLOOKUP(C103,LwrSalmonFallsDam!$A$3:$B$35999,2,TRUE),NA()) -> 2797.769 | E103: =IF(VLOOKUP(C103,BlissDam!$A$3:$B$35999,1,TRUE)=C103,VLOOKUP(C103,BlissDam!$A$3:$B$35999,2,TRUE),NA()) -> 2653.837 | F103: =IF(VLOOKUP(C103,CJStageCalc!$A$3:$E$35999,1,TRUE)=C103,VLOOKUP(C103,CJStageCalc!$A$3:$E$35999,5,TRUE),NA()) -> 2454.75291 | G103: =IF(VLOOKUP(C103,SwanFallsDam!$A$3:$B$35999,1,TRUE)=C103,VLOOKUP(C103,SwanFallsDam!$A$3:$B$35999,2,TRUE),NA()) -> 2313.129 | L103: 2454.782673 | N103: 2313.56 | T103: -744.1499997 | V103: -800.052 | X103: 2019-04-05 | Y103: 2019-04-05 | Z103: NO | AA103: =IF(ISNUMBER(AB103),INDEX(SnakeatMilnerLagged!$D$2:$D$370,MATCH(AnnualAADFMonitoring!Y103,SnakeatMilnerLagged!$B$2:$B$370))*-1,"") -> 2 | AB103: =IF(ISNUMBER(MATCH(AnnualAADFMonitoring!Y103,SnakeatMilnerLagged!$B$2:$B$370)),INDEX(SnakeatMilnerLagged!$E$2:$E$370,MATCH(AnnualAADFMonitoring!Y103,SnakeatMilnerLagged!$B$2:$B$370)),"") -> 6980 | AC103: =IF(Y103<User!$E$26,((INDEX($H$6:$O$35750,MATCH(Y103+1,$B$6:$B$35750,0),1)*748+INDEX($H$6:$O$35750,MATCH(Y103+1,$B$6:$B$35750,0),3)*255+INDEX($H$6:$O$35750,MATCH(Y103+1,$B$6:$B$35750,0),5)*7500+INDEX($H$6:$O$35750,MATCH(Y103+1,$B$6:$B$35750,0),7)*870) - (INDEX($H$6:$O$35750,MATCH(Y103,$B$6:$B$35750,0),1)*748+INDEX($H$6:$O$35750,MATCH(Y103,$B$6:$B$35750,0),3)*255+INDEX($H$6:$O$35750,MATCH(Y103,$B$6:$B$35750,0),5)*7500+INDEX($H$6:$O$35750,MATCH(Y103,$B$6:$B$35750,0),7)*870)) /1.9835,"") -> 96.30897644 | AD103: 15100 | AE103: =IF(ISNUMBER(AD103),IF(Z103="YES",AD103-AB103+AC103,AD103+AC103),NA()) -> 15196.30898 | AF103: 14743.91861 | AH103: 3900 | AI103: 2019-04-05 | AJ103: =IF(Y103<User!$E$26,((INDEX($H$6:$O$35750,MATCH(Y103,$B$6:$B$35750,0),5)))) -> 2454.811547 | AK103: 150.7077665 | AL103: =IF(Y103<User!$E$26,((INDEX($H$6:$O$35750,MATCH(Y103,$B$6:$B$35750,0),1)))) -> 2797.765 | AM103: =IF(Y103<User!$E$26,((INDEX($H$6:$O$35750,MATCH(Y103,$B$6:$B$35750,0),3)))) -> 2653.87 | AN103: =IF(Y103<User!$E$26,((INDEX($H$6:$O$35750,MATCH(Y103,$B$6:$B$35750,0),7)))) -> 2313.599 | AO103: -31.61078901 | AP103: 2454.811107 | AQ103: 119.0969774 | AR103: 2797.765 | AS103: 2653.87 | AT103: 2313.599 | AV103: -31.61078901 | AW103: -1.878134981e-09 | AY103: 2019-04-05 | AZ103: NO | BA103: 2 | BB103: 6980 | BC103: 64.69818743 | BD103: 15100 | BE103: 15164.69819 | BF103: 14735.50736
A104: 100 | B104: 2018-12-28 | C104: 2018-12-28T01:00:00 | D104: =IF(VLOOKUP(C104,LwrSalmonFallsDam!$A$3:$B$35999,1,TRUE)=C104,VLOOKUP(C104,LwrSalmonFallsDam!$A$3:$B$35999,2,TRUE),NA()) -> 2797.735 | E104: =IF(VLOOKUP(C104,BlissDam!$A$3:$B$35999,1,TRUE)=C104,VLOOKUP(C104,BlissDam!$A$3:$B$35999,2,TRUE),NA()) -> 2653.822 | F104: =IF(VLOOKUP(C104,CJStageCalc!$A$3:$E$35999,1,TRUE)=C104,VLOOKUP(C104,CJStageCalc!$A$3:$E$35999,5,TRUE),NA()) -> 2454.748623 | G104: =IF(VLOOKUP(C104,SwanFallsDam!$A$3:$B$35999,1,TRUE)=C104,VLOOKUP(C104,SwanFallsDam!$A$3:$B$35999,2,TRUE),NA()) -> 2313.12 | L104: 2454.781003 | N104: 2313.525 | T104: -606.2099997 | V104: -1473.78 | X104: 2019-04-06 | Y104: 2019-04-06 | Z104: NO | AA104: =IF(ISNUMBER(AB104),INDEX(SnakeatMilnerLagged!$D$2:$D$370,MATCH(AnnualAADFMonitoring!Y104,SnakeatMilnerLagged!$B$2:$B$370))*-1,"") -> 2 | AB104: =IF(ISNUMBER(MATCH(AnnualAADFMonitoring!Y104,SnakeatMilnerLagged!$B$2:$B$370)),INDEX(SnakeatMilnerLagged!$E$2:$E$370,MATCH(AnnualAADFMonitoring!Y104,SnakeatMilnerLagged!$B$2:$B$370)),"") -> 6640 | AC104: =IF(Y104<User!$E$26,((INDEX($H$6:$O$35750,MATCH(Y104+1,$B$6:$B$35750,0),1)*748+INDEX($H$6:$O$35750,MATCH(Y104+1,$B$6:$B$35750,0),3)*255+INDEX($H$6:$O$35750,MATCH(Y104+1,$B$6:$B$35750,0),5)*7500+INDEX($H$6:$O$35750,MATCH(Y104+1,$B$6:$B$35750,0),7)*870) - (INDEX($H$6:$O$35750,MATCH(Y104,$B$6:$B$35750,0),1)*748+INDEX($H$6:$O$35750,MATCH(Y104,$B$6:$B$35750,0),3)*255+INDEX($H$6:$O$35750,MATCH(Y104,$B$6:$B$35750,0),5)*7500+INDEX($H$6:$O$35750,MATCH(Y104,$B$6:$B$35750,0),7)*870)) /1.9835,"") -> -68.16952116 | AD104: 14600 | AE104: 14531.83048 | AF104: 14861.96227 | AH104: 3900 | AI104: 2019-04-06 | AJ104: =IF(Y104<User!$E$26,((INDEX($H$6:$O$35750,MATCH(Y104,$B$6:$B$35750,0),5)))) -> 2454.851404 | AK104: -2.973151105 | AL104: =IF(Y104<User!$E$26,((INDEX($H$6:$O$35750,MATCH(Y104,$B$6:$B$35750,0),1)))) -> 2797.76 | AM104: =IF(Y104<User!$E$26,((INDEX($H$6:$O$35750,MATCH(Y104,$B$6:$B$35750,0),3)))) -> 2653.888 | AN104: =IF(Y104<User!$E$26,((INDEX($H$6:$O$35750,MATCH(Y104,$B$6:$B$35750,0),7)))) -> 2313.474 | AO104: 41.03912276 | AP104: 2454.842604 | AQ104: 38.06597165 | AR104: 2797.76 | AS104: 2653.888 | AT104: 2313.474 | AV104: 41.03912276 | AW104: 3.756284173e-09 | AY104: 2019-04-06 | AZ104: NO | BA104: 2 | BB104: 6640 | BC104: -27.1303984 | BD104: 14600 | BE104: 14572.8696 | BF104: 14866.21419
A105: 101 | B105: 2018-12-28T00:15:00.288 | C105: 2018-12-28T01:15:00 | D105: =IF(VLOOKUP(C105,LwrSalmonFallsDam!$A$3:$B$35999,1,TRUE)=C105,VLOOKUP(C105,LwrSalmonFallsDam!$A$3:$B$35999,2,TRUE),NA()) -> 2797.736 | E105: =IF(VLOOKUP(C105,BlissDam!$A$3:$B$35999,1,TRUE)=C105,VLOOKUP(C105,BlissDam!$A$3:$B$35999,2,TRUE),NA()) -> 2653.808 | F105: =IF(VLOOKUP(C105,CJStageCalc!$A$3:$E$35999,1,TRUE)=C105,VLOOKUP(C105,CJStageCalc!$A$3:$E$35999,5,TRUE),NA()) -> 2454.745643 | G105: =IF(VLOOKUP(C105,SwanFallsDam!$A$3:$B$35999,1,TRUE)=C105,VLOOKUP(C105,SwanFallsDam!$A$3:$B$35999,2,TRUE),NA()) -> 2313.106 | L105: 2454.790873 | N105: 2313.478 | T105: 3582.75676 | V105: -1979.076 | X105: 2019-04-07 | Y105: 2019-04-07 | Z105: NO | AA105: =IF(ISNUMBER(AB105),INDEX(SnakeatMilnerLagged!$D$2:$D$370,MATCH(AnnualAADFMonitoring!Y105,SnakeatMilnerLagged!$B$2:$B$370))*-1,"") -> 2 | AB105: =IF(ISNUMBER(MATCH(AnnualAADFMonitoring!Y105,SnakeatMilnerLagged!$B$2:$B$370)),INDEX(SnakeatMilnerLagged!$E$2:$E$370,MATCH(AnnualAADFMonitoring!Y105,SnakeatMilnerLagged!$B$2:$B$370)),"") -> 5530 | AC105: =IF(Y105<User!$E$26,((INDEX($H$6:$O$35750,MATCH(Y105+1,$B$6:$B$35750,0),1)*748+INDEX($H$6:$O$35750,MATCH(Y105+1,$B$6:$B$35750,0),3)*255+INDEX($H$6:$O$35750,MATCH(Y105+1,$B$6:$B$35750,0),5)*7500+INDEX($H$6:$O$35750,MATCH(Y105+1,$B$6:$B$35750,0),7)*870) - (INDEX($H$6:$O$35750,MATCH(Y105,$B$6:$B$35750,0),1)*748+INDEX($H$6:$O$35750,MATCH(Y105,$B$6:$B$35750,0),3)*255+INDEX($H$6:$O$35750,MATCH(Y105,$B$6:$B$35750,0),5)*7500+INDEX($H$6:$O$35750,MATCH(Y105,$B$6:$B$35750,0),7)*870)) /1.9835,"") -> 155.6708116 | AD105: 14000 | AE105: 14155.67081 | AF105: 14627.93676 | AH105: 3900 | AI105: 2019-04-07 | AJ105: =IF(Y105<User!$E$26,((INDEX($H$6:$O$35750,MATCH(Y105,$B$6:$B$35750,0),5)))) -> 2454.850618 | AK105: 124.8707108 | AL105: =IF(Y105<User!$E$26,((INDEX($H$6:$O$35750,MATCH(Y105,$B$6:$B$35750,0),1)))) -> 2797.761 | AM105: =IF(Y105<User!$E$26,((INDEX($H$6:$O$35750,MATCH(Y105,$B$6:$B$35750,0),3)))) -> 2653.859 | AN105: =IF(Y105<User!$E$26,((INDEX($H$6:$O$35750,MATCH(Y105,$B$6:$B$35750,0),7)))) -> 2313.333 | AO105: 7.762944292 | AP105: 2454.852671 | AQ105: 132.633655 | AR105: 2797.761 | AS105: 2653.859 | AT105: 2313.333 | AV105: 7.76294429 | AW105: -1.878134981e-09 | AY105: 2019-04-07 | AZ105: NO | BA105: 2 | BB105: 5530 | BC105: 163.4337559 | BD105: 14000 | BE105: 14163.43376 | BF105: 14633.66718
A106: 102 | B106: 2018-12-28T00:29:59.712 | C106: 2018-12-28T01:30:00 | D106: =IF(VLOOKUP(C106,LwrSalmonFallsDam!$A$3:$B$35999,1,TRUE)=C106,VLOOKUP(C106,LwrSalmonFallsDam!$A$3:$B$35999,2,TRUE),NA()) -> 2797.745 | E106: =IF(VLOOKUP(C106,BlissDam!$A$3:$B$35999,1,TRUE)=C106,VLOOKUP(C106,BlissDam!$A$3:$B$35999,2,TRUE),NA()) -> 2653.794 | F106: =IF(VLOOKUP(C106,CJStageCalc!$A$3:$E$35999,1,TRUE)=C106,VLOOKUP(C106,CJStageCalc!$A$3:$E$35999,5,TRUE),NA()) -> 2454.750353 | G106: =IF(VLOOKUP(C106,SwanFallsDam!$A$3:$B$35999,1,TRUE)=C106,VLOOKUP(C106,SwanFallsDam!$A$3:$B$35999,2,TRUE),NA()) -> 2313.12 | L106: 2454.795003 | N106: 2313.437 | T106: 1499.24324 | V106: -1726.428 | X106: 2019-04-08 | Y106: 2019-04-08 | Z106: NO | AA106: =IF(ISNUMBER(AB106),INDEX(SnakeatMilnerLagged!$D$2:$D$370,MATCH(AnnualAADFMonitoring!Y106,SnakeatMilnerLagged!$B$2:$B$370))*-1,"") -> 2 | AB106: =IF(ISNUMBER(MATCH(AnnualAADFMonitoring!Y106,SnakeatMilnerLagged!$B$2:$B$370)),INDEX(SnakeatMilnerLagged!$E$2:$E$370,MATCH(AnnualAADFMonitoring!Y106,SnakeatMilnerLagged!$B$2:$B$370)),"") -> 5320 | AC106: =IF(Y106<User!$E$26,((INDEX($H$6:$O$35750,MATCH(Y106+1,$B$6:$B$35750,0),1)*748+INDEX($H$6:$O$35750,MATCH(Y106+1,$B$6:$B$35750,0),3)*255+INDEX($H$6:$O$35750,MATCH(Y106+1,$B$6:$B$35750,0),5)*7500+INDEX($H$6:$O$35750,MATCH(Y106+1,$B$6:$B$35750,0),7)*870) - (INDEX($H$6:$O$35750,MATCH(Y106,$B$6:$B$35750,0),1)*748+INDEX($H$6:$O$35750,MATCH(Y106,$B$6:$B$35750,0),3)*255+INDEX($H$6:$O$35750,MATCH(Y106,$B$6:$B$35750,0),5)*7500+INDEX($H$6:$O$35750,MATCH(Y106,$B$6:$B$35750,0),7)*870)) /1.9835,"") -> 309.6443936 | AD106: 13800 | AE106: 14109.64439 | AF106: 14265.71523 | AH106: 3900 | AI106: 2019-04-08 | AJ106: =IF(Y106<User!$E$26,((INDEX($H$6:$O$35750,MATCH(Y106,$B$6:$B$35750,0),5)))) -> 2454.883642 | AK106: 342.7913561 | AL106: =IF(Y106<User!$E$26,((INDEX($H$6:$O$35750,MATCH(Y106,$B$6:$B$35750,0),1)))) -> 2797.71 | AM106: =IF(Y106<User!$E$26,((INDEX($H$6:$O$35750,MATCH(Y106,$B$6:$B$35750,0),3)))) -> 2653.907 | AN106: =IF(Y106<User!$E$26,((INDEX($H$6:$O$35750,MATCH(Y106,$B$6:$B$35750,0),7)))) -> 2313.433 | AO106: -26.0639274 | AP106: 2454.887749 | AQ106: 316.7274287 | AR106: 2797.71 | AS106: 2653.907 | AT106: 2313.433 | AV106: -26.0639274 | AW106: 0 | AY106: 2019-04-08 | AZ106: NO | BA106: 2 | BB106: 5320 | BC106: 283.5804662 | BD106: 13800 | BE106: 14083.58047 | BF106: 14273.29461
A107: 103 | B107: 2018-12-28T00:45:00 | C107: 2018-12-28T01:45:00 | D107: =IF(VLOOKUP(C107,LwrSalmonFallsDam!$A$3:$B$35999,1,TRUE)=C107,VLOOKUP(C107,LwrSalmonFallsDam!$A$3:$B$35999,2,TRUE),NA()) -> 2797.777 | E107: =IF(VLOOKUP(C107,BlissDam!$A$3:$B$35999,1,TRUE)=C107,VLOOKUP(C107,BlissDam!$A$3:$B$35999,2,TRUE),NA()) -> 2653.794 | F107: =IF(VLOOKUP(C107,CJStageCalc!$A$3:$E$35999,1,TRUE)=C107,VLOOKUP(C107,CJStageCalc!$A$3:$E$35999,5,TRUE),NA()) -> 2454.766463 | G107: =IF(VLOOKUP(C107,SwanFallsDam!$A$3:$B$35999,1,TRUE)=C107,VLOOKUP(C107,SwanFallsDam!$A$3:$B$35999,2,TRUE),NA()) -> 2313.131 | L107: 2454.80128 | N107: 2313.396 | T107: 2278.37676 | V107: -1726.428 | X107: 2019-04-09 | Y107: 2019-04-09 | Z107: NO | AA107: =IF(ISNUMBER(AB107),INDEX(SnakeatMilnerLagged!$D$2:$D$370,MATCH(AnnualAADFMonitoring!Y107,SnakeatMilnerLagged!$B$2:$B$370))*-1,"") -> 2 | AB107: =IF(ISNUMBER(MATCH(AnnualAADFMonitoring!Y107,SnakeatMilnerLagged!$B$2:$B$370)),INDEX(SnakeatMilnerLagged!$E$2:$E$370,MATCH(AnnualAADFMonitoring!Y107,SnakeatMilnerLagged!$B$2:$B$370)),"") -> 5310 | AC107: =IF(Y107<User!$E$26,((INDEX($H$6:$O$35750,MATCH(Y107+1,$B$6:$B$35750,0),1)*748+INDEX($H$6:$O$35750,MATCH(Y107+1,$B$6:$B$35750,0),3)*255+INDEX($H$6:$O$35750,MATCH(Y107+1,$B$6:$B$35750,0),5)*7500+INDEX($H$6:$O$35750,MATCH(Y107+1,$B$6:$B$35750,0),7)*870) - (INDEX($H$6:$O$35750,MATCH(Y107,$B$6:$B$35750,0),1)*748+INDEX($H$6:$O$35750,MATCH(Y107,$B$6:$B$35750,0),3)*255+INDEX($H$6:$O$35750,MATCH(Y107,$B$6:$B$35750,0),5)*7500+INDEX($H$6:$O$35750,MATCH(Y107,$B$6:$B$35750,0),7)*870)) /1.9835,"") -> 281.1000024 | AD107: 13700 | AE107: 13981.1 | AF107: 14082.1384 | AH107: 3900 | AI107: 2019-04-09 | AJ107: =IF(Y107<User!$E$26,((INDEX($H$6:$O$35750,MATCH(Y107,$B$6:$B$35750,0),5)))) -> 2454.974299 | AK107: 74.84439363 | AL107: =IF(Y107<User!$E$26,((INDEX($H$6:$O$35750,MATCH(Y107,$B$6:$B$35750,0),1)))) -> 2797.741 | AM107: =IF(Y107<User!$E$26,((INDEX($H$6:$O$35750,MATCH(Y107,$B$6:$B$35750,0),3)))) -> 2653.896 | AN107: =IF(Y107<User!$E$26,((INDEX($H$6:$O$35750,MATCH(Y107,$B$6:$B$35750,0),7)))) -> 2313.334 | AO107: 15.80539451 | AP107: 2454.971512 | AQ107: 90.64978814 | AR107: 2797.741 | AS107: 2653.896 | AT107: 2313.334 | AV107: 15.80539451 | AW107: 4.263256415e-14 | AY107: 2019-04-09 | AZ107: NO | BA107: 2 | BB107: 5310 | BC107: 296.9053969 | BD107: 13700 | BE107: 13996.9054 | BF107: 14081.30654
A108: 104 | B108: 2018-12-28T01:00:00.288 | C108: 2018-12-28T02:00:00 | D108: =IF(VLOOKUP(C108,LwrSalmonFallsDam!$A$3:$B$35999,1,TRUE)=C108,VLOOKUP(C108,LwrSalmonFallsDam!$A$3:$B$35999,2,TRUE),NA()) -> 2797.756 | E108: =IF(VLOOKUP(C108,BlissDam!$A$3:$B$35999,1,TRUE)=C108,VLOOKUP(C108,BlissDam!$A$3:$B$35999,2,TRUE),NA()) -> 2653.791 | F108: =IF(VLOOKUP(C108,CJStageCalc!$A$3:$E$35999,1,TRUE)=C108,VLOOKUP(C108,CJStageCalc!$A$3:$E$35999,5,TRUE),NA()) -> 2454.773317 | G108: =IF(VLOOKUP(C108,SwanFallsDam!$A$3:$B$35999,1,TRUE)=C108,VLOOKUP(C108,SwanFallsDam!$A$3:$B$35999,2,TRUE),NA()) -> 2313.145 | L108: 2454.811107 | N108: 2313.349 | T108: 3567.079999 | V108: -1979.076 | X108: 2019-04-10 | Y108: 2019-04-10 | Z108: NO | AA108: =IF(ISNUMBER(AB108),INDEX(SnakeatMilnerLagged!$D$2:$D$370,MATCH(AnnualAADFMonitoring!Y108,SnakeatMilnerLagged!$B$2:$B$370))*-1,"") -> 2 | AB108: =IF(ISNUMBER(MATCH(AnnualAADFMonitoring!Y108,SnakeatMilnerLagged!$B$2:$B$370)),INDEX(SnakeatMilnerLagged!$E$2:$E$370,MATCH(AnnualAADFMonitoring!Y108,SnakeatMilnerLagged!$B$2:$B$370)),"") -> 4690 | AC108: =IF(Y108<User!$E$26,((INDEX($H$6:$O$35750,MATCH(Y108+1,$B$6:$B$35750,0),1)*748+INDEX($H$6:$O$35750,MATCH(Y108+1,$B$6:$B$35750,0),3)*255+INDEX($H$6:$O$35750,MATCH(Y108+1,$B$6:$B$35750,0),5)*7500+INDEX($H$6:$O$35750,MATCH(Y108+1,$B$6:$B$35750,0),7)*870) - (INDEX($H$6:$O$35750,MATCH(Y108,$B$6:$B$35750,0),1)*748+INDEX($H$6:$O$35750,MATCH(Y108,$B$6:$B$35750,0),3)*255+INDEX($H$6:$O$35750,MATCH(Y108,$B$6:$B$35750,0),5)*7500+INDEX($H$6:$O$35750,MATCH(Y108,$B$6:$B$35750,0),7)*870)) /1.9835,"") -> 146.8464103 | AD108: 13300 | AE108: 13446.84641 | AF108: 13845.8636 | AH108: 3900 | AI108: 2019-04-10 | AJ108: =IF(Y108<User!$E$26,((INDEX($H$6:$O$35750,MATCH(Y108,$B$6:$B$35750,0),5)))) -> 2454.994093 | AK108: 320.3699797 | AL108: =IF(Y108<User!$E$26,((INDEX($H$6:$O$35750,MATCH(Y108,$B$6:$B$35750,0),1)))) -> 2797.712 | AM108: =IF(Y108<User!$E$26,((INDEX($H$6:$O$35750,MATCH(Y108,$B$6:$B$35750,0),3)))) -> 2653.784 | AN108: =IF(Y108<User!$E$26,((INDEX($H$6:$O$35750,MATCH(Y108,$B$6:$B$35750,0),7)))) -> 2313.862 | AO108: 6.654902947 | AP108: 2454.995486 | AQ108: 327.0248827 | AR108: 2797.712 | AS108: 2653.784 | AT108: 2313.862 | AV108: 6.654902947 | AW108: 2.842170943e-14 | AY108: 2019-04-10 | AZ108: NO | BA108: 2 | BB108: 4690 | BC108: 153.5013132 | BD108: 13300 | BE108: 13453.50131 | BF108: 13844.66239
A109: 105 | B109: 2018-12-28T01:14:59.712 | C109: 2018-12-28T02:15:00 | D109: =IF(VLOOKUP(C109,LwrSalmonFallsDam!$A$3:$B$35999,1,TRUE)=C109,VLOOKUP(C109,LwrSalmonFallsDam!$A$3:$B$35999,2,TRUE),NA()) -> 2797.769 | E109: =IF(VLOOKUP(C109,BlissDam!$A$3:$B$35999,1,TRUE)=C109,VLOOKUP(C109,BlissDam!$A$3:$B$35999,2,TRUE),NA()) -> 2653.796 | F109: =IF(VLOOKUP(C109,CJStageCalc!$A$3:$E$35999,1,TRUE)=C109,VLOOKUP(C109,CJStageCalc!$A$3:$E$35999,5,TRUE),NA()) -> 2454.777523 | G109: =IF(VLOOKUP(C109,SwanFallsDam!$A$3:$B$35999,1,TRUE)=C109,VLOOKUP(C109,SwanFallsDam!$A$3:$B$35999,2,TRUE),NA()) -> 2313.156 | L109: 2454.815667 | N109: 2313.3 | T109: 1655.280001 | V109: -2063.292 | X109: 2019-04-11 | Y109: 2019-04-11 | Z109: NO | AA109: =IF(ISNUMBER(AB109),INDEX(SnakeatMilnerLagged!$D$2:$D$370,MATCH(AnnualAADFMonitoring!Y109,SnakeatMilnerLagged!$B$2:$B$370))*-1,"") -> 2 | AB109: =IF(ISNUMBER(MATCH(AnnualAADFMonitoring!Y109,SnakeatMilnerLagged!$B$2:$B$370)),INDEX(SnakeatMilnerLagged!$E$2:$E$370,MATCH(AnnualAADFMonitoring!Y109,SnakeatMilnerLagged!$B$2:$B$370)),"") -> 2630 | AC109: =IF(Y109<User!$E$26,((INDEX($H$6:$O$35750,MATCH(Y109+1,$B$6:$B$35750,0),1)*748+INDEX($H$6:$O$35750,MATCH(Y109+1,$B$6:$B$35750,0),3)*255+INDEX($H$6:$O$35750,MATCH(Y109+1,$B$6:$B$35750,0),5)*7500+INDEX($H$6:$O$35750,MATCH(Y109+1,$B$6:$B$35750,0),7)*870) - (INDEX($H$6:$O$35750,MATCH(Y109,$B$6:$B$35750,0),1)*748+INDEX($H$6:$O$35750,MATCH(Y109,$B$6:$B$35750,0),3)*255+INDEX($H$6:$O$35750,MATCH(Y109,$B$6:$B$35750,0),5)*7500+INDEX($H$6:$O$35750,MATCH(Y109,$B$6:$B$35750,0),7)*870)) /1.9835,"") -> -917.2563878 | AD109: 13300 | AE109: 12382.74361 | AF109: 13270.23001 | AH109: 3900 | AI109: 2019-04-11 | AJ109: =IF(Y109<User!$E$26,((INDEX($H$6:$O$35750,MATCH(Y109,$B$6:$B$35750,0),5)))) -> 2455.07882 | AK109: -680.2092489 | AL109: =IF(Y109<User!$E$26,((INDEX($H$6:$O$35750,MATCH(Y109,$B$6:$B$35750,0),1)))) -> 2797.979 | AM109: =IF(Y109<User!$E$26,((INDEX($H$6:$O$35750,MATCH(Y109,$B$6:$B$35750,0),3)))) -> 2653.954 | AN109: =IF(Y109<User!$E$26,((INDEX($H$6:$O$35750,MATCH(Y109,$B$6:$B$35750,0),7)))) -> 2313.187 | AO109: 37.98784976 | AP109: 2455.081973 | AQ109: -642.2213992 | AR109: 2797.979 | AS109: 2653.954 | AT109: 2313.187 | AV109: 37.98784977 | AW109: 1.878106559e-09 | AY109: 2019-04-11 | AZ109: NO | BA109: 2 | BB109: 2630 | BC109: -879.2685381 | BD109: 13300 | BE109: 12420.73146 | BF109: 13290.37939
A110: 106 | B110: 2018-12-28T01:30:00 | C110: 2018-12-28T02:30:00 | D110: =IF(VLOOKUP(C110,LwrSalmonFallsDam!$A$3:$B$35999,1,TRUE)=C110,VLOOKUP(C110,LwrSalmonFallsDam!$A$3:$B$35999,2,TRUE),NA()) -> 2797.796 | E110: =IF(VLOOKUP(C110,BlissDam!$A$3:$B$35999,1,TRUE)=C110,VLOOKUP(C110,BlissDam!$A$3:$B$35999,2,TRUE),NA()) -> 2653.808 | F110: =IF(VLOOKUP(C110,CJStageCalc!$A$3:$E$35999,1,TRUE)=C110,VLOOKUP(C110,CJStageCalc!$A$3:$E$35999,5,TRUE),NA()) -> 2454.790083 | G110: =IF(VLOOKUP(C110,SwanFallsDam!$A$3:$B$35999,1,TRUE)=C110,VLOOKUP(C110,SwanFallsDam!$A$3:$B$35999,2,TRUE),NA()) -> 2313.164 | L110: 2454.821527 | N110: =IF(ISNUMBER(OFFSET(G110,$N$3,0)),OFFSET(G110,$N$3,0),"") -> 2313.262 | T110: 2127.126759 | V110: -1600.104 | X110: 2019-04-12 | Y110: 2019-04-12 | Z110: NO | AA110: =IF(ISNUMBER(AB110),INDEX(SnakeatMilnerLagged!$D$2:$D$370,MATCH(AnnualAADFMonitoring!Y110,SnakeatMilnerLagged!$B$2:$B$370))*-1,"") -> 2 | AB110: =IF(ISNUMBER(MATCH(AnnualAADFMonitoring!Y110,SnakeatMilnerLagged!$B$2:$B$370)),INDEX(SnakeatMilnerLagged!$E$2:$E$370,MATCH(AnnualAADFMonitoring!Y110,SnakeatMilnerLagged!$B$2:$B$370)),"") -> 1450 | AC110: =IF(Y110<User!$E$26,((INDEX($H$6:$O$35750,MATCH(Y110+1,$B$6:$B$35750,0),1)*748+INDEX($H$6:$O$35750,MATCH(Y110+1,$B$6:$B$35750,0),3)*255+INDEX($H$6:$O$35750,MATCH(Y110+1,$B$6:$B$35750,0),5)*7500+INDEX($H$6:$O$35750,MATCH(Y110+1,$B$6:$B$35750,0),7)*870) - (INDEX($H$6:$O$35750,MATCH(Y110,$B$6:$B$35750,0),1)*748+INDEX($H$6:$O$35750,MATCH(Y110,$B$6:$B$35750,0),3)*255+INDEX($H$6:$O$35750,MATCH(Y110,$B$6:$B$35750,0),5)*7500+INDEX($H$6:$O$35750,MATCH(Y110,$B$6:$B$35750,0),7)*870)) /1.9835,"") -> -1371.032642 | AD110: 12100 | AE110: 10728.96736 | AF110: 12186.18579 | AH110: 3900 | AI110: 2019-04-12 | AJ110: =IF(Y110<User!$E$26,((INDEX($H$6:$O$35750,MATCH(Y110,$B$6:$B$35750,0),5)))) -> 2454.898927 | AK110: -1234.672168 | AL110: =IF(Y110<User!$E$26,((INDEX($H$6:$O$35750,MATCH(Y110,$B$6:$B$35750,0),1)))) -> 2797.728 | AM110: =IF(Y110<User!$E$26,((INDEX($H$6:$O$35750,MATCH(Y110,$B$6:$B$35750,0),3)))) -> 2653.887 | AN110: =IF(Y110<User!$E$26,((INDEX($H$6:$O$35750,MATCH(Y110,$B$6:$B$35750,0),7)))) -> 2312.882 | AO110: -35.49226116 | AP110: 2454.912127 | AQ110: -1270.164429 | AR110: 2797.728 | AS110: 2653.887 | AT110: 2312.882 | AV110: -35.49226116 | AW110: -1.877879185e-09 | AY110: 2019-04-12 | AZ110: NO | BA110: 2 | BB110: 1450 | BC110: -1406.524903 | BD110: 12100 | BE110: 10693.4751 | BF110: 12189.23596
A111: 107 | B111: 2018-12-28T01:45:00.288 | C111: 2018-12-28T02:45:00 | D111: =IF(VLOOKUP(C111,LwrSalmonFallsDam!$A$3:$B$35999,1,TRUE)=C111,VLOOKUP(C111,LwrSalmonFallsDam!$A$3:$B$35999,2,TRUE),NA()) -> 2797.773 | E111: =IF(VLOOKUP(C111,BlissDam!$A$3:$B$35999,1,TRUE)=C111,VLOOKUP(C111,BlissDam!$A$3:$B$35999,2,TRUE),NA()) -> 2653.82 | F111: =IF(VLOOKUP(C111,CJStageCalc!$A$3:$E$35999,1,TRUE)=C111,VLOOKUP(C111,CJStageCalc!$A$3:$E$35999,5,TRUE),NA()) -> 2454.80353 | G111: =IF(VLOOKUP(C111,SwanFallsDam!$A$3:$B$35999,1,TRUE)=C111,VLOOKUP(C111,SwanFallsDam!$A$3:$B$35999,2,TRUE),NA()) -> 2313.194 | L111: 2454.824913 | N111: 2313.224 | T111: 1229.413241 | V111: -1600.104 | X111: 2019-04-13 | Y111: 2019-04-13 | Z111: NO | AA111: =IF(ISNUMBER(AB111),INDEX(SnakeatMilnerLagged!$D$2:$D$370,MATCH(AnnualAADFMonitoring!Y111,SnakeatMilnerLagged!$B$2:$B$370))*-1,"") -> 2 | AB111: =IF(ISNUMBER(MATCH(AnnualAADFMonitoring!Y111,SnakeatMilnerLagged!$B$2:$B$370)),INDEX(SnakeatMilnerLagged!$E$2:$E$370,MATCH(AnnualAADFMonitoring!Y111,SnakeatMilnerLagged!$B$2:$B$370)),"") -> 1890 | AC111: =IF(Y111<User!$E$26,((INDEX($H$6:$O$35750,MATCH(Y111+1,$B$6:$B$35750,0),1)*748+INDEX($H$6:$O$35750,MATCH(Y111+1,$B$6:$B$35750,0),3)*255+INDEX($H$6:$O$35750,MATCH(Y111+1,$B$6:$B$35750,0),5)*7500+INDEX($H$6:$O$35750,MATCH(Y111+1,$B$6:$B$35750,0),7)*870) - (INDEX($H$6:$O$35750,MATCH(Y111,$B$6:$B$35750,0),1)*748+INDEX($H$6:$O$35750,MATCH(Y111,$B$6:$B$35750,0),3)*255+INDEX($H$6:$O$35750,MATCH(Y111,$B$6:$B$35750,0),5)*7500+INDEX($H$6:$O$35750,MATCH(Y111,$B$6:$B$35750,0),7)*870)) /1.9835,"") -> 223.8926417 | AD111: 10600 | AE111: 10823.89264 | AF111: 11311.86787 | AH111: 3900 | AI111: 2019-04-13 | AJ111: =IF(Y111<User!$E$26,((INDEX($H$6:$O$35750,MATCH(Y111,$B$6:$B$35750,0),5)))) -> 2454.572398 | AK111: 23.5094806 | AL111: =IF(Y111<User!$E$26,((INDEX($H$6:$O$35750,MATCH(Y111,$B$6:$B$35750,0),1)))) -> 2797.761 | AM111: =IF(Y111<User!$E$26,((INDEX($H$6:$O$35750,MATCH(Y111,$B$6:$B$35750,0),3)))) -> 2653.91 | AN111: =IF(Y111<User!$E$26,((INDEX($H$6:$O$35750,MATCH(Y111,$B$6:$B$35750,0),7)))) -> 2312.536 | AO111: 25.23206453 | AP111: 2454.576211 | AQ111: 48.74154513 | AR111: 2797.761 | AS111: 2653.91 | AT111: 2312.536 | AV111: 25.23206453 | AW111: 0 | AY111: 2019-04-13 | AZ111: NO | BA111: 2 | BB111: 1890 | BC111: 249.1247062 | BD111: 10600 | BE111: 10849.12471 | BF111: 11321.11042
A112: 108 | B112: 2018-12-28T01:59:59.712 | C112: 2018-12-28T03:00:00 | D112: =IF(VLOOKUP(C112,LwrSalmonFallsDam!$A$3:$B$35999,1,TRUE)=C112,VLOOKUP(C112,LwrSalmonFallsDam!$A$3:$B$35999,2,TRUE),NA()) -> 2797.769 | E112: =IF(VLOOKUP(C112,BlissDam!$A$3:$B$35999,1,TRUE)=C112,VLOOKUP(C112,BlissDam!$A$3:$B$35999,2,TRUE),NA()) -> 2653.831 | F112: =IF(VLOOKUP(C112,CJStageCalc!$A$3:$E$35999,1,TRUE)=C112,VLOOKUP(C112,CJStageCalc!$A$3:$E$35999,5,TRUE),NA()) -> 2454.805153 | G112: =IF(VLOOKUP(C112,SwanFallsDam!$A$3:$B$35999,1,TRUE)=C112,VLOOKUP(C112,SwanFallsDam!$A$3:$B$35999,2,TRUE),NA()) -> 2313.209 | L112: 2454.83099 | N112: 2313.19 | T112: 2205.883239 | V112: -1431.672 | X112: 2019-04-14 | Y112: 2019-04-14 | Z112: NO | AA112: =IF(ISNUMBER(AB112),INDEX(SnakeatMilnerLagged!$D$2:$D$370,MATCH(AnnualAADFMonitoring!Y112,SnakeatMilnerLagged!$B$2:$B$370))*-1,"") -> 2 | AB112: =IF(ISNUMBER(MATCH(AnnualAADFMonitoring!Y112,SnakeatMilnerLagged!$B$2:$B$370)),INDEX(SnakeatMilnerLagged!$E$2:$E$370,MATCH(AnnualAADFMonitoring!Y112,SnakeatMilnerLagged!$B$2:$B$370)),"") -> 3030 | AC112: =IF(Y112<User!$E$26,((INDEX($H$6:$O$35750,MATCH(Y112+1,$B$6:$B$35750,0),1)*748+INDEX($H$6:$O$35750,MATCH(Y112+1,$B$6:$B$35750,0),3)*255+INDEX($H$6:$O$35750,MATCH(Y112+1,$B$6:$B$35750,0),5)*7500+INDEX($H$6:$O$35750,MATCH(Y112+1,$B$6:$B$35750,0),7)*870) - (INDEX($H$6:$O$35750,MATCH(Y112,$B$6:$B$35750,0),1)*748+INDEX($H$6:$O$35750,MATCH(Y112,$B$6:$B$35750,0),3)*255+INDEX($H$6:$O$35750,MATCH(Y112,$B$6:$B$35750,0),5)*7500+INDEX($H$6:$O$35750,MATCH(Y112,$B$6:$B$35750,0),7)*870)) /1.9835,"") -> -75.40012364 | AD112: 12500 | AE112: 12424.59988 | AF112: 11325.81996 | AH112: 3900 | AI112: 2019-04-14 | AJ112: =IF(Y112<User!$E$26,((INDEX($H$6:$O$35750,MATCH(Y112,$B$6:$B$35750,0),5)))) -> 2454.578615 | AK112: 199.2583084 | AL112: =IF(Y112<User!$E$26,((INDEX($H$6:$O$35750,MATCH(Y112,$B$6:$B$35750,0),1)))) -> 2797.871 | AM112: =IF(Y112<User!$E$26,((INDEX($H$6:$O$35750,MATCH(Y112,$B$6:$B$35750,0),3)))) -> 2653.812 | AN112: =IF(Y112<User!$E$26,((INDEX($H$6:$O$35750,MATCH(Y112,$B$6:$B$35750,0),7)))) -> 2312.927 | AO112: -69.0446181 | AP112: 2454.589102 | AQ112: 130.2136903 | AR112: 2797.871 | AS112: 2653.812 | AT112: 2312.927 | AV112: -69.0446181 | AW112: 0 | AY112: 2019-04-14 | AZ112: NO | BA112: 2 | BB112: 3030 | BC112: -144.4447417 | BD112: 12500 | BE112: 12355.55526 | BF112: 11299.38502
A113: 109 | B113: 2018-12-28T02:15:00 | C113: 2018-12-28T03:15:00 | D113: =IF(VLOOKUP(C113,LwrSalmonFallsDam!$A$3:$B$35999,1,TRUE)=C113,VLOOKUP(C113,LwrSalmonFallsDam!$A$3:$B$35999,2,TRUE),NA()) -> 2797.754 | E113: =IF(VLOOKUP(C113,BlissDam!$A$3:$B$35999,1,TRUE)=C113,VLOOKUP(C113,BlissDam!$A$3:$B$35999,2,TRUE),NA()) -> 2653.841 | F113: =IF(VLOOKUP(C113,CJStageCalc!$A$3:$E$35999,1,TRUE)=C113,VLOOKUP(C113,CJStageCalc!$A$3:$E$35999,5,TRUE),NA()) -> 2454.81664 | G113: =IF(VLOOKUP(C113,SwanFallsDam!$A$3:$B$35999,1,TRUE)=C113,VLOOKUP(C113,SwanFallsDam!$A$3:$B$35999,2,TRUE),NA()) -> 2313.224 | L113: 2454.849177 | N113: 2313.161 | T113: 6601.653521 | V113: -1221.132 | X113: 2019-04-15 | Y113: 2019-04-15 | Z113: NO | AA113: =IF(ISNUMBER(AB113),INDEX(SnakeatMilnerLagged!$D$2:$D$370,MATCH(AnnualAADFMonitoring!Y113,SnakeatMilnerLagged!$B$2:$B$370))*-1,"") -> 2 | AB113: =IF(ISNUMBER(MATCH(AnnualAADFMonitoring!Y113,SnakeatMilnerLagged!$B$2:$B$370)),INDEX(SnakeatMilnerLagged!$E$2:$E$370,MATCH(AnnualAADFMonitoring!Y113,SnakeatMilnerLagged!$B$2:$B$370)),"") -> 4410 | AC113: =IF(Y113<User!$E$26,((INDEX($H$6:$O$35750,MATCH(Y113+1,$B$6:$B$35750,0),1)*748+INDEX($H$6:$O$35750,MATCH(Y113+1,$B$6:$B$35750,0),3)*255+INDEX($H$6:$O$35750,MATCH(Y113+1,$B$6:$B$35750,0),5)*7500+INDEX($H$6:$O$35750,MATCH(Y113+1,$B$6:$B$35750,0),7)*870) - (INDEX($H$6:$O$35750,MATCH(Y113,$B$6:$B$35750,0),1)*748+INDEX($H$6:$O$35750,MATCH(Y113,$B$6:$B$35750,0),3)*255+INDEX($H$6:$O$35750,MATCH(Y113,$B$6:$B$35750,0),5)*7500+INDEX($H$6:$O$35750,MATCH(Y113,$B$6:$B$35750,0),7)*870)) /1.9835,"") -> 993.3858103 | AD113: 13300 | AE113: 14293.38581 | AF113: 12513.95944 | AH113: 3900 | AI113: 2019-04-15 | AJ113: =IF(Y113<User!$E$26,((INDEX($H$6:$O$35750,MATCH(Y113,$B$6:$B$35750,0),5)))) -> 2454.631312 | AK113: 473.3061531 | AL113: =IF(Y113<User!$E$26,((INDEX($H$6:$O$35750,MATCH(Y113,$B$6:$B$35750,0),1)))) -> 2797.781 | AM113: =IF(Y113<User!$E$26,((INDEX($H$6:$O$35750,MATCH(Y113,$B$6:$B$35750,0),3)))) -> 2653.915 | AN113: =IF(Y113<User!$E$26,((INDEX($H$6:$O$35750,MATCH(Y113,$B$6:$B$35750,0),7)))) -> 2312.348 | AO113: 21.07441392 | AP113: 2454.623539 | AQ113: 494.3805671 | AR113: 2797.781 | AS113: 2653.915 | AT113: 2312.348 | AV113: 21.07441392 | AW113: -5.684341886e-14 | AY113: 2019-04-15 | AZ113: NO | BA113: 2 | BB113: 4410 | BC113: 1014.460224 | BD113: 13300 | BE113: 14314.46022 | BF113: 12506.38006
A114: 110 | B114: 2018-12-28T02:30:00.288 | C114: 2018-12-28T03:30:00 | D114: =IF(VLOOKUP(C114,LwrSalmonFallsDam!$A$3:$B$35999,1,TRUE)=C114,VLOOKUP(C114,LwrSalmonFallsDam!$A$3:$B$35999,2,TRUE),NA()) -> 2797.743 | E114: =IF(VLOOKUP(C114,BlissDam!$A$3:$B$35999,1,TRUE)=C114,VLOOKUP(C114,BlissDam!$A$3:$B$35999,2,TRUE),NA()) -> 2653.85 | F114: =IF(VLOOKUP(C114,CJStageCalc!$A$3:$E$35999,1,TRUE)=C114,VLOOKUP(C114,CJStageCalc!$A$3:$E$35999,5,TRUE),NA()) -> 2454.824337 | G114: =IF(VLOOKUP(C114,SwanFallsDam!$A$3:$B$35999,1,TRUE)=C114,VLOOKUP(C114,SwanFallsDam!$A$3:$B$35999,2,TRUE),NA()) -> 2313.248 | L114: 2454.844793 | N114: 2313.145 | T114: -1591.04352 | V114: -673.728 | X114: 2019-04-16 | Y114: 2019-04-16 | Z114: NO | AA114: =IF(ISNUMBER(AB114),INDEX(SnakeatMilnerLagged!$D$2:$D$370,MATCH(AnnualAADFMonitoring!Y114,SnakeatMilnerLagged!$B$2:$B$370))*-1,"") -> 2 | AB114: =IF(ISNUMBER(MATCH(AnnualAADFMonitoring!Y114,SnakeatMilnerLagged!$B$2:$B$370)),INDEX(SnakeatMilnerLagged!$E$2:$E$370,MATCH(AnnualAADFMonitoring!Y114,SnakeatMilnerLagged!$B$2:$B$370)),"") -> 5150 | AC114: =IF(Y114<User!$E$26,((INDEX($H$6:$O$35750,MATCH(Y114+1,$B$6:$B$35750,0),1)*748+INDEX($H$6:$O$35750,MATCH(Y114+1,$B$6:$B$35750,0),3)*255+INDEX($H$6:$O$35750,MATCH(Y114+1,$B$6:$B$35750,0),5)*7500+INDEX($H$6:$O$35750,MATCH(Y114+1,$B$6:$B$35750,0),7)*870) - (INDEX($H$6:$O$35750,MATCH(Y114,$B$6:$B$35750,0),1)*748+INDEX($H$6:$O$35750,MATCH(Y114,$B$6:$B$35750,0),3)*255+INDEX($H$6:$O$35750,MATCH(Y114,$B$6:$B$35750,0),5)*7500+INDEX($H$6:$O$35750,MATCH(Y114,$B$6:$B$35750,0),7)*870)) /1.9835,"") -> 169.5729039 | AD114: 14800 | AE114: 14969.5729 | AF114: 13895.85286 | AH114: 3900 | AI114: 2019-04-16 | AJ114: =IF(Y114<User!$E$26,((INDEX($H$6:$O$35750,MATCH(Y114,$B$6:$B$35750,0),5)))) -> 2454.756486 | AK114: 219.8280085 | AL114: =IF(Y114<User!$E$26,((INDEX($H$6:$O$35750,MATCH(Y114,$B$6:$B$35750,0),1)))) -> 2797.767 | AM114: =IF(Y114<User!$E$26,((INDEX($H$6:$O$35750,MATCH(Y114,$B$6:$B$35750,0),3)))) -> 2653.805 | AN114: =IF(Y114<User!$E$26,((INDEX($H$6:$O$35750,MATCH(Y114,$B$6:$B$35750,0),7)))) -> 2313.578 | AO114: -22.46029745 | AP114: 2454.754286 | AQ114: 197.367711 | AR114: 2797.767 | AS114: 2653.805 | AT114: 2313.578 | AV114: -22.46029745 | AW114: 0 | AY114: 2019-04-16 | AZ114: NO | BA114: 2 | BB114: 5150 | BC114: 147.1126064 | BD114: 14800 | BE114: 14947.11261 | BF114: 13872.37603
A115: 111 | B115: 2018-12-28T02:44:59.712 | C115: 2018-12-28T03:45:00 | D115: =IF(VLOOKUP(C115,LwrSalmonFallsDam!$A$3:$B$35999,1,TRUE)=C115,VLOOKUP(C115,LwrSalmonFallsDam!$A$3:$B$35999,2,TRUE),NA()) -> 2797.738 | E115: =IF(VLOOKUP(C115,BlissDam!$A$3:$B$35999,1,TRUE)=C115,VLOOKUP(C115,BlissDam!$A$3:$B$35999,2,TRUE),NA()) -> 2653.865 | F115: =IF(VLOOKUP(C115,CJStageCalc!$A$3:$E$35999,1,TRUE)=C115,VLOOKUP(C115,CJStageCalc!$A$3:$E$35999,5,TRUE),NA()) -> 2454.82734 | G115: =IF(VLOOKUP(C115,SwanFallsDam!$A$3:$B$35999,1,TRUE)=C115,VLOOKUP(C115,SwanFallsDam!$A$3:$B$35999,2,TRUE),NA()) -> 2313.264 | L115: 2454.856757 | N115: 2313.129 | T115: 4342.63676 | V115: -673.728 | X115: 2019-04-17 | Y115: 2019-04-17 | Z115: NO | AA115: =IF(ISNUMBER(AB115),INDEX(SnakeatMilnerLagged!$D$2:$D$370,MATCH(AnnualAADFMonitoring!Y115,SnakeatMilnerLagged!$B$2:$B$370))*-1,"") -> 2 | AB115: =IF(ISNUMBER(MATCH(AnnualAADFMonitoring!Y115,SnakeatMilnerLagged!$B$2:$B$370)),INDEX(SnakeatMilnerLagged!$E$2:$E$370,MATCH(AnnualAADFMonitoring!Y115,SnakeatMilnerLagged!$B$2:$B$370)),"") -> 5470 | AC115: =IF(Y115<User!$E$26,((INDEX($H$6:$O$35750,MATCH(Y115+1,$B$6:$B$35750,0),1)*748+INDEX($H$6:$O$35750,MATCH(Y115+1,$B$6:$B$35750,0),3)*255+INDEX($H$6:$O$35750,MATCH(Y115+1,$B$6:$B$35750,0),5)*7500+INDEX($H$6:$O$35750,MATCH(Y115+1,$B$6:$B$35750,0),7)*870) - (INDEX($H$6:$O$35750,MATCH(Y115,$B$6:$B$35750,0),1)*748+INDEX($H$6:$O$35750,MATCH(Y115,$B$6:$B$35750,0),3)*255+INDEX($H$6:$O$35750,MATCH(Y115,$B$6:$B$35750,0),5)*7500+INDEX($H$6:$O$35750,MATCH(Y115,$B$6:$B$35750,0),7)*870)) /1.9835,"") -> -337.6869399 | AD115: 16000 | AE115: 15662.31306 | AF115: 14975.09059 | AH115: 3900 | AI115: 2019-04-17 | AJ115: =IF(Y115<User!$E$26,((INDEX($H$6:$O$35750,MATCH(Y115,$B$6:$B$35750,0),5)))) -> 2454.814623 | AK115: -330.4109127 | AL115: =IF(Y115<User!$E$26,((INDEX($H$6:$O$35750,MATCH(Y115,$B$6:$B$35750,0),1)))) -> 2797.725 | AM115: =IF(Y115<User!$E$26,((INDEX($H$6:$O$35750,MATCH(Y115,$B$6:$B$35750,0),3)))) -> 2653.8 | AN115: =IF(Y115<User!$E$26,((INDEX($H$6:$O$35750,MATCH(Y115,$B$6:$B$35750,0),7)))) -> 2313.501 | AO115: -6.932745146 | AP115: 2454.806483 | AQ115: -337.3436578 | AR115: 2797.725 | AS115: 2653.8 | AT115: 2313.501 | AV115: -6.932745146 | AW115: -5.684341886e-14 | AY115: 2019-04-17 | AZ115: NO | BA115: 2 | BB115: 5470 | BC115: -344.619685 | BD115: 16000 | BE115: 15655.38031 | BF115: 14972.31772
A116: 112 | B116: 2018-12-28T03:00:00 | C116: 2018-12-28T04:00:00 | D116: =IF(VLOOKUP(C116,LwrSalmonFallsDam!$A$3:$B$35999,1,TRUE)=C116,VLOOKUP(C116,LwrSalmonFallsDam!$A$3:$B$35999,2,TRUE),NA()) -> 2797.739 | E116: =IF(VLOOKUP(C116,BlissDam!$A$3:$B$35999,1,TRUE)=C116,VLOOKUP(C116,BlissDam!$A$3:$B$35999,2,TRUE),NA()) -> 2653.877 | F116: =IF(VLOOKUP(C116,CJStageCalc!$A$3:$E$35999,1,TRUE)=C116,VLOOKUP(C116,CJStageCalc!$A$3:$E$35999,5,TRUE),NA()) -> 2454.83718 | G116: =IF(VLOOKUP(C116,SwanFallsDam!$A$3:$B$35999,1,TRUE)=C116,VLOOKUP(C116,SwanFallsDam!$A$3:$B$35999,2,TRUE),NA()) -> 2313.276 | L116: 2454.864903 | N116: 2313.12 | T116: 2957.29324 | V116: -378.972 | X116: 2019-04-18 | Y116: 2019-04-18 | Z116: NO | AA116: =IF(ISNUMBER(AB116),INDEX(SnakeatMilnerLagged!$D$2:$D$370,MATCH(AnnualAADFMonitoring!Y116,SnakeatMilnerLagged!$B$2:$B$370))*-1,"") -> 2 | AB116: =IF(ISNUMBER(MATCH(AnnualAADFMonitoring!Y116,SnakeatMilnerLagged!$B$2:$B$370)),INDEX(SnakeatMilnerLagged!$E$2:$E$370,MATCH(AnnualAADFMonitoring!Y116,SnakeatMilnerLagged!$B$2:$B$370)),"") -> 6410 | AC116: =IF(Y116<User!$E$26,((INDEX($H$6:$O$35750,MATCH(Y116+1,$B$6:$B$35750,0),1)*748+INDEX($H$6:$O$35750,MATCH(Y116+1,$B$6:$B$35750,0),3)*255+INDEX($H$6:$O$35750,MATCH(Y116+1,$B$6:$B$35750,0),5)*7500+INDEX($H$6:$O$35750,MATCH(Y116+1,$B$6:$B$35750,0),7)*870) - (INDEX($H$6:$O$35750,MATCH(Y116,$B$6:$B$35750,0),1)*748+INDEX($H$6:$O$35750,MATCH(Y116,$B$6:$B$35750,0),3)*255+INDEX($H$6:$O$35750,MATCH(Y116,$B$6:$B$35750,0),5)*7500+INDEX($H$6:$O$35750,MATCH(Y116,$B$6:$B$35750,0),7)*870)) /1.9835,"") -> 190.1042878 | AD116: 17100 | AE116: 17290.10429 | AF116: 15973.99675 | AH116: 3900 | AI116: 2019-04-18 | AJ116: =IF(Y116<User!$E$26,((INDEX($H$6:$O$35750,MATCH(Y116,$B$6:$B$35750,0),5)))) -> 2454.72724 | AK116: 216.0216056 | AL116: =IF(Y116<User!$E$26,((INDEX($H$6:$O$35750,MATCH(Y116,$B$6:$B$35750,0),1)))) -> 2797.726 | AM116: =IF(Y116<User!$E$26,((INDEX($H$6:$O$35750,MATCH(Y116,$B$6:$B$35750,0),3)))) -> 2653.894 | AN116: =IF(Y116<User!$E$26,((INDEX($H$6:$O$35750,MATCH(Y116,$B$6:$B$35750,0),7)))) -> 2313.456 | AO116: 32.44265188 | AP116: 2454.717267 | AQ116: 248.4642575 | AR116: 2797.726 | AS116: 2653.894 | AT116: 2313.456 | AV116: 32.44265188 | AW116: 0 | AY116: 2019-04-18 | AZ116: NO | BA116: 2 | BB116: 6410 | BC116: 222.5469396 | BD116: 17100 | BE116: 17322.54694 | BF116: 15975.01329
A117: 113 | B117: 2018-12-28T03:15:00.288 | C117: 2018-12-28T04:15:00 | D117: =IF(VLOOKUP(C117,LwrSalmonFallsDam!$A$3:$B$35999,1,TRUE)=C117,VLOOKUP(C117,LwrSalmonFallsDam!$A$3:$B$35999,2,TRUE),NA()) -> 2797.754 | E117: =IF(VLOOKUP(C117,BlissDam!$A$3:$B$35999,1,TRUE)=C117,VLOOKUP(C117,BlissDam!$A$3:$B$35999,2,TRUE),NA()) -> 2653.887 | F117: =IF(VLOOKUP(C117,CJStageCalc!$A$3:$E$35999,1,TRUE)=C117,VLOOKUP(C117,CJStageCalc!$A$3:$E$35999,5,TRUE),NA()) -> 2454.851957 | G117: =IF(VLOOKUP(C117,SwanFallsDam!$A$3:$B$35999,1,TRUE)=C117,VLOOKUP(C117,SwanFallsDam!$A$3:$B$35999,2,TRUE),NA()) -> 2313.299 | L117: 2454.870423 | N117: 2313.106 | T117: 2003.70676 | V117: -589.512 | X117: 2019-04-19 | Y117: 2019-04-19 | Z117: NO | AA117: =IF(ISNUMBER(AB117),INDEX(SnakeatMilnerLagged!$D$2:$D$370,MATCH(AnnualAADFMonitoring!Y117,SnakeatMilnerLagged!$B$2:$B$370))*-1,"") -> 2 | AB117: =IF(ISNUMBER(MATCH(AnnualAADFMonitoring!Y117,SnakeatMilnerLagged!$B$2:$B$370)),INDEX(SnakeatMilnerLagged!$E$2:$E$370,MATCH(AnnualAADFMonitoring!Y117,SnakeatMilnerLagged!$B$2:$B$370)),"") -> 8520 | AC117: =IF(Y117<User!$E$26,((INDEX($H$6:$O$35750,MATCH(Y117+1,$B$6:$B$35750,0),1)*748+INDEX($H$6:$O$35750,MATCH(Y117+1,$B$6:$B$35750,0),3)*255+INDEX($H$6:$O$35750,MATCH(Y117+1,$B$6:$B$35750,0),5)*7500+INDEX($H$6:$O$35750,MATCH(Y117+1,$B$6:$B$35750,0),7)*870) - (INDEX($H$6:$O$35750,MATCH(Y117,$B$6:$B$35750,0),1)*748+INDEX($H$6:$O$35750,MATCH(Y117,$B$6:$B$35750,0),3)*255+INDEX($H$6:$O$35750,MATCH(Y117,$B$6:$B$35750,0),5)*7500+INDEX($H$6:$O$35750,MATCH(Y117,$B$6:$B$35750,0),7)*870)) /1.9835,"") -> 371.8173707 | AD117: 19700 | AE117: 20071.81737 | AF117: 17674.74491 | AH117: 3900 | AI117: 2019-04-19 | AJ117: =IF(Y117<User!$E$26,((INDEX($H$6:$O$35750,MATCH(Y117,$B$6:$B$35750,0),5)))) -> 2454.784371 | AK117: 425.1967506 | AL117: =IF(Y117<User!$E$26,((INDEX($H$6:$O$35750,MATCH(Y117,$B$6:$B$35750,0),1)))) -> 2797.787 | AM117: =IF(Y117<User!$E$26,((INDEX($H$6:$O$35750,MATCH(Y117,$B$6:$B$35750,0),3)))) -> 2653.841 | AN117: =IF(Y117<User!$E$26,((INDEX($H$6:$O$35750,MATCH(Y117,$B$6:$B$35750,0),7)))) -> 2313.36 | AO117: 5.26901941 | AP117: 2454.782977 | AQ117: 430.46577 | AR117: 2797.787 | AS117: 2653.841 | AT117: 2313.36 | AV117: 5.26901941 | AW117: 5.684341886e-14 | AY117: 2019-04-19 | AZ117: NO | BA117: 2 | BB117: 8520 | BC117: 377.0863901 | BD117: 19700 | BE117: 20077.08639 | BF117: 17685.00455
A118: 114 | B118: 2018-12-28T03:29:59.712 | C118: 2018-12-28T04:30:00 | D118: =IF(VLOOKUP(C118,LwrSalmonFallsDam!$A$3:$B$35999,1,TRUE)=C118,VLOOKUP(C118,LwrSalmonFallsDam!$A$3:$B$35999,2,TRUE),NA()) -> 2797.683 | E118: =IF(VLOOKUP(C118,BlissDam!$A$3:$B$35999,1,TRUE)=C118,VLOOKUP(C118,BlissDam!$A$3:$B$35999,2,TRUE),NA()) -> 2653.902 | F118: =IF(VLOOKUP(C118,CJStageCalc!$A$3:$E$35999,1,TRUE)=C118,VLOOKUP(C118,CJStageCalc!$A$3:$E$35999,5,TRUE),NA()) -> 2454.86026 | G118: =IF(VLOOKUP(C118,SwanFallsDam!$A$3:$B$35999,1,TRUE)=C118,VLOOKUP(C118,SwanFallsDam!$A$3:$B$35999,2,TRUE),NA()) -> 2313.311 | L118: =IF(ISNUMBER(OFFSET(F118,$L$3,0)),OFFSET(F118,$L$3,0),"") -> 2454.861777 | N118: 2313.12 | T118: -3138.74 | V118: 589.512 | X118: 2019-04-20 | Y118: 2019-04-20 | Z118: NO | AA118: =IF(ISNUMBER(AB118),INDEX(SnakeatMilnerLagged!$D$2:$D$370,MATCH(AnnualAADFMonitoring!Y118,SnakeatMilnerLagged!$B$2:$B$370))*-1,"") -> 2 | AB118: =IF(ISNUMBER(MATCH(AnnualAADFMonitoring!Y118,SnakeatMilnerLagged!$B$2:$B$370)),INDEX(SnakeatMilnerLagged!$E$2:$E$370,MATCH(AnnualAADFMonitoring!Y118,SnakeatMilnerLagged!$B$2:$B$370)),"") -> 11000 | AC118: =IF(Y118<User!$E$26,((INDEX($H$6:$O$35750,MATCH(Y118+1,$B$6:$B$35750,0),1)*748+INDEX($H$6:$O$35750,MATCH(Y118+1,$B$6:$B$35750,0),3)*255+INDEX($H$6:$O$35750,MATCH(Y118+1,$B$6:$B$35750,0),5)*7500+INDEX($H$6:$O$35750,MATCH(Y118+1,$B$6:$B$35750,0),7)*870) - (INDEX($H$6:$O$35750,MATCH(Y118,$B$6:$B$35750,0),1)*748+INDEX($H$6:$O$35750,MATCH(Y118,$B$6:$B$35750,0),3)*255+INDEX($H$6:$O$35750,MATCH(Y118,$B$6:$B$35750,0),5)*7500+INDEX($H$6:$O$35750,MATCH(Y118,$B$6:$B$35750,0),7)*870)) /1.9835,"") -> 240.0306301 | AD118: 21300 | AE118: 21540.03063 | AF118: 19633.9841 | AH118: 3900 | AI118: 2019-04-20 | AJ118: =IF(Y118<User!$E$26,((INDEX($H$6:$O$35750,MATCH(Y118,$B$6:$B$35750,0),5)))) -> 2454.896821 | AK118: 158.2317896 | AL118: =IF(Y118<User!$E$26,((INDEX($H$6:$O$35750,MATCH(Y118,$B$6:$B$35750,0),1)))) -> 2797.476 | AM118: =IF(Y118<User!$E$26,((INDEX($H$6:$O$35750,MATCH(Y118,$B$6:$B$35750,0),3)))) -> 2653.625 | AN118: =IF(Y118<User!$E$26,((INDEX($H$6:$O$35750,MATCH(Y118,$B$6:$B$35750,0),7)))) -> 2313.569 | AO118: -40.48343837 | AP118: 2454.896821 | AQ118: 117.7483513 | AR118: 2797.476 | AS118: 2653.625 | AT118: 2313.569 | AV118: -40.48343836 | AW118: 1.878134981e-09 | AY118: 2019-04-20 | AZ118: NO | BA118: 2 | BB118: 11000 | BC118: 199.5471917 | BD118: 21300 | BE118: 21499.54719 | BF118: 19633.06017
A119: 115 | B119: 2018-12-28T03:45:00 | C119: 2018-12-28T04:45:00 | D119: =IF(VLOOKUP(C119,LwrSalmonFallsDam!$A$3:$B$35999,1,TRUE)=C119,VLOOKUP(C119,LwrSalmonFallsDam!$A$3:$B$35999,2,TRUE),NA()) -> 2797.71 | E119: =IF(VLOOKUP(C119,BlissDam!$A$3:$B$35999,1,TRUE)=C119,VLOOKUP(C119,BlissDam!$A$3:$B$35999,2,TRUE),NA()) -> 2653.914 | F119: =IF(VLOOKUP(C119,CJStageCalc!$A$3:$E$35999,1,TRUE)=C119,VLOOKUP(C119,CJStageCalc!$A$3:$E$35999,5,TRUE),NA()) -> 2454.870437 | G119: =IF(VLOOKUP(C119,SwanFallsDam!$A$3:$B$35999,1,TRUE)=C119,VLOOKUP(C119,SwanFallsDam!$A$3:$B$35999,2,TRUE),NA()) -> 2313.345 | L119: 2454.85799 | N119: 2313.131 | T119: -1374.56 | V119: 463.188 | X119: 2019-04-21 | Y119: 2019-04-21 | Z119: NO | AA119: =IF(ISNUMBER(AB119),INDEX(SnakeatMilnerLagged!$D$2:$D$370,MATCH(AnnualAADFMonitoring!Y119,SnakeatMilnerLagged!$B$2:$B$370))*-1,"") -> 2 | AB119: =IF(ISNUMBER(MATCH(AnnualAADFMonitoring!Y119,SnakeatMilnerLagged!$B$2:$B$370)),INDEX(SnakeatMilnerLagged!$E$2:$E$370,MATCH(AnnualAADFMonitoring!Y119,SnakeatMilnerLagged!$B$2:$B$370)),"") -> 11800 | AC119: =IF(Y119<User!$E$26,((INDEX($H$6:$O$35750,MATCH(Y119+1,$B$6:$B$35750,0),1)*748+INDEX($H$6:$O$35750,MATCH(Y119+1,$B$6:$B$35750,0),3)*255+INDEX($H$6:$O$35750,MATCH(Y119+1,$B$6:$B$35750,0),5)*7500+INDEX($H$6:$O$35750,MATCH(Y119+1,$B$6:$B$35750,0),7)*870) - (INDEX($H$6:$O$35750,MATCH(Y119,$B$6:$B$35750,0),1)*748+INDEX($H$6:$O$35750,MATCH(Y119,$B$6:$B$35750,0),3)*255+INDEX($H$6:$O$35750,MATCH(Y119,$B$6:$B$35750,0),5)*7500+INDEX($H$6:$O$35750,MATCH(Y119,$B$6:$B$35750,0),7)*870)) /1.9835,"") -> 421.9813233 | AD119: 21700 | AE119: 22121.98132 | AF119: 21244.60977 | AH119: 3900 | AI119: 2019-04-21 | AJ119: =IF(Y119<User!$E$26,((INDEX($H$6:$O$35750,MATCH(Y119,$B$6:$B$35750,0),5)))) -> 2454.938668 | AK119: 481.588079 | AL119: =IF(Y119<User!$E$26,((INDEX($H$6:$O$35750,MATCH(Y119,$B$6:$B$35750,0),1)))) -> 2797.697 | AM119: =IF(Y119<User!$E$26,((INDEX($H$6:$O$35750,MATCH(Y119,$B$6:$B$35750,0),3)))) -> 2653.729 | AN119: =IF(Y119<User!$E$26,((INDEX($H$6:$O$35750,MATCH(Y119,$B$6:$B$35750,0),7)))) -> 2313.535 | AO119: 39.6515755 | AP119: 2454.927962 | AQ119: 521.2396545 | AR119: 2797.697 | AS119: 2653.729 | AT119: 2313.535 | AV119: 39.6515755 | AW119: -1.878163403e-09 | AY119: 2019-04-21 | AZ119: NO | BA119: 2 | BB119: 11800 | BC119: 461.6328988 | BD119: 21700 | BE119: 22161.6329 | BF119: 21246.08883
A120: 116 | B120: 2018-12-28T04:00:00.288 | C120: 2018-12-28T05:00:00 | D120: =IF(VLOOKUP(C120,LwrSalmonFallsDam!$A$3:$B$35999,1,TRUE)=C120,VLOOKUP(C120,LwrSalmonFallsDam!$A$3:$B$35999,2,TRUE),NA()) -> 2797.686 | E120: =IF(VLOOKUP(C120,BlissDam!$A$3:$B$35999,1,TRUE)=C120,VLOOKUP(C120,BlissDam!$A$3:$B$35999,2,TRUE),NA()) -> 2653.922 | F120: =IF(VLOOKUP(C120,CJStageCalc!$A$3:$E$35999,1,TRUE)=C120,VLOOKUP(C120,CJStageCalc!$A$3:$E$35999,5,TRUE),NA()) -> 2454.874027 | G120: =IF(VLOOKUP(C120,SwanFallsDam!$A$3:$B$35999,1,TRUE)=C120,VLOOKUP(C120,SwanFallsDam!$A$3:$B$35999,2,TRUE),NA()) -> 2313.365 | L120: 2454.86068 | N120: 2313.145 | T120: 976.4700004 | V120: 589.512 | X120: 2019-04-22 | Y120: 2019-04-22 | Z120: NO | AA120: =IF(ISNUMBER(AB120),INDEX(SnakeatMilnerLagged!$D$2:$D$370,MATCH(AnnualAADFMonitoring!Y120,SnakeatMilnerLagged!$B$2:$B$370))*-1,"") -> 2 | AB120: =IF(ISNUMBER(MATCH(AnnualAADFMonitoring!Y120,SnakeatMilnerLagged!$B$2:$B$370)),INDEX(SnakeatMilnerLagged!$E$2:$E$370,MATCH(AnnualAADFMonitoring!Y120,SnakeatMilnerLagged!$B$2:$B$370)),"") -> 12200 | AC120: =IF(Y120<User!$E$26,((INDEX($H$6:$O$35750,MATCH(Y120+1,$B$6:$B$35750,0),1)*748+INDEX($H$6:$O$35750,MATCH(Y120+1,$B$6:$B$35750,0),3)*255+INDEX($H$6:$O$35750,MATCH(Y120+1,$B$6:$B$35750,0),5)*7500+INDEX($H$6:$O$35750,MATCH(Y120+1,$B$6:$B$35750,0),7)*870) - (INDEX($H$6:$O$35750,MATCH(Y120,$B$6:$B$35750,0),1)*748+INDEX($H$6:$O$35750,MATCH(Y120,$B$6:$B$35750,0),3)*255+INDEX($H$6:$O$35750,MATCH(Y120,$B$6:$B$35750,0),5)*7500+INDEX($H$6:$O$35750,MATCH(Y120,$B$6:$B$35750,0),7)*870)) /1.9835,"") -> -310.4452459 | AD120: 23000 | AE120: 22689.55475 | AF120: 22117.1889 | AH120: 3900 | AI120: 2019-04-22 | AJ120: =IF(Y120<User!$E$26,((INDEX($H$6:$O$35750,MATCH(Y120,$B$6:$B$35750,0),5)))) -> 2455.066032 | AK120: -349.1283818 | AL120: =IF(Y120<User!$E$26,((INDEX($H$6:$O$35750,MATCH(Y120,$B$6:$B$35750,0),1)))) -> 2797.832 | AM120: =IF(Y120<User!$E$26,((INDEX($H$6:$O$35750,MATCH(Y120,$B$6:$B$35750,0),3)))) -> 2653.753 | AN120: =IF(Y120<User!$E$26,((INDEX($H$6:$O$35750,MATCH(Y120,$B$6:$B$35750,0),7)))) -> 2313.276 | AO120: -23.29216032 | AP120: 2455.065812 | AQ120: -372.4205421 | AR120: 2797.832 | AS120: 2653.753 | AT120: 2313.276 | AV120: -23.29216032 | AW120: 5.684341886e-14 | AY120: 2019-04-22 | AZ120: NO | BA120: 2 | BB120: 12200 | BC120: -333.7374062 | BD120: 23000 | BE120: 22666.26259 | BF120: 22109.14756
A121: 117 | B121: 2018-12-28T04:14:59.712 | C121: 2018-12-28T05:15:00 | D121: =IF(VLOOKUP(C121,LwrSalmonFallsDam!$A$3:$B$35999,1,TRUE)=C121,VLOOKUP(C121,LwrSalmonFallsDam!$A$3:$B$35999,2,TRUE),NA()) -> 2797.747 | E121: =IF(VLOOKUP(C121,BlissDam!$A$3:$B$35999,1,TRUE)=C121,VLOOKUP(C121,BlissDam!$A$3:$B$35999,2,TRUE),NA()) -> 2653.924 | F121: =IF(VLOOKUP(C121,CJStageCalc!$A$3:$E$35999,1,TRUE)=C121,VLOOKUP(C121,CJStageCalc!$A$3:$E$35999,5,TRUE),NA()) -> 2454.88185 | G121: =IF(VLOOKUP(C121,SwanFallsDam!$A$3:$B$35999,1,TRUE)=C121,VLOOKUP(C121,SwanFallsDam!$A$3:$B$35999,2,TRUE),NA()) -> 2313.392 | L121: 2454.845083 | N121: 2313.156 | T121: -5661.59 | V121: 463.188 | X121: 2019-04-23 | Y121: 2019-04-23 | Z121: NO | AA121: =IF(ISNUMBER(AB121),INDEX(SnakeatMilnerLagged!$D$2:$D$370,MATCH(AnnualAADFMonitoring!Y121,SnakeatMilnerLagged!$B$2:$B$370))*-1,"") -> 2 | AB121: =IF(ISNUMBER(MATCH(AnnualAADFMonitoring!Y121,SnakeatMilnerLagged!$B$2:$B$370)),INDEX(SnakeatMilnerLagged!$E$2:$E$370,MATCH(AnnualAADFMonitoring!Y121,SnakeatMilnerLagged!$B$2:$B$370)),"") -> 12200 | AC121: =IF(Y121<User!$E$26,((INDEX($H$6:$O$35750,MATCH(Y121+1,$B$6:$B$35750,0),1)*748+INDEX($H$6:$O$35750,MATCH(Y121+1,$B$6:$B$35750,0),3)*255+INDEX($H$6:$O$35750,MATCH(Y121+1,$B$6:$B$35750,0),5)*7500+INDEX($H$6:$O$35750,MATCH(Y121+1,$B$6:$B$35750,0),7)*870) - (INDEX($H$6:$O$35750,MATCH(Y121,$B$6:$B$35750,0),1)*748+INDEX($H$6:$O$35750,MATCH(Y121,$B$6:$B$35750,0),3)*255+INDEX($H$6:$O$35750,MATCH(Y121,$B$6:$B$35750,0),5)*7500+INDEX($H$6:$O$35750,MATCH(Y121,$B$6:$B$35750,0),7)*870)) /1.9835,"") -> -48.81484509 | AD121: 23000 | AE121: 22951.18515 | AF121: 22587.57374 | AH121: 3900 | AI121: 2019-04-23 | AJ121: =IF(Y121<User!$E$26,((INDEX($H$6:$O$35750,MATCH(Y121,$B$6:$B$35750,0),5)))) -> 2454.9737 | AK121: 57.90408609 | AL121: =IF(Y121<User!$E$26,((INDEX($H$6:$O$35750,MATCH(Y121,$B$6:$B$35750,0),1)))) -> 2797.748 | AM121: =IF(Y121<User!$E$26,((INDEX($H$6:$O$35750,MATCH(Y121,$B$6:$B$35750,0),3)))) -> 2653.867 | AN121: =IF(Y121<User!$E$26,((INDEX($H$6:$O$35750,MATCH(Y121,$B$6:$B$35750,0),7)))) -> 2313.403 | AO121: 26.89745399 | AP121: 2454.96732 | AQ121: 84.80154008 | AR121: 2797.748 | AS121: 2653.867 | AT121: 2313.403 | AV121: 26.89745399 | AW121: 0 | AY121: 2019-04-23 | AZ121: NO | BA121: 2 | BB121: 12200 | BC121: -21.9173911 | BD121: 23000 | BE121: 22978.08261 | BF121: 22601.9927
A122: 118 | B122: 2018-12-28T04:30:00 | C122: 2018-12-28T05:30:00 | D122: =IF(VLOOKUP(C122,LwrSalmonFallsDam!$A$3:$B$35999,1,TRUE)=C122,VLOOKUP(C122,LwrSalmonFallsDam!$A$3:$B$35999,2,TRUE),NA()) -> 2797.707 | E122: =IF(VLOOKUP(C122,BlissDam!$A$3:$B$35999,1,TRUE)=C122,VLOOKUP(C122,BlissDam!$A$3:$B$35999,2,TRUE),NA()) -> 2653.935 | F122: =IF(VLOOKUP(C122,CJStageCalc!$A$3:$E$35999,1,TRUE)=C122,VLOOKUP(C122,CJStageCalc!$A$3:$E$35999,5,TRUE),NA()) -> 2454.89018 | G122: =IF(VLOOKUP(C122,SwanFallsDam!$A$3:$B$35999,1,TRUE)=C122,VLOOKUP(C122,SwanFallsDam!$A$3:$B$35999,2,TRUE),NA()) -> 2313.413 | L122: 2454.840093 | N122: 2313.164 | T122: -1811.369999 | V122: 336.864 | X122: 2019-04-24 | Y122: 2019-04-24 | Z122: NO | AA122: =IF(ISNUMBER(AB122),INDEX(SnakeatMilnerLagged!$D$2:$D$370,MATCH(AnnualAADFMonitoring!Y122,SnakeatMilnerLagged!$B$2:$B$370))*-1,"") -> 2 | AB122: =IF(ISNUMBER(MATCH(AnnualAADFMonitoring!Y122,SnakeatMilnerLagged!$B$2:$B$370)),INDEX(SnakeatMilnerLagged!$E$2:$E$370,MATCH(AnnualAADFMonitoring!Y122,SnakeatMilnerLagged!$B$2:$B$370)),"") -> 13500 | AC122: =IF(Y122<User!$E$26,((INDEX($H$6:$O$35750,MATCH(Y122+1,$B$6:$B$35750,0),1)*748+INDEX($H$6:$O$35750,MATCH(Y122+1,$B$6:$B$35750,0),3)*255+INDEX($H$6:$O$35750,MATCH(Y122+1,$B$6:$B$35750,0),5)*7500+INDEX($H$6:$O$35750,MATCH(Y122+1,$B$6:$B$35750,0),7)*870) - (INDEX($H$6:$O$35750,MATCH(Y122,$B$6:$B$35750,0),1)*748+INDEX($H$6:$O$35750,MATCH(Y122,$B$6:$B$35750,0),3)*255+INDEX($H$6:$O$35750,MATCH(Y122,$B$6:$B$35750,0),5)*7500+INDEX($H$6:$O$35750,MATCH(Y122,$B$6:$B$35750,0),7)*870)) /1.9835,"") -> -125.9788481 | AD122: 24000 | AE122: 23874.02115 | AF122: 23171.58702 | AH122: 3900 | AI122: 2019-04-24 | AJ122: =IF(Y122<User!$E$26,((INDEX($H$6:$O$35750,MATCH(Y122,$B$6:$B$35750,0),5)))) -> 2454.989013 | AK122: -47.99346872 | AL122: =IF(Y122<User!$E$26,((INDEX($H$6:$O$35750,MATCH(Y122,$B$6:$B$35750,0),1)))) -> 2797.754 | AM122: =IF(Y122<User!$E$26,((INDEX($H$6:$O$35750,MATCH(Y122,$B$6:$B$35750,0),3)))) -> 2653.746 | AN122: =IF(Y122<User!$E$26,((INDEX($H$6:$O$35750,MATCH(Y122,$B$6:$B$35750,0),7)))) -> 2313.19 | AO122: -51.02147719 | AP122: 2454.989747 | AQ122: -99.01494591 | AR122: 2797.754 | AS122: 2653.746 | AT122: 2313.19 | AV122: -51.02147719 | AW122: 0 | AY122: 2019-04-24 | AZ122: NO | BA122: 2 | BB122: 13500 | BC122: -177.0003253 | BD122: 24000 | BE122: 23822.99967 | BF122: 23155.78163
A123: 119 | B123: 2018-12-28T04:45:00.288 | C123: 2018-12-28T05:45:00 | D123: =IF(VLOOKUP(C123,LwrSalmonFallsDam!$A$3:$B$35999,1,TRUE)=C123,VLOOKUP(C123,LwrSalmonFallsDam!$A$3:$B$35999,2,TRUE),NA()) -> 2797.694 | E123: =IF(VLOOKUP(C123,BlissDam!$A$3:$B$35999,1,TRUE)=C123,VLOOKUP(C123,BlissDam!$A$3:$B$35999,2,TRUE),NA()) -> 2653.938 | F123: =IF(VLOOKUP(C123,CJStageCalc!$A$3:$E$35999,1,TRUE)=C123,VLOOKUP(C123,CJStageCalc!$A$3:$E$35999,5,TRUE),NA()) -> 2454.89009 | G123: =IF(VLOOKUP(C123,SwanFallsDam!$A$3:$B$35999,1,TRUE)=C123,VLOOKUP(C123,SwanFallsDam!$A$3:$B$35999,2,TRUE),NA()) -> 2313.432 | L123: 2454.84258 | N123: 2313.194 | T123: 902.6599992 | V123: 1263.24 | X123: 2019-04-25 | Y123: 2019-04-25 | Z123: NO | AA123: =IF(ISNUMBER(AB123),INDEX(SnakeatMilnerLagged!$D$2:$D$370,MATCH(AnnualAADFMonitoring!Y123,SnakeatMilnerLagged!$B$2:$B$370))*-1,"") -> 2 | AB123: =IF(ISNUMBER(MATCH(AnnualAADFMonitoring!Y123,SnakeatMilnerLagged!$B$2:$B$370)),INDEX(SnakeatMilnerLagged!$E$2:$E$370,MATCH(AnnualAADFMonitoring!Y123,SnakeatMilnerLagged!$B$2:$B$370)),"") -> 14400 | AC123: =IF(Y123<User!$E$26,((INDEX($H$6:$O$35750,MATCH(Y123+1,$B$6:$B$35750,0),1)*748+INDEX($H$6:$O$35750,MATCH(Y123+1,$B$6:$B$35750,0),3)*255+INDEX($H$6:$O$35750,MATCH(Y123+1,$B$6:$B$35750,0),5)*7500+INDEX($H$6:$O$35750,MATCH(Y123+1,$B$6:$B$35750,0),7)*870) - (INDEX($H$6:$O$35750,MATCH(Y123,$B$6:$B$35750,0),1)*748+INDEX($H$6:$O$35750,MATCH(Y123,$B$6:$B$35750,0),3)*255+INDEX($H$6:$O$35750,MATCH(Y123,$B$6:$B$35750,0),5)*7500+INDEX($H$6:$O$35750,MATCH(Y123,$B$6:$B$35750,0),7)*870)) /1.9835,"") -> 57.31830338 | AD123: 24200 | AE123: 24257.3183 | AF123: 23694.17487 | AH123: 3900 | AI123: 2019-04-25 | AJ123: =IF(Y123<User!$E$26,((INDEX($H$6:$O$35750,MATCH(Y123,$B$6:$B$35750,0),5)))) -> 2454.976321 | AK123: -23.75656427 | AL123: =IF(Y123<User!$E$26,((INDEX($H$6:$O$35750,MATCH(Y123,$B$6:$B$35750,0),1)))) -> 2797.696 | AM123: =IF(Y123<User!$E$26,((INDEX($H$6:$O$35750,MATCH(Y123,$B$6:$B$35750,0),3)))) -> 2653.852 | AN123: =IF(Y123<User!$E$26,((INDEX($H$6:$O$35750,MATCH(Y123,$B$6:$B$35750,0),7)))) -> 2313.031 | AO123: 34.93824049 | AP123: 2454.963561 | AQ123: 11.18167621 | AR123: 2797.696 | AS123: 2653.852 | AT123: 2313.031 | AV123: 34.93824049 | AW123: 0 | AY123: 2019-04-25 | AZ123: NO | BA123: 2 | BB123: 14400 | BC123: 92.25654387 | BD123: 24200 | BE123: 24292.25654 | BF123: 23697.77961
A124: 120 | B124: 2018-12-28T04:59:59.712 | C124: 2018-12-28T06:00:00 | D124: =IF(VLOOKUP(C124,LwrSalmonFallsDam!$A$3:$B$35999,1,TRUE)=C124,VLOOKUP(C124,LwrSalmonFallsDam!$A$3:$B$35999,2,TRUE),NA()) -> 2797.728 | E124: =IF(VLOOKUP(C124,BlissDam!$A$3:$B$35999,1,TRUE)=C124,VLOOKUP(C124,BlissDam!$A$3:$B$35999,2,TRUE),NA()) -> 2653.94 | F124: =IF(VLOOKUP(C124,CJStageCalc!$A$3:$E$35999,1,TRUE)=C124,VLOOKUP(C124,CJStageCalc!$A$3:$E$35999,5,TRUE),NA()) -> 2454.899843 | G124: =IF(VLOOKUP(C124,SwanFallsDam!$A$3:$B$35999,1,TRUE)=C124,VLOOKUP(C124,SwanFallsDam!$A$3:$B$35999,2,TRUE),NA()) -> 2313.454 | L124: 2454.8435 | N124: 2313.209 | T124: 333.9600003 | V124: 631.62 | X124: 2019-04-26 | Y124: 2019-04-26 | Z124: NO | AA124: =IF(ISNUMBER(AB124),INDEX(SnakeatMilnerLagged!$D$2:$D$370,MATCH(AnnualAADFMonitoring!Y124,SnakeatMilnerLagged!$B$2:$B$370))*-1,"") -> 2 | AB124: =IF(ISNUMBER(MATCH(AnnualAADFMonitoring!Y124,SnakeatMilnerLagged!$B$2:$B$370)),INDEX(SnakeatMilnerLagged!$E$2:$E$370,MATCH(AnnualAADFMonitoring!Y124,SnakeatMilnerLagged!$B$2:$B$370)),"") -> 15000 | AC124: =IF(Y124<User!$E$26,((INDEX($H$6:$O$35750,MATCH(Y124+1,$B$6:$B$35750,0),1)*748+INDEX($H$6:$O$35750,MATCH(Y124+1,$B$6:$B$35750,0),3)*255+INDEX($H$6:$O$35750,MATCH(Y124+1,$B$6:$B$35750,0),5)*7500+INDEX($H$6:$O$35750,MATCH(Y124+1,$B$6:$B$35750,0),7)*870) - (INDEX($H$6:$O$35750,MATCH(Y124,$B$6:$B$35750,0),1)*748+INDEX($H$6:$O$35750,MATCH(Y124,$B$6:$B$35750,0),3)*255+INDEX($H$6:$O$35750,MATCH(Y124,$B$6:$B$35750,0),5)*7500+INDEX($H$6:$O$35750,MATCH(Y124,$B$6:$B$35750,0),7)*870)) /1.9835,"") -> 328.4511998 | AD124: 24600 | AE124: 24928.4512 | AF124: 24353.26355 | AH124: 3900 | AI124: 2019-04-26 | AJ124: =IF(Y124<User!$E$26,((INDEX($H$6:$O$35750,MATCH(Y124,$B$6:$B$35750,0),5)))) -> 2454.970038 | AK124: 205.2835668 | AL124: =IF(Y124<User!$E$26,((INDEX($H$6:$O$35750,MATCH(Y124,$B$6:$B$35750,0),1)))) -> 2797.81 | AM124: =IF(Y124<User!$E$26,((INDEX($H$6:$O$35750,MATCH(Y124,$B$6:$B$35750,0),3)))) -> 2653.268 | AN124: =IF(Y124<User!$E$26,((INDEX($H$6:$O$35750,MATCH(Y124,$B$6:$B$35750,0),7)))) -> 2313.289 | AO124: -19.41068818 | AP124: 2454.966518 | AQ124: 185.8728786 | AR124: 2797.81 | AS124: 2653.268 | AT124: 2313.289 | AV124: -19.41068818 | AW124: 2.842170943e-14 | AY124: 2019-04-26 | AZ124: NO | BA124: 2 | BB124: 15000 | BC124: 309.0405116 | BD124: 24600 | BE124: 24909.04051 | BF124: 24341.43224
A125: 121 | B125: 2018-12-28T05:15:00 | C125: 2018-12-28T06:15:00 | D125: =IF(VLOOKUP(C125,LwrSalmonFallsDam!$A$3:$B$35999,1,TRUE)=C125,VLOOKUP(C125,LwrSalmonFallsDam!$A$3:$B$35999,2,TRUE),NA()) -> 2797.683 | E125: =IF(VLOOKUP(C125,BlissDam!$A$3:$B$35999,1,TRUE)=C125,VLOOKUP(C125,BlissDam!$A$3:$B$35999,2,TRUE),NA()) -> 2653.942 | F125: =IF(VLOOKUP(C125,CJStageCalc!$A$3:$E$35999,1,TRUE)=C125,VLOOKUP(C125,CJStageCalc!$A$3:$E$35999,5,TRUE),NA()) -> 2454.895893 | G125: =IF(VLOOKUP(C125,SwanFallsDam!$A$3:$B$35999,1,TRUE)=C125,VLOOKUP(C125,SwanFallsDam!$A$3:$B$35999,2,TRUE),NA()) -> 2313.474 | L125: 2454.833813 | N125: 2313.224 | T125: -3516.206761 | V125: 631.62 | X125: 2019-04-27 | Y125: 2019-04-27 | Z125: NO | AA125: =IF(ISNUMBER(AB125),INDEX(SnakeatMilnerLagged!$D$2:$D$370,MATCH(AnnualAADFMonitoring!Y125,SnakeatMilnerLagged!$B$2:$B$370))*-1,"") -> 2 | AB125: =IF(ISNUMBER(MATCH(AnnualAADFMonitoring!Y125,SnakeatMilnerLagged!$B$2:$B$370)),INDEX(SnakeatMilnerLagged!$E$2:$E$370,MATCH(AnnualAADFMonitoring!Y125,SnakeatMilnerLagged!$B$2:$B$370)),"") -> 15800 | AC125: =IF(Y125<User!$E$26,((INDEX($H$6:$O$35750,MATCH(Y125+1,$B$6:$B$35750,0),1)*748+INDEX($H$6:$O$35750,MATCH(Y125+1,$B$6:$B$35750,0),3)*255+INDEX($H$6:$O$35750,MATCH(Y125+1,$B$6:$B$35750,0),5)*7500+INDEX($H$6:$O$35750,MATCH(Y125+1,$B$6:$B$35750,0),7)*870) - (INDEX($H$6:$O$35750,MATCH(Y125,$B$6:$B$35750,0),1)*748+INDEX($H$6:$O$35750,MATCH(Y125,$B$6:$B$35750,0),3)*255+INDEX($H$6:$O$35750,MATCH(Y125,$B$6:$B$35750,0),5)*7500+INDEX($H$6:$O$35750,MATCH(Y125,$B$6:$B$35750,0),7)*870)) /1.9835,"") -> -263.9819739 | AD125: 25100 | AE125: 24836.01803 | AF125: 24673.92918 | AH125: 3900 | AI125: 2019-04-27 | AJ125: =IF(Y125<User!$E$26,((INDEX($H$6:$O$35750,MATCH(Y125,$B$6:$B$35750,0),5)))) -> 2455.024328 | AK125: -136.8274491 | AL125: =IF(Y125<User!$E$26,((INDEX($H$6:$O$35750,MATCH(Y125,$B$6:$B$35750,0),1)))) -> 2797.811 | AM125: =IF(Y125<User!$E$26,((INDEX($H$6:$O$35750,MATCH(Y125,$B$6:$B$35750,0),3)))) -> 2653.725 | AN125: =IF(Y125<User!$E$26,((INDEX($H$6:$O$35750,MATCH(Y125,$B$6:$B$35750,0),7)))) -> 2313.435 | AO125: -3.881472143 | AP125: 2455.015675 | AQ125: -140.7089212 | AR125: 2797.811 | AS125: 2653.725 | AT125: 2313.435 | AV125: -3.881472143 | AW125: 0 | AY125: 2019-04-27 | AZ125: NO | BA125: 2 | BB125: 15800 | BC125: -267.863446 | BD125: 25100 | BE125: 24832.13655 | BF125: 24677.8112
A126: 122 | B126: 2018-12-28T05:30:00.288 | C126: 2018-12-28T06:30:00 | D126: =IF(VLOOKUP(C126,LwrSalmonFallsDam!$A$3:$B$35999,1,TRUE)=C126,VLOOKUP(C126,LwrSalmonFallsDam!$A$3:$B$35999,2,TRUE),NA()) -> 2797.72 | E126: =IF(VLOOKUP(C126,BlissDam!$A$3:$B$35999,1,TRUE)=C126,VLOOKUP(C126,BlissDam!$A$3:$B$35999,2,TRUE),NA()) -> 2653.941 | F126: =IF(VLOOKUP(C126,CJStageCalc!$A$3:$E$35999,1,TRUE)=C126,VLOOKUP(C126,CJStageCalc!$A$3:$E$35999,5,TRUE),NA()) -> 2454.895193 | G126: =IF(VLOOKUP(C126,SwanFallsDam!$A$3:$B$35999,1,TRUE)=C126,VLOOKUP(C126,SwanFallsDam!$A$3:$B$35999,2,TRUE),NA()) -> 2313.481 | L126: 2454.83594 | N126: 2313.248 | T126: 771.98 | V126: 1010.592 | X126: 2019-04-28 | Y126: 2019-04-28 | Z126: NO | AA126: =IF(ISNUMBER(AB126),INDEX(SnakeatMilnerLagged!$D$2:$D$370,MATCH(AnnualAADFMonitoring!Y126,SnakeatMilnerLagged!$B$2:$B$370))*-1,"") -> 2 | AB126: =IF(ISNUMBER(MATCH(AnnualAADFMonitoring!Y126,SnakeatMilnerLagged!$B$2:$B$370)),INDEX(SnakeatMilnerLagged!$E$2:$E$370,MATCH(AnnualAADFMonitoring!Y126,SnakeatMilnerLagged!$B$2:$B$370)),"") -> 15600 | AC126: =IF(Y126<User!$E$26,((INDEX($H$6:$O$35750,MATCH(Y126+1,$B$6:$B$35750,0),1)*748+INDEX($H$6:$O$35750,MATCH(Y126+1,$B$6:$B$35750,0),3)*255+INDEX($H$6:$O$35750,MATCH(Y126+1,$B$6:$B$35750,0),5)*7500+INDEX($H$6:$O$35750,MATCH(Y126+1,$B$6:$B$35750,0),7)*870) - (INDEX($H$6:$O$35750,MATCH(Y126,$B$6:$B$35750,0),1)*748+INDEX($H$6:$O$35750,MATCH(Y126,$B$6:$B$35750,0),3)*255+INDEX($H$6:$O$35750,MATCH(Y126,$B$6:$B$35750,0),5)*7500+INDEX($H$6:$O$35750,MATCH(Y126,$B$6:$B$35750,0),7)*870)) /1.9835,"") -> 270.7546533 | AD126: 24200 | AE126: 24470.75465 | AF126: 24745.07463 | AH126: 3900 | AI126: 2019-04-28 | AJ126: =IF(Y126<User!$E$26,((INDEX($H$6:$O$35750,MATCH(Y126,$B$6:$B$35750,0),5)))) -> 2454.988142 | AK126: 140.3977085 | AL126: =IF(Y126<User!$E$26,((INDEX($H$6:$O$35750,MATCH(Y126,$B$6:$B$35750,0),1)))) -> 2797.819 | AM126: =IF(Y126<User!$E$26,((INDEX($H$6:$O$35750,MATCH(Y126,$B$6:$B$35750,0),3)))) -> 2653.852 | AN126: =IF(Y126<User!$E$26,((INDEX($H$6:$O$35750,MATCH(Y126,$B$6:$B$35750,0),7)))) -> 2313.101 | AO126: 1.663725734 | AP126: 2454.978462 | AQ126: 142.0614342 | AR126: 2797.819 | AS126: 2653.852 | AT126: 2313.101 | AV126: 1.663725734 | AW126: 0 | AY126: 2019-04-28 | AZ126: NO | BA126: 2 | BB126: 15600 | BC126: 272.418379 | BD126: 24200 | BE126: 24472.41838 | BF126: 24737.86515
A127: 123 | B127: 2018-12-28T05:44:59.712 | C127: 2018-12-28T06:45:00 | D127: =IF(VLOOKUP(C127,LwrSalmonFallsDam!$A$3:$B$35999,1,TRUE)=C127,VLOOKUP(C127,LwrSalmonFallsDam!$A$3:$B$35999,2,TRUE),NA()) -> 2797.697 | E127: =IF(VLOOKUP(C127,BlissDam!$A$3:$B$35999,1,TRUE)=C127,VLOOKUP(C127,BlissDam!$A$3:$B$35999,2,TRUE),NA()) -> 2653.94 | F127: =IF(VLOOKUP(C127,CJStageCalc!$A$3:$E$35999,1,TRUE)=C127,VLOOKUP(C127,CJStageCalc!$A$3:$E$35999,5,TRUE),NA()) -> 2454.8958 | G127: =IF(VLOOKUP(C127,SwanFallsDam!$A$3:$B$35999,1,TRUE)=C127,VLOOKUP(C127,SwanFallsDam!$A$3:$B$35999,2,TRUE),NA()) -> 2313.499 | L127: 2454.832527 | N127: 2313.264 | T127: -1239.09324 | V127: 673.728 | X127: 2019-04-29 | Y127: 2019-04-29 | Z127: NO | AA127: =IF(ISNUMBER(AB127),INDEX(SnakeatMilnerLagged!$D$2:$D$370,MATCH(AnnualAADFMonitoring!Y127,SnakeatMilnerLagged!$B$2:$B$370))*-1,"") -> 2 | AB127: =IF(ISNUMBER(MATCH(AnnualAADFMonitoring!Y127,SnakeatMilnerLagged!$B$2:$B$370)),INDEX(SnakeatMilnerLagged!$E$2:$E$370,MATCH(AnnualAADFMonitoring!Y127,SnakeatMilnerLagged!$B$2:$B$370)),"") -> 15300 | AC127: =IF(Y127<User!$E$26,((INDEX($H$6:$O$35750,MATCH(Y127+1,$B$6:$B$35750,0),1)*748+INDEX($H$6:$O$35750,MATCH(Y127+1,$B$6:$B$35750,0),3)*255+INDEX($H$6:$O$35750,MATCH(Y127+1,$B$6:$B$35750,0),5)*7500+INDEX($H$6:$O$35750,MATCH(Y127+1,$B$6:$B$35750,0),7)*870) - (INDEX($H$6:$O$35750,MATCH(Y127,$B$6:$B$35750,0),1)*748+INDEX($H$6:$O$35750,MATCH(Y127,$B$6:$B$35750,0),3)*255+INDEX($H$6:$O$35750,MATCH(Y127,$B$6:$B$35750,0),5)*7500+INDEX($H$6:$O$35750,MATCH(Y127,$B$6:$B$35750,0),7)*870)) /1.9835,"") -> -625.8422713 | AD127: 24700 | AE127: 24074.15773 | AF127: 24460.31014 | AH127: 3900 | AI127: 2019-04-29 | AJ127: =IF(Y127<User!$E$26,((INDEX($H$6:$O$35750,MATCH(Y127,$B$6:$B$35750,0),5)))) -> 2455.025273 | AK127: -604.2708068 | AL127: =IF(Y127<User!$E$26,((INDEX($H$6:$O$35750,MATCH(Y127,$B$6:$B$35750,0),1)))) -> 2797.86 | AM127: =IF(Y127<User!$E$26,((INDEX($H$6:$O$35750,MATCH(Y127,$B$6:$B$35750,0),3)))) -> 2653.845 | AN127: =IF(Y127<User!$E$26,((INDEX($H$6:$O$35750,MATCH(Y127,$B$6:$B$35750,0),7)))) -> 2313.365 | AO127: 12.47794303 | AP127: 2455.016033 | AQ127: -591.7928637 | AR127: 2797.86 | AS127: 2653.845 | AT127: 2313.365 | AV127: 12.47794303 | AW127: 0 | AY127: 2019-04-29 | AZ127: NO | BA127: 2 | BB127: 15300 | BC127: -613.3643283 | BD127: 24700 | BE127: 24086.63567 | BF127: 24463.7302
A128: 124 | B128: 2018-12-28T06:00:00 | C128: 2018-12-28T07:00:00 | D128: =IF(VLOOKUP(C128,LwrSalmonFallsDam!$A$3:$B$35999,1,TRUE)=C128,VLOOKUP(C128,LwrSalmonFallsDam!$A$3:$B$35999,2,TRUE),NA()) -> 2797.669 | E128: =IF(VLOOKUP(C128,BlissDam!$A$3:$B$35999,1,TRUE)=C128,VLOOKUP(C128,BlissDam!$A$3:$B$35999,2,TRUE),NA()) -> 2653.931 | F128: =IF(VLOOKUP(C128,CJStageCalc!$A$3:$E$35999,1,TRUE)=C128,VLOOKUP(C128,CJStageCalc!$A$3:$E$35999,5,TRUE),NA()) -> 2454.901827 | G128: =IF(VLOOKUP(C128,SwanFallsDam!$A$3:$B$35999,1,TRUE)=C128,VLOOKUP(C128,SwanFallsDam!$A$3:$B$35999,2,TRUE),NA()) -> 2313.511 | L128: 2454.827857 | N128: 2313.276 | T128: -1695.21 | V128: 505.296 | X128: 2019-04-30 | Y128: 2019-04-30 | Z128: NO | AA128: =IF(ISNUMBER(AB128),INDEX(SnakeatMilnerLagged!$D$2:$D$370,MATCH(AnnualAADFMonitoring!Y128,SnakeatMilnerLagged!$B$2:$B$370))*-1,"") -> 2 | AB128: =IF(ISNUMBER(MATCH(AnnualAADFMonitoring!Y128,SnakeatMilnerLagged!$B$2:$B$370)),INDEX(SnakeatMilnerLagged!$E$2:$E$370,MATCH(AnnualAADFMonitoring!Y128,SnakeatMilnerLagged!$B$2:$B$370)),"") -> 15000 | AC128: =IF(Y128<User!$E$26,((INDEX($H$6:$O$35750,MATCH(Y128+1,$B$6:$B$35750,0),1)*748+INDEX($H$6:$O$35750,MATCH(Y128+1,$B$6:$B$35750,0),3)*255+INDEX($H$6:$O$35750,MATCH(Y128+1,$B$6:$B$35750,0),5)*7500+INDEX($H$6:$O$35750,MATCH(Y128+1,$B$6:$B$35750,0),7)*870) - (INDEX($H$6:$O$35750,MATCH(Y128,$B$6:$B$35750,0),1)*748+INDEX($H$6:$O$35750,MATCH(Y128,$B$6:$B$35750,0),3)*255+INDEX($H$6:$O$35750,MATCH(Y128,$B$6:$B$35750,0),5)*7500+INDEX($H$6:$O$35750,MATCH(Y128,$B$6:$B$35750,0),7)*870)) /1.9835,"") -> 757.171593 | AD128: 23200 | AE128: 23957.17159 | AF128: 24167.36132 | AH128: 3900 | AI128: 2019-04-30 | AJ128: =IF(Y128<User!$E$26,((INDEX($H$6:$O$35750,MATCH(Y128,$B$6:$B$35750,0),5)))) -> 2454.865463 | AK128: 590.3977085 | AL128: =IF(Y128<User!$E$26,((INDEX($H$6:$O$35750,MATCH(Y128,$B$6:$B$35750,0),1)))) -> 2797.586 | AM128: =IF(Y128<User!$E$26,((INDEX($H$6:$O$35750,MATCH(Y128,$B$6:$B$35750,0),3)))) -> 2653.57 | AN128: =IF(Y128<User!$E$26,((INDEX($H$6:$O$35750,MATCH(Y128,$B$6:$B$35750,0),7)))) -> 2313.632 | AO128: -26.6196118 | AP128: 2454.859523 | AQ128: 563.7780967 | AR128: 2797.586 | AS128: 2653.57 | AT128: 2313.632 | AV128: -26.6196118 | AW128: -1.136868377e-13 | AY128: 2019-04-30 | AZ128: NO | BA128: 2 | BB128: 15000 | BC128: 730.5519812 | BD128: 23200 | BE128: 23930.55198 | BF128: 24163.20201
A129: 125 | B129: 2018-12-28T06:15:00.288 | C129: 2018-12-28T07:15:00 | D129: =IF(VLOOKUP(C129,LwrSalmonFallsDam!$A$3:$B$35999,1,TRUE)=C129,VLOOKUP(C129,LwrSalmonFallsDam!$A$3:$B$35999,2,TRUE),NA()) -> 2797.696 | E129: =IF(VLOOKUP(C129,BlissDam!$A$3:$B$35999,1,TRUE)=C129,VLOOKUP(C129,BlissDam!$A$3:$B$35999,2,TRUE),NA()) -> 2653.93 | F129: =IF(VLOOKUP(C129,CJStageCalc!$A$3:$E$35999,1,TRUE)=C129,VLOOKUP(C129,CJStageCalc!$A$3:$E$35999,5,TRUE),NA()) -> 2454.894377 | G129: =IF(VLOOKUP(C129,SwanFallsDam!$A$3:$B$35999,1,TRUE)=C129,VLOOKUP(C129,SwanFallsDam!$A$3:$B$35999,2,TRUE),NA()) -> 2313.523 | L129: 2454.815257 | N129: 2313.299 | T129: -4573.853239 | V129: 968.484 | X129: 2019-05-01 | Y129: 2019-05-01 | Z129: NO | AA129: =IF(ISNUMBER(AB129),INDEX(SnakeatMilnerLagged!$D$2:$D$370,MATCH(AnnualAADFMonitoring!Y129,SnakeatMilnerLagged!$B$2:$B$370))*-1,"") -> 2 | AB129: =IF(ISNUMBER(MATCH(AnnualAADFMonitoring!Y129,SnakeatMilnerLagged!$B$2:$B$370)),INDEX(SnakeatMilnerLagged!$E$2:$E$370,MATCH(AnnualAADFMonitoring!Y129,SnakeatMilnerLagged!$B$2:$B$370)),"") -> 15100 | AC129: =IF(Y129<User!$E$26,((INDEX($H$6:$O$35750,MATCH(Y129+1,$B$6:$B$35750,0),1)*748+INDEX($H$6:$O$35750,MATCH(Y129+1,$B$6:$B$35750,0),3)*255+INDEX($H$6:$O$35750,MATCH(Y129+1,$B$6:$B$35750,0),5)*7500+INDEX($H$6:$O$35750,MATCH(Y129+1,$B$6:$B$35750,0),7)*870) - (INDEX($H$6:$O$35750,MATCH(Y129,$B$6:$B$35750,0),1)*748+INDEX($H$6:$O$35750,MATCH(Y129,$B$6:$B$35750,0),3)*255+INDEX($H$6:$O$35750,MATCH(Y129,$B$6:$B$35750,0),5)*7500+INDEX($H$6:$O$35750,MATCH(Y129,$B$6:$B$35750,0),7)*870)) /1.9835,"") -> -74.45028748 | AD129: 23300 | AE129: 23225.54971 | AF129: 23752.29301 | AH129: 3900 | AI129: 2019-05-01 | AJ129: =IF(Y129<User!$E$26,((INDEX($H$6:$O$35750,MATCH(Y129,$B$6:$B$35750,0),5)))) -> 2455.021604 | AK129: -34.46994969 | AL129: =IF(Y129<User!$E$26,((INDEX($H$6:$O$35750,MATCH(Y129,$B$6:$B$35750,0),1)))) -> 2797.788 | AM129: =IF(Y129<User!$E$26,((INDEX($H$6:$O$35750,MATCH(Y129,$B$6:$B$35750,0),3)))) -> 2653.606 | AN129: =IF(Y129<User!$E$26,((INDEX($H$6:$O$35750,MATCH(Y129,$B$6:$B$35750,0),7)))) -> 2313.828 | AO129: 34.93824048 | AP129: 2455.008624 | AQ129: 0.4682907938 | AR129: 2797.788 | AS129: 2653.606 | AT129: 2313.828 | AV129: 34.93824048 | AW129: 1.878134981e-09 | AY129: 2019-05-01 | AZ129: NO | BA129: 2 | BB129: 15100 | BC129: -39.51204699 | BD129: 23300 | BE129: 23260.48795 | BF129: 23759.2252
A130: 126 | B130: 2018-12-28T06:29:59.712 | C130: 2018-12-28T07:30:00 | D130: =IF(VLOOKUP(C130,LwrSalmonFallsDam!$A$3:$B$35999,1,TRUE)=C130,VLOOKUP(C130,LwrSalmonFallsDam!$A$3:$B$35999,2,TRUE),NA()) -> 2797.695 | E130: =IF(VLOOKUP(C130,BlissDam!$A$3:$B$35999,1,TRUE)=C130,VLOOKUP(C130,BlissDam!$A$3:$B$35999,2,TRUE),NA()) -> 2653.919 | F130: =IF(VLOOKUP(C130,CJStageCalc!$A$3:$E$35999,1,TRUE)=C130,VLOOKUP(C130,CJStageCalc!$A$3:$E$35999,5,TRUE),NA()) -> 2454.88033 | G130: =IF(VLOOKUP(C130,SwanFallsDam!$A$3:$B$35999,1,TRUE)=C130,VLOOKUP(C130,SwanFallsDam!$A$3:$B$35999,2,TRUE),NA()) -> 2313.529 | L130: 2454.806023 | N130: 2313.311 | T130: -3351.700001 | V130: 505.296 | X130: 2019-05-02 | Y130: 2019-05-02 | Z130: NO | AA130: =IF(ISNUMBER(AB130),INDEX(SnakeatMilnerLagged!$D$2:$D$370,MATCH(AnnualAADFMonitoring!Y130,SnakeatMilnerLagged!$B$2:$B$370))*-1,"") -> 2 | AB130: =IF(ISNUMBER(MATCH(AnnualAADFMonitoring!Y130,SnakeatMilnerLagged!$B$2:$B$370)),INDEX(SnakeatMilnerLagged!$E$2:$E$370,MATCH(AnnualAADFMonitoring!Y130,SnakeatMilnerLagged!$B$2:$B$370)),"") -> 13200 | AC130: =IF(Y130<User!$E$26,((INDEX($H$6:$O$35750,MATCH(Y130+1,$B$6:$B$35750,0),1)*748+INDEX($H$6:$O$35750,MATCH(Y130+1,$B$6:$B$35750,0),3)*255+INDEX($H$6:$O$35750,MATCH(Y130+1,$B$6:$B$35750,0),5)*7500+INDEX($H$6:$O$35750,MATCH(Y130+1,$B$6:$B$35750,0),7)*870) - (INDEX($H$6:$O$35750,MATCH(Y130,$B$6:$B$35750,0),1)*748+INDEX($H$6:$O$35750,MATCH(Y130,$B$6:$B$35750,0),3)*255+INDEX($H$6:$O$35750,MATCH(Y130,$B$6:$B$35750,0),5)*7500+INDEX($H$6:$O$35750,MATCH(Y130,$B$6:$B$35750,0),7)*870)) /1.9835,"") -> -23.7041317 | AD130: 19800 | AE130: 19776.29587 | AF130: 22319.67239 | AH130: 3900 | AI130: 2019-05-02 | AJ130: =IF(Y130<User!$E$26,((INDEX($H$6:$O$35750,MATCH(Y130,$B$6:$B$35750,0),5)))) -> 2455.012488 | AK130: -18.07216801 | AL130: =IF(Y130<User!$E$26,((INDEX($H$6:$O$35750,MATCH(Y130,$B$6:$B$35750,0),1)))) -> 2797.666 | AM130: =IF(Y130<User!$E$26,((INDEX($H$6:$O$35750,MATCH(Y130,$B$6:$B$35750,0),3)))) -> 2653.571 | AN130: =IF(Y130<User!$E$26,((INDEX($H$6:$O$35750,MATCH(Y130,$B$6:$B$35750,0),7)))) -> 2313.852 | AO130: -22.46029746 | AP130: 2455.008748 | AQ130: -40.53246546 | AR130: 2797.666 | AS130: 2653.571 | AT130: 2313.852 | AV130: -22.46029746 | AW130: -1.878134981e-09 | AY130: 2019-05-02 | AZ130: NO | BA130: 2 | BB130: 13200 | BC130: -46.16442916 | BD130: 19800 | BE130: 19753.83557 | BF130: 22314.9585
A131: 127 | B131: 2018-12-28T06:45:00 | C131: 2018-12-28T07:45:00 | D131: =IF(VLOOKUP(C131,LwrSalmonFallsDam!$A$3:$B$35999,1,TRUE)=C131,VLOOKUP(C131,LwrSalmonFallsDam!$A$3:$B$35999,2,TRUE),NA()) -> 2797.657 | E131: =IF(VLOOKUP(C131,BlissDam!$A$3:$B$35999,1,TRUE)=C131,VLOOKUP(C131,BlissDam!$A$3:$B$35999,2,TRUE),NA()) -> 2653.907 | F131: =IF(VLOOKUP(C131,CJStageCalc!$A$3:$E$35999,1,TRUE)=C131,VLOOKUP(C131,CJStageCalc!$A$3:$E$35999,5,TRUE),NA()) -> 2454.87797 | G131: =IF(VLOOKUP(C131,SwanFallsDam!$A$3:$B$35999,1,TRUE)=C131,VLOOKUP(C131,SwanFallsDam!$A$3:$B$35999,2,TRUE),NA()) -> 2313.522 | L131: 2454.80705 | N131: 2313.345 | T131: 372.7332408 | V131: 1431.672 | X131: 2019-05-03 | Y131: 2019-05-03 | Z131: NO | AA131: =IF(ISNUMBER(AB131),INDEX(SnakeatMilnerLagged!$D$2:$D$370,MATCH(AnnualAADFMonitoring!Y131,SnakeatMilnerLagged!$B$2:$B$370))*-1,"") -> 2 | AB131: =IF(ISNUMBER(MATCH(AnnualAADFMonitoring!Y131,SnakeatMilnerLagged!$B$2:$B$370)),INDEX(SnakeatMilnerLagged!$E$2:$E$370,MATCH(AnnualAADFMonitoring!Y131,SnakeatMilnerLagged!$B$2:$B$370)),"") -> 10500 | AC131: =IF(Y131<User!$E$26,((INDEX($H$6:$O$35750,MATCH(Y131+1,$B$6:$B$35750,0),1)*748+INDEX($H$6:$O$35750,MATCH(Y131+1,$B$6:$B$35750,0),3)*255+INDEX($H$6:$O$35750,MATCH(Y131+1,$B$6:$B$35750,0),5)*7500+INDEX($H$6:$O$35750,MATCH(Y131+1,$B$6:$B$35750,0),7)*870) - (INDEX($H$6:$O$35750,MATCH(Y131,$B$6:$B$35750,0),1)*748+INDEX($H$6:$O$35750,MATCH(Y131,$B$6:$B$35750,0),3)*255+INDEX($H$6:$O$35750,MATCH(Y131,$B$6:$B$35750,0),5)*7500+INDEX($H$6:$O$35750,MATCH(Y131,$B$6:$B$35750,0),7)*870)) /1.9835,"") -> 146.4329492 | AD131: 17200 | AE131: 17346.43295 | AF131: 20116.09284 | AH131: 3900 | AI131: 2019-05-03 | AJ131: =IF(Y131<User!$E$26,((INDEX($H$6:$O$35750,MATCH(Y131,$B$6:$B$35750,0),5)))) -> 2455.007708 | AK131: 127.6545272 | AL131: =IF(Y131<User!$E$26,((INDEX($H$6:$O$35750,MATCH(Y131,$B$6:$B$35750,0),1)))) -> 2797.739 | AM131: =IF(Y131<User!$E$26,((INDEX($H$6:$O$35750,MATCH(Y131,$B$6:$B$35750,0),3)))) -> 2653.702 | AN131: =IF(Y131<User!$E$26,((INDEX($H$6:$O$35750,MATCH(Y131,$B$6:$B$35750,0),7)))) -> 2313.738 | AO131: 24.40186539 | AP131: 2454.998028 | AQ131: 152.0563926 | AR131: 2797.739 | AS131: 2653.702 | AT131: 2313.738 | AV131: 24.40186539 | AW131: 0 | AY131: 2019-05-03 | AZ131: NO | BA131: 2 | BB131: 10500 | BC131: 170.8348146 | BD131: 17200 | BE131: 17370.83481 | BF131: 20128.38611
